Workbook

Sheet Contents
C3: Sheet Tab | D3: Description | E3: Author | J3: Depreciation
B4: 1 | C4: Contents | J4: Goal Seek for Entry Multiple
B5: 2 | C5: Summary | J5: Finish Balance Sheet
B6: 3 | C6: Assumptions | J6: Data Tables in Different Sheets
B7: 4 | C7: S&U and Pro-Forma | J7: Audit Sheet
B8: 5 | C8: LBO | J8: Taxes with NOL
B9: 6 | C9: Annual Model | J9: Break Even Graphs
B10: 7 | C10: Audit sheet | J10: Circularity
B11: 8 | C11: DCF
B12: 9 | C12: Circular
B13: 10 | C13: Chart1
B14: 11 | C14: PE Scenario
B15: 12 | C15: PE Ratio
B16: 13 | C16: IRR
B17: 14 | C17: Sheet1
B19: File Name: | D19: E:\2013.05.21 EM course Day3.xlsm
B21: Colour Codes
B23: Last Save Date | D23: 2013-05-04T16:34:16
B24: Last Save By | D24: Usain Bolt

Sheet Summary
A2: Sources and uses of funds | G2: Transaction Assumptions
B3: Uses of funds | H3: Entry EV/EBITDA | J3: =Assumptions!E61 -> 8.022961226
C4: Consideration | E4: =Assumptions!E13 -> 473 | H4: Entry P/E Ratio | J4: =Assumptions!E48 -> 13.51428571
C5: Debt fees | E5: =SUM(Assumptions!E101:E103)*Assumptions!E123 -> 4.65 | H5: Entry M/B Ratio | J5: =Assumptions!E43 -> 3.051612903
C6: Advisory fees | E6: =E4*Assumptions!E124 -> 4.73
C7: Existing debt paydown | E7: =Assumptions!E95 -> 100 | G7: Assumptions
C8: Dividend payment | E8: =Assumptions!E97 -> 40 | H8: Revnue Growth
C9: Interest rate swaps | E9: =Assumptions!F31 -> 30 | H9: Margin
D10: Total uses of funds | E10: =SUM(E4:E9) -> 652.38
H11: EBITDA Senstivity | J11: =Assumptions!E65 -> 1
B12: Sources of funds | H12: Holding Period | J12: =Assumptions!$E$4 -> 8
C13: Senior amortising debt | E13: =Assumptions!E101 -> 140 | H13: Exit EV/EBITDA | J13: =Assumptions!$E$5 -> 5
C14: Senior bullet debt | E14: =Assumptions!E102 -> 130
C15: Capitalising debt | E15: =Assumptions!E103 -> 40 | G15: IRR's
C16: Cash | E16: =Assumptions!E97 -> 40 | H16: Ungeared IRR | J16: =Assumptions!$I$4 -> 0.144804877
C17: Sale of assets | E17: =Assumptions!E98 -> 75 | H17: Ungeared MIRR | J17: ='LBO Model'!G47 -> 0.1188475609
C18: Equity | E18: =E10-SUM(E13:E17) -> 227.38 | H18: Equity IRR | J18: =Assumptions!$I$5 -> 0.1948427648
D19: Total uses of funds | E19: =SUM(E13:E18) -> 652.38 | H19: Senior Debt IRR | J19: ='LBO Model'!G237 -> 0.0419246763
H20: Sub Debt IRR | J20: ='LBO Model'!G244 -> 0.08341424167
C22: Enterprise Value | E22: =Assumptions!$E$58 -> 487.38 | G22: Defaults
C23: Senior Debt/EBITDA | E23: =Assumptions!F105-Assumptions!F103 -> 4.773808436 | H23: Senior Default
C24: Revolving Debt | E24: =Assumptions!E128 -> 44 | H24: Mezz Default

Sheet Assumptions
A2: Transaction assumptions
B3: Entry EV to EBITDA | E3: 7
B4: Holding period | E4: 8 | H4: Ungeared IRR | I4: ='LBO Model'!G45 -> 0.144804877
B5: Exit EV to EBITDA | E5: 5 | H5: Equity IRR | I5: ='LBO Model'!G227 -> 0.1948427648
B6: Target Equity IRR | E6: 0.2
B8: Transaction date | E8: 2015-10-01
B9: Exit date | E9: =EDATE(E8,E4*12) -> 2023-10-01
B11: Periods per year | E11: 4
B12: Months per period | E12: =12/E11 -> 3
B13: Consideration | E13: 473
A15: Existing balance sheet
B16: Assets | E16: Book | F16: Market Value
C17: Cash | E17: 50 | F17: 50
C18: Accounts receivable | E18: 20 | F18: 18
C19: Net fixed assets | E19: 430 | F19: 500
C20: Intangible assets | E20: 0 | F20: 50
C21: Long term notes receivable | E21: 90 | F21: 130
C22: Investments in associates | E22: 60 | F22: 75
C23: Derivative assets | E23: 30 | F23: 30
D24: Total assets | E24: =SUM(E17:E23) -> 680 | F24: =SUM(F17:F23) -> 853
B27: Liabilities & capital | E27: Book | F27: Market Value
C28: Accounts payable | E28: 5 | F28: 6
C29: Debt | E29: 350 | F29: 350
C30: Deferred taxes | E30: 80 | F30: 80
C31: Derivative liabilities | E31: 30 | F31: 30
C32: Unfunded pension liabilities | E32: 60 | F32: 60
C33: Minority interest | E33: 40
C34: Equity capital | E34: =E24-SUM(E28:E33) -> 115
D35: Total | E35: =SUM(E28:E34) -> 680
C37: Balance sheet check | E37: =E35=E24 -> TRUE
A39: Implied valuation multiples
B40: Market to book
C41: Consideration | E41: =E13 -> 473
C42: Book Value of Target Equity | E42: =SUM(E33:E34) -> 155
C43: Market to book | E43: =E41/E42 -> 3.051612903
B45: Implied PE ratio
C46: Earnings | E46: 35
C47: Consideration | E47: =E41 -> 473
C48: Implied PE | E48: =E47/E46 -> 13.51428571
B50: Implied EV to EBITDA
C51: Consideration | E51: =E13+'S&U and Pro-Forma'!E40 -> 482.38
C52: Add: Debt | E52: 120
C53: Add: derivative liabilities | E53: =F31 -> 30
C54: Add: Pensions | E54: =F32 -> 60
C55: Less: cash | E55: 0
C56: Less: associated investments | E56: =F22*-1 -> -75
C57: Less: notes receivable | E57: =-F21 -> -130
C58: EV | E58: =SUM(E51:E57) -> 487.38
C60: EBITDA | E60: =SUM(OFFSET('LBO Model'!H23,0,0,1,'LBO Model'!H10)) -> 60.74814352
C61: EV to EBITDA | E61: =E58/E60 -> 8.022961226
A63: Operating assumptions
B64: Revenues | E64: 150
B65: EBITDA Sensitivity | E65: =F65/100 -> 1 | F65: 100
B66: EBITDA Sensitivity Start Year | E66: 2
B69: Revenue Growth | E69: 1 | G69: 1 | H69: 2 | I69: 3 | J69: 4 | K69: 5 | L69: 6 | M69: 7
C70: Base case | G70: 0.02 | H70: 0.15 | I70: 0.15 | J70: 0.12 | K70: 0.1 | L70: 0.07 | M70: 0.05
C71: Low case | G71: 0 | H71: 0.05 | I71: 0.05 | J71: 0.03 | K71: 0.02 | L71: 0.02 | M71: 0.02
C72: High case | G72: 0.04 | H72: 0.2 | I72: 0.15 | J72: 0.12 | K72: 0.1 | L72: 0.07 | M72: 0.05
C74: =INDEX(C70:C72,$E$69) -> Base case | G74: =INDEX(G70:G72,$E$69) -> 0.02 | H74: 0.15 | I74: 0.15 | J74: 0.12 | K74: 0.1 | L74: 0.07 | M74: 0.05
B77: Operating margin | E77: 1
C78: Base Margin | G78: 0.4 | H78: 0.38 | I78: 0.4 | J78: 0.41 | K78: 0.42 | L78: 0.42 | M78: 0.42
C79: Low Margin | G79: 0.39 | H79: 0.38 | I79: 0.38 | J79: 0.38 | K79: 0.38 | L79: 0.38 | M79: 0.38
C80: High Margin | G80: 0.4 | H80: 0.41 | I80: 0.41 | J80: 0.42 | K80: 0.42 | L80: 0.42 | M80: 0.42
C82: =INDEX(C78:C80,$E$77) -> Base Margin | G82: =INDEX(G78:G80,$E$77) -> 0.4 | H82: =INDEX(H78:H80,$E$77) -> 0.38 | I82: 0.4 | J82: 0.41 | K82: 0.42 | L82: 0.42 | M82: 0.42
B84: Maintenance CAPEX | G84: 20
B85: CAPEX Growth | G85: 0.05
G87: 1 | H87: 3 | I87: 4
B88: Growth capex | G88: 10 | H88: 0 | I88: 0
B90: Working capital
C91: Days receivables outstanding | G91: 30 | H91: 30 | I91: 30 | J91: 30 | K91: 30 | L91: 30 | M91: 30
C92: Days payables outstanding | G92: 15 | H92: 15 | I92: 15 | J92: 15 | K92: 15 | L92: 15 | M92: 15
A94: Financing
B95: Debt retired | E95: 100
B96: Extinguished interest rate swaps | E96: =F31 -> 30
B97: Cash dividend | E97: 40
B98: Sale of associiated assets | E98: =F22 -> 75
E100: Amount | F100: Debt to EBITDA | G100: Tenor in Years
B101: Amortising debt issued | E101: 140 | F101: =E101/E60 -> 2.304597176 | G101: 5
B102: Bullet debt | E102: 130 | F102: =E102/$E$60 -> 2.139983092 | G102: =E4 -> 8
B103: Capitalizing debt | E103: 40 | F103: =E103/$E$60 -> 0.658456336 | G103: =G102 -> 8
B104: Existing debt | E104: =E52-E95 -> 20 | F104: =E104/$E$60 -> 0.329228168 | G104: 7
C105: Total debt | E105: =SUM(E101:E104) -> 330 | F105: =SUM(F101:F104) -> 5.432264772
B107: Interest rates
B108: EIBOR | E108: 0.011
B109: Credit spread
E110: Debt to EBITDA | F110: Amortising debt | G110: Bullet Debt | H110: Capitalising
E111: 0 | F111: 0.01 | G111: 0.015 | H111: 0.07
E112: 2 | F112: 0.015 | G112: 0.02 | H112: 0.07
E113: 4 | F113: 0.025 | G113: 0.03 | H113: 0.07
E114: 6 | F114: 0.035 | G114: 0.04 | H114: 0.07
B116: Cash sweep
E117: Debt to EBITDA | F117: Amortising debt | G117: Bullet Debt | H117: Capitalising
E118: 0 | F118: 0 | G118: 0 | H118: 0.5
E119: 2 | F119: 0 | G119: 0.5 | H119: 0.5
E120: 4 | F120: 0 | G120: 0.7 | H120: 0.5
E121: 6 | F121: 0 | G121: 1 | H121: 0.5
B123: Debt fees | E123: 0.015
B124: Advisory fees | E124: 0.01
B125: Restricted cash | E125: 40
B126: Interest income on restricted cash | E126: 0.01
B128: Revolving debt | E128: 44
B129: Commitment fee | E129: 0.02
A131: Other Assumptions
B132: Notes Receivable Interest Rate | E132: 0.09
B133: Depreciation Rate on Net Assets | E133: 0.06
B134: Amortisation Rate | E134: 0.05
B135: Fee Amortisation Rate | E135: =1/5 -> 0.2

Sheet S&U and Pro-Forma
A2: Sources and uses of funds | E2: =Assumptions!E8 -> 2015-10-01
B3: Uses of funds
C4: Consideration | E4: =Assumptions!E13 -> 473
C5: Debt fees | E5: =SUM(Assumptions!E101:E103)*Assumptions!E123 -> 4.65
C6: Advisory fees | E6: =E4*Assumptions!E124 -> 4.73
C7: existing debt paydown | E7: =Assumptions!E95 -> 100
C8: dividend payment | E8: =Assumptions!E97 -> 40
C9: interest rate swaps | E9: =Assumptions!F31 -> 30
D10: Total uses of funds | E10: =SUM(E4:E9) -> 652.38
B12: Sources of funds
C13: Senior amortising debt | E13: =Assumptions!E101 -> 140
C14: Senior bullet debt | E14: =Assumptions!E102 -> 130
C15: Capitalising dent | E15: =Assumptions!E103 -> 40
C16: Cash | E16: =Assumptions!E97 -> 40
C17: Sale of assets | E17: =Assumptions!E98 -> 75
C18: Equity | E18: =E10-SUM(E13:E17) -> 227.38
D19: Total uses of funds | E19: =SUM(E13:E18) -> 652.38
A21: Goodwill analysis
C22: Consideration | E22: =E4 -> 473
C23: Less: existing equity | E23: =Assumptions!E34+Assumptions!E33 -> 155
C24: Less: asset write-ups
C25: accounts receivable | E25: =Assumptions!F18-Assumptions!E18 -> -2
C26: notes receivable | E26: =Assumptions!F21-Assumptions!E21 -> 40
C27: Net fixed assets | E27: =Assumptions!F19-Assumptions!E19 -> 70
C28: Less: intangible assets | E28: =Assumptions!F20 -> 50
C29: Add: liability write-ups | E29: =Assumptions!F28-Assumptions!E28 -> 1
D30: Goodwill | E30: =E22-E23-E25-E26-E27-E28+E29 -> 161
A32: Entreprise Value Reconciliation
C33: Total Equity Paid | E33: =E18 -> 227.38
C34: Total Debt Retained | E34: =Assumptions!E105 -> 330
C35: Add: Pensions | E35: =Assumptions!E32 -> 60
C36: Less: Notes Receivable | E36: =Assumptions!E57 -> -130
D37: Total | E37: =SUM(E33:E36) -> 487.38
C39: Consideration | E39: =Assumptions!E13 -> 473
C40: Fees | E40: ='S&U and Pro-Forma'!E5+'S&U and Pro-Forma'!E6 -> 9.38
C41: Dividends Paid | E41: ='S&U and Pro-Forma'!E8 -> 40
C42: Debt | E42: =Assumptions!E52 -> 120
C43: Add: derivative liabilities | E43: =Assumptions!E53 -> 30
C44: Add: Pensions | E44: =Assumptions!E54 -> 60
C45: Less: Surplus Cash | E45: =-E41 -> -40
C46: Less: associated investments | E46: =Assumptions!E56 -> -75
C47: Less: notes receivable | E47: =Assumptions!E57 -> -130
D48: Total | E48: =SUM(E39:E47) -> 487.38
C50: Difference | E50: =E37-E48 -> 0
A53: Proforma Balance Sheet | E53: =E2 -> 2015-10-01
B54: Assets | E54: Initial balance | F54: Asset write ups | G54: Goodwill | H54: Debt Retirement | I54: Net debt issued | J54: Asset sales | K54: Cash | L54: Equity adjustments | M54: Total adjustments | N54: Adjusted balance sheet
C55: Cash | E55: 50 | K55: =-E16 -> -40 | M55: =SUM(F55:L55) -> -40 | N55: =E55+M55 -> 10
C56: Accounts receivable | E56: 20 | F56: =E25 -> -2 | M56: -2 | N56: 18
C57: Net fixed assets | E57: 430 | F57: =E27 -> 70 | M57: 70 | N57: 500
C58: Intangible assets | F58: =E28 -> 50 | M58: 50 | N58: 50
C59: Goodwill | G59: =E30 -> 161 | M59: 161 | N59: 161
C60: Debt issuance costs | I60: =E5 -> 4.65 | M60: 4.65 | N60: 4.65
C61: Long term notes receivable | E61: 90 | F61: =E26 -> 40 | M61: 40 | N61: 130
C62: Investments in associates | E62: 60 | J62: =-E62 -> -60 | M62: -60 | N62: 0
C63: Derivative assets | E63: 30 | M63: 0 | N63: 30
D64: Total assets | E64: =SUM(E55:E63) -> 680 | M64: =SUM(M55:M63) -> 223.65 | N64: 903.65
B66: Liabilities & capital
C67: Accounts payable | E67: 5 | F67: =E29 -> 1 | M67: =SUM(F67:L67) -> 1 | N67: =E67+M67 -> 6
C68: Debt | E68: 350 | H68: =-E7 -> -100 | I68: =SUM(E13:E15) -> 310 | M68: 210 | N68: 560
C69: Deferred taxes | E69: 80 | M69: 0 | N69: 80
C70: Derivative liabilities | E70: 30 | H70: =-E70 -> -30 | M70: -30 | N70: 0
C71: Unfunded pension liabilities | E71: 60 | M71: 0 | N71: 60
C72: Minority interest | E72: 40 | L72: =-E72 -> -40 | M72: -40 | N72: 0
C73: Equity capital | E73: =E64-SUM(E67:E72) -> 115 | J73: =E17-E62 -> 15 | K73: =-E16 -> -40 | L73: =-E73+E18-E6 -> 107.65 | M73: 82.65 | N73: 197.65
D74: Total | E74: =SUM(E67:E73) -> 680 | M74: =SUM(M67:M73) -> 223.65 | N74: 903.65
C76: Balance sheet check | E76: =E74=E64 -> TRUE | N76: =N74=N64 -> TRUE

Sheet LBO Model
A1: Timings
B3: Date | G3: =Assumptions!E8 -> 2015-10-01 | H3: =EDATE(G3,Assumptions!$E$12) -> 2016-01-01 | I3: =EDATE(H3,Assumptions!$E$12) -> 2016-04-01 | J3: =EDATE(I3,Assumptions!$E$12) -> 2016-07-01 | K3: =EDATE(J3,Assumptions!$E$12) -> 2016-10-01 | L3: =EDATE(K3,Assumptions!$E$12) -> 2017-01-01 | M3: =EDATE(L3,Assumptions!$E$12) -> 2017-04-01 | N3: =EDATE(M3,Assumptions!$E$12) -> 2017-07-01 | O3: =EDATE(N3,Assumptions!$E$12) -> 2017-10-01 | P3: =EDATE(O3,Assumptions!$E$12) -> 2018-01-01 | Q3: =EDATE(P3,Assumptions!$E$12) -> 2018-04-01 | R3: =EDATE(Q3,Assumptions!$E$12) -> 2018-07-01 | S3: =EDATE(R3,Assumptions!$E$12) -> 2018-10-01 | T3: =EDATE(S3,Assumptions!$E$12) -> 2019-01-01 | U3: =EDATE(T3,Assumptions!$E$12) -> 2019-04-01 | V3: =EDATE(U3,Assumptions!$E$12) -> 2019-07-01 | W3: =EDATE(V3,Assumptions!$E$12) -> 2019-10-01 | X3: =EDATE(W3,Assumptions!$E$12) -> 2020-01-01 | Y3: =EDATE(X3,Assumptions!$E$12) -> 2020-04-01 | Z3: =EDATE(Y3,Assumptions!$E$12) -> 2020-07-01 | AA3: =EDATE(Z3,Assumptions!$E$12) -> 2020-10-01 | AB3: =EDATE(AA3,Assumptions!$E$12) -> 2021-01-01 | AC3: =EDATE(AB3,Assumptions!$E$12) -> 2021-04-01 | AD3: =EDATE(AC3,Assumptions!$E$12) -> 2021-07-01 | AE3: =EDATE(AD3,Assumptions!$E$12) -> 2021-10-01 | AF3: =EDATE(AE3,Assumptions!$E$12) -> 2022-01-01 | AG3: =EDATE(AF3,Assumptions!$E$12) -> 2022-04-01 | AH3: =EDATE(AG3,Assumptions!$E$12) -> 2022-07-01 | AI3: =EDATE(AH3,Assumptions!$E$12) -> 2022-10-01 | AJ3: =EDATE(AI3,Assumptions!$E$12) -> 2023-01-01 | AK3: =EDATE(AJ3,Assumptions!$E$12) -> 2023-04-01 | AL3: =EDATE(AK3,Assumptions!$E$12) -> 2023-07-01 | AM3: =EDATE(AL3,Assumptions!$E$12) -> 2023-10-01 | AN3: =EDATE(AM3,Assumptions!$E$12) -> 2024-01-01 | AO3: =EDATE(AN3,Assumptions!$E$12) -> 2024-04-01 | AP3: =EDATE(AO3,Assumptions!$E$12) -> 2024-07-01 | AQ3: =EDATE(AP3,Assumptions!$E$12) -> 2024-10-01 | AR3: =EDATE(AQ3,Assumptions!$E$12) -> 2025-01-01 | AS3: =EDATE(AR3,Assumptions!$E$12) -> 2025-04-01 | AT3: =EDATE(AS3,Assumptions!$E$12) -> 2025-07-01 | AU3: =EDATE(AT3,Assumptions!$E$12) -> 2025-10-01 | AV3: =EDATE(AU3,Assumptions!$E$12) -> 2026-01-01 | AW3: =EDATE(AV3,Assumptions!$E$12) -> 2026-04-01 | AX3: =EDATE(AW3,Assumptions!$E$12) -> 2026-07-01 | AY3: =EDATE(AX3,Assumptions!$E$12) -> 2026-10-01 | AZ3: =EDATE(AY3,Assumptions!$E$12) -> 2027-01-01 | BA3: =EDATE(AZ3,Assumptions!$E$12) -> 2027-04-01 | BB3: =EDATE(BA3,Assumptions!$E$12) -> 2027-07-01 | BC3: =EDATE(BB3,Assumptions!$E$12) -> 2027-10-01 | BD3: =EDATE(BC3,Assumptions!$E$12) -> 2028-01-01 | BE3: =EDATE(BD3,Assumptions!$E$12) -> 2028-04-01 | BF3: =EDATE(BE3,Assumptions!$E$12) -> 2028-07-01 | BG3: =EDATE(BF3,Assumptions!$E$12) -> 2028-10-01 | BH3: =EDATE(BG3,Assumptions!$E$12) -> 2029-01-01 | BI3: =EDATE(BH3,Assumptions!$E$12) -> 2029-04-01
B4: Cash flow date | G4: =G3 -> 2015-10-01 | H4: =IF(H6,H3,AVERAGE(G3:H3)) -> 2015-11-16 | I4: 2016-02-15T12:00:00 | J4: 2016-05-16T12:00:00 | K4: 2016-08-16 | L4: 2016-11-16 | M4: 2017-02-15 | N4: 2017-05-16T12:00:00 | O4: 2017-08-16 | P4: 2017-11-16 | Q4: 2018-02-15 | R4: 2018-05-16T12:00:00 | S4: 2018-08-16 | T4: 2018-11-16 | U4: 2019-02-15 | V4: 2019-05-16T12:00:00 | W4: 2019-08-16 | X4: 2019-11-16 | Y4: 2020-02-15T12:00:00 | Z4: 2020-05-16T12:00:00 | AA4: 2020-08-16 | AB4: 2020-11-16 | AC4: 2021-02-15 | AD4: 2021-05-16T12:00:00 | AE4: 2021-08-16 | AF4: 2021-11-16 | AG4: 2022-02-15 | AH4: 2022-05-16T12:00:00 | AI4: 2022-08-16 | AJ4: 2022-11-16 | AK4: 2023-02-15 | AL4: 2023-05-16T12:00:00 | AM4: 2023-10-01 | AN4: =IF(AN6,AN3,AVERAGE(AM3:AN3)) -> 2023-11-16 | AO4: 2024-02-15T12:00:00 | AP4: 2024-05-16T12:00:00 | AQ4: 2024-08-16 | AR4: 2024-11-16 | AS4: 2025-02-15 | AT4: 2025-05-16T12:00:00 | AU4: 2025-08-16 | AV4: 2025-11-16 | AW4: 2026-02-15 | AX4: 2026-05-16T12:00:00 | AY4: 2026-08-16 | AZ4: 2026-11-16 | BA4: 2027-02-15 | BB4: 2027-05-16T12:00:00 | BC4: 2027-08-16 | BD4: 2027-11-16 | BE4: 2028-02-15T12:00:00 | BF4: 2028-05-16T12:00:00 | BG4: 2028-08-16 | BH4: 2028-11-16 | BI4: 2029-02-15
B5: Holding period | H5: =AND(H3<=Assumptions!$E$9) -> TRUE | I5: =AND(I3<=Assumptions!$E$9) -> TRUE | J5: =AND(J3<=Assumptions!$E$9) -> TRUE | K5: =AND(K3<=Assumptions!$E$9) -> TRUE | L5: =AND(L3<=Assumptions!$E$9) -> TRUE | M5: =AND(M3<=Assumptions!$E$9) -> TRUE | N5: =AND(N3<=Assumptions!$E$9) -> TRUE | O5: =AND(O3<=Assumptions!$E$9) -> TRUE | P5: =AND(P3<=Assumptions!$E$9) -> TRUE | Q5: =AND(Q3<=Assumptions!$E$9) -> TRUE | R5: =AND(R3<=Assumptions!$E$9) -> TRUE | S5: =AND(S3<=Assumptions!$E$9) -> TRUE | T5: =AND(T3<=Assumptions!$E$9) -> TRUE | U5: =AND(U3<=Assumptions!$E$9) -> TRUE | V5: =AND(V3<=Assumptions!$E$9) -> TRUE | W5: =AND(W3<=Assumptions!$E$9) -> TRUE | X5: =AND(X3<=Assumptions!$E$9) -> TRUE | Y5: =AND(Y3<=Assumptions!$E$9) -> TRUE | Z5: =AND(Z3<=Assumptions!$E$9) -> TRUE | AA5: =AND(AA3<=Assumptions!$E$9) -> TRUE | AB5: =AND(AB3<=Assumptions!$E$9) -> TRUE | AC5: =AND(AC3<=Assumptions!$E$9) -> TRUE | AD5: =AND(AD3<=Assumptions!$E$9) -> TRUE | AE5: =AND(AE3<=Assumptions!$E$9) -> TRUE | AF5: =AND(AF3<=Assumptions!$E$9) -> TRUE | AG5: =AND(AG3<=Assumptions!$E$9) -> TRUE | AH5: =AND(AH3<=Assumptions!$E$9) -> TRUE | AI5: =AND(AI3<=Assumptions!$E$9) -> TRUE | AJ5: =AND(AJ3<=Assumptions!$E$9) -> TRUE | AK5: =AND(AK3<=Assumptions!$E$9) -> TRUE | AL5: =AND(AL3<=Assumptions!$E$9) -> TRUE | AM5: =AND(AM3<=Assumptions!$E$9) -> TRUE | AN5: =AND(AN3<=Assumptions!$E$9) -> FALSE | AO5: =AND(AO3<=Assumptions!$E$9) -> FALSE | AP5: =AND(AP3<=Assumptions!$E$9) -> FALSE | AQ5: =AND(AQ3<=Assumptions!$E$9) -> FALSE | AR5: =AND(AR3<=Assumptions!$E$9) -> FALSE | AS5: =AND(AS3<=Assumptions!$E$9) -> FALSE | AT5: =AND(AT3<=Assumptions!$E$9) -> FALSE | AU5: =AND(AU3<=Assumptions!$E$9) -> FALSE | AV5: =AND(AV3<=Assumptions!$E$9) -> FALSE | AW5: =AND(AW3<=Assumptions!$E$9) -> FALSE | AX5: =AND(AX3<=Assumptions!$E$9) -> FALSE | AY5: =AND(AY3<=Assumptions!$E$9) -> FALSE | AZ5: =AND(AZ3<=Assumptions!$E$9) -> FALSE | BA5: =AND(BA3<=Assumptions!$E$9) -> FALSE | BB5: =AND(BB3<=Assumptions!$E$9) -> FALSE | BC5: =AND(BC3<=Assumptions!$E$9) -> FALSE | BD5: =AND(BD3<=Assumptions!$E$9) -> FALSE | BE5: =AND(BE3<=Assumptions!$E$9) -> FALSE | BF5: =AND(BF3<=Assumptions!$E$9) -> FALSE | BG5: =AND(BG3<=Assumptions!$E$9) -> FALSE | BH5: =AND(BH3<=Assumptions!$E$9) -> FALSE | BI5: =AND(BI3<=Assumptions!$E$9) -> FALSE
B6: Exit period | H6: =H3=Assumptions!$E$9 -> FALSE | I6: =I3=Assumptions!$E$9 -> FALSE | J6: =J3=Assumptions!$E$9 -> FALSE | K6: =K3=Assumptions!$E$9 -> FALSE | L6: =L3=Assumptions!$E$9 -> FALSE | M6: =M3=Assumptions!$E$9 -> FALSE | N6: =N3=Assumptions!$E$9 -> FALSE | O6: =O3=Assumptions!$E$9 -> FALSE | P6: =P3=Assumptions!$E$9 -> FALSE | Q6: =Q3=Assumptions!$E$9 -> FALSE | R6: =R3=Assumptions!$E$9 -> FALSE | S6: =S3=Assumptions!$E$9 -> FALSE | T6: =T3=Assumptions!$E$9 -> FALSE | U6: =U3=Assumptions!$E$9 -> FALSE | V6: =V3=Assumptions!$E$9 -> FALSE | W6: =W3=Assumptions!$E$9 -> FALSE | X6: =X3=Assumptions!$E$9 -> FALSE | Y6: =Y3=Assumptions!$E$9 -> FALSE | Z6: =Z3=Assumptions!$E$9 -> FALSE | AA6: =AA3=Assumptions!$E$9 -> FALSE | AB6: =AB3=Assumptions!$E$9 -> FALSE | AC6: =AC3=Assumptions!$E$9 -> FALSE | AD6: =AD3=Assumptions!$E$9 -> FALSE | AE6: =AE3=Assumptions!$E$9 -> FALSE | AF6: =AF3=Assumptions!$E$9 -> FALSE | AG6: =AG3=Assumptions!$E$9 -> FALSE | AH6: =AH3=Assumptions!$E$9 -> FALSE | AI6: =AI3=Assumptions!$E$9 -> FALSE | AJ6: =AJ3=Assumptions!$E$9 -> FALSE | AK6: =AK3=Assumptions!$E$9 -> FALSE | AL6: =AL3=Assumptions!$E$9 -> FALSE | AM6: =AM3=Assumptions!$E$9 -> TRUE | AN6: =AN3=Assumptions!$E$9 -> FALSE | AO6: =AO3=Assumptions!$E$9 -> FALSE | AP6: =AP3=Assumptions!$E$9 -> FALSE | AQ6: =AQ3=Assumptions!$E$9 -> FALSE | AR6: =AR3=Assumptions!$E$9 -> FALSE | AS6: =AS3=Assumptions!$E$9 -> FALSE | AT6: =AT3=Assumptions!$E$9 -> FALSE | AU6: =AU3=Assumptions!$E$9 -> FALSE | AV6: =AV3=Assumptions!$E$9 -> FALSE | AW6: =AW3=Assumptions!$E$9 -> FALSE | AX6: =AX3=Assumptions!$E$9 -> FALSE | AY6: =AY3=Assumptions!$E$9 -> FALSE | AZ6: =AZ3=Assumptions!$E$9 -> FALSE | BA6: =BA3=Assumptions!$E$9 -> FALSE | BB6: =BB3=Assumptions!$E$9 -> FALSE | BC6: =BC3=Assumptions!$E$9 -> FALSE | BD6: =BD3=Assumptions!$E$9 -> FALSE | BE6: =BE3=Assumptions!$E$9 -> FALSE | BF6: =BF3=Assumptions!$E$9 -> FALSE | BG6: =BG3=Assumptions!$E$9 -> FALSE | BH6: =BH3=Assumptions!$E$9 -> FALSE | BI6: =BI3=Assumptions!$E$9 -> FALSE
B7: Year | G7: =YEAR(G3) -> 2015 | H7: =YEAR(H3) -> 2016 | I7: 2016 | J7: 2016 | K7: 2016 | L7: 2017 | M7: 2017 | N7: 2017 | O7: 2017 | P7: 2018 | Q7: 2018 | R7: 2018 | S7: 2018 | T7: 2019 | U7: 2019 | V7: 2019 | W7: 2019 | X7: 2020 | Y7: 2020 | Z7: 2020 | AA7: 2020 | AB7: 2021 | AC7: 2021 | AD7: 2021 | AE7: 2021 | AF7: 2022 | AG7: 2022 | AH7: 2022 | AI7: 2022 | AJ7: 2023 | AK7: 2023 | AL7: 2023 | AM7: 2023 | AN7: 2024 | AO7: 2024 | AP7: 2024 | AQ7: 2024 | AR7: =YEAR(AR3) -> 2025 | AS7: 2025 | AT7: 2025 | AU7: 2025 | AV7: 2026 | AW7: 2026 | AX7: 2026 | AY7: 2026 | AZ7: 2027 | BA7: 2027 | BB7: 2027 | BC7: 2027 | BD7: 2028 | BE7: 2028 | BF7: 2028 | BG7: 2028 | BH7: 2029 | BI7: 2029
B8: Period | G8: 0 | H8: =G8+1 -> 1 | I8: =H8+1 -> 2 | J8: =I8+1 -> 3 | K8: =J8+1 -> 4 | L8: 5 | M8: 6 | N8: 7 | O8: 8 | P8: 9 | Q8: 10 | R8: 11 | S8: 12 | T8: 13 | U8: 14 | V8: 15 | W8: 16 | X8: 17 | Y8: =X8+1 -> 18 | Z8: =Y8+1 -> 19 | AA8: =Z8+1 -> 20 | AB8: =AA8+1 -> 21 | AC8: =AB8+1 -> 22 | AD8: =AC8+1 -> 23 | AE8: =AD8+1 -> 24 | AF8: =AE8+1 -> 25 | AG8: =AF8+1 -> 26 | AH8: =AG8+1 -> 27 | AI8: =AH8+1 -> 28 | AJ8: =AI8+1 -> 29 | AK8: =AJ8+1 -> 30 | AL8: =AK8+1 -> 31 | AM8: =AL8+1 -> 32 | AN8: =AM8+1 -> 33 | AO8: =AN8+1 -> 34 | AP8: =AO8+1 -> 35 | AQ8: =AP8+1 -> 36 | AR8: 37 | AS8: 38 | AT8: 39 | AU8: 40 | AV8: 41 | AW8: 42 | AX8: 43 | AY8: 44 | AZ8: 45 | BA8: 46 | BB8: 47 | BC8: 48 | BD8: 49 | BE8: 50 | BF8: 51 | BG8: 52 | BH8: 53 | BI8: 54
B9: Fraction of year | H9: =DAYS360(G3,H3)/360 -> 0.25 | I9: =DAYS360(H3,I3)/360 -> 0.25 | J9: 0.25 | K9: 0.25 | L9: 0.25 | M9: 0.25 | N9: 0.25 | O9: 0.25 | P9: 0.25 | Q9: 0.25 | R9: 0.25 | S9: 0.25 | T9: 0.25 | U9: 0.25 | V9: 0.25 | W9: 0.25 | X9: 0.25 | Y9: 0.25 | Z9: 0.25 | AA9: 0.25 | AB9: 0.25 | AC9: 0.25 | AD9: 0.25 | AE9: 0.25 | AF9: 0.25 | AG9: 0.25 | AH9: 0.25 | AI9: 0.25 | AJ9: 0.25 | AK9: 0.25 | AL9: 0.25 | AM9: 0.25 | AN9: 0.25 | AO9: 0.25 | AP9: 0.25 | AQ9: 0.25 | AR9: 0.25 | AS9: 0.25 | AT9: 0.25 | AU9: 0.25 | AV9: 0.25 | AW9: 0.25 | AX9: 0.25 | AY9: 0.25 | AZ9: 0.25 | BA9: 0.25 | BB9: 0.25 | BC9: 0.25 | BD9: 0.25 | BE9: 0.25 | BF9: 0.25 | BG9: 0.25 | BH9: 0.25 | BI9: 0.25
B10: Periods per year | G10: =Assumptions!E11 -> 4 | H10: =G10 -> 4 | I10: =H10 -> 4 | J10: 4 | K10: 4 | L10: 4 | M10: 4 | N10: 4 | O10: 4 | P10: 4 | Q10: 4 | R10: 4 | S10: 4 | T10: 4 | U10: 4 | V10: 4 | W10: 4 | X10: 4 | Y10: 4 | Z10: 4 | AA10: 4 | AB10: 4 | AC10: 4 | AD10: 4 | AE10: 4 | AF10: 4 | AG10: 4 | AH10: 4 | AI10: 4 | AJ10: 4 | AK10: 4 | AL10: 4 | AM10: 4 | AN10: 4 | AO10: 4 | AP10: 4 | AQ10: 4 | AR10: 4 | AS10: 4 | AT10: 4 | AU10: 4 | AV10: 4 | AW10: 4 | AX10: 4 | AY10: 4 | AZ10: 4 | BA10: 4 | BB10: 4 | BC10: 4 | BD10: 4 | BE10: 4 | BF10: 4 | BG10: 4 | BH10: 4 | BI10: 4
B11: New year | H11: =MOD(H8,H10)=1 -> TRUE | I11: =MOD(I8,I10)=1 -> FALSE | J11: FALSE | K11: FALSE | L11: TRUE | M11: FALSE | N11: FALSE | O11: FALSE | P11: TRUE | Q11: FALSE | R11: FALSE | S11: FALSE | T11: TRUE | U11: FALSE | V11: FALSE | W11: FALSE | X11: TRUE | Y11: FALSE | Z11: FALSE | AA11: FALSE | AB11: TRUE | AC11: FALSE | AD11: FALSE | AE11: FALSE | AF11: TRUE | AG11: FALSE | AH11: FALSE | AI11: FALSE | AJ11: TRUE | AK11: FALSE | AL11: FALSE | AM11: FALSE | AN11: TRUE | AO11: FALSE | AP11: FALSE | AQ11: FALSE | AR11: =MOD(AR8,AR10)=1 -> TRUE | AS11: FALSE | AT11: FALSE | AU11: FALSE | AV11: TRUE | AW11: FALSE | AX11: FALSE | AY11: FALSE | AZ11: TRUE | BA11: FALSE | BB11: FALSE | BC11: FALSE | BD11: TRUE | BE11: FALSE | BF11: FALSE | BG11: FALSE | BH11: TRUE | BI11: FALSE
B12: Days in period | H12: =H3-G3 -> 92 | I12: =I3-H3 -> 91 | J12: 91 | K12: 92 | L12: 92 | M12: 90 | N12: 91 | O12: 92 | P12: 92 | Q12: 90 | R12: 91 | S12: 92 | T12: 92 | U12: 90 | V12: 91 | W12: 92 | X12: 92 | Y12: 91 | Z12: 91 | AA12: 92 | AB12: 92 | AC12: 90 | AD12: 91 | AE12: 92 | AF12: 92 | AG12: 90 | AH12: 91 | AI12: 92 | AJ12: 92 | AK12: 90 | AL12: 91 | AM12: 92 | AN12: 92 | AO12: 91 | AP12: 91 | AQ12: 92 | AR12: 92 | AS12: 90 | AT12: 91 | AU12: 92 | AV12: 92 | AW12: 90 | AX12: 91 | AY12: 92 | AZ12: 92 | BA12: 90 | BB12: 91 | BC12: 92 | BD12: 92 | BE12: 91 | BF12: 91 | BG12: 92 | BH12: 92 | BI12: 90
B13: Operating year number | G13: =F13+G11 -> 0 | H13: =G13+H11 -> 1 | I13: 1 | J13: 1 | K13: 1 | L13: 2 | M13: 2 | N13: 2 | O13: 2 | P13: 3 | Q13: 3 | R13: 3 | S13: 3 | T13: 4 | U13: 4 | V13: 4 | W13: 4 | X13: 5 | Y13: 5 | Z13: 5 | AA13: 5 | AB13: 6 | AC13: 6 | AD13: 6 | AE13: 6 | AF13: 7 | AG13: 7 | AH13: 7 | AI13: 7 | AJ13: 8 | AK13: 8 | AL13: 8 | AM13: 8 | AN13: 9 | AO13: 9 | AP13: 9 | AQ13: 9 | AR13: 10 | AS13: 10 | AT13: 10 | AU13: 10 | AV13: 11 | AW13: 11 | AX13: 11 | AY13: 11 | AZ13: 12 | BA13: 12 | BB13: 12 | BC13: 12 | BD13: 13 | BE13: 13 | BF13: 13 | BG13: 13 | BH13: 14 | BI13: 14
B14: Senstivity Applied | E14: =Assumptions!E65 -> 1 | F14: =Assumptions!E66 -> 2 | G14: =G13>=$F$14 -> FALSE | H14: =H13>=$F$14 -> FALSE | I14: FALSE | J14: FALSE | K14: FALSE | L14: TRUE | M14: TRUE | N14: TRUE | O14: TRUE | P14: TRUE | Q14: TRUE | R14: TRUE | S14: TRUE | T14: TRUE | U14: TRUE | V14: TRUE | W14: TRUE | X14: TRUE | Y14: TRUE | Z14: TRUE | AA14: TRUE | AB14: TRUE | AC14: TRUE | AD14: TRUE | AE14: TRUE | AF14: TRUE | AG14: TRUE | AH14: TRUE | AI14: TRUE | AJ14: TRUE | AK14: TRUE | AL14: TRUE | AM14: TRUE | AN14: TRUE | AO14: TRUE | AP14: TRUE | AQ14: TRUE | AR14: TRUE | AS14: TRUE | AT14: TRUE | AU14: TRUE | AV14: TRUE | AW14: TRUE | AX14: TRUE | AY14: TRUE | AZ14: TRUE | BA14: TRUE | BB14: TRUE | BC14: TRUE | BD14: TRUE | BE14: TRUE | BF14: TRUE | BG14: TRUE | BH14: TRUE | BI14: TRUE
A16: Operating Analysis
B17: Annual Growth Rate in Revenues | H17: =LOOKUP(H13,Assumptions!$G$69:$M$69,Assumptions!$G$74:$M$74) -> 0.02 | I17: =LOOKUP(I13,Assumptions!$G$69:$M$69,Assumptions!$G$74:$M$74) -> 0.02 | J17: =LOOKUP(J13,Assumptions!$G$69:$M$69,Assumptions!$G$74:$M$74) -> 0.02 | K17: =LOOKUP(K13,Assumptions!$G$69:$M$69,Assumptions!$G$74:$M$74) -> 0.02 | L17: =LOOKUP(L13,Assumptions!$G$69:$M$69,Assumptions!$G$74:$M$74) -> 0.15 | M17: =LOOKUP(M13,Assumptions!$G$69:$M$69,Assumptions!$G$74:$M$74) -> 0.15 | N17: =LOOKUP(N13,Assumptions!$G$69:$M$69,Assumptions!$G$74:$M$74) -> 0.15 | O17: =LOOKUP(O13,Assumptions!$G$69:$M$69,Assumptions!$G$74:$M$74) -> 0.15 | P17: =LOOKUP(P13,Assumptions!$G$69:$M$69,Assumptions!$G$74:$M$74) -> 0.15 | Q17: =LOOKUP(Q13,Assumptions!$G$69:$M$69,Assumptions!$G$74:$M$74) -> 0.15 | R17: =LOOKUP(R13,Assumptions!$G$69:$M$69,Assumptions!$G$74:$M$74) -> 0.15 | S17: =LOOKUP(S13,Assumptions!$G$69:$M$69,Assumptions!$G$74:$M$74) -> 0.15 | T17: =LOOKUP(T13,Assumptions!$G$69:$M$69,Assumptions!$G$74:$M$74) -> 0.12 | U17: =LOOKUP(U13,Assumptions!$G$69:$M$69,Assumptions!$G$74:$M$74) -> 0.12 | V17: =LOOKUP(V13,Assumptions!$G$69:$M$69,Assumptions!$G$74:$M$74) -> 0.12 | W17: =LOOKUP(W13,Assumptions!$G$69:$M$69,Assumptions!$G$74:$M$74) -> 0.12 | X17: =LOOKUP(X13,Assumptions!$G$69:$M$69,Assumptions!$G$74:$M$74) -> 0.1 | Y17: =LOOKUP(Y13,Assumptions!$G$69:$M$69,Assumptions!$G$74:$M$74) -> 0.1 | Z17: =LOOKUP(Z13,Assumptions!$G$69:$M$69,Assumptions!$G$74:$M$74) -> 0.1 | AA17: =LOOKUP(AA13,Assumptions!$G$69:$M$69,Assumptions!$G$74:$M$74) -> 0.1 | AB17: =LOOKUP(AB13,Assumptions!$G$69:$M$69,Assumptions!$G$74:$M$74) -> 0.07 | AC17: =LOOKUP(AC13,Assumptions!$G$69:$M$69,Assumptions!$G$74:$M$74) -> 0.07 | AD17: =LOOKUP(AD13,Assumptions!$G$69:$M$69,Assumptions!$G$74:$M$74) -> 0.07 | AE17: =LOOKUP(AE13,Assumptions!$G$69:$M$69,Assumptions!$G$74:$M$74) -> 0.07 | AF17: =LOOKUP(AF13,Assumptions!$G$69:$M$69,Assumptions!$G$74:$M$74) -> 0.05 | AG17: =LOOKUP(AG13,Assumptions!$G$69:$M$69,Assumptions!$G$74:$M$74) -> 0.05 | AH17: =LOOKUP(AH13,Assumptions!$G$69:$M$69,Assumptions!$G$74:$M$74) -> 0.05 | AI17: =LOOKUP(AI13,Assumptions!$G$69:$M$69,Assumptions!$G$74:$M$74) -> 0.05 | AJ17: =LOOKUP(AJ13,Assumptions!$G$69:$M$69,Assumptions!$G$74:$M$74) -> 0.05 | AK17: =LOOKUP(AK13,Assumptions!$G$69:$M$69,Assumptions!$G$74:$M$74) -> 0.05 | AL17: =LOOKUP(AL13,Assumptions!$G$69:$M$69,Assumptions!$G$74:$M$74) -> 0.05 | AM17: =LOOKUP(AM13,Assumptions!$G$69:$M$69,Assumptions!$G$74:$M$74) -> 0.05 | AN17: =LOOKUP(AN13,Assumptions!$G$69:$M$69,Assumptions!$G$74:$M$74) -> 0.05 | AO17: =LOOKUP(AO13,Assumptions!$G$69:$M$69,Assumptions!$G$74:$M$74) -> 0.05 | AP17: =LOOKUP(AP13,Assumptions!$G$69:$M$69,Assumptions!$G$74:$M$74) -> 0.05 | AQ17: =LOOKUP(AQ13,Assumptions!$G$69:$M$69,Assumptions!$G$74:$M$74) -> 0.05 | AR17: =LOOKUP(AR13,Assumptions!$G$69:$M$69,Assumptions!$G$74:$M$74) -> 0.05 | AS17: =LOOKUP(AS13,Assumptions!$G$69:$M$69,Assumptions!$G$74:$M$74) -> 0.05 | AT17: =LOOKUP(AT13,Assumptions!$G$69:$M$69,Assumptions!$G$74:$M$74) -> 0.05 | AU17: =LOOKUP(AU13,Assumptions!$G$69:$M$69,Assumptions!$G$74:$M$74) -> 0.05 | AV17: =LOOKUP(AV13,Assumptions!$G$69:$M$69,Assumptions!$G$74:$M$74) -> 0.05 | AW17: =LOOKUP(AW13,Assumptions!$G$69:$M$69,Assumptions!$G$74:$M$74) -> 0.05 | AX17: =LOOKUP(AX13,Assumptions!$G$69:$M$69,Assumptions!$G$74:$M$74) -> 0.05 | AY17: =LOOKUP(AY13,Assumptions!$G$69:$M$69,Assumptions!$G$74:$M$74) -> 0.05 | AZ17: =LOOKUP(AZ13,Assumptions!$G$69:$M$69,Assumptions!$G$74:$M$74) -> 0.05 | BA17: =LOOKUP(BA13,Assumptions!$G$69:$M$69,Assumptions!$G$74:$M$74) -> 0.05 | BB17: =LOOKUP(BB13,Assumptions!$G$69:$M$69,Assumptions!$G$74:$M$74) -> 0.05 | BC17: =LOOKUP(BC13,Assumptions!$G$69:$M$69,Assumptions!$G$74:$M$74) -> 0.05 | BD17: =LOOKUP(BD13,Assumptions!$G$69:$M$69,Assumptions!$G$74:$M$74) -> 0.05 | BE17: =LOOKUP(BE13,Assumptions!$G$69:$M$69,Assumptions!$G$74:$M$74) -> 0.05 | BF17: =LOOKUP(BF13,Assumptions!$G$69:$M$69,Assumptions!$G$74:$M$74) -> 0.05 | BG17: =LOOKUP(BG13,Assumptions!$G$69:$M$69,Assumptions!$G$74:$M$74) -> 0.05 | BH17: =LOOKUP(BH13,Assumptions!$G$69:$M$69,Assumptions!$G$74:$M$74) -> 0.05 | BI17: =LOOKUP(BI13,Assumptions!$G$69:$M$69,Assumptions!$G$74:$M$74) -> 0.05
B18: Periodic Growth Rate in Revenues | H18: =(1+H17)^(1/H10)-1 -> 0.004962931573 | I18: =(1+I17)^(1/I10)-1 -> 0.004962931573 | J18: 0.004962931573 | K18: 0.004962931573 | L18: 0.03555807634 | M18: 0.03555807634 | N18: 0.03555807634 | O18: 0.03555807634 | P18: 0.03555807634 | Q18: 0.03555807634 | R18: 0.03555807634 | S18: 0.03555807634 | T18: 0.02873734472 | U18: 0.02873734472 | V18: 0.02873734472 | W18: 0.02873734472 | X18: 0.02411368908 | Y18: 0.02411368908 | Z18: 0.02411368908 | AA18: 0.02411368908 | AB18: 0.017058525 | AC18: 0.017058525 | AD18: 0.017058525 | AE18: 0.017058525 | AF18: 0.01227223443 | AG18: 0.01227223443 | AH18: 0.01227223443 | AI18: 0.01227223443 | AJ18: 0.01227223443 | AK18: 0.01227223443 | AL18: 0.01227223443 | AM18: 0.01227223443 | AN18: =(1+AN17)^(1/AN10)-1 -> 0.01227223443 | AO18: 0.01227223443 | AP18: 0.01227223443 | AQ18: 0.01227223443 | AR18: 0.01227223443 | AS18: 0.01227223443 | AT18: 0.01227223443 | AU18: 0.01227223443 | AV18: 0.01227223443 | AW18: 0.01227223443 | AX18: 0.01227223443 | AY18: 0.01227223443 | AZ18: 0.01227223443 | BA18: 0.01227223443 | BB18: 0.01227223443 | BC18: 0.01227223443 | BD18: 0.01227223443 | BE18: 0.01227223443 | BF18: 0.01227223443 | BG18: 0.01227223443 | BH18: 0.01227223443 | BI18: 0.01227223443
B19: Revenues | G19: =Assumptions!E64/G10 -> 37.5 | H19: =G19*(1+H18) -> 37.68610993 | I19: =H19*(1+I18) -> 37.87314352 | J19: 38.06110534 | K19: 38.25 | L19: 39.61009642 | M19: 41.01855525 | N19: 42.47709617 | O19: 43.9875 | P19: 45.55161088 | Q19: 47.17133854 | R19: 48.8486606 | S19: 50.585625 | T19: 52.03932154 | U19: 53.53479347 | V19: 55.07324128 | W19: 56.6559 | X19: 58.02208276 | Y19: 59.42120922 | Z19: 60.85407379 | AA19: 62.32149 | AB19: 63.3846027 | AC19: 64.46585053 | AD19: 65.56554285 | AE19: 66.6839943 | AF19: 67.50235591 | AG19: 68.33076065 | AH19: 69.16933176 | AI19: 70.01819402 | AJ19: 70.87747371 | AK19: 71.74729868 | AL19: 72.62779835 | AM19: 73.51910372 | AN19: 74.42134739 | AO19: 75.33466361 | AP19: 76.25918827 | AQ19: 77.1950589 | AR19: 78.14241476 | AS19: 79.10139679 | AT19: 80.07214768 | AU19: 81.05481185 | AV19: 82.0495355 | AW19: 83.05646663 | AX19: 84.07575506 | AY19: 85.10755244 | AZ19: 86.15201227 | BA19: 87.20928997 | BB19: 88.27954282 | BC19: 89.36293006 | BD19: 90.45961289 | BE19: 91.56975446 | BF19: 92.69351996 | BG19: 93.83107656 | BH19: 94.98259353 | BI19: 96.14824219
B20: Operating margin | H20: =LOOKUP(H13,Assumptions!$G$69:$M$69,Assumptions!$G$82:$M$82) -> 0.4 | I20: =LOOKUP(I13,Assumptions!$G$69:$M$69,Assumptions!$G$82:$M$82) -> 0.4 | J20: =LOOKUP(J13,Assumptions!$G$69:$M$69,Assumptions!$G$82:$M$82) -> 0.4 | K20: =LOOKUP(K13,Assumptions!$G$69:$M$69,Assumptions!$G$82:$M$82) -> 0.4 | L20: =LOOKUP(L13,Assumptions!$G$69:$M$69,Assumptions!$G$82:$M$82) -> 0.38 | M20: =LOOKUP(M13,Assumptions!$G$69:$M$69,Assumptions!$G$82:$M$82) -> 0.38 | N20: =LOOKUP(N13,Assumptions!$G$69:$M$69,Assumptions!$G$82:$M$82) -> 0.38 | O20: =LOOKUP(O13,Assumptions!$G$69:$M$69,Assumptions!$G$82:$M$82) -> 0.38 | P20: =LOOKUP(P13,Assumptions!$G$69:$M$69,Assumptions!$G$82:$M$82) -> 0.4 | Q20: =LOOKUP(Q13,Assumptions!$G$69:$M$69,Assumptions!$G$82:$M$82) -> 0.4 | R20: =LOOKUP(R13,Assumptions!$G$69:$M$69,Assumptions!$G$82:$M$82) -> 0.4 | S20: =LOOKUP(S13,Assumptions!$G$69:$M$69,Assumptions!$G$82:$M$82) -> 0.4 | T20: =LOOKUP(T13,Assumptions!$G$69:$M$69,Assumptions!$G$82:$M$82) -> 0.41 | U20: =LOOKUP(U13,Assumptions!$G$69:$M$69,Assumptions!$G$82:$M$82) -> 0.41 | V20: =LOOKUP(V13,Assumptions!$G$69:$M$69,Assumptions!$G$82:$M$82) -> 0.41 | W20: =LOOKUP(W13,Assumptions!$G$69:$M$69,Assumptions!$G$82:$M$82) -> 0.41 | X20: =LOOKUP(X13,Assumptions!$G$69:$M$69,Assumptions!$G$82:$M$82) -> 0.42 | Y20: =LOOKUP(Y13,Assumptions!$G$69:$M$69,Assumptions!$G$82:$M$82) -> 0.42 | Z20: =LOOKUP(Z13,Assumptions!$G$69:$M$69,Assumptions!$G$82:$M$82) -> 0.42 | AA20: =LOOKUP(AA13,Assumptions!$G$69:$M$69,Assumptions!$G$82:$M$82) -> 0.42 | AB20: =LOOKUP(AB13,Assumptions!$G$69:$M$69,Assumptions!$G$82:$M$82) -> 0.42 | AC20: =LOOKUP(AC13,Assumptions!$G$69:$M$69,Assumptions!$G$82:$M$82) -> 0.42 | AD20: =LOOKUP(AD13,Assumptions!$G$69:$M$69,Assumptions!$G$82:$M$82) -> 0.42 | AE20: =LOOKUP(AE13,Assumptions!$G$69:$M$69,Assumptions!$G$82:$M$82) -> 0.42 | AF20: =LOOKUP(AF13,Assumptions!$G$69:$M$69,Assumptions!$G$82:$M$82) -> 0.42 | AG20: =LOOKUP(AG13,Assumptions!$G$69:$M$69,Assumptions!$G$82:$M$82) -> 0.42 | AH20: =LOOKUP(AH13,Assumptions!$G$69:$M$69,Assumptions!$G$82:$M$82) -> 0.42 | AI20: =LOOKUP(AI13,Assumptions!$G$69:$M$69,Assumptions!$G$82:$M$82) -> 0.42 | AJ20: =LOOKUP(AJ13,Assumptions!$G$69:$M$69,Assumptions!$G$82:$M$82) -> 0.42 | AK20: =LOOKUP(AK13,Assumptions!$G$69:$M$69,Assumptions!$G$82:$M$82) -> 0.42 | AL20: =LOOKUP(AL13,Assumptions!$G$69:$M$69,Assumptions!$G$82:$M$82) -> 0.42 | AM20: =LOOKUP(AM13,Assumptions!$G$69:$M$69,Assumptions!$G$82:$M$82) -> 0.42 | AN20: =LOOKUP(AN13,Assumptions!$G$69:$M$69,Assumptions!$G$82:$M$82) -> 0.42 | AO20: =LOOKUP(AO13,Assumptions!$G$69:$M$69,Assumptions!$G$82:$M$82) -> 0.42 | AP20: =LOOKUP(AP13,Assumptions!$G$69:$M$69,Assumptions!$G$82:$M$82) -> 0.42 | AQ20: =LOOKUP(AQ13,Assumptions!$G$69:$M$69,Assumptions!$G$82:$M$82) -> 0.42 | AR20: =LOOKUP(AR13,Assumptions!$G$69:$M$69,Assumptions!$G$82:$M$82) -> 0.42 | AS20: =LOOKUP(AS13,Assumptions!$G$69:$M$69,Assumptions!$G$82:$M$82) -> 0.42 | AT20: =LOOKUP(AT13,Assumptions!$G$69:$M$69,Assumptions!$G$82:$M$82) -> 0.42 | AU20: =LOOKUP(AU13,Assumptions!$G$69:$M$69,Assumptions!$G$82:$M$82) -> 0.42 | AV20: =LOOKUP(AV13,Assumptions!$G$69:$M$69,Assumptions!$G$82:$M$82) -> 0.42 | AW20: =LOOKUP(AW13,Assumptions!$G$69:$M$69,Assumptions!$G$82:$M$82) -> 0.42 | AX20: =LOOKUP(AX13,Assumptions!$G$69:$M$69,Assumptions!$G$82:$M$82) -> 0.42 | AY20: =LOOKUP(AY13,Assumptions!$G$69:$M$69,Assumptions!$G$82:$M$82) -> 0.42 | AZ20: =LOOKUP(AZ13,Assumptions!$G$69:$M$69,Assumptions!$G$82:$M$82) -> 0.42 | BA20: =LOOKUP(BA13,Assumptions!$G$69:$M$69,Assumptions!$G$82:$M$82) -> 0.42 | BB20: =LOOKUP(BB13,Assumptions!$G$69:$M$69,Assumptions!$G$82:$M$82) -> 0.42 | BC20: =LOOKUP(BC13,Assumptions!$G$69:$M$69,Assumptions!$G$82:$M$82) -> 0.42 | BD20: =LOOKUP(BD13,Assumptions!$G$69:$M$69,Assumptions!$G$82:$M$82) -> 0.42 | BE20: =LOOKUP(BE13,Assumptions!$G$69:$M$69,Assumptions!$G$82:$M$82) -> 0.42 | BF20: =LOOKUP(BF13,Assumptions!$G$69:$M$69,Assumptions!$G$82:$M$82) -> 0.42 | BG20: =LOOKUP(BG13,Assumptions!$G$69:$M$69,Assumptions!$G$82:$M$82) -> 0.42 | BH20: =LOOKUP(BH13,Assumptions!$G$69:$M$69,Assumptions!$G$82:$M$82) -> 0.42 | BI20: =LOOKUP(BI13,Assumptions!$G$69:$M$69,Assumptions!$G$82:$M$82) -> 0.42
B21: Operating cost | H21: =H19*(1-H20) -> 22.61166596 | I21: 22.72388611 | J21: 22.8366632 | K21: 22.95 | L21: 24.55825978 | M21: 25.43150426 | N21: 26.33579963 | O21: 27.27225 | P21: 27.33096653 | Q21: 28.30280312 | R21: 29.30919636 | S21: 30.351375 | T21: 30.70319971 | U21: 31.58552814 | V21: 32.49321236 | W21: 33.426981 | X21: 33.652808 | Y21: 34.46430135 | Z21: 35.2953628 | AA21: 36.1464642 | AB21: 36.76306956 | AC21: 37.3901933 | AD21: 38.02801485 | AE21: 38.67671669 | AF21: 39.15136643 | AG21: 39.63184118 | AH21: 40.11821242 | AI21: 40.61055253 | AJ21: 41.10893475 | AK21: 41.61343323 | AL21: 42.12412304 | AM21: 42.64108016 | AN21: 43.16438149 | AO21: 43.6941049 | AP21: 44.23032919 | AQ21: 44.77313416 | AR21: =AR19*(1-AR20) -> 45.32260056 | AS21: 45.87881014 | AT21: 46.44184565 | AU21: 47.01179087 | AV21: 47.58873059 | AW21: 48.17275065 | AX21: 48.76393794 | AY21: 49.36238041 | AZ21: 49.96816712 | BA21: 50.58138818 | BB21: 51.20213483 | BC21: 51.83049944 | BD21: 52.46657547 | BE21: 53.11045759 | BF21: 53.76224158 | BG21: 54.42202441 | BH21: 55.08990425 | BI21: 55.76598047
B22: Senstivity Factor | E22: =E14 -> 1 | H22: =IF(H14,$E$22,1) -> 1 | I22: =IF(I14,$E$22,1) -> 1 | J22: 1 | K22: 1 | L22: 1 | M22: 1 | N22: 1 | O22: 1 | P22: 1 | Q22: 1 | R22: 1 | S22: 1 | T22: 1 | U22: 1 | V22: 1 | W22: 1 | X22: 1 | Y22: 1 | Z22: 1 | AA22: 1 | AB22: 1 | AC22: 1 | AD22: 1 | AE22: 1 | AF22: 1 | AG22: 1 | AH22: 1 | AI22: 1 | AJ22: 1 | AK22: 1 | AL22: 1 | AM22: 1 | AN22: 1 | AO22: 1 | AP22: 1 | AQ22: 1 | AR22: 1 | AS22: 1 | AT22: 1 | AU22: 1 | AV22: 1 | AW22: 1 | AX22: 1 | AY22: 1 | AZ22: 1 | BA22: 1 | BB22: 1 | BC22: 1 | BD22: 1 | BE22: 1 | BF22: 1 | BG22: 1 | BH22: 1 | BI22: 1
C23: EBITDA | H23: =(H19-H21)*H5*H22 -> 15.07444397 | I23: =(I19-I21)*I5*I22 -> 15.14925741 | J23: 15.22444214 | K23: 15.3 | L23: 15.05183664 | M23: 15.587051 | N23: 16.14129655 | O23: 16.71525 | P23: 18.22064435 | Q23: 18.86853542 | R23: 19.53946424 | S23: 20.23425 | T23: 21.33612183 | U23: 21.94926532 | V23: 22.58002892 | W23: 23.228919 | X23: 24.36927476 | Y23: 24.95690787 | Z23: 25.55871099 | AA23: 26.1750258 | AB23: 26.62153313 | AC23: 27.07565722 | AD23: 27.537528 | AE23: 28.00727761 | AF23: 28.35098948 | AG23: 28.69891947 | AH23: 29.05111934 | AI23: 29.40764149 | AJ23: 29.76853896 | AK23: 30.13386545 | AL23: 30.50367531 | AM23: 30.87802356 | AN23: 0 | AO23: 0 | AP23: 0 | AQ23: 0 | AR23: 0 | AS23: 0 | AT23: 0 | AU23: 0 | AV23: 0 | AW23: 0 | AX23: 0 | AY23: 0 | AZ23: 0 | BA23: 0 | BB23: 0 | BC23: 0 | BD23: 0 | BE23: 0 | BF23: 0 | BG23: 0 | BH23: 0 | BI23: 0
B25: Capital expenditure growth rate | H25: =(1+Assumptions!$G$85)^(1/H10)-1 -> 0.01227223443 | I25: =(1+Assumptions!$G$85)^(1/I10)-1 -> 0.01227223443 | J25: =(1+Assumptions!$G$85)^(1/J10)-1 -> 0.01227223443 | K25: =(1+Assumptions!$G$85)^(1/K10)-1 -> 0.01227223443 | L25: =(1+Assumptions!$G$85)^(1/L10)-1 -> 0.01227223443 | M25: =(1+Assumptions!$G$85)^(1/M10)-1 -> 0.01227223443 | N25: =(1+Assumptions!$G$85)^(1/N10)-1 -> 0.01227223443 | O25: =(1+Assumptions!$G$85)^(1/O10)-1 -> 0.01227223443 | P25: =(1+Assumptions!$G$85)^(1/P10)-1 -> 0.01227223443 | Q25: =(1+Assumptions!$G$85)^(1/Q10)-1 -> 0.01227223443 | R25: =(1+Assumptions!$G$85)^(1/R10)-1 -> 0.01227223443 | S25: =(1+Assumptions!$G$85)^(1/S10)-1 -> 0.01227223443 | T25: =(1+Assumptions!$G$85)^(1/T10)-1 -> 0.01227223443 | U25: =(1+Assumptions!$G$85)^(1/U10)-1 -> 0.01227223443 | V25: =(1+Assumptions!$G$85)^(1/V10)-1 -> 0.01227223443 | W25: =(1+Assumptions!$G$85)^(1/W10)-1 -> 0.01227223443 | X25: =(1+Assumptions!$G$85)^(1/X10)-1 -> 0.01227223443 | Y25: =(1+Assumptions!$G$85)^(1/Y10)-1 -> 0.01227223443 | Z25: =(1+Assumptions!$G$85)^(1/Z10)-1 -> 0.01227223443 | AA25: =(1+Assumptions!$G$85)^(1/AA10)-1 -> 0.01227223443 | AB25: =(1+Assumptions!$G$85)^(1/AB10)-1 -> 0.01227223443 | AC25: =(1+Assumptions!$G$85)^(1/AC10)-1 -> 0.01227223443 | AD25: =(1+Assumptions!$G$85)^(1/AD10)-1 -> 0.01227223443 | AE25: =(1+Assumptions!$G$85)^(1/AE10)-1 -> 0.01227223443 | AF25: =(1+Assumptions!$G$85)^(1/AF10)-1 -> 0.01227223443 | AG25: =(1+Assumptions!$G$85)^(1/AG10)-1 -> 0.01227223443 | AH25: =(1+Assumptions!$G$85)^(1/AH10)-1 -> 0.01227223443 | AI25: =(1+Assumptions!$G$85)^(1/AI10)-1 -> 0.01227223443 | AJ25: =(1+Assumptions!$G$85)^(1/AJ10)-1 -> 0.01227223443 | AK25: =(1+Assumptions!$G$85)^(1/AK10)-1 -> 0.01227223443 | AL25: =(1+Assumptions!$G$85)^(1/AL10)-1 -> 0.01227223443 | AM25: =(1+Assumptions!$G$85)^(1/AM10)-1 -> 0.01227223443 | AN25: =(1+Assumptions!$G$85)^(1/AN10)-1 -> 0.01227223443 | AO25: =(1+Assumptions!$G$85)^(1/AO10)-1 -> 0.01227223443 | AP25: =(1+Assumptions!$G$85)^(1/AP10)-1 -> 0.01227223443 | AQ25: =(1+Assumptions!$G$85)^(1/AQ10)-1 -> 0.01227223443 | AR25: =(1+Assumptions!$G$85)^(1/AR10)-1 -> 0.01227223443 | AS25: =(1+Assumptions!$G$85)^(1/AS10)-1 -> 0.01227223443 | AT25: =(1+Assumptions!$G$85)^(1/AT10)-1 -> 0.01227223443 | AU25: =(1+Assumptions!$G$85)^(1/AU10)-1 -> 0.01227223443 | AV25: =(1+Assumptions!$G$85)^(1/AV10)-1 -> 0.01227223443 | AW25: =(1+Assumptions!$G$85)^(1/AW10)-1 -> 0.01227223443 | AX25: =(1+Assumptions!$G$85)^(1/AX10)-1 -> 0.01227223443 | AY25: =(1+Assumptions!$G$85)^(1/AY10)-1 -> 0.01227223443 | AZ25: =(1+Assumptions!$G$85)^(1/AZ10)-1 -> 0.01227223443 | BA25: =(1+Assumptions!$G$85)^(1/BA10)-1 -> 0.01227223443 | BB25: =(1+Assumptions!$G$85)^(1/BB10)-1 -> 0.01227223443 | BC25: =(1+Assumptions!$G$85)^(1/BC10)-1 -> 0.01227223443 | BD25: =(1+Assumptions!$G$85)^(1/BD10)-1 -> 0.01227223443 | BE25: =(1+Assumptions!$G$85)^(1/BE10)-1 -> 0.01227223443 | BF25: =(1+Assumptions!$G$85)^(1/BF10)-1 -> 0.01227223443 | BG25: =(1+Assumptions!$G$85)^(1/BG10)-1 -> 0.01227223443 | BH25: =(1+Assumptions!$G$85)^(1/BH10)-1 -> 0.01227223443 | BI25: =(1+Assumptions!$G$85)^(1/BI10)-1 -> 0.01227223443
B26: Maintenance Capital expenditure | G26: =Assumptions!G84/G10 -> 5 | H26: =G26*(1+H25) -> 5.061361172 | I26: =H26*(1+I25) -> 5.123475383 | J26: 5.186351874 | K26: 5.25 | L26: 5.314429231 | M26: 5.379649152 | N26: 5.445669468 | O26: 5.5125 | P26: 5.580150692 | Q26: 5.64863161 | R26: 5.717952941 | S26: 5.788125 | T26: 5.859158227 | U26: 5.93106319 | V26: 6.003850588 | W26: 6.07753125 | X26: 6.152116138 | Y26: 6.22761635 | Z26: 6.304043118 | AA26: 6.381407813 | AB26: 6.459721945 | AC26: 6.538997167 | AD26: 6.619245273 | AE26: 6.700478203 | AF26: 6.782708042 | AG26: 6.865947026 | AH26: 6.950207537 | AI26: 7.035502113 | AJ26: 7.121843445 | AK26: 7.209244377 | AL26: 7.297717914 | AM26: 7.387277219 | AN26: 7.477935617 | AO26: 7.569706596 | AP26: 7.66260381 | AQ26: 7.75664108 | AR26: 7.851832398 | AS26: 7.948191925 | AT26: 8.045734 | AU26: 8.144473134 | AV26: 8.244424017 | AW26: 8.345601522 | AX26: 8.4480207 | AY26: 8.551696791 | AZ26: 8.656645218 | BA26: 8.762881598 | BB26: 8.870421735 | BC26: 8.97928163 | BD26: 9.089477479 | BE26: 9.201025678 | BF26: 9.313942822 | BG26: 9.428245712 | BH26: 9.543951353 | BI26: 9.661076962
B27: Growth CAPEX | H27: =LOOKUP(H13,Assumptions!$G$87:$I$87,Assumptions!$G$88:$I$88)/H10 -> 2.5 | I27: =LOOKUP(I13,Assumptions!$G$87:$I$87,Assumptions!$G$88:$I$88)/I10 -> 2.5 | J27: =LOOKUP(J13,Assumptions!$G$87:$I$87,Assumptions!$G$88:$I$88)/J10 -> 2.5 | K27: =LOOKUP(K13,Assumptions!$G$87:$I$87,Assumptions!$G$88:$I$88)/K10 -> 2.5 | L27: =LOOKUP(L13,Assumptions!$G$87:$I$87,Assumptions!$G$88:$I$88)/L10 -> 2.5 | M27: =LOOKUP(M13,Assumptions!$G$87:$I$87,Assumptions!$G$88:$I$88)/M10 -> 2.5 | N27: =LOOKUP(N13,Assumptions!$G$87:$I$87,Assumptions!$G$88:$I$88)/N10 -> 2.5 | O27: =LOOKUP(O13,Assumptions!$G$87:$I$87,Assumptions!$G$88:$I$88)/O10 -> 2.5 | P27: =LOOKUP(P13,Assumptions!$G$87:$I$87,Assumptions!$G$88:$I$88)/P10 -> 0 | Q27: =LOOKUP(Q13,Assumptions!$G$87:$I$87,Assumptions!$G$88:$I$88)/Q10 -> 0 | R27: =LOOKUP(R13,Assumptions!$G$87:$I$87,Assumptions!$G$88:$I$88)/R10 -> 0 | S27: =LOOKUP(S13,Assumptions!$G$87:$I$87,Assumptions!$G$88:$I$88)/S10 -> 0 | T27: =LOOKUP(T13,Assumptions!$G$87:$I$87,Assumptions!$G$88:$I$88)/T10 -> 0 | U27: =LOOKUP(U13,Assumptions!$G$87:$I$87,Assumptions!$G$88:$I$88)/U10 -> 0 | V27: =LOOKUP(V13,Assumptions!$G$87:$I$87,Assumptions!$G$88:$I$88)/V10 -> 0 | W27: =LOOKUP(W13,Assumptions!$G$87:$I$87,Assumptions!$G$88:$I$88)/W10 -> 0 | X27: =LOOKUP(X13,Assumptions!$G$87:$I$87,Assumptions!$G$88:$I$88)/X10 -> 0 | Y27: =LOOKUP(Y13,Assumptions!$G$87:$I$87,Assumptions!$G$88:$I$88)/Y10 -> 0 | Z27: =LOOKUP(Z13,Assumptions!$G$87:$I$87,Assumptions!$G$88:$I$88)/Z10 -> 0 | AA27: =LOOKUP(AA13,Assumptions!$G$87:$I$87,Assumptions!$G$88:$I$88)/AA10 -> 0 | AB27: =LOOKUP(AB13,Assumptions!$G$87:$I$87,Assumptions!$G$88:$I$88)/AB10 -> 0 | AC27: =LOOKUP(AC13,Assumptions!$G$87:$I$87,Assumptions!$G$88:$I$88)/AC10 -> 0 | AD27: =LOOKUP(AD13,Assumptions!$G$87:$I$87,Assumptions!$G$88:$I$88)/AD10 -> 0 | AE27: =LOOKUP(AE13,Assumptions!$G$87:$I$87,Assumptions!$G$88:$I$88)/AE10 -> 0 | AF27: =LOOKUP(AF13,Assumptions!$G$87:$I$87,Assumptions!$G$88:$I$88)/AF10 -> 0 | AG27: =LOOKUP(AG13,Assumptions!$G$87:$I$87,Assumptions!$G$88:$I$88)/AG10 -> 0 | AH27: =LOOKUP(AH13,Assumptions!$G$87:$I$87,Assumptions!$G$88:$I$88)/AH10 -> 0 | AI27: =LOOKUP(AI13,Assumptions!$G$87:$I$87,Assumptions!$G$88:$I$88)/AI10 -> 0 | AJ27: =LOOKUP(AJ13,Assumptions!$G$87:$I$87,Assumptions!$G$88:$I$88)/AJ10 -> 0 | AK27: =LOOKUP(AK13,Assumptions!$G$87:$I$87,Assumptions!$G$88:$I$88)/AK10 -> 0 | AL27: =LOOKUP(AL13,Assumptions!$G$87:$I$87,Assumptions!$G$88:$I$88)/AL10 -> 0 | AM27: =LOOKUP(AM13,Assumptions!$G$87:$I$87,Assumptions!$G$88:$I$88)/AM10 -> 0 | AN27: =LOOKUP(AN13,Assumptions!$G$87:$I$87,Assumptions!$G$88:$I$88)/AN10 -> 0 | AO27: =LOOKUP(AO13,Assumptions!$G$87:$I$87,Assumptions!$G$88:$I$88)/AO10 -> 0 | AP27: =LOOKUP(AP13,Assumptions!$G$87:$I$87,Assumptions!$G$88:$I$88)/AP10 -> 0 | AQ27: =LOOKUP(AQ13,Assumptions!$G$87:$I$87,Assumptions!$G$88:$I$88)/AQ10 -> 0 | AR27: =LOOKUP(AR13,Assumptions!$G$87:$I$87,Assumptions!$G$88:$I$88)/AR10 -> 0 | AS27: =LOOKUP(AS13,Assumptions!$G$87:$I$87,Assumptions!$G$88:$I$88)/AS10 -> 0 | AT27: =LOOKUP(AT13,Assumptions!$G$87:$I$87,Assumptions!$G$88:$I$88)/AT10 -> 0 | AU27: =LOOKUP(AU13,Assumptions!$G$87:$I$87,Assumptions!$G$88:$I$88)/AU10 -> 0 | AV27: =LOOKUP(AV13,Assumptions!$G$87:$I$87,Assumptions!$G$88:$I$88)/AV10 -> 0 | AW27: =LOOKUP(AW13,Assumptions!$G$87:$I$87,Assumptions!$G$88:$I$88)/AW10 -> 0 | AX27: =LOOKUP(AX13,Assumptions!$G$87:$I$87,Assumptions!$G$88:$I$88)/AX10 -> 0 | AY27: =LOOKUP(AY13,Assumptions!$G$87:$I$87,Assumptions!$G$88:$I$88)/AY10 -> 0 | AZ27: =LOOKUP(AZ13,Assumptions!$G$87:$I$87,Assumptions!$G$88:$I$88)/AZ10 -> 0 | BA27: =LOOKUP(BA13,Assumptions!$G$87:$I$87,Assumptions!$G$88:$I$88)/BA10 -> 0 | BB27: =LOOKUP(BB13,Assumptions!$G$87:$I$87,Assumptions!$G$88:$I$88)/BB10 -> 0 | BC27: =LOOKUP(BC13,Assumptions!$G$87:$I$87,Assumptions!$G$88:$I$88)/BC10 -> 0 | BD27: =LOOKUP(BD13,Assumptions!$G$87:$I$87,Assumptions!$G$88:$I$88)/BD10 -> 0 | BE27: =LOOKUP(BE13,Assumptions!$G$87:$I$87,Assumptions!$G$88:$I$88)/BE10 -> 0 | BF27: =LOOKUP(BF13,Assumptions!$G$87:$I$87,Assumptions!$G$88:$I$88)/BF10 -> 0 | BG27: =LOOKUP(BG13,Assumptions!$G$87:$I$87,Assumptions!$G$88:$I$88)/BG10 -> 0 | BH27: =LOOKUP(BH13,Assumptions!$G$87:$I$87,Assumptions!$G$88:$I$88)/BH10 -> 0 | BI27: =LOOKUP(BI13,Assumptions!$G$87:$I$87,Assumptions!$G$88:$I$88)/BI10 -> 0
C28: Total CAPEX | H28: =SUM(H26:H27)*H5 -> 7.561361172 | I28: 7.623475383 | J28: 7.686351874 | K28: 7.75 | L28: 7.814429231 | M28: 7.879649152 | N28: 7.945669468 | O28: 8.0125 | P28: 5.580150692 | Q28: 5.64863161 | R28: 5.717952941 | S28: 5.788125 | T28: 5.859158227 | U28: 5.93106319 | V28: 6.003850588 | W28: 6.07753125 | X28: 6.152116138 | Y28: 6.22761635 | Z28: 6.304043118 | AA28: 6.381407813 | AB28: 6.459721945 | AC28: 6.538997167 | AD28: 6.619245273 | AE28: 6.700478203 | AF28: 6.782708042 | AG28: 6.865947026 | AH28: 6.950207537 | AI28: 7.035502113 | AJ28: 7.121843445 | AK28: 7.209244377 | AL28: 7.297717914 | AM28: 7.387277219 | AN28: =SUM(AN26:AN27)*AN5 -> 0 | AO28: 0 | AP28: 0 | AQ28: 0 | AR28: 0 | AS28: 0 | AT28: 0 | AU28: 0 | AV28: 0 | AW28: 0 | AX28: 0 | AY28: 0 | AZ28: 0 | BA28: 0 | BB28: 0 | BC28: 0 | BD28: 0 | BE28: 0 | BF28: 0 | BG28: 0 | BH28: 0 | BI28: 0
B30: Accounts receivable days | G30: =Assumptions!$G$91 -> 30 | H30: =Assumptions!$G$91 -> 30 | I30: =Assumptions!$G$91 -> 30 | J30: =Assumptions!$G$91 -> 30 | K30: =Assumptions!$G$91 -> 30 | L30: =Assumptions!$G$91 -> 30 | M30: =Assumptions!$G$91 -> 30 | N30: =Assumptions!$G$91 -> 30 | O30: =Assumptions!$G$91 -> 30 | P30: =Assumptions!$G$91 -> 30 | Q30: =Assumptions!$G$91 -> 30 | R30: =Assumptions!$G$91 -> 30 | S30: =Assumptions!$G$91 -> 30 | T30: =Assumptions!$G$91 -> 30 | U30: =Assumptions!$G$91 -> 30 | V30: =Assumptions!$G$91 -> 30 | W30: =Assumptions!$G$91 -> 30 | X30: =Assumptions!$G$91 -> 30 | Y30: =Assumptions!$G$91 -> 30 | Z30: =Assumptions!$G$91 -> 30 | AA30: =Assumptions!$G$91 -> 30 | AB30: =Assumptions!$G$91 -> 30 | AC30: =Assumptions!$G$91 -> 30 | AD30: =Assumptions!$G$91 -> 30 | AE30: =Assumptions!$G$91 -> 30 | AF30: =Assumptions!$G$91 -> 30 | AG30: =Assumptions!$G$91 -> 30 | AH30: =Assumptions!$G$91 -> 30 | AI30: =Assumptions!$G$91 -> 30 | AJ30: =Assumptions!$G$91 -> 30 | AK30: =Assumptions!$G$91 -> 30 | AL30: =Assumptions!$G$91 -> 30 | AM30: =Assumptions!$G$91 -> 30 | AN30: =Assumptions!$G$91 -> 30 | AO30: =Assumptions!$G$91 -> 30 | AP30: =Assumptions!$G$91 -> 30 | AQ30: =Assumptions!$G$91 -> 30 | AR30: =Assumptions!$G$91 -> 30 | AS30: =Assumptions!$G$91 -> 30 | AT30: =Assumptions!$G$91 -> 30 | AU30: =Assumptions!$G$91 -> 30 | AV30: =Assumptions!$G$91 -> 30 | AW30: =Assumptions!$G$91 -> 30 | AX30: =Assumptions!$G$91 -> 30 | AY30: =Assumptions!$G$91 -> 30 | AZ30: =Assumptions!$G$91 -> 30 | BA30: =Assumptions!$G$91 -> 30 | BB30: =Assumptions!$G$91 -> 30 | BC30: =Assumptions!$G$91 -> 30 | BD30: =Assumptions!$G$91 -> 30 | BE30: =Assumptions!$G$91 -> 30 | BF30: =Assumptions!$G$91 -> 30 | BG30: =Assumptions!$G$91 -> 30 | BH30: =Assumptions!$G$91 -> 30 | BI30: =Assumptions!$G$91 -> 30
B31: Receivables percentage of sales | H31: =H30/H12 -> 0.3260869565 | I31: 0.3296703297 | J31: 0.3296703297 | K31: 0.3260869565 | L31: 0.3260869565 | M31: 0.3333333333 | N31: 0.3296703297 | O31: 0.3260869565 | P31: 0.3260869565 | Q31: 0.3333333333 | R31: 0.3296703297 | S31: 0.3260869565 | T31: 0.3260869565 | U31: 0.3333333333 | V31: 0.3296703297 | W31: 0.3260869565 | X31: 0.3260869565 | Y31: 0.3296703297 | Z31: 0.3296703297 | AA31: 0.3260869565 | AB31: 0.3260869565 | AC31: 0.3333333333 | AD31: 0.3296703297 | AE31: 0.3260869565 | AF31: 0.3260869565 | AG31: 0.3333333333 | AH31: 0.3296703297 | AI31: 0.3260869565 | AJ31: 0.3260869565 | AK31: 0.3333333333 | AL31: 0.3296703297 | AM31: 0.3260869565 | AN31: =AN30/AN12 -> 0.3260869565 | AO31: 0.3296703297 | AP31: 0.3296703297 | AQ31: 0.3260869565 | AR31: 0.3260869565 | AS31: 0.3333333333 | AT31: 0.3296703297 | AU31: 0.3260869565 | AV31: 0.3260869565 | AW31: 0.3333333333 | AX31: 0.3296703297 | AY31: 0.3260869565 | AZ31: 0.3260869565 | BA31: 0.3333333333 | BB31: 0.3296703297 | BC31: 0.3260869565 | BD31: 0.3260869565 | BE31: 0.3296703297 | BF31: 0.3296703297 | BG31: 0.3260869565 | BH31: 0.3260869565 | BI31: 0.3333333333
B32: Level of accounts receivable | G32: ='S&U and Pro-Forma'!N56 -> 18 | H32: =H31*H19 -> 12.28894889 | I32: =I31*I19 -> 12.48565171 | J32: 12.54761714 | K32: 12.47282609 | L32: 12.91633579 | M32: 13.67285175 | N32: 14.0034383 | O32: 14.34375 | P32: 14.85378616 | Q32: 15.72377951 | R32: 16.10395404 | S32: 16.4953125 | T32: 16.96934398 | U32: 17.84493116 | V32: 18.15601361 | W32: 18.47475 | X32: 18.92024438 | Y32: 19.58940963 | Z32: 20.06178257 | AA32: 20.322225 | AB32: 20.66889218 | AC32: 21.48861684 | AD32: 21.61501413 | AE32: 21.74478075 | AF32: 22.0116378 | AG32: 22.77692022 | AH32: 22.8030764 | AI32: 22.83201979 | AJ32: 23.11221969 | AK32: 23.91576623 | AL32: 23.94323022 | AM32: 23.97362078 | AN32: 24.26783067 | AO32: 24.83560339 | AP32: 25.14039174 | AQ32: 25.17230182 | AR32: =AR31*AR19 -> 25.4812222 | AS32: 26.36713226 | AT32: 26.39741132 | AU32: 26.43091691 | AV32: 26.75528331 | AW32: 27.68548888 | AX32: 27.71728189 | AY32: 27.75246275 | AZ32: 28.09304748 | BA32: 29.06976332 | BB32: 29.10314598 | BC32: 29.14008589 | BD32: 29.49769985 | BE32: 30.18783114 | BF32: 30.55830328 | BG32: 30.59709018 | BH32: 30.97258485 | BI32: 32.04941406
B33: Accounts payable days | G33: =Assumptions!$G$92 -> 15 | H33: =Assumptions!$G$92 -> 15 | I33: =Assumptions!$G$92 -> 15 | J33: =Assumptions!$G$92 -> 15 | K33: =Assumptions!$G$92 -> 15 | L33: =Assumptions!$G$92 -> 15 | M33: =Assumptions!$G$92 -> 15 | N33: =Assumptions!$G$92 -> 15 | O33: =Assumptions!$G$92 -> 15 | P33: =Assumptions!$G$92 -> 15 | Q33: =Assumptions!$G$92 -> 15 | R33: =Assumptions!$G$92 -> 15 | S33: =Assumptions!$G$92 -> 15 | T33: =Assumptions!$G$92 -> 15 | U33: =Assumptions!$G$92 -> 15 | V33: =Assumptions!$G$92 -> 15 | W33: =Assumptions!$G$92 -> 15 | X33: =Assumptions!$G$92 -> 15 | Y33: =Assumptions!$G$92 -> 15 | Z33: =Assumptions!$G$92 -> 15 | AA33: =Assumptions!$G$92 -> 15 | AB33: =Assumptions!$G$92 -> 15 | AC33: =Assumptions!$G$92 -> 15 | AD33: =Assumptions!$G$92 -> 15 | AE33: =Assumptions!$G$92 -> 15 | AF33: =Assumptions!$G$92 -> 15 | AG33: =Assumptions!$G$92 -> 15 | AH33: =Assumptions!$G$92 -> 15 | AI33: =Assumptions!$G$92 -> 15 | AJ33: =Assumptions!$G$92 -> 15 | AK33: =Assumptions!$G$92 -> 15 | AL33: =Assumptions!$G$92 -> 15 | AM33: =Assumptions!$G$92 -> 15 | AN33: =Assumptions!$G$92 -> 15 | AO33: =Assumptions!$G$92 -> 15 | AP33: =Assumptions!$G$92 -> 15 | AQ33: =Assumptions!$G$92 -> 15 | AR33: =Assumptions!$G$92 -> 15 | AS33: =Assumptions!$G$92 -> 15 | AT33: =Assumptions!$G$92 -> 15 | AU33: =Assumptions!$G$92 -> 15 | AV33: =Assumptions!$G$92 -> 15 | AW33: =Assumptions!$G$92 -> 15 | AX33: =Assumptions!$G$92 -> 15 | AY33: =Assumptions!$G$92 -> 15 | AZ33: =Assumptions!$G$92 -> 15 | BA33: =Assumptions!$G$92 -> 15 | BB33: =Assumptions!$G$92 -> 15 | BC33: =Assumptions!$G$92 -> 15 | BD33: =Assumptions!$G$92 -> 15 | BE33: =Assumptions!$G$92 -> 15 | BF33: =Assumptions!$G$92 -> 15 | BG33: =Assumptions!$G$92 -> 15 | BH33: =Assumptions!$G$92 -> 15 | BI33: =Assumptions!$G$92 -> 15
B34: Payables as a percentage of expenses | H34: =H33/H12 -> 0.1630434783 | I34: 0.1648351648 | J34: 0.1648351648 | K34: 0.1630434783 | L34: 0.1630434783 | M34: 0.1666666667 | N34: 0.1648351648 | O34: 0.1630434783 | P34: 0.1630434783 | Q34: 0.1666666667 | R34: 0.1648351648 | S34: 0.1630434783 | T34: 0.1630434783 | U34: 0.1666666667 | V34: 0.1648351648 | W34: 0.1630434783 | X34: 0.1630434783 | Y34: 0.1648351648 | Z34: 0.1648351648 | AA34: 0.1630434783 | AB34: 0.1630434783 | AC34: 0.1666666667 | AD34: 0.1648351648 | AE34: 0.1630434783 | AF34: 0.1630434783 | AG34: 0.1666666667 | AH34: 0.1648351648 | AI34: 0.1630434783 | AJ34: 0.1630434783 | AK34: 0.1666666667 | AL34: 0.1648351648 | AM34: 0.1630434783 | AN34: =AN33/AN12 -> 0.1630434783 | AO34: 0.1648351648 | AP34: 0.1648351648 | AQ34: 0.1630434783 | AR34: 0.1630434783 | AS34: 0.1666666667 | AT34: 0.1648351648 | AU34: 0.1630434783 | AV34: 0.1630434783 | AW34: 0.1666666667 | AX34: 0.1648351648 | AY34: 0.1630434783 | AZ34: 0.1630434783 | BA34: 0.1666666667 | BB34: 0.1648351648 | BC34: 0.1630434783 | BD34: 0.1630434783 | BE34: 0.1648351648 | BF34: 0.1648351648 | BG34: 0.1630434783 | BH34: 0.1630434783 | BI34: 0.1666666667
B35: Accounts payables outstanding | G35: ='S&U and Pro-Forma'!N67 -> 6 | H35: =H34*H21 -> 3.686684667 | I35: =I34*I21 -> 3.745695513 | J35: 3.764285143 | K35: 3.741847826 | L35: 4.004064095 | M35: 4.238584043 | N35: 4.341065872 | O35: 4.4465625 | P35: 4.456135847 | Q35: 4.717133854 | R35: 4.831186213 | S35: 4.94859375 | T35: 5.005956475 | U35: 5.264254691 | V35: 5.356024015 | W35: 5.45005125 | X35: 5.486870869 | Y35: 5.680928794 | Z35: 5.817916944 | AA35: 5.89344525 | AB35: 5.993978733 | AC35: 6.231698884 | AD35: 6.268354096 | AE35: 6.305986418 | AF35: 6.383374961 | AG35: 6.605306863 | AH35: 6.612892157 | AI35: 6.621285738 | AJ35: 6.702543709 | AK35: 6.935572206 | AL35: 6.943536765 | AM35: 6.952350025 | AN35: 7.037670895 | AO35: 7.202324983 | AP35: 7.290713603 | AQ35: 7.299967527 | AR35: =AR34*AR21 -> 7.389554439 | AS35: 7.646468357 | AT35: 7.655249284 | AU35: 7.664965903 | AV35: 7.759032161 | AW35: 8.028791775 | AX35: 8.038011748 | AY35: 8.048214198 | AZ35: 8.146983769 | BA35: 8.430231363 | BB35: 8.439912335 | BC35: 8.450624908 | BD35: 8.554332958 | BE35: 8.754471031 | BF35: 8.861907952 | BG35: 8.873156153 | BH35: 8.982049606 | BI35: 9.294330078
B36: Total Working Capital | G36: =G32-G35 -> 12 | H36: =H32-H35 -> 8.602264224 | I36: 8.739956197 | J36: 8.783332001 | K36: 8.730978261 | L36: 8.912271695 | M36: 9.434267708 | N36: 9.662372426 | O36: 9.8971875 | P36: 10.39765031 | Q36: 11.00664566 | R36: 11.27276783 | S36: 11.54671875 | T36: 11.96338751 | U36: 12.58067646 | V36: 12.79998959 | W36: 13.02469875 | X36: 13.43337351 | Y36: 13.90848084 | Z36: 14.24386562 | AA36: 14.42877975 | AB36: 14.67491345 | AC36: 15.25691796 | AD36: 15.34666003 | AE36: 15.43879433 | AF36: 15.62826284 | AG36: 16.17161335 | AH36: 16.19018425 | AI36: 16.21073405 | AJ36: 16.40967598 | AK36: 16.98019402 | AL36: 16.99969346 | AM36: 17.02127075 | AN36: 17.23015978 | AO36: 17.63327841 | AP36: 17.84967813 | AQ36: 17.87233429 | AR36: =AR32-AR35 -> 18.09166777 | AS36: 18.72066391 | AT36: 18.74216204 | AU36: 18.765951 | AV36: 18.99625115 | AW36: 19.6566971 | AX36: 19.67927014 | AY36: 19.70424855 | AZ36: 19.94606371 | BA36: 20.63953196 | BB36: 20.66323365 | BC36: 20.68946098 | BD36: 20.9433669 | BE36: 21.43336011 | BF36: 21.69639533 | BG36: 21.72393403 | BH36: 21.99053524 | BI36: 22.75508398
D37: Change in Working Capital | H37: =(H36-G36)*H5 -> -3.397735776 | I37: 0.1376919726 | J37: 0.04337580456 | K37: -0.05235374035 | L37: 0.1812934336 | M37: 0.5219960136 | N37: 0.2281047178 | O37: 0.2348150742 | P37: 0.5004628103 | Q37: 0.6089953491 | R37: 0.2661221707 | S37: 0.2739509199 | T37: 0.416668757 | U37: 0.6172889575 | V37: 0.2193131298 | W37: 0.2247091557 | X37: 0.408674758 | Y37: 0.4751073317 | Z37: 0.3353847826 | AA37: 0.1849141277 | AB37: 0.2461337001 | AC37: 0.5820045075 | AD37: 0.08974207166 | AE37: 0.09213430323 | AF37: 0.1894685034 | AG37: 0.5433505173 | AH37: 0.01857089409 | AI37: 0.02054980193 | AJ37: 0.1989419285 | AK37: 0.5705180431 | AL37: 0.01949943879 | AM37: 0.02157729202 | AN37: =(AN36-AM36)*AN5 -> 0 | AO37: 0 | AP37: 0 | AQ37: 0 | AR37: 0 | AS37: 0 | AT37: 0 | AU37: 0 | AV37: 0 | AW37: 0 | AX37: 0 | AY37: 0 | AZ37: 0 | BA37: 0 | BB37: 0 | BC37: 0 | BD37: 0 | BE37: 0 | BF37: 0 | BG37: 0 | BH37: 0 | BI37: 0
B39: TTM EBITDA | H39: =IF(H8>H10,SUM(OFFSET(H23,0,0,1,-H10)),H23*H10) -> 60.29777589 | I39: =IF(I8>I10,SUM(OFFSET(I23,0,0,1,-I10)),I23*I10) -> 60.59702963 | J39: 60.89776854 | K39: 61.2 | L39: 60.72553618 | M39: 61.16332977 | N39: 62.08018418 | O39: 63.49543418 | P39: 66.66424189 | Q39: 69.94572631 | R39: 73.34389401 | S39: 76.86289401 | T39: 79.97837149 | U39: 83.05910139 | V39: 86.09966608 | W39: 89.09433508 | X39: 92.127488 | Y39: 95.13513056 | Z39: 98.11381262 | AA39: 101.0599194 | AB39: 103.3121778 | AC39: 105.4309271 | AD39: 107.4097441 | AE39: 109.241996 | AF39: 110.9714523 | AG39: 112.5947146 | AH39: 114.1083059 | AI39: 115.5086698 | AJ39: 116.9262193 | AK39: 118.3611652 | AL39: 119.8137212 | AM39: 121.2841033 | AN39: 91.51556431 | AO39: 61.38169887 | AP39: 30.87802356 | AQ39: 0 | AR39: 0 | AS39: 0 | AT39: 0 | AU39: 0 | AV39: 0 | AW39: 0 | AX39: 0 | AY39: 0 | AZ39: 0 | BA39: 0 | BB39: 0 | BC39: 0 | BD39: 0 | BE39: 0 | BF39: 0 | BG39: 0 | BH39: 0 | BI39: 0
B40: Terminal Proceeds | F40: =Assumptions!E5 -> 5 | H40: =H39*$F$40*H6 -> 0 | I40: 0 | J40: 0 | K40: 0 | L40: 0 | M40: 0 | N40: 0 | O40: 0 | P40: 0 | Q40: 0 | R40: 0 | S40: 0 | T40: 0 | U40: 0 | V40: 0 | W40: 0 | X40: 0 | Y40: 0 | Z40: 0 | AA40: 0 | AB40: 0 | AC40: 0 | AD40: 0 | AE40: 0 | AF40: 0 | AG40: 0 | AH40: 0 | AI40: 0 | AJ40: 0 | AK40: 0 | AL40: 0 | AM40: 606.4205163 | AN40: =AN39*$F$40*AN6 -> 0 | AO40: 0 | AP40: 0 | AQ40: 0 | AR40: 0 | AS40: 0 | AT40: 0 | AU40: 0 | AV40: 0 | AW40: 0 | AX40: 0 | AY40: 0 | AZ40: 0 | BA40: 0 | BB40: 0 | BC40: 0 | BD40: 0 | BE40: 0 | BF40: 0 | BG40: 0 | BH40: 0 | BI40: 0
B42: Pre-tax cashflow | G42: =-'S&U and Pro-Forma'!E37 -> -487.38 | H42: =H23-H28-H37+H40 -> 10.91081858 | I42: 7.388090052 | J42: 7.494714457 | K42: 7.60235374 | L42: 7.056113975 | M42: 7.18540583 | N42: 7.96752236 | O42: 8.467934926 | P42: 12.14003085 | Q42: 12.61090846 | R42: 13.55538913 | S42: 14.17217408 | T42: 15.06029485 | U42: 15.40091317 | V42: 16.35686521 | W42: 16.92667859 | X42: 17.80848386 | Y42: 18.25418419 | Z42: 18.91928309 | AA42: 19.60870386 | AB42: 19.91567749 | AC42: 19.95465555 | AD42: 20.82854065 | AE42: 21.2146651 | AF42: 21.37881294 | AG42: 21.28962193 | AH42: 22.08234091 | AI42: 22.35158957 | AJ42: 22.44775358 | AK42: 22.35410303 | AL42: 23.18645795 | AM42: 629.8896854 | AN42: =AN23-AN28-AN37+AN40 -> 0 | AO42: 0 | AP42: 0 | AQ42: 0 | AR42: 0 | AS42: 0 | AT42: 0 | AU42: 0 | AV42: 0 | AW42: 0 | AX42: 0 | AY42: 0 | AZ42: 0 | BA42: 0 | BB42: 0 | BC42: 0 | BD42: 0 | BE42: 0 | BF42: 0 | BG42: 0 | BH42: 0 | BI42: 0
B44: XIRR | G44: =XIRR(G42:BI42,G3:BI3) -> 0.1429474294
B45: XIRR (CF Date) | G45: =XIRR(G42:BI42,G4:BI4) -> 0.144804877
B46: IRR | G46: =(1+IRR(G42:BI42))^G10-1 -> 0.1430634256
B47: MIRR | E47: 0.1 | F47: =(1+E47)^(1/G10)-1 -> 0.02411368908 | G47: =(1+MIRR(G42:BI42,,F47))^G10-1 -> 0.1188475609
A49: Other Assets and Liabilities
B50: ='S&U and Pro-Forma'!C57 -> Net fixed assets
C51: Opening Balance | H51: =G54 -> 500 | I51: =H54 -> 500.0613612 | J51: 500.1839161 | K51: 500.3675093 | L51: 500.6119966 | M51: 500.9172459 | N51: 501.2831364 | O51: 501.7095588 | P51: 502.1964154 | Q51: 500.2436199 | R51: 498.3885972 | S51: 496.6307212 | T51: 494.9693854 | U51: 493.4040028 | V51: 491.9340059 | W51: 490.5588464 | X51: 489.277995 | Y51: 488.0909412 | Z51: 486.9971934 | AA51: 485.9962787 | AB51: 485.0877423 | AC51: 484.2711481 | AD51: 483.5460781 | AE51: 482.9121322 | AF51: 482.3689284 | AG51: 481.9161025 | AH51: 481.553308 | AI51: 481.2802159 | AJ51: 481.0965148 | AK51: 481.0019105 | AL51: 480.9961262 | AM51: 481.0789022 | AN51: 481.2499959 | AO51: 481.2499959 | AP51: 481.2499959 | AQ51: 481.2499959 | AR51: 481.2499959 | AS51: 481.2499959 | AT51: 481.2499959 | AU51: 481.2499959 | AV51: 481.2499959 | AW51: 481.2499959 | AX51: 481.2499959 | AY51: 481.2499959 | AZ51: 481.2499959 | BA51: 481.2499959 | BB51: 481.2499959 | BC51: 481.2499959 | BD51: 481.2499959 | BE51: 481.2499959 | BF51: 481.2499959 | BG51: 481.2499959 | BH51: 481.2499959 | BI51: 481.2499959
C52: Add: Capital Expenditures | H52: =H28 -> 7.561361172 | I52: =I28 -> 7.623475383 | J52: 7.686351874 | K52: 7.75 | L52: 7.814429231 | M52: 7.879649152 | N52: 7.945669468 | O52: 8.0125 | P52: 5.580150692 | Q52: 5.64863161 | R52: 5.717952941 | S52: 5.788125 | T52: 5.859158227 | U52: 5.93106319 | V52: 6.003850588 | W52: 6.07753125 | X52: 6.152116138 | Y52: 6.22761635 | Z52: 6.304043118 | AA52: 6.381407813 | AB52: 6.459721945 | AC52: 6.538997167 | AD52: 6.619245273 | AE52: 6.700478203 | AF52: 6.782708042 | AG52: 6.865947026 | AH52: 6.950207537 | AI52: 7.035502113 | AJ52: 7.121843445 | AK52: 7.209244377 | AL52: 7.297717914 | AM52: 7.387277219 | AN52: 0 | AO52: 0 | AP52: 0 | AQ52: 0 | AR52: 0 | AS52: 0 | AT52: 0 | AU52: 0 | AV52: 0 | AW52: 0 | AX52: 0 | AY52: 0 | AZ52: 0 | BA52: 0 | BB52: 0 | BC52: 0 | BD52: 0 | BE52: 0 | BF52: 0 | BG52: 0 | BH52: 0 | BI52: 0
C53: Less: Depreciation Expense | H53: =H57 -> 7.5 | I53: =I57 -> 7.500920418 | J53: 7.502758742 | K53: 7.505512639 | L53: 7.509179949 | M53: 7.513758689 | N53: 7.519247046 | O53: 7.525643382 | P53: 7.532946231 | Q53: 7.503654298 | R53: 7.475828958 | S53: 7.449460818 | T53: 7.42454078 | U53: 7.401060042 | V53: 7.379010089 | W53: 7.358382697 | X53: 7.339169925 | Y53: 7.321364118 | Z53: 7.304957902 | AA53: 7.28994418 | AB53: 7.276316134 | AC53: 7.264067222 | AD53: 7.253191171 | AE53: 7.243681982 | AF53: 7.235533926 | AG53: 7.228741537 | AH53: 7.22329962 | AI53: 7.219203238 | AJ53: 7.216447722 | AK53: 7.215028657 | AL53: 7.214941893 | AM53: 7.216183534 | AN53: 0 | AO53: 0 | AP53: 0 | AQ53: 0 | AR53: 0 | AS53: 0 | AT53: 0 | AU53: 0 | AV53: 0 | AW53: 0 | AX53: 0 | AY53: 0 | AZ53: 0 | BA53: 0 | BB53: 0 | BC53: 0 | BD53: 0 | BE53: 0 | BF53: 0 | BG53: 0 | BH53: 0 | BI53: 0
C54: Closing Balance | G54: ='S&U and Pro-Forma'!N57 -> 500 | H54: =H51+H52-H53 -> 500.0613612 | I54: =I51+I52-I53 -> 500.1839161 | J54: 500.3675093 | K54: 500.6119966 | L54: 500.9172459 | M54: 501.2831364 | N54: 501.7095588 | O54: 502.1964154 | P54: 500.2436199 | Q54: 498.3885972 | R54: 496.6307212 | S54: 494.9693854 | T54: 493.4040028 | U54: 491.9340059 | V54: 490.5588464 | W54: 489.277995 | X54: 488.0909412 | Y54: 486.9971934 | Z54: 485.9962787 | AA54: 485.0877423 | AB54: 484.2711481 | AC54: 483.5460781 | AD54: 482.9121322 | AE54: 482.3689284 | AF54: 481.9161025 | AG54: 481.553308 | AH54: 481.2802159 | AI54: 481.0965148 | AJ54: 481.0019105 | AK54: 480.9961262 | AL54: 481.0789022 | AM54: 481.2499959 | AN54: 481.2499959 | AO54: 481.2499959 | AP54: 481.2499959 | AQ54: 481.2499959 | AR54: 481.2499959 | AS54: 481.2499959 | AT54: 481.2499959 | AU54: 481.2499959 | AV54: 481.2499959 | AW54: 481.2499959 | AX54: 481.2499959 | AY54: 481.2499959 | AZ54: 481.2499959 | BA54: 481.2499959 | BB54: 481.2499959 | BC54: 481.2499959 | BD54: 481.2499959 | BE54: 481.2499959 | BF54: 481.2499959 | BG54: 481.2499959 | BH54: 481.2499959 | BI54: 481.2499959
C56: Depreciation Rate on Net Assets | F56: =Assumptions!E133 -> 0.06 | G56: =F56/G10 -> 0.015 | H56: =G56 -> 0.015 | I56: =H56 -> 0.015 | J56: 0.015 | K56: 0.015 | L56: 0.015 | M56: 0.015 | N56: 0.015 | O56: 0.015 | P56: 0.015 | Q56: 0.015 | R56: 0.015 | S56: 0.015 | T56: 0.015 | U56: 0.015 | V56: 0.015 | W56: 0.015 | X56: 0.015 | Y56: 0.015 | Z56: 0.015 | AA56: 0.015 | AB56: 0.015 | AC56: 0.015 | AD56: 0.015 | AE56: 0.015 | AF56: 0.015 | AG56: 0.015 | AH56: 0.015 | AI56: 0.015 | AJ56: 0.015 | AK56: 0.015 | AL56: 0.015 | AM56: 0.015 | AN56: 0.015 | AO56: 0.015 | AP56: 0.015 | AQ56: 0.015 | AR56: 0.015 | AS56: 0.015 | AT56: 0.015 | AU56: 0.015 | AV56: 0.015 | AW56: 0.015 | AX56: 0.015 | AY56: 0.015 | AZ56: 0.015 | BA56: 0.015 | BB56: 0.015 | BC56: 0.015 | BD56: 0.015 | BE56: 0.015 | BF56: 0.015 | BG56: 0.015 | BH56: 0.015 | BI56: 0.015
C57: Depreciation Expense | H57: =H56*H51*H5 -> 7.5 | I57: =I56*I51*I5 -> 7.500920418 | J57: 7.502758742 | K57: 7.505512639 | L57: 7.509179949 | M57: 7.513758689 | N57: 7.519247046 | O57: 7.525643382 | P57: 7.532946231 | Q57: 7.503654298 | R57: 7.475828958 | S57: 7.449460818 | T57: 7.42454078 | U57: 7.401060042 | V57: 7.379010089 | W57: 7.358382697 | X57: 7.339169925 | Y57: 7.321364118 | Z57: 7.304957902 | AA57: 7.28994418 | AB57: 7.276316134 | AC57: 7.264067222 | AD57: 7.253191171 | AE57: 7.243681982 | AF57: 7.235533926 | AG57: 7.228741537 | AH57: 7.22329962 | AI57: 7.219203238 | AJ57: 7.216447722 | AK57: 7.215028657 | AL57: 7.214941893 | AM57: 7.216183534 | AN57: 0 | AO57: 0 | AP57: 0 | AQ57: 0 | AR57: 0 | AS57: 0 | AT57: 0 | AU57: 0 | AV57: 0 | AW57: 0 | AX57: 0 | AY57: 0 | AZ57: 0 | BA57: 0 | BB57: 0 | BC57: 0 | BD57: 0 | BE57: 0 | BF57: 0 | BG57: 0 | BH57: 0 | BI57: 0
B59: Intangible Assets
C60: Opening Balance | H60: =G62 -> 50 | I60: =H62 -> 49.375 | J60: 48.75 | K60: 48.125 | L60: 47.5 | M60: 46.875 | N60: 46.25 | O60: 45.625 | P60: 45 | Q60: 44.375 | R60: 43.75 | S60: 43.125 | T60: 42.5 | U60: 41.875 | V60: 41.25 | W60: 40.625 | X60: 40 | Y60: 39.375 | Z60: 38.75 | AA60: 38.125 | AB60: 37.5 | AC60: 36.875 | AD60: 36.25 | AE60: 35.625 | AF60: 35 | AG60: 34.375 | AH60: 33.75 | AI60: 33.125 | AJ60: 32.5 | AK60: 31.875 | AL60: 31.25 | AM60: 30.625 | AN60: 30 | AO60: 30 | AP60: 30 | AQ60: 30 | AR60: 30 | AS60: 30 | AT60: 30 | AU60: 30 | AV60: 30 | AW60: 30 | AX60: 30 | AY60: 30 | AZ60: 30 | BA60: 30 | BB60: 30 | BC60: 30 | BD60: 30 | BE60: 30 | BF60: 30 | BG60: 30 | BH60: 30 | BI60: 30
C61: Less: Amortisation Expense | H61: =H65 -> 0.625 | I61: =I65 -> 0.625 | J61: 0.625 | K61: 0.625 | L61: 0.625 | M61: 0.625 | N61: 0.625 | O61: 0.625 | P61: 0.625 | Q61: 0.625 | R61: 0.625 | S61: 0.625 | T61: 0.625 | U61: 0.625 | V61: 0.625 | W61: 0.625 | X61: 0.625 | Y61: 0.625 | Z61: 0.625 | AA61: 0.625 | AB61: 0.625 | AC61: 0.625 | AD61: 0.625 | AE61: 0.625 | AF61: 0.625 | AG61: 0.625 | AH61: 0.625 | AI61: 0.625 | AJ61: 0.625 | AK61: 0.625 | AL61: 0.625 | AM61: 0.625 | AN61: 0 | AO61: 0 | AP61: 0 | AQ61: 0 | AR61: 0 | AS61: 0 | AT61: 0 | AU61: 0 | AV61: 0 | AW61: 0 | AX61: 0 | AY61: 0 | AZ61: 0 | BA61: 0 | BB61: 0 | BC61: 0 | BD61: 0 | BE61: 0 | BF61: 0 | BG61: 0 | BH61: 0 | BI61: 0
C62: Closing Balance | G62: ='S&U and Pro-Forma'!N58 -> 50 | H62: =H60-H61 -> 49.375 | I62: =I60-I61 -> 48.75 | J62: 48.125 | K62: 47.5 | L62: 46.875 | M62: 46.25 | N62: 45.625 | O62: 45 | P62: 44.375 | Q62: 43.75 | R62: 43.125 | S62: 42.5 | T62: 41.875 | U62: 41.25 | V62: 40.625 | W62: 40 | X62: 39.375 | Y62: 38.75 | Z62: 38.125 | AA62: 37.5 | AB62: 36.875 | AC62: 36.25 | AD62: 35.625 | AE62: 35 | AF62: 34.375 | AG62: 33.75 | AH62: 33.125 | AI62: 32.5 | AJ62: 31.875 | AK62: 31.25 | AL62: 30.625 | AM62: 30 | AN62: 30 | AO62: 30 | AP62: 30 | AQ62: 30 | AR62: 30 | AS62: 30 | AT62: 30 | AU62: 30 | AV62: 30 | AW62: 30 | AX62: 30 | AY62: 30 | AZ62: 30 | BA62: 30 | BB62: 30 | BC62: 30 | BD62: 30 | BE62: 30 | BF62: 30 | BG62: 30 | BH62: 30 | BI62: 30
C64: Amortisation Rate | F64: =Assumptions!E134 -> 0.05 | G64: =F64/G10 -> 0.0125 | H64: =G64 -> 0.0125 | I64: =H64 -> 0.0125 | J64: 0.0125 | K64: 0.0125 | L64: 0.0125 | M64: 0.0125 | N64: 0.0125 | O64: 0.0125 | P64: 0.0125 | Q64: 0.0125 | R64: 0.0125 | S64: 0.0125 | T64: 0.0125 | U64: 0.0125 | V64: 0.0125 | W64: 0.0125 | X64: 0.0125 | Y64: 0.0125 | Z64: 0.0125 | AA64: 0.0125 | AB64: 0.0125 | AC64: 0.0125 | AD64: 0.0125 | AE64: 0.0125 | AF64: 0.0125 | AG64: 0.0125 | AH64: 0.0125 | AI64: 0.0125 | AJ64: 0.0125 | AK64: 0.0125 | AL64: 0.0125 | AM64: 0.0125 | AN64: 0.0125 | AO64: 0.0125 | AP64: 0.0125 | AQ64: 0.0125 | AR64: 0.0125 | AS64: 0.0125 | AT64: 0.0125 | AU64: 0.0125 | AV64: 0.0125 | AW64: 0.0125 | AX64: 0.0125 | AY64: 0.0125 | AZ64: 0.0125 | BA64: 0.0125 | BB64: 0.0125 | BC64: 0.0125 | BD64: 0.0125 | BE64: 0.0125 | BF64: 0.0125 | BG64: 0.0125 | BH64: 0.0125 | BI64: 0.0125
C65: Amortisation Expense | H65: =H64*$G$62*H5 -> 0.625 | I65: =I64*$G$62*I5 -> 0.625 | J65: 0.625 | K65: 0.625 | L65: 0.625 | M65: 0.625 | N65: 0.625 | O65: 0.625 | P65: 0.625 | Q65: 0.625 | R65: 0.625 | S65: 0.625 | T65: 0.625 | U65: 0.625 | V65: 0.625 | W65: 0.625 | X65: 0.625 | Y65: 0.625 | Z65: 0.625 | AA65: 0.625 | AB65: 0.625 | AC65: 0.625 | AD65: 0.625 | AE65: 0.625 | AF65: 0.625 | AG65: 0.625 | AH65: 0.625 | AI65: 0.625 | AJ65: 0.625 | AK65: 0.625 | AL65: 0.625 | AM65: 0.625 | AN65: 0 | AO65: 0 | AP65: 0 | AQ65: 0 | AR65: 0 | AS65: 0 | AT65: 0 | AU65: 0 | AV65: 0 | AW65: 0 | AX65: 0 | AY65: 0 | AZ65: 0 | BA65: 0 | BB65: 0 | BC65: 0 | BD65: 0 | BE65: 0 | BF65: 0 | BG65: 0 | BH65: 0 | BI65: 0
B67: Goodwill | G67: ='S&U and Pro-Forma'!N59 -> 161 | H67: =G67 -> 161 | I67: =H67 -> 161 | J67: 161 | K67: 161 | L67: 161 | M67: 161 | N67: 161 | O67: 161 | P67: 161 | Q67: 161 | R67: 161 | S67: 161 | T67: 161 | U67: 161 | V67: 161 | W67: 161 | X67: 161 | Y67: 161 | Z67: 161 | AA67: 161 | AB67: 161 | AC67: 161 | AD67: 161 | AE67: 161 | AF67: 161 | AG67: 161 | AH67: 161 | AI67: 161 | AJ67: 161 | AK67: 161 | AL67: 161 | AM67: 161 | AN67: 161 | AO67: 161 | AP67: 161 | AQ67: 161 | AR67: 161 | AS67: 161 | AT67: 161 | AU67: 161 | AV67: 161 | AW67: 161 | AX67: 161 | AY67: 161 | AZ67: 161 | BA67: 161 | BB67: 161 | BC67: 161 | BD67: 161 | BE67: 161 | BF67: 161 | BG67: 161 | BH67: 161 | BI67: 161
B68: Cash | G68: ='S&U and Pro-Forma'!N55 -> 10 | H68: =G68 -> 10 | I68: =H68 -> 10 | J68: 10 | K68: 10 | L68: 10 | M68: 10 | N68: 10 | O68: 10 | P68: 10 | Q68: 10 | R68: 10 | S68: 10 | T68: 10 | U68: 10 | V68: 10 | W68: 10 | X68: 10 | Y68: 10 | Z68: 10 | AA68: 10 | AB68: 10 | AC68: 10 | AD68: 10 | AE68: 10 | AF68: 10 | AG68: 10 | AH68: 10 | AI68: 10 | AJ68: 10 | AK68: 10 | AL68: 10 | AM68: 10 | AN68: 10 | AO68: 10 | AP68: 10 | AQ68: 10 | AR68: 10 | AS68: 10 | AT68: 10 | AU68: 10 | AV68: 10 | AW68: 10 | AX68: 10 | AY68: 10 | AZ68: 10 | BA68: 10 | BB68: 10 | BC68: 10 | BD68: 10 | BE68: 10 | BF68: 10 | BG68: 10 | BH68: 10 | BI68: 10
B69: Derivative Assets | G69: ='S&U and Pro-Forma'!N63 -> 30 | H69: =G69 -> 30 | I69: =H69 -> 30 | J69: 30 | K69: 30 | L69: 30 | M69: 30 | N69: 30 | O69: 30 | P69: 30 | Q69: 30 | R69: 30 | S69: 30 | T69: 30 | U69: 30 | V69: 30 | W69: 30 | X69: 30 | Y69: 30 | Z69: 30 | AA69: 30 | AB69: 30 | AC69: 30 | AD69: 30 | AE69: 30 | AF69: 30 | AG69: 30 | AH69: 30 | AI69: 30 | AJ69: 30 | AK69: 30 | AL69: 30 | AM69: 30 | AN69: 30 | AO69: 30 | AP69: 30 | AQ69: 30 | AR69: 30 | AS69: 30 | AT69: 30 | AU69: 30 | AV69: 30 | AW69: 30 | AX69: 30 | AY69: 30 | AZ69: 30 | BA69: 30 | BB69: 30 | BC69: 30 | BD69: 30 | BE69: 30 | BF69: 30 | BG69: 30 | BH69: 30 | BI69: 30
B70: Investments in Associates | G70: ='S&U and Pro-Forma'!N62 -> 0 | H70: =G70 -> 0 | I70: =H70 -> 0 | J70: 0 | K70: 0 | L70: 0 | M70: 0 | N70: 0 | O70: 0 | P70: 0 | Q70: 0 | R70: 0 | S70: 0 | T70: 0 | U70: 0 | V70: 0 | W70: 0 | X70: 0 | Y70: 0 | Z70: 0 | AA70: 0 | AB70: 0 | AC70: 0 | AD70: 0 | AE70: 0 | AF70: 0 | AG70: 0 | AH70: 0 | AI70: 0 | AJ70: 0 | AK70: 0 | AL70: 0 | AM70: 0 | AN70: 0 | AO70: 0 | AP70: 0 | AQ70: 0 | AR70: 0 | AS70: 0 | AT70: 0 | AU70: 0 | AV70: 0 | AW70: 0 | AX70: 0 | AY70: 0 | AZ70: 0 | BA70: 0 | BB70: 0 | BC70: 0 | BD70: 0 | BE70: 0 | BF70: 0 | BG70: 0 | BH70: 0 | BI70: 0
B71: Derivative Liabilities | G71: ='S&U and Pro-Forma'!N70 -> 0 | H71: =G71 -> 0 | I71: =H71 -> 0 | J71: 0 | K71: 0 | L71: 0 | M71: 0 | N71: 0 | O71: 0 | P71: 0 | Q71: 0 | R71: 0 | S71: 0 | T71: 0 | U71: 0 | V71: 0 | W71: 0 | X71: 0 | Y71: 0 | Z71: 0 | AA71: 0 | AB71: 0 | AC71: 0 | AD71: 0 | AE71: 0 | AF71: 0 | AG71: 0 | AH71: 0 | AI71: 0 | AJ71: 0 | AK71: 0 | AL71: 0 | AM71: 0 | AN71: 0 | AO71: 0 | AP71: 0 | AQ71: 0 | AR71: 0 | AS71: 0 | AT71: 0 | AU71: 0 | AV71: 0 | AW71: 0 | AX71: 0 | AY71: 0 | AZ71: 0 | BA71: 0 | BB71: 0 | BC71: 0 | BD71: 0 | BE71: 0 | BF71: 0 | BG71: 0 | BH71: 0 | BI71: 0
B73: Debt Issuance Costs
C74: Opening Balance | H74: =G76 -> 4.65 | I74: =H76 -> 4.4175 | J74: 4.185 | K74: 3.9525 | L74: 3.72 | M74: 3.4875 | N74: 3.255 | O74: 3.0225 | P74: 2.79 | Q74: 2.5575 | R74: 2.325 | S74: 2.0925 | T74: 1.86 | U74: 1.6275 | V74: 1.395 | W74: 1.1625 | X74: 0.93 | Y74: 0.6975 | Z74: 0.465 | AA74: 0.2325 | AB74: 7.21644966e-16 | AC74: 0 | AD74: 0 | AE74: 0 | AF74: 0 | AG74: 0 | AH74: 0 | AI74: 0 | AJ74: 0 | AK74: 0 | AL74: 0 | AM74: 0 | AN74: 0 | AO74: 0 | AP74: 0 | AQ74: 0 | AR74: 0 | AS74: 0 | AT74: 0 | AU74: 0 | AV74: 0 | AW74: 0 | AX74: 0 | AY74: 0 | AZ74: 0 | BA74: 0 | BB74: 0 | BC74: 0 | BD74: 0 | BE74: 0 | BF74: 0 | BG74: 0 | BH74: 0 | BI74: 0
C75: Less: Amortisation | H75: =H79 -> 0.2325 | I75: =I79 -> 0.2325 | J75: 0.2325 | K75: 0.2325 | L75: 0.2325 | M75: 0.2325 | N75: 0.2325 | O75: 0.2325 | P75: 0.2325 | Q75: 0.2325 | R75: 0.2325 | S75: 0.2325 | T75: 0.2325 | U75: 0.2325 | V75: 0.2325 | W75: 0.2325 | X75: 0.2325 | Y75: 0.2325 | Z75: 0.2325 | AA75: 0.2325 | AB75: 7.21644966e-16 | AC75: 0 | AD75: 0 | AE75: 0 | AF75: 0 | AG75: 0 | AH75: 0 | AI75: 0 | AJ75: 0 | AK75: 0 | AL75: 0 | AM75: 0 | AN75: 0 | AO75: 0 | AP75: 0 | AQ75: 0 | AR75: 0 | AS75: 0 | AT75: 0 | AU75: 0 | AV75: 0 | AW75: 0 | AX75: 0 | AY75: 0 | AZ75: 0 | BA75: 0 | BB75: 0 | BC75: 0 | BD75: 0 | BE75: 0 | BF75: 0 | BG75: 0 | BH75: 0 | BI75: 0
C76: Closing Balance | G76: ='S&U and Pro-Forma'!N60 -> 4.65 | H76: =H74-H75 -> 4.4175 | I76: =I74-I75 -> 4.185 | J76: 3.9525 | K76: 3.72 | L76: 3.4875 | M76: 3.255 | N76: 3.0225 | O76: 2.79 | P76: 2.5575 | Q76: 2.325 | R76: 2.0925 | S76: 1.86 | T76: 1.6275 | U76: 1.395 | V76: 1.1625 | W76: 0.93 | X76: 0.6975 | Y76: 0.465 | Z76: 0.2325 | AA76: 7.21644966e-16 | AB76: 0 | AC76: 0 | AD76: 0 | AE76: 0 | AF76: 0 | AG76: 0 | AH76: 0 | AI76: 0 | AJ76: 0 | AK76: 0 | AL76: 0 | AM76: 0 | AN76: 0 | AO76: 0 | AP76: 0 | AQ76: 0 | AR76: 0 | AS76: 0 | AT76: 0 | AU76: 0 | AV76: 0 | AW76: 0 | AX76: 0 | AY76: 0 | AZ76: 0 | BA76: 0 | BB76: 0 | BC76: 0 | BD76: 0 | BE76: 0 | BF76: 0 | BG76: 0 | BH76: 0 | BI76: 0
C78: Amortisation Rate | F78: =Assumptions!E135 -> 0.2 | G78: =F78/G10 -> 0.05 | H78: =G78 -> 0.05 | I78: =H78 -> 0.05 | J78: 0.05 | K78: 0.05 | L78: 0.05 | M78: 0.05 | N78: 0.05 | O78: 0.05 | P78: 0.05 | Q78: 0.05 | R78: 0.05 | S78: 0.05 | T78: 0.05 | U78: 0.05 | V78: 0.05 | W78: 0.05 | X78: 0.05 | Y78: 0.05 | Z78: 0.05 | AA78: 0.05 | AB78: 0.05 | AC78: 0.05 | AD78: 0.05 | AE78: 0.05 | AF78: 0.05 | AG78: 0.05 | AH78: 0.05 | AI78: 0.05 | AJ78: 0.05 | AK78: 0.05 | AL78: 0.05 | AM78: 0.05 | AN78: 0.05 | AO78: 0.05 | AP78: 0.05 | AQ78: 0.05 | AR78: 0.05 | AS78: 0.05 | AT78: 0.05 | AU78: 0.05 | AV78: 0.05 | AW78: 0.05 | AX78: 0.05 | AY78: 0.05 | AZ78: 0.05 | BA78: 0.05 | BB78: 0.05 | BC78: 0.05 | BD78: 0.05 | BE78: 0.05 | BF78: 0.05 | BG78: 0.05 | BH78: 0.05 | BI78: 0.05
C79: Amortisation Expense | H79: =MIN(H78*$G$76,H74) -> 0.2325 | I79: =MIN(I78*$G$76,I74) -> 0.2325 | J79: 0.2325 | K79: 0.2325 | L79: 0.2325 | M79: 0.2325 | N79: 0.2325 | O79: 0.2325 | P79: 0.2325 | Q79: 0.2325 | R79: 0.2325 | S79: 0.2325 | T79: 0.2325 | U79: 0.2325 | V79: 0.2325 | W79: 0.2325 | X79: 0.2325 | Y79: 0.2325 | Z79: 0.2325 | AA79: 0.2325 | AB79: 7.21644966e-16 | AC79: 0 | AD79: 0 | AE79: 0 | AF79: 0 | AG79: 0 | AH79: 0 | AI79: 0 | AJ79: 0 | AK79: 0 | AL79: 0 | AM79: 0 | AN79: 0 | AO79: 0 | AP79: 0 | AQ79: 0 | AR79: 0 | AS79: 0 | AT79: 0 | AU79: 0 | AV79: 0 | AW79: 0 | AX79: 0 | AY79: 0 | AZ79: 0 | BA79: 0 | BB79: 0 | BC79: 0 | BD79: 0 | BE79: 0 | BF79: 0 | BG79: 0 | BH79: 0 | BI79: 0
B81: Notes Receivable
C82: Opening Balance | H82: =G84 -> 130 | I82: =H84 -> 130 | J82: 130 | K82: 130 | L82: 130 | M82: 130 | N82: 130 | O82: 130 | P82: 130 | Q82: 130 | R82: 130 | S82: 130 | T82: 130 | U82: 130 | V82: 130 | W82: 130 | X82: 130 | Y82: 130 | Z82: 130 | AA82: 130 | AB82: 130 | AC82: 130 | AD82: 130 | AE82: 130 | AF82: 130 | AG82: 130 | AH82: 130 | AI82: 130 | AJ82: 130 | AK82: 130 | AL82: 130 | AM82: 130 | AN82: 0 | AO82: 0 | AP82: 0 | AQ82: 0 | AR82: 0 | AS82: 0 | AT82: 0 | AU82: 0 | AV82: 0 | AW82: 0 | AX82: 0 | AY82: 0 | AZ82: 0 | BA82: 0 | BB82: 0 | BC82: 0 | BD82: 0 | BE82: 0 | BF82: 0 | BG82: 0 | BH82: 0 | BI82: 0
C83: Less: Redemption | H83: =H82*H6 -> 0 | I83: =I82*I6 -> 0 | J83: 0 | K83: 0 | L83: 0 | M83: 0 | N83: 0 | O83: 0 | P83: 0 | Q83: 0 | R83: 0 | S83: 0 | T83: 0 | U83: 0 | V83: 0 | W83: 0 | X83: 0 | Y83: 0 | Z83: 0 | AA83: 0 | AB83: 0 | AC83: 0 | AD83: 0 | AE83: 0 | AF83: 0 | AG83: 0 | AH83: 0 | AI83: 0 | AJ83: 0 | AK83: 0 | AL83: 0 | AM83: 130 | AN83: 0 | AO83: 0 | AP83: 0 | AQ83: 0 | AR83: 0 | AS83: 0 | AT83: 0 | AU83: 0 | AV83: 0 | AW83: 0 | AX83: 0 | AY83: 0 | AZ83: 0 | BA83: 0 | BB83: 0 | BC83: 0 | BD83: 0 | BE83: 0 | BF83: 0 | BG83: 0 | BH83: 0 | BI83: 0
C84: Closing Balance | G84: ='S&U and Pro-Forma'!N61 -> 130 | H84: =H82-H83 -> 130 | I84: =I82-I83 -> 130 | J84: 130 | K84: 130 | L84: 130 | M84: 130 | N84: 130 | O84: 130 | P84: 130 | Q84: 130 | R84: 130 | S84: 130 | T84: 130 | U84: 130 | V84: 130 | W84: 130 | X84: 130 | Y84: 130 | Z84: 130 | AA84: 130 | AB84: 130 | AC84: 130 | AD84: 130 | AE84: 130 | AF84: 130 | AG84: 130 | AH84: 130 | AI84: 130 | AJ84: 130 | AK84: 130 | AL84: 130 | AM84: 0 | AN84: 0 | AO84: 0 | AP84: 0 | AQ84: 0 | AR84: 0 | AS84: 0 | AT84: 0 | AU84: 0 | AV84: 0 | AW84: 0 | AX84: 0 | AY84: 0 | AZ84: 0 | BA84: 0 | BB84: 0 | BC84: 0 | BD84: 0 | BE84: 0 | BF84: 0 | BG84: 0 | BH84: 0 | BI84: 0
C86: Interest Rate | F86: =Assumptions!E132 -> 0.09 | G86: =F86/G10 -> 0.0225 | H86: =G86 -> 0.0225 | I86: =H86 -> 0.0225 | J86: 0.0225 | K86: 0.0225 | L86: 0.0225 | M86: 0.0225 | N86: 0.0225 | O86: 0.0225 | P86: 0.0225 | Q86: 0.0225 | R86: 0.0225 | S86: 0.0225 | T86: 0.0225 | U86: 0.0225 | V86: 0.0225 | W86: 0.0225 | X86: 0.0225 | Y86: 0.0225 | Z86: 0.0225 | AA86: 0.0225 | AB86: 0.0225 | AC86: 0.0225 | AD86: 0.0225 | AE86: 0.0225 | AF86: 0.0225 | AG86: 0.0225 | AH86: 0.0225 | AI86: 0.0225 | AJ86: 0.0225 | AK86: 0.0225 | AL86: 0.0225 | AM86: 0.0225 | AN86: 0.0225 | AO86: 0.0225 | AP86: 0.0225 | AQ86: 0.0225 | AR86: 0.0225 | AS86: 0.0225 | AT86: 0.0225 | AU86: 0.0225 | AV86: 0.0225 | AW86: 0.0225 | AX86: 0.0225 | AY86: 0.0225 | AZ86: 0.0225 | BA86: 0.0225 | BB86: 0.0225 | BC86: 0.0225 | BD86: 0.0225 | BE86: 0.0225 | BF86: 0.0225 | BG86: 0.0225 | BH86: 0.0225 | BI86: 0.0225
C87: Interest Income | H87: =H86*H82 -> 2.925 | I87: =I86*I82 -> 2.925 | J87: 2.925 | K87: 2.925 | L87: 2.925 | M87: 2.925 | N87: 2.925 | O87: 2.925 | P87: 2.925 | Q87: 2.925 | R87: 2.925 | S87: 2.925 | T87: 2.925 | U87: 2.925 | V87: 2.925 | W87: 2.925 | X87: 2.925 | Y87: 2.925 | Z87: 2.925 | AA87: 2.925 | AB87: 2.925 | AC87: 2.925 | AD87: 2.925 | AE87: 2.925 | AF87: 2.925 | AG87: 2.925 | AH87: 2.925 | AI87: 2.925 | AJ87: 2.925 | AK87: 2.925 | AL87: 2.925 | AM87: 2.925 | AN87: 0 | AO87: 0 | AP87: 0 | AQ87: 0 | AR87: 0 | AS87: 0 | AT87: 0 | AU87: 0 | AV87: 0 | AW87: 0 | AX87: 0 | AY87: 0 | AZ87: 0 | BA87: 0 | BB87: 0 | BC87: 0 | BD87: 0 | BE87: 0 | BF87: 0 | BG87: 0 | BH87: 0 | BI87: 0
C89: Deferred Taxes | G89: ='S&U and Pro-Forma'!N69 -> 80 | H89: =G89 -> 80 | I89: =H89 -> 80 | J89: 80 | K89: 80 | L89: 80 | M89: 80 | N89: 80 | O89: 80 | P89: 80 | Q89: 80 | R89: 80 | S89: 80 | T89: 80 | U89: 80 | V89: 80 | W89: 80 | X89: 80 | Y89: 80 | Z89: 80 | AA89: 80 | AB89: 80 | AC89: 80 | AD89: 80 | AE89: 80 | AF89: 80 | AG89: 80 | AH89: 80 | AI89: 80 | AJ89: 80 | AK89: 80 | AL89: 80 | AM89: 80 | AN89: 80 | AO89: 80 | AP89: 80 | AQ89: 80 | AR89: 80 | AS89: 80 | AT89: 80 | AU89: 80 | AV89: 80 | AW89: 80 | AX89: 80 | AY89: 80 | AZ89: 80 | BA89: 80 | BB89: 80 | BC89: 80 | BD89: 80 | BE89: 80 | BF89: 80 | BG89: 80 | BH89: 80 | BI89: 80
C90: Unfunded Pensions | G90: ='S&U and Pro-Forma'!N71 -> 60 | H90: =G90 -> 60 | I90: =H90 -> 60 | J90: 60 | K90: 60 | L90: 60 | M90: 60 | N90: 60 | O90: 60 | P90: 60 | Q90: 60 | R90: 60 | S90: 60 | T90: 60 | U90: 60 | V90: 60 | W90: 60 | X90: 60 | Y90: 60 | Z90: 60 | AA90: 60 | AB90: 60 | AC90: 60 | AD90: 60 | AE90: 60 | AF90: 60 | AG90: 60 | AH90: 60 | AI90: 60 | AJ90: 60 | AK90: 60 | AL90: 60 | AM90: 60 | AN90: 60 | AO90: 60 | AP90: 60 | AQ90: 60 | AR90: 60 | AS90: 60 | AT90: 60 | AU90: 60 | AV90: 60 | AW90: 60 | AX90: 60 | AY90: 60 | AZ90: 60 | BA90: 60 | BB90: 60 | BC90: 60 | BD90: 60 | BE90: 60 | BF90: 60 | BG90: 60 | BH90: 60 | BI90: 60
A92: Financing- Debt schedule
B94: Existing Debt
C95: Opening Balance | H95: =G97 -> 20 | I95: =H97 -> 19.28571429 | J95: 18.57142857 | K95: 17.85714286 | L95: 17.14285714 | M95: 16.42857143 | N95: 15.71428571 | O95: 15 | P95: 14.28571429 | Q95: 13.57142857 | R95: 12.85714286 | S95: 12.14285714 | T95: 11.42857143 | U95: 10.71428571 | V95: 10 | W95: 9.285714286 | X95: 8.571428571 | Y95: 7.857142857 | Z95: 7.142857143 | AA95: 6.428571429 | AB95: 5.714285714 | AC95: 5 | AD95: 4.285714286 | AE95: 3.571428571 | AF95: 2.857142857 | AG95: 2.142857143 | AH95: 1.428571429 | AI95: 0.7142857143 | AJ95: 1.998401444e-15 | AK95: 0 | AL95: 0 | AM95: 0 | AN95: 0 | AO95: 0 | AP95: 0 | AQ95: 0 | AR95: 0 | AS95: 0 | AT95: 0 | AU95: 0 | AV95: 0 | AW95: 0 | AX95: 0 | AY95: 0 | AZ95: 0 | BA95: 0 | BB95: 0 | BC95: 0 | BD95: 0 | BE95: 0 | BF95: 0 | BG95: 0 | BH95: 0 | BI95: 0
C96: less: repayment | E96: =Assumptions!G104 -> 7 | F96: =E96*G10 -> 28 | H96: =MIN(H95,$G$97/$F$96+H95*H6) -> 0.7142857143 | I96: 0.7142857143 | J96: 0.7142857143 | K96: 0.7142857143 | L96: 0.7142857143 | M96: 0.7142857143 | N96: 0.7142857143 | O96: 0.7142857143 | P96: 0.7142857143 | Q96: 0.7142857143 | R96: 0.7142857143 | S96: 0.7142857143 | T96: 0.7142857143 | U96: 0.7142857143 | V96: 0.7142857143 | W96: 0.7142857143 | X96: 0.7142857143 | Y96: 0.7142857143 | Z96: 0.7142857143 | AA96: 0.7142857143 | AB96: 0.7142857143 | AC96: 0.7142857143 | AD96: 0.7142857143 | AE96: 0.7142857143 | AF96: 0.7142857143 | AG96: 0.7142857143 | AH96: 0.7142857143 | AI96: 0.7142857143 | AJ96: 1.998401444e-15 | AK96: 0 | AL96: 0 | AM96: 0 | AN96: =MIN(AN95,$G$97/$F$96+AN95*AN6) -> 0 | AO96: 0 | AP96: 0 | AQ96: 0 | AR96: 0 | AS96: 0 | AT96: 0 | AU96: 0 | AV96: 0 | AW96: 0 | AX96: 0 | AY96: 0 | AZ96: 0 | BA96: 0 | BB96: 0 | BC96: 0 | BD96: 0 | BE96: 0 | BF96: 0 | BG96: 0 | BH96: 0 | BI96: 0
C97: Closing Balance | G97: =Assumptions!E104 -> 20 | H97: =H95-H96 -> 19.28571429 | I97: =I95-I96 -> 18.57142857 | J97: 17.85714286 | K97: 17.14285714 | L97: 16.42857143 | M97: 15.71428571 | N97: 15 | O97: 14.28571429 | P97: 13.57142857 | Q97: 12.85714286 | R97: 12.14285714 | S97: 11.42857143 | T97: 10.71428571 | U97: 10 | V97: 9.285714286 | W97: 8.571428571 | X97: 7.857142857 | Y97: 7.142857143 | Z97: 6.428571429 | AA97: 5.714285714 | AB97: 5 | AC97: 4.285714286 | AD97: 3.571428571 | AE97: 2.857142857 | AF97: 2.142857143 | AG97: 1.428571429 | AH97: 0.7142857143 | AI97: 1.998401444e-15 | AJ97: 0 | AK97: 0 | AL97: 0 | AM97: 0 | AN97: 0 | AO97: 0 | AP97: 0 | AQ97: 0 | AR97: =AR95-AR96 -> 0 | AS97: 0 | AT97: 0 | AU97: 0 | AV97: 0 | AW97: 0 | AX97: 0 | AY97: 0 | AZ97: 0 | BA97: 0 | BB97: 0 | BC97: 0 | BD97: 0 | BE97: 0 | BF97: 0 | BG97: 0 | BH97: 0 | BI97: 0
C98: Existing Debt Test
C100: Eibor | G100: =Assumptions!$E$108 -> 0.011 | H100: =Assumptions!$E$108 -> 0.011 | I100: =Assumptions!$E$108 -> 0.011 | J100: =Assumptions!$E$108 -> 0.011 | K100: =Assumptions!$E$108 -> 0.011 | L100: =Assumptions!$E$108 -> 0.011 | M100: =Assumptions!$E$108 -> 0.011 | N100: =Assumptions!$E$108 -> 0.011 | O100: =Assumptions!$E$108 -> 0.011 | P100: =Assumptions!$E$108 -> 0.011 | Q100: =Assumptions!$E$108 -> 0.011 | R100: =Assumptions!$E$108 -> 0.011 | S100: =Assumptions!$E$108 -> 0.011 | T100: =Assumptions!$E$108 -> 0.011 | U100: =Assumptions!$E$108 -> 0.011 | V100: =Assumptions!$E$108 -> 0.011 | W100: =Assumptions!$E$108 -> 0.011 | X100: =Assumptions!$E$108 -> 0.011 | Y100: =Assumptions!$E$108 -> 0.011 | Z100: =Assumptions!$E$108 -> 0.011 | AA100: =Assumptions!$E$108 -> 0.011 | AB100: =Assumptions!$E$108 -> 0.011 | AC100: =Assumptions!$E$108 -> 0.011 | AD100: =Assumptions!$E$108 -> 0.011 | AE100: =Assumptions!$E$108 -> 0.011 | AF100: =Assumptions!$E$108 -> 0.011 | AG100: =Assumptions!$E$108 -> 0.011 | AH100: =Assumptions!$E$108 -> 0.011 | AI100: =Assumptions!$E$108 -> 0.011 | AJ100: =Assumptions!$E$108 -> 0.011 | AK100: =Assumptions!$E$108 -> 0.011 | AL100: =Assumptions!$E$108 -> 0.011 | AM100: =Assumptions!$E$108 -> 0.011 | AN100: =Assumptions!$E$108 -> 0.011 | AO100: =Assumptions!$E$108 -> 0.011 | AP100: =Assumptions!$E$108 -> 0.011 | AQ100: =Assumptions!$E$108 -> 0.011 | AR100: =Assumptions!$E$108 -> 0.011 | AS100: =Assumptions!$E$108 -> 0.011 | AT100: =Assumptions!$E$108 -> 0.011 | AU100: =Assumptions!$E$108 -> 0.011 | AV100: =Assumptions!$E$108 -> 0.011 | AW100: =Assumptions!$E$108 -> 0.011 | AX100: =Assumptions!$E$108 -> 0.011 | AY100: =Assumptions!$E$108 -> 0.011 | AZ100: =Assumptions!$E$108 -> 0.011 | BA100: =Assumptions!$E$108 -> 0.011 | BB100: =Assumptions!$E$108 -> 0.011 | BC100: =Assumptions!$E$108 -> 0.011 | BD100: =Assumptions!$E$108 -> 0.011 | BE100: =Assumptions!$E$108 -> 0.011 | BF100: =Assumptions!$E$108 -> 0.011 | BG100: =Assumptions!$E$108 -> 0.011 | BH100: =Assumptions!$E$108 -> 0.011 | BI100: =Assumptions!$E$108 -> 0.011
C101: Credit spread | G101: =LOOKUP(G284,Assumptions!$E$111:$E$114,Assumptions!$F$111:$F$114) -> 0.025 | H101: =LOOKUP(H284,Assumptions!$E$111:$E$114,Assumptions!$F$111:$F$114) -> 0.025 | I101: =LOOKUP(I284,Assumptions!$E$111:$E$114,Assumptions!$F$111:$F$114) -> 0.025 | J101: =LOOKUP(J284,Assumptions!$E$111:$E$114,Assumptions!$F$111:$F$114) -> 0.025 | K101: =LOOKUP(K284,Assumptions!$E$111:$E$114,Assumptions!$F$111:$F$114) -> 0.025 | L101: =LOOKUP(L284,Assumptions!$E$111:$E$114,Assumptions!$F$111:$F$114) -> 0.025 | M101: =LOOKUP(M284,Assumptions!$E$111:$E$114,Assumptions!$F$111:$F$114) -> 0.015 | N101: =LOOKUP(N284,Assumptions!$E$111:$E$114,Assumptions!$F$111:$F$114) -> 0.015 | O101: =LOOKUP(O284,Assumptions!$E$111:$E$114,Assumptions!$F$111:$F$114) -> 0.015 | P101: =LOOKUP(P284,Assumptions!$E$111:$E$114,Assumptions!$F$111:$F$114) -> 0.015 | Q101: =LOOKUP(Q284,Assumptions!$E$111:$E$114,Assumptions!$F$111:$F$114) -> 0.015 | R101: =LOOKUP(R284,Assumptions!$E$111:$E$114,Assumptions!$F$111:$F$114) -> 0.015 | S101: =LOOKUP(S284,Assumptions!$E$111:$E$114,Assumptions!$F$111:$F$114) -> 0.015 | T101: =LOOKUP(T284,Assumptions!$E$111:$E$114,Assumptions!$F$111:$F$114) -> 0.01 | U101: =LOOKUP(U284,Assumptions!$E$111:$E$114,Assumptions!$F$111:$F$114) -> 0.01 | V101: =LOOKUP(V284,Assumptions!$E$111:$E$114,Assumptions!$F$111:$F$114) -> 0.01 | W101: =LOOKUP(W284,Assumptions!$E$111:$E$114,Assumptions!$F$111:$F$114) -> 0.01 | X101: =LOOKUP(X284,Assumptions!$E$111:$E$114,Assumptions!$F$111:$F$114) -> 0.01 | Y101: =LOOKUP(Y284,Assumptions!$E$111:$E$114,Assumptions!$F$111:$F$114) -> 0.01 | Z101: =LOOKUP(Z284,Assumptions!$E$111:$E$114,Assumptions!$F$111:$F$114) -> 0.01 | AA101: =LOOKUP(AA284,Assumptions!$E$111:$E$114,Assumptions!$F$111:$F$114) -> 0.01 | AB101: =LOOKUP(AB284,Assumptions!$E$111:$E$114,Assumptions!$F$111:$F$114) -> 0.01 | AC101: =LOOKUP(AC284,Assumptions!$E$111:$E$114,Assumptions!$F$111:$F$114) -> 0.01 | AD101: =LOOKUP(AD284,Assumptions!$E$111:$E$114,Assumptions!$F$111:$F$114) -> 0.01 | AE101: =LOOKUP(AE284,Assumptions!$E$111:$E$114,Assumptions!$F$111:$F$114) -> 0.01 | AF101: =LOOKUP(AF284,Assumptions!$E$111:$E$114,Assumptions!$F$111:$F$114) -> 0.01 | AG101: =LOOKUP(AG284,Assumptions!$E$111:$E$114,Assumptions!$F$111:$F$114) -> 0.01 | AH101: =LOOKUP(AH284,Assumptions!$E$111:$E$114,Assumptions!$F$111:$F$114) -> 0.01 | AI101: =LOOKUP(AI284,Assumptions!$E$111:$E$114,Assumptions!$F$111:$F$114) -> 0.01 | AJ101: =LOOKUP(AJ284,Assumptions!$E$111:$E$114,Assumptions!$F$111:$F$114) -> 0.01 | AK101: =LOOKUP(AK284,Assumptions!$E$111:$E$114,Assumptions!$F$111:$F$114) -> 0.01 | AL101: =LOOKUP(AL284,Assumptions!$E$111:$E$114,Assumptions!$F$111:$F$114) -> 0.01 | AM101: =LOOKUP(AM284,Assumptions!$E$111:$E$114,Assumptions!$F$111:$F$114) -> 0.01 | AN101: =LOOKUP(AN284,Assumptions!$E$111:$E$114,Assumptions!$F$111:$F$114) -> 0.01 | AO101: =LOOKUP(AO284,Assumptions!$E$111:$E$114,Assumptions!$F$111:$F$114) -> 0.01 | AP101: =LOOKUP(AP284,Assumptions!$E$111:$E$114,Assumptions!$F$111:$F$114) -> 0.01 | AQ101: =LOOKUP(AQ284,Assumptions!$E$111:$E$114,Assumptions!$F$111:$F$114) -> 0.01 | AR101: =LOOKUP(AR284,Assumptions!$E$111:$E$114,Assumptions!$F$111:$F$114) -> 0.01 | AS101: =LOOKUP(AS284,Assumptions!$E$111:$E$114,Assumptions!$F$111:$F$114) -> 0.01 | AT101: =LOOKUP(AT284,Assumptions!$E$111:$E$114,Assumptions!$F$111:$F$114) -> 0.01 | AU101: =LOOKUP(AU284,Assumptions!$E$111:$E$114,Assumptions!$F$111:$F$114) -> 0.01 | AV101: =LOOKUP(AV284,Assumptions!$E$111:$E$114,Assumptions!$F$111:$F$114) -> 0.01 | AW101: =LOOKUP(AW284,Assumptions!$E$111:$E$114,Assumptions!$F$111:$F$114) -> 0.01 | AX101: =LOOKUP(AX284,Assumptions!$E$111:$E$114,Assumptions!$F$111:$F$114) -> 0.01 | AY101: =LOOKUP(AY284,Assumptions!$E$111:$E$114,Assumptions!$F$111:$F$114) -> 0.01 | AZ101: =LOOKUP(AZ284,Assumptions!$E$111:$E$114,Assumptions!$F$111:$F$114) -> 0.01 | BA101: =LOOKUP(BA284,Assumptions!$E$111:$E$114,Assumptions!$F$111:$F$114) -> 0.01 | BB101: =LOOKUP(BB284,Assumptions!$E$111:$E$114,Assumptions!$F$111:$F$114) -> 0.01 | BC101: =LOOKUP(BC284,Assumptions!$E$111:$E$114,Assumptions!$F$111:$F$114) -> 0.01 | BD101: =LOOKUP(BD284,Assumptions!$E$111:$E$114,Assumptions!$F$111:$F$114) -> 0.01 | BE101: =LOOKUP(BE284,Assumptions!$E$111:$E$114,Assumptions!$F$111:$F$114) -> 0.01 | BF101: =LOOKUP(BF284,Assumptions!$E$111:$E$114,Assumptions!$F$111:$F$114) -> 0.01 | BG101: =LOOKUP(BG284,Assumptions!$E$111:$E$114,Assumptions!$F$111:$F$114) -> 0.01 | BH101: =LOOKUP(BH284,Assumptions!$E$111:$E$114,Assumptions!$F$111:$F$114) -> 0.01 | BI101: =LOOKUP(BI284,Assumptions!$E$111:$E$114,Assumptions!$F$111:$F$114) -> 0.01
C102: Total annual rate | G102: =G100+G101 -> 0.036 | H102: =H100+H101 -> 0.036 | I102: 0.036 | J102: 0.036 | K102: 0.036 | L102: 0.036 | M102: 0.026 | N102: 0.026 | O102: 0.026 | P102: 0.026 | Q102: 0.026 | R102: 0.026 | S102: 0.026 | T102: 0.021 | U102: 0.021 | V102: 0.021 | W102: 0.021 | X102: 0.021 | Y102: 0.021 | Z102: 0.021 | AA102: 0.021 | AB102: 0.021 | AC102: 0.021 | AD102: 0.021 | AE102: 0.021 | AF102: 0.021 | AG102: 0.021 | AH102: 0.021 | AI102: 0.021 | AJ102: 0.021 | AK102: 0.021 | AL102: 0.021 | AM102: 0.021 | AN102: 0.021 | AO102: 0.021 | AP102: 0.021 | AQ102: 0.021 | AR102: =AR100+AR101 -> 0.021 | AS102: 0.021 | AT102: 0.021 | AU102: 0.021 | AV102: 0.021 | AW102: 0.021 | AX102: 0.021 | AY102: 0.021 | AZ102: 0.021 | BA102: 0.021 | BB102: 0.021 | BC102: 0.021 | BD102: 0.021 | BE102: 0.021 | BF102: 0.021 | BG102: 0.021 | BH102: 0.021 | BI102: 0.021
C103: Periodic rate | H103: =H102*H9 -> 0.009 | I103: 0.009 | J103: 0.009 | K103: 0.009 | L103: 0.009 | M103: 0.0065 | N103: 0.0065 | O103: 0.0065 | P103: 0.0065 | Q103: 0.0065 | R103: 0.0065 | S103: 0.0065 | T103: 0.00525 | U103: 0.00525 | V103: 0.00525 | W103: 0.00525 | X103: 0.00525 | Y103: 0.00525 | Z103: 0.00525 | AA103: 0.00525 | AB103: 0.00525 | AC103: 0.00525 | AD103: 0.00525 | AE103: 0.00525 | AF103: 0.00525 | AG103: 0.00525 | AH103: 0.00525 | AI103: 0.00525 | AJ103: 0.00525 | AK103: 0.00525 | AL103: 0.00525 | AM103: 0.00525 | AN103: =AN102*AN9 -> 0.00525 | AO103: 0.00525 | AP103: 0.00525 | AQ103: 0.00525 | AR103: 0.00525 | AS103: 0.00525 | AT103: 0.00525 | AU103: 0.00525 | AV103: 0.00525 | AW103: 0.00525 | AX103: 0.00525 | AY103: 0.00525 | AZ103: 0.00525 | BA103: 0.00525 | BB103: 0.00525 | BC103: 0.00525 | BD103: 0.00525 | BE103: 0.00525 | BF103: 0.00525 | BG103: 0.00525 | BH103: 0.00525 | BI103: 0.00525
C104: Interest expense | H104: =H103*H95 -> 0.18 | I104: 0.1735714286 | J104: 0.1671428571 | K104: 0.1607142857 | L104: 0.1542857143 | M104: 0.1067857143 | N104: 0.1021428571 | O104: 0.0975 | P104: 0.09285714286 | Q104: 0.08821428571 | R104: 0.08357142857 | S104: 0.07892857143 | T104: 0.06 | U104: 0.05625 | V104: 0.0525 | W104: 0.04875 | X104: 0.045 | Y104: 0.04125 | Z104: 0.0375 | AA104: 0.03375 | AB104: 0.03 | AC104: 0.02625 | AD104: 0.0225 | AE104: 0.01875 | AF104: 0.015 | AG104: 0.01125 | AH104: 0.0075 | AI104: 0.00375 | AJ104: 1.049160758e-17 | AK104: 0 | AL104: 0 | AM104: 0 | AN104: =AN103*AN95 -> 0 | AO104: 0 | AP104: 0 | AQ104: 0 | AR104: 0 | AS104: 0 | AT104: 0 | AU104: 0 | AV104: 0 | AW104: 0 | AX104: 0 | AY104: 0 | AZ104: 0 | BA104: 0 | BB104: 0 | BC104: 0 | BD104: 0 | BE104: 0 | BF104: 0 | BG104: 0 | BH104: 0 | BI104: 0
B106: Amortising debt
C107: opening balance | H107: =G109 -> 140 | I107: =H109 -> 133 | J107: 126 | K107: 119 | L107: 112 | M107: 105 | N107: 98 | O107: 91 | P107: 84 | Q107: 77 | R107: 70 | S107: 63 | T107: 56 | U107: 49 | V107: 42 | W107: 35 | X107: 28 | Y107: 21 | Z107: 14 | AA107: 7 | AB107: 0 | AC107: 0 | AD107: 0 | AE107: 0 | AF107: 0 | AG107: 0 | AH107: 0 | AI107: 0 | AJ107: 0 | AK107: 0 | AL107: 0 | AM107: 0 | AN107: 0 | AO107: 0 | AP107: 0 | AQ107: 0 | AR107: 0 | AS107: 0 | AT107: 0 | AU107: 0 | AV107: 0 | AW107: 0 | AX107: 0 | AY107: 0 | AZ107: 0 | BA107: 0 | BB107: 0 | BC107: 0 | BD107: 0 | BE107: 0 | BF107: 0 | BG107: 0 | BH107: 0 | BI107: 0
C108: less: repayment | E108: =Assumptions!G101 -> 5 | F108: =E108*G10 -> 20 | H108: =MIN($G$109/$F$108+H107*H6,H107) -> 7 | I108: 7 | J108: 7 | K108: 7 | L108: 7 | M108: 7 | N108: 7 | O108: 7 | P108: 7 | Q108: 7 | R108: 7 | S108: 7 | T108: 7 | U108: 7 | V108: 7 | W108: 7 | X108: 7 | Y108: 7 | Z108: 7 | AA108: 7 | AB108: 0 | AC108: 0 | AD108: 0 | AE108: 0 | AF108: 0 | AG108: 0 | AH108: 0 | AI108: 0 | AJ108: 0 | AK108: 0 | AL108: 0 | AM108: 0 | AN108: =MIN($G$109/$F$108+AN107*AN6,AN107) -> 0 | AO108: 0 | AP108: 0 | AQ108: 0 | AR108: 0 | AS108: 0 | AT108: 0 | AU108: 0 | AV108: 0 | AW108: 0 | AX108: 0 | AY108: 0 | AZ108: 0 | BA108: 0 | BB108: 0 | BC108: 0 | BD108: 0 | BE108: 0 | BF108: 0 | BG108: 0 | BH108: 0 | BI108: 0
C109: closing balance | G109: =Assumptions!E101 -> 140 | H109: =H107-H108 -> 133 | I109: =I107-I108 -> 126 | J109: 119 | K109: 112 | L109: 105 | M109: 98 | N109: 91 | O109: 84 | P109: 77 | Q109: 70 | R109: 63 | S109: 56 | T109: 49 | U109: 42 | V109: 35 | W109: 28 | X109: 21 | Y109: 14 | Z109: 7 | AA109: 0 | AB109: 0 | AC109: 0 | AD109: 0 | AE109: 0 | AF109: 0 | AG109: 0 | AH109: 0 | AI109: 0 | AJ109: 0 | AK109: 0 | AL109: 0 | AM109: 0 | AN109: 0 | AO109: 0 | AP109: 0 | AQ109: 0 | AR109: =AR107-AR108 -> 0 | AS109: 0 | AT109: 0 | AU109: 0 | AV109: 0 | AW109: 0 | AX109: 0 | AY109: 0 | AZ109: 0 | BA109: 0 | BB109: 0 | BC109: 0 | BD109: 0 | BE109: 0 | BF109: 0 | BG109: 0 | BH109: 0 | BI109: 0
C110: Amortising Debt Test
C112: Eibor | H112: =H100 -> 0.011 | I112: =I100 -> 0.011 | J112: 0.011 | K112: 0.011 | L112: 0.011 | M112: 0.011 | N112: 0.011 | O112: 0.011 | P112: 0.011 | Q112: 0.011 | R112: 0.011 | S112: 0.011 | T112: 0.011 | U112: 0.011 | V112: 0.011 | W112: 0.011 | X112: 0.011 | Y112: 0.011 | Z112: 0.011 | AA112: 0.011 | AB112: 0.011 | AC112: 0.011 | AD112: 0.011 | AE112: 0.011 | AF112: 0.011 | AG112: 0.011 | AH112: 0.011 | AI112: 0.011 | AJ112: 0.011 | AK112: 0.011 | AL112: 0.011 | AM112: 0.011 | AN112: 0.011 | AO112: 0.011 | AP112: 0.011 | AQ112: 0.011 | AR112: =AR100 -> 0.011 | AS112: 0.011 | AT112: 0.011 | AU112: 0.011 | AV112: 0.011 | AW112: 0.011 | AX112: 0.011 | AY112: 0.011 | AZ112: 0.011 | BA112: 0.011 | BB112: 0.011 | BC112: 0.011 | BD112: 0.011 | BE112: 0.011 | BF112: 0.011 | BG112: 0.011 | BH112: 0.011 | BI112: 0.011
C113: Credit spread | H113: =LOOKUP(H284,Assumptions!$E$111:$E$114,Assumptions!$F$111:$F$114) -> 0.025 | I113: =LOOKUP(I284,Assumptions!$E$111:$E$114,Assumptions!$F$111:$F$114) -> 0.025 | J113: =LOOKUP(J284,Assumptions!$E$111:$E$114,Assumptions!$F$111:$F$114) -> 0.025 | K113: =LOOKUP(K284,Assumptions!$E$111:$E$114,Assumptions!$F$111:$F$114) -> 0.025 | L113: =LOOKUP(L284,Assumptions!$E$111:$E$114,Assumptions!$F$111:$F$114) -> 0.025 | M113: =LOOKUP(M284,Assumptions!$E$111:$E$114,Assumptions!$F$111:$F$114) -> 0.015 | N113: =LOOKUP(N284,Assumptions!$E$111:$E$114,Assumptions!$F$111:$F$114) -> 0.015 | O113: =LOOKUP(O284,Assumptions!$E$111:$E$114,Assumptions!$F$111:$F$114) -> 0.015 | P113: =LOOKUP(P284,Assumptions!$E$111:$E$114,Assumptions!$F$111:$F$114) -> 0.015 | Q113: =LOOKUP(Q284,Assumptions!$E$111:$E$114,Assumptions!$F$111:$F$114) -> 0.015 | R113: =LOOKUP(R284,Assumptions!$E$111:$E$114,Assumptions!$F$111:$F$114) -> 0.015 | S113: =LOOKUP(S284,Assumptions!$E$111:$E$114,Assumptions!$F$111:$F$114) -> 0.015 | T113: =LOOKUP(T284,Assumptions!$E$111:$E$114,Assumptions!$F$111:$F$114) -> 0.01 | U113: =LOOKUP(U284,Assumptions!$E$111:$E$114,Assumptions!$F$111:$F$114) -> 0.01 | V113: =LOOKUP(V284,Assumptions!$E$111:$E$114,Assumptions!$F$111:$F$114) -> 0.01 | W113: =LOOKUP(W284,Assumptions!$E$111:$E$114,Assumptions!$F$111:$F$114) -> 0.01 | X113: =LOOKUP(X284,Assumptions!$E$111:$E$114,Assumptions!$F$111:$F$114) -> 0.01 | Y113: =LOOKUP(Y284,Assumptions!$E$111:$E$114,Assumptions!$F$111:$F$114) -> 0.01 | Z113: =LOOKUP(Z284,Assumptions!$E$111:$E$114,Assumptions!$F$111:$F$114) -> 0.01 | AA113: =LOOKUP(AA284,Assumptions!$E$111:$E$114,Assumptions!$F$111:$F$114) -> 0.01 | AB113: =LOOKUP(AB284,Assumptions!$E$111:$E$114,Assumptions!$F$111:$F$114) -> 0.01 | AC113: =LOOKUP(AC284,Assumptions!$E$111:$E$114,Assumptions!$F$111:$F$114) -> 0.01 | AD113: =LOOKUP(AD284,Assumptions!$E$111:$E$114,Assumptions!$F$111:$F$114) -> 0.01 | AE113: =LOOKUP(AE284,Assumptions!$E$111:$E$114,Assumptions!$F$111:$F$114) -> 0.01 | AF113: =LOOKUP(AF284,Assumptions!$E$111:$E$114,Assumptions!$F$111:$F$114) -> 0.01 | AG113: =LOOKUP(AG284,Assumptions!$E$111:$E$114,Assumptions!$F$111:$F$114) -> 0.01 | AH113: =LOOKUP(AH284,Assumptions!$E$111:$E$114,Assumptions!$F$111:$F$114) -> 0.01 | AI113: =LOOKUP(AI284,Assumptions!$E$111:$E$114,Assumptions!$F$111:$F$114) -> 0.01 | AJ113: =LOOKUP(AJ284,Assumptions!$E$111:$E$114,Assumptions!$F$111:$F$114) -> 0.01 | AK113: =LOOKUP(AK284,Assumptions!$E$111:$E$114,Assumptions!$F$111:$F$114) -> 0.01 | AL113: =LOOKUP(AL284,Assumptions!$E$111:$E$114,Assumptions!$F$111:$F$114) -> 0.01 | AM113: =LOOKUP(AM284,Assumptions!$E$111:$E$114,Assumptions!$F$111:$F$114) -> 0.01 | AN113: =LOOKUP(AN284,Assumptions!$E$111:$E$114,Assumptions!$F$111:$F$114) -> 0.01 | AO113: =LOOKUP(AO284,Assumptions!$E$111:$E$114,Assumptions!$F$111:$F$114) -> 0.01 | AP113: =LOOKUP(AP284,Assumptions!$E$111:$E$114,Assumptions!$F$111:$F$114) -> 0.01 | AQ113: =LOOKUP(AQ284,Assumptions!$E$111:$E$114,Assumptions!$F$111:$F$114) -> 0.01 | AR113: =LOOKUP(AR284,Assumptions!$E$111:$E$114,Assumptions!$F$111:$F$114) -> 0.01 | AS113: =LOOKUP(AS284,Assumptions!$E$111:$E$114,Assumptions!$F$111:$F$114) -> 0.01 | AT113: =LOOKUP(AT284,Assumptions!$E$111:$E$114,Assumptions!$F$111:$F$114) -> 0.01 | AU113: =LOOKUP(AU284,Assumptions!$E$111:$E$114,Assumptions!$F$111:$F$114) -> 0.01 | AV113: =LOOKUP(AV284,Assumptions!$E$111:$E$114,Assumptions!$F$111:$F$114) -> 0.01 | AW113: =LOOKUP(AW284,Assumptions!$E$111:$E$114,Assumptions!$F$111:$F$114) -> 0.01 | AX113: =LOOKUP(AX284,Assumptions!$E$111:$E$114,Assumptions!$F$111:$F$114) -> 0.01 | AY113: =LOOKUP(AY284,Assumptions!$E$111:$E$114,Assumptions!$F$111:$F$114) -> 0.01 | AZ113: =LOOKUP(AZ284,Assumptions!$E$111:$E$114,Assumptions!$F$111:$F$114) -> 0.01 | BA113: =LOOKUP(BA284,Assumptions!$E$111:$E$114,Assumptions!$F$111:$F$114) -> 0.01 | BB113: =LOOKUP(BB284,Assumptions!$E$111:$E$114,Assumptions!$F$111:$F$114) -> 0.01 | BC113: =LOOKUP(BC284,Assumptions!$E$111:$E$114,Assumptions!$F$111:$F$114) -> 0.01 | BD113: =LOOKUP(BD284,Assumptions!$E$111:$E$114,Assumptions!$F$111:$F$114) -> 0.01 | BE113: =LOOKUP(BE284,Assumptions!$E$111:$E$114,Assumptions!$F$111:$F$114) -> 0.01 | BF113: =LOOKUP(BF284,Assumptions!$E$111:$E$114,Assumptions!$F$111:$F$114) -> 0.01 | BG113: =LOOKUP(BG284,Assumptions!$E$111:$E$114,Assumptions!$F$111:$F$114) -> 0.01 | BH113: =LOOKUP(BH284,Assumptions!$E$111:$E$114,Assumptions!$F$111:$F$114) -> 0.01 | BI113: =LOOKUP(BI284,Assumptions!$E$111:$E$114,Assumptions!$F$111:$F$114) -> 0.01
C114: Total annual rate | H114: =SUM(H112:H113) -> 0.036 | I114: =SUM(I112:I113) -> 0.036 | J114: 0.036 | K114: 0.036 | L114: 0.036 | M114: 0.026 | N114: 0.026 | O114: 0.026 | P114: 0.026 | Q114: 0.026 | R114: 0.026 | S114: 0.026 | T114: 0.021 | U114: 0.021 | V114: 0.021 | W114: 0.021 | X114: 0.021 | Y114: 0.021 | Z114: 0.021 | AA114: 0.021 | AB114: 0.021 | AC114: 0.021 | AD114: 0.021 | AE114: 0.021 | AF114: 0.021 | AG114: 0.021 | AH114: 0.021 | AI114: 0.021 | AJ114: 0.021 | AK114: 0.021 | AL114: 0.021 | AM114: 0.021 | AN114: 0.021 | AO114: 0.021 | AP114: 0.021 | AQ114: 0.021 | AR114: =SUM(AR112:AR113) -> 0.021 | AS114: 0.021 | AT114: 0.021 | AU114: 0.021 | AV114: 0.021 | AW114: 0.021 | AX114: 0.021 | AY114: 0.021 | AZ114: 0.021 | BA114: 0.021 | BB114: 0.021 | BC114: 0.021 | BD114: 0.021 | BE114: 0.021 | BF114: 0.021 | BG114: 0.021 | BH114: 0.021 | BI114: 0.021
C115: Periodic rate | H115: =H114*H9 -> 0.009 | I115: 0.009 | J115: 0.009 | K115: 0.009 | L115: 0.009 | M115: 0.0065 | N115: 0.0065 | O115: 0.0065 | P115: 0.0065 | Q115: 0.0065 | R115: 0.0065 | S115: 0.0065 | T115: 0.00525 | U115: 0.00525 | V115: 0.00525 | W115: 0.00525 | X115: 0.00525 | Y115: 0.00525 | Z115: 0.00525 | AA115: 0.00525 | AB115: 0.00525 | AC115: 0.00525 | AD115: 0.00525 | AE115: 0.00525 | AF115: 0.00525 | AG115: 0.00525 | AH115: 0.00525 | AI115: 0.00525 | AJ115: 0.00525 | AK115: 0.00525 | AL115: 0.00525 | AM115: 0.00525 | AN115: =AN114*AN9 -> 0.00525 | AO115: 0.00525 | AP115: 0.00525 | AQ115: 0.00525 | AR115: 0.00525 | AS115: 0.00525 | AT115: 0.00525 | AU115: 0.00525 | AV115: 0.00525 | AW115: 0.00525 | AX115: 0.00525 | AY115: 0.00525 | AZ115: 0.00525 | BA115: 0.00525 | BB115: 0.00525 | BC115: 0.00525 | BD115: 0.00525 | BE115: 0.00525 | BF115: 0.00525 | BG115: 0.00525 | BH115: 0.00525 | BI115: 0.00525
C116: Interest Expense | H116: =H115*H107 -> 1.26 | I116: 1.197 | J116: 1.134 | K116: 1.071 | L116: 1.008 | M116: 0.6825 | N116: 0.637 | O116: 0.5915 | P116: 0.546 | Q116: 0.5005 | R116: 0.455 | S116: 0.4095 | T116: 0.294 | U116: 0.25725 | V116: 0.2205 | W116: 0.18375 | X116: 0.147 | Y116: 0.11025 | Z116: 0.0735 | AA116: 0.03675 | AB116: 0 | AC116: 0 | AD116: 0 | AE116: 0 | AF116: 0 | AG116: 0 | AH116: 0 | AI116: 0 | AJ116: 0 | AK116: 0 | AL116: 0 | AM116: 0 | AN116: =AN115*AN107 -> 0 | AO116: 0 | AP116: 0 | AQ116: 0 | AR116: 0 | AS116: 0 | AT116: 0 | AU116: 0 | AV116: 0 | AW116: 0 | AX116: 0 | AY116: 0 | AZ116: 0 | BA116: 0 | BB116: 0 | BC116: 0 | BD116: 0 | BE116: 0 | BF116: 0 | BG116: 0 | BH116: 0 | BI116: 0
B118: bullet debt
C119: opening balance | H119: =G122 -> 130 | I119: 126.7084671 | J119: 126.7084671 | K119: 126.7084671 | L119: 126.5777173 | M119: 126.5777173 | N119: 126.2699503 | O119: 124.8716111 | P119: 122.9136274 | Q119: 117.220678 | R119: 110.9697039 | S119: 103.683475 | T119: 95.68295782 | U119: 86.48828421 | V119: 76.86422025 | W119: 66.19317791 | X119: 54.85579921 | Y119: 42.53659401 | Z119: 29.66651265 | AA119: 16.02326447 | AB119: 1.578468461 | AC119: 0 | AD119: 0 | AE119: 0 | AF119: 0 | AG119: 0 | AH119: 0 | AI119: 0 | AJ119: 0 | AK119: 0 | AL119: 0 | AM119: 0 | AN119: =AM122 -> 0 | AO119: 0 | AP119: 0 | AQ119: 0 | AR119: 0 | AS119: 0 | AT119: 0 | AU119: 0 | AV119: 0 | AW119: 0 | AX119: 0 | AY119: 0 | AZ119: 0 | BA119: 0 | BB119: 0 | BC119: 0 | BD119: 0 | BE119: 0 | BF119: 0 | BG119: 0 | BH119: 0 | BI119: 0
C120: less: scheduled repayment | H120: =H119*H6 -> 0 | I120: 0 | J120: 0 | K120: 0 | L120: 0 | M120: 0 | N120: 0 | O120: 0 | P120: 0 | Q120: 0 | R120: 0 | S120: 0 | T120: 0 | U120: 0 | V120: 0 | W120: 0 | X120: 0 | Y120: 0 | Z120: 0 | AA120: 0 | AB120: 0 | AC120: 0 | AD120: 0 | AE120: 0 | AF120: 0 | AG120: 0 | AH120: 0 | AI120: 0 | AJ120: 0 | AK120: 0 | AL120: 0 | AM120: 0 | AN120: =AN119*AN6 -> 0 | AO120: 0 | AP120: 0 | AQ120: 0 | AR120: 0 | AS120: 0 | AT120: 0 | AU120: 0 | AV120: 0 | AW120: 0 | AX120: 0 | AY120: 0 | AZ120: 0 | BA120: 0 | BB120: 0 | BC120: 0 | BD120: 0 | BE120: 0 | BF120: 0 | BG120: 0 | BH120: 0 | BI120: 0
C121: less: cashflow sweep | H121: =H217 -> 3.291532863 | I121: 0 | J121: 0 | K121: 0.1307498265 | L121: 0 | M121: 0.3077670601 | N121: 1.398339112 | O121: 1.957983739 | P121: 5.692949415 | Q121: 6.25097405 | R121: 7.286228909 | S121: 8.000517207 | T121: 9.194673606 | U121: 9.624063967 | V121: 10.67104234 | W121: 11.3373787 | X121: 12.3192052 | Y121: 12.87008136 | Z121: 13.64324818 | AA121: 14.44479601 | AB121: 1.578468461 | AC121: 0 | AD121: 0 | AE121: 0 | AF121: 0 | AG121: 0 | AH121: 0 | AI121: 0 | AJ121: 0 | AK121: 0 | AL121: 0 | AM121: 0 | AN121: =AN217 -> 0 | AO121: 0 | AP121: 0 | AQ121: 0 | AR121: 0 | AS121: 0 | AT121: 0 | AU121: 0 | AV121: 0 | AW121: 0 | AX121: 0 | AY121: 0 | AZ121: 0 | BA121: 0 | BB121: 0 | BC121: 0 | BD121: 0 | BE121: 0 | BF121: 0 | BG121: 0 | BH121: 0 | BI121: 0
C122: closing balance | G122: =Assumptions!E102 -> 130 | H122: =H119-H120-H121 -> 126.7084671 | I122: 126.7084671 | J122: 126.7084671 | K122: 126.5777173 | L122: 126.5777173 | M122: 126.2699503 | N122: 124.8716111 | O122: 122.9136274 | P122: 117.220678 | Q122: 110.9697039 | R122: 103.683475 | S122: 95.68295782 | T122: 86.48828421 | U122: 76.86422025 | V122: 66.19317791 | W122: 54.85579921 | X122: 42.53659401 | Y122: 29.66651265 | Z122: 16.02326447 | AA122: 1.578468461 | AB122: 0 | AC122: 0 | AD122: 0 | AE122: 0 | AF122: 0 | AG122: 0 | AH122: 0 | AI122: 0 | AJ122: 0 | AK122: 0 | AL122: 0 | AM122: 0 | AN122: =AN119-AN120-AN121 -> 0 | AO122: 0 | AP122: 0 | AQ122: 0 | AR122: 0 | AS122: 0 | AT122: 0 | AU122: 0 | AV122: 0 | AW122: 0 | AX122: 0 | AY122: 0 | AZ122: 0 | BA122: 0 | BB122: 0 | BC122: 0 | BD122: 0 | BE122: 0 | BF122: 0 | BG122: 0 | BH122: 0 | BI122: 0
C123: Bullet Debt Test | G123: =SUMIF($6:$6,TRUE,122:122)=0 -> TRUE
C125: Eibor | H125: =H112 -> 0.011 | I125: =I112 -> 0.011 | J125: 0.011 | K125: 0.011 | L125: 0.011 | M125: 0.011 | N125: 0.011 | O125: 0.011 | P125: 0.011 | Q125: 0.011 | R125: 0.011 | S125: 0.011 | T125: 0.011 | U125: 0.011 | V125: 0.011 | W125: 0.011 | X125: 0.011 | Y125: 0.011 | Z125: 0.011 | AA125: 0.011 | AB125: 0.011 | AC125: 0.011 | AD125: 0.011 | AE125: 0.011 | AF125: 0.011 | AG125: 0.011 | AH125: 0.011 | AI125: 0.011 | AJ125: 0.011 | AK125: 0.011 | AL125: 0.011 | AM125: 0.011 | AN125: 0.011 | AO125: 0.011 | AP125: 0.011 | AQ125: 0.011 | AR125: =AR112 -> 0.011 | AS125: 0.011 | AT125: 0.011 | AU125: 0.011 | AV125: 0.011 | AW125: 0.011 | AX125: 0.011 | AY125: 0.011 | AZ125: 0.011 | BA125: 0.011 | BB125: 0.011 | BC125: 0.011 | BD125: 0.011 | BE125: 0.011 | BF125: 0.011 | BG125: 0.011 | BH125: 0.011 | BI125: 0.011
C126: Credit spread | H126: =LOOKUP(H284,Assumptions!$E$111:$E$114,Assumptions!$F$111:$F$114) -> 0.025 | I126: =LOOKUP(I284,Assumptions!$E$111:$E$114,Assumptions!$F$111:$F$114) -> 0.025 | J126: =LOOKUP(J284,Assumptions!$E$111:$E$114,Assumptions!$F$111:$F$114) -> 0.025 | K126: =LOOKUP(K284,Assumptions!$E$111:$E$114,Assumptions!$F$111:$F$114) -> 0.025 | L126: =LOOKUP(L284,Assumptions!$E$111:$E$114,Assumptions!$F$111:$F$114) -> 0.025 | M126: =LOOKUP(M284,Assumptions!$E$111:$E$114,Assumptions!$F$111:$F$114) -> 0.015 | N126: =LOOKUP(N284,Assumptions!$E$111:$E$114,Assumptions!$F$111:$F$114) -> 0.015 | O126: =LOOKUP(O284,Assumptions!$E$111:$E$114,Assumptions!$F$111:$F$114) -> 0.015 | P126: =LOOKUP(P284,Assumptions!$E$111:$E$114,Assumptions!$F$111:$F$114) -> 0.015 | Q126: =LOOKUP(Q284,Assumptions!$E$111:$E$114,Assumptions!$F$111:$F$114) -> 0.015 | R126: =LOOKUP(R284,Assumptions!$E$111:$E$114,Assumptions!$F$111:$F$114) -> 0.015 | S126: =LOOKUP(S284,Assumptions!$E$111:$E$114,Assumptions!$F$111:$F$114) -> 0.015 | T126: =LOOKUP(T284,Assumptions!$E$111:$E$114,Assumptions!$F$111:$F$114) -> 0.01 | U126: =LOOKUP(U284,Assumptions!$E$111:$E$114,Assumptions!$F$111:$F$114) -> 0.01 | V126: =LOOKUP(V284,Assumptions!$E$111:$E$114,Assumptions!$F$111:$F$114) -> 0.01 | W126: =LOOKUP(W284,Assumptions!$E$111:$E$114,Assumptions!$F$111:$F$114) -> 0.01 | X126: =LOOKUP(X284,Assumptions!$E$111:$E$114,Assumptions!$F$111:$F$114) -> 0.01 | Y126: =LOOKUP(Y284,Assumptions!$E$111:$E$114,Assumptions!$F$111:$F$114) -> 0.01 | Z126: =LOOKUP(Z284,Assumptions!$E$111:$E$114,Assumptions!$F$111:$F$114) -> 0.01 | AA126: =LOOKUP(AA284,Assumptions!$E$111:$E$114,Assumptions!$F$111:$F$114) -> 0.01 | AB126: =LOOKUP(AB284,Assumptions!$E$111:$E$114,Assumptions!$F$111:$F$114) -> 0.01 | AC126: =LOOKUP(AC284,Assumptions!$E$111:$E$114,Assumptions!$F$111:$F$114) -> 0.01 | AD126: =LOOKUP(AD284,Assumptions!$E$111:$E$114,Assumptions!$F$111:$F$114) -> 0.01 | AE126: =LOOKUP(AE284,Assumptions!$E$111:$E$114,Assumptions!$F$111:$F$114) -> 0.01 | AF126: =LOOKUP(AF284,Assumptions!$E$111:$E$114,Assumptions!$F$111:$F$114) -> 0.01 | AG126: =LOOKUP(AG284,Assumptions!$E$111:$E$114,Assumptions!$F$111:$F$114) -> 0.01 | AH126: =LOOKUP(AH284,Assumptions!$E$111:$E$114,Assumptions!$F$111:$F$114) -> 0.01 | AI126: =LOOKUP(AI284,Assumptions!$E$111:$E$114,Assumptions!$F$111:$F$114) -> 0.01 | AJ126: =LOOKUP(AJ284,Assumptions!$E$111:$E$114,Assumptions!$F$111:$F$114) -> 0.01 | AK126: =LOOKUP(AK284,Assumptions!$E$111:$E$114,Assumptions!$F$111:$F$114) -> 0.01 | AL126: =LOOKUP(AL284,Assumptions!$E$111:$E$114,Assumptions!$F$111:$F$114) -> 0.01 | AM126: =LOOKUP(AM284,Assumptions!$E$111:$E$114,Assumptions!$F$111:$F$114) -> 0.01 | AN126: =LOOKUP(AN284,Assumptions!$E$111:$E$114,Assumptions!$F$111:$F$114) -> 0.01 | AO126: =LOOKUP(AO284,Assumptions!$E$111:$E$114,Assumptions!$F$111:$F$114) -> 0.01 | AP126: =LOOKUP(AP284,Assumptions!$E$111:$E$114,Assumptions!$F$111:$F$114) -> 0.01 | AQ126: =LOOKUP(AQ284,Assumptions!$E$111:$E$114,Assumptions!$F$111:$F$114) -> 0.01 | AR126: =LOOKUP(AR284,Assumptions!$E$111:$E$114,Assumptions!$F$111:$F$114) -> 0.01 | AS126: =LOOKUP(AS284,Assumptions!$E$111:$E$114,Assumptions!$F$111:$F$114) -> 0.01 | AT126: =LOOKUP(AT284,Assumptions!$E$111:$E$114,Assumptions!$F$111:$F$114) -> 0.01 | AU126: =LOOKUP(AU284,Assumptions!$E$111:$E$114,Assumptions!$F$111:$F$114) -> 0.01 | AV126: =LOOKUP(AV284,Assumptions!$E$111:$E$114,Assumptions!$F$111:$F$114) -> 0.01 | AW126: =LOOKUP(AW284,Assumptions!$E$111:$E$114,Assumptions!$F$111:$F$114) -> 0.01 | AX126: =LOOKUP(AX284,Assumptions!$E$111:$E$114,Assumptions!$F$111:$F$114) -> 0.01 | AY126: =LOOKUP(AY284,Assumptions!$E$111:$E$114,Assumptions!$F$111:$F$114) -> 0.01 | AZ126: =LOOKUP(AZ284,Assumptions!$E$111:$E$114,Assumptions!$F$111:$F$114) -> 0.01 | BA126: =LOOKUP(BA284,Assumptions!$E$111:$E$114,Assumptions!$F$111:$F$114) -> 0.01 | BB126: =LOOKUP(BB284,Assumptions!$E$111:$E$114,Assumptions!$F$111:$F$114) -> 0.01 | BC126: =LOOKUP(BC284,Assumptions!$E$111:$E$114,Assumptions!$F$111:$F$114) -> 0.01 | BD126: =LOOKUP(BD284,Assumptions!$E$111:$E$114,Assumptions!$F$111:$F$114) -> 0.01 | BE126: =LOOKUP(BE284,Assumptions!$E$111:$E$114,Assumptions!$F$111:$F$114) -> 0.01 | BF126: =LOOKUP(BF284,Assumptions!$E$111:$E$114,Assumptions!$F$111:$F$114) -> 0.01 | BG126: =LOOKUP(BG284,Assumptions!$E$111:$E$114,Assumptions!$F$111:$F$114) -> 0.01 | BH126: =LOOKUP(BH284,Assumptions!$E$111:$E$114,Assumptions!$F$111:$F$114) -> 0.01 | BI126: =LOOKUP(BI284,Assumptions!$E$111:$E$114,Assumptions!$F$111:$F$114) -> 0.01
C127: Total annual rate | H127: =SUM(H125:H126) -> 0.036 | I127: =SUM(I125:I126) -> 0.036 | J127: 0.036 | K127: 0.036 | L127: 0.036 | M127: 0.026 | N127: 0.026 | O127: 0.026 | P127: 0.026 | Q127: 0.026 | R127: 0.026 | S127: 0.026 | T127: 0.021 | U127: 0.021 | V127: 0.021 | W127: 0.021 | X127: 0.021 | Y127: 0.021 | Z127: 0.021 | AA127: 0.021 | AB127: 0.021 | AC127: 0.021 | AD127: 0.021 | AE127: 0.021 | AF127: 0.021 | AG127: 0.021 | AH127: 0.021 | AI127: 0.021 | AJ127: 0.021 | AK127: 0.021 | AL127: 0.021 | AM127: 0.021 | AN127: 0.021 | AO127: 0.021 | AP127: 0.021 | AQ127: 0.021 | AR127: =SUM(AR125:AR126) -> 0.021 | AS127: 0.021 | AT127: 0.021 | AU127: 0.021 | AV127: 0.021 | AW127: 0.021 | AX127: 0.021 | AY127: 0.021 | AZ127: 0.021 | BA127: 0.021 | BB127: 0.021 | BC127: 0.021 | BD127: 0.021 | BE127: 0.021 | BF127: 0.021 | BG127: 0.021 | BH127: 0.021 | BI127: 0.021
C128: Periodic rate | H128: =H127*H9 -> 0.009 | I128: 0.009 | J128: 0.009 | K128: 0.009 | L128: 0.009 | M128: 0.0065 | N128: 0.0065 | O128: 0.0065 | P128: 0.0065 | Q128: 0.0065 | R128: 0.0065 | S128: 0.0065 | T128: 0.00525 | U128: 0.00525 | V128: 0.00525 | W128: 0.00525 | X128: 0.00525 | Y128: 0.00525 | Z128: 0.00525 | AA128: 0.00525 | AB128: 0.00525 | AC128: 0.00525 | AD128: 0.00525 | AE128: 0.00525 | AF128: 0.00525 | AG128: 0.00525 | AH128: 0.00525 | AI128: 0.00525 | AJ128: 0.00525 | AK128: 0.00525 | AL128: 0.00525 | AM128: 0.00525 | AN128: =AN127*AN9 -> 0.00525 | AO128: 0.00525 | AP128: 0.00525 | AQ128: 0.00525 | AR128: 0.00525 | AS128: 0.00525 | AT128: 0.00525 | AU128: 0.00525 | AV128: 0.00525 | AW128: 0.00525 | AX128: 0.00525 | AY128: 0.00525 | AZ128: 0.00525 | BA128: 0.00525 | BB128: 0.00525 | BC128: 0.00525 | BD128: 0.00525 | BE128: 0.00525 | BF128: 0.00525 | BG128: 0.00525 | BH128: 0.00525 | BI128: 0.00525
C129: Interest Expense | H129: =H128*H119 -> 1.17 | I129: 1.140376204 | J129: 1.140376204 | K129: 1.140376204 | L129: 1.139199456 | M129: 0.8227551625 | N129: 0.8207546766 | O129: 0.8116654724 | P129: 0.7989385781 | Q129: 0.7619344069 | R129: 0.7213030756 | S129: 0.6739425877 | T129: 0.5023355285 | U129: 0.4540634921 | V129: 0.4035371563 | W129: 0.347514184 | X129: 0.2879929459 | Y129: 0.2233171186 | Z129: 0.1557491914 | AA129: 0.08412213846 | AB129: 0.008286959422 | AC129: 0 | AD129: 0 | AE129: 0 | AF129: 0 | AG129: 0 | AH129: 0 | AI129: 0 | AJ129: 0 | AK129: 0 | AL129: 0 | AM129: 0 | AN129: =AN128*AN119 -> 0 | AO129: 0 | AP129: 0 | AQ129: 0 | AR129: 0 | AS129: 0 | AT129: 0 | AU129: 0 | AV129: 0 | AW129: 0 | AX129: 0 | AY129: 0 | AZ129: 0 | BA129: 0 | BB129: 0 | BC129: 0 | BD129: 0 | BE129: 0 | BF129: 0 | BG129: 0 | BH129: 0 | BI129: 0
B131: Capitalizing Debt
C132: opening balance | H132: =G136 -> 40 | I132: 40.81 | J132: 41.6364025 | K132: 42.47953965 | L132: 43.33975033 | M132: 44.21738027 | N132: 45.11278222 | O132: 46.02631606 | P132: 46.95834896 | Q132: 47.90925553 | R132: 48.87941795 | S132: 49.86922617 | T132: 50.879078 | U132: 51.90937933 | V132: 52.96054426 | W132: 54.03299528 | X132: 55.12716343 | Y132: 56.24348849 | Z132: 57.38241914 | AA132: 58.54441312 | AB132: 59.72993749 | AC132: 40.64983237 | AD132: 19.55387165 | AE132: 0 | AF132: 0 | AG132: 0 | AH132: 0 | AI132: 0 | AJ132: 0 | AK132: 0 | AL132: 0 | AM132: 0 | AN132: =AM136 -> 0 | AO132: 0 | AP132: 0 | AQ132: 0 | AR132: 0 | AS132: 0 | AT132: 0 | AU132: 0 | AV132: 0 | AW132: 0 | AX132: 0 | AY132: 0 | AZ132: 0 | BA132: 0 | BB132: 0 | BC132: 0 | BD132: 0 | BE132: 0 | BF132: 0 | BG132: 0 | BH132: 0 | BI132: 0
C133: add: capitalizing interest | H133: =H143 -> 0.81 | I133: 0.8264025 | J133: 0.8431371506 | K133: 0.8602106779 | L133: 0.8776299442 | M133: 0.8954019505 | N133: 0.91353384 | O133: 0.9320329003 | P133: 0.9509065665 | Q133: 0.9701624245 | R133: 0.9898082136 | S133: 1.00985183 | T133: 1.030301329 | U133: 1.051164931 | V133: 1.072451021 | W133: 1.094168154 | X133: 1.11632506 | Y133: 1.138930642 | Z133: 1.161993988 | AA133: 1.185524366 | AB133: 1.209531234 | AC133: 0.8231591055 | AD133: 0.3959659008 | AE133: 0 | AF133: 0 | AG133: 0 | AH133: 0 | AI133: 0 | AJ133: 0 | AK133: 0 | AL133: 0 | AM133: 0 | AN133: =AN143 -> 0 | AO133: 0 | AP133: 0 | AQ133: 0 | AR133: 0 | AS133: 0 | AT133: 0 | AU133: 0 | AV133: 0 | AW133: 0 | AX133: 0 | AY133: 0 | AZ133: 0 | BA133: 0 | BB133: 0 | BC133: 0 | BD133: 0 | BE133: 0 | BF133: 0 | BG133: 0 | BH133: 0 | BI133: 0
C134: less: scheduled repayment | H134: =H221 -> 0 | I134: 0 | J134: 0 | K134: 0 | L134: 0 | M134: 0 | N134: 0 | O134: 0 | P134: 0 | Q134: 0 | R134: 0 | S134: 0 | T134: 0 | U134: 0 | V134: 0 | W134: 0 | X134: 0 | Y134: 0 | Z134: 0 | AA134: 0 | AB134: 20.28963635 | AC134: 21.91911983 | AD134: 19.94983755 | AE134: 0 | AF134: 0 | AG134: 0 | AH134: 0 | AI134: 0 | AJ134: 0 | AK134: 0 | AL134: 0 | AM134: 0 | AN134: =AN221 -> 0 | AO134: 0 | AP134: 0 | AQ134: 0 | AR134: 0 | AS134: 0 | AT134: 0 | AU134: 0 | AV134: 0 | AW134: 0 | AX134: 0 | AY134: 0 | AZ134: 0 | BA134: 0 | BB134: 0 | BC134: 0 | BD134: 0 | BE134: 0 | BF134: 0 | BG134: 0 | BH134: 0 | BI134: 0
C135: less: cashflow sweep
C136: closing balance | G136: =Assumptions!E103 -> 40 | H136: =H132+H133-H134-H135 -> 40.81 | I136: 41.6364025 | J136: 42.47953965 | K136: 43.33975033 | L136: 44.21738027 | M136: 45.11278222 | N136: 46.02631606 | O136: 46.95834896 | P136: 47.90925553 | Q136: 48.87941795 | R136: 49.86922617 | S136: 50.879078 | T136: 51.90937933 | U136: 52.96054426 | V136: 54.03299528 | W136: 55.12716343 | X136: 56.24348849 | Y136: 57.38241914 | Z136: 58.54441312 | AA136: 59.72993749 | AB136: 40.64983237 | AC136: 19.55387165 | AD136: 0 | AE136: 0 | AF136: 0 | AG136: 0 | AH136: 0 | AI136: 0 | AJ136: 0 | AK136: 0 | AL136: 0 | AM136: 0 | AN136: =AN132+AN133-AN134-AN135 -> 0 | AO136: 0 | AP136: 0 | AQ136: 0 | AR136: 0 | AS136: 0 | AT136: 0 | AU136: 0 | AV136: 0 | AW136: 0 | AX136: 0 | AY136: 0 | AZ136: 0 | BA136: 0 | BB136: 0 | BC136: 0 | BD136: 0 | BE136: 0 | BF136: 0 | BG136: 0 | BH136: 0 | BI136: 0
C137: Capitalising Debt Test | G137: =SUMIF($6:$6,TRUE,136:136)=0 -> TRUE
C139: Eibor | H139: =H125 -> 0.011 | I139: =I125 -> 0.011 | J139: 0.011 | K139: 0.011 | L139: 0.011 | M139: 0.011 | N139: 0.011 | O139: 0.011 | P139: 0.011 | Q139: 0.011 | R139: 0.011 | S139: 0.011 | T139: 0.011 | U139: 0.011 | V139: 0.011 | W139: 0.011 | X139: 0.011 | Y139: 0.011 | Z139: 0.011 | AA139: 0.011 | AB139: 0.011 | AC139: 0.011 | AD139: 0.011 | AE139: 0.011 | AF139: 0.011 | AG139: 0.011 | AH139: 0.011 | AI139: 0.011 | AJ139: 0.011 | AK139: 0.011 | AL139: 0.011 | AM139: 0.011 | AN139: 0.011 | AO139: 0.011 | AP139: 0.011 | AQ139: 0.011 | AR139: =AR125 -> 0.011 | AS139: 0.011 | AT139: 0.011 | AU139: 0.011 | AV139: 0.011 | AW139: 0.011 | AX139: 0.011 | AY139: 0.011 | AZ139: 0.011 | BA139: 0.011 | BB139: 0.011 | BC139: 0.011 | BD139: 0.011 | BE139: 0.011 | BF139: 0.011 | BG139: 0.011 | BH139: 0.011 | BI139: 0.011
C140: Credit spread | H140: =Assumptions!$H$111 -> 0.07 | I140: =Assumptions!$H$111 -> 0.07 | J140: =Assumptions!$H$111 -> 0.07 | K140: =Assumptions!$H$111 -> 0.07 | L140: =Assumptions!$H$111 -> 0.07 | M140: =Assumptions!$H$111 -> 0.07 | N140: =Assumptions!$H$111 -> 0.07 | O140: =Assumptions!$H$111 -> 0.07 | P140: =Assumptions!$H$111 -> 0.07 | Q140: =Assumptions!$H$111 -> 0.07 | R140: =Assumptions!$H$111 -> 0.07 | S140: =Assumptions!$H$111 -> 0.07 | T140: =Assumptions!$H$111 -> 0.07 | U140: =Assumptions!$H$111 -> 0.07 | V140: =Assumptions!$H$111 -> 0.07 | W140: =Assumptions!$H$111 -> 0.07 | X140: =Assumptions!$H$111 -> 0.07 | Y140: =Assumptions!$H$111 -> 0.07 | Z140: =Assumptions!$H$111 -> 0.07 | AA140: =Assumptions!$H$111 -> 0.07 | AB140: =Assumptions!$H$111 -> 0.07 | AC140: =Assumptions!$H$111 -> 0.07 | AD140: =Assumptions!$H$111 -> 0.07 | AE140: =Assumptions!$H$111 -> 0.07 | AF140: =Assumptions!$H$111 -> 0.07 | AG140: =Assumptions!$H$111 -> 0.07 | AH140: =Assumptions!$H$111 -> 0.07 | AI140: =Assumptions!$H$111 -> 0.07 | AJ140: =Assumptions!$H$111 -> 0.07 | AK140: =Assumptions!$H$111 -> 0.07 | AL140: =Assumptions!$H$111 -> 0.07 | AM140: =Assumptions!$H$111 -> 0.07 | AN140: =Assumptions!$H$111 -> 0.07 | AO140: =Assumptions!$H$111 -> 0.07 | AP140: =Assumptions!$H$111 -> 0.07 | AQ140: =Assumptions!$H$111 -> 0.07 | AR140: =Assumptions!$H$111 -> 0.07 | AS140: =Assumptions!$H$111 -> 0.07 | AT140: =Assumptions!$H$111 -> 0.07 | AU140: =Assumptions!$H$111 -> 0.07 | AV140: =Assumptions!$H$111 -> 0.07 | AW140: =Assumptions!$H$111 -> 0.07 | AX140: =Assumptions!$H$111 -> 0.07 | AY140: =Assumptions!$H$111 -> 0.07 | AZ140: =Assumptions!$H$111 -> 0.07 | BA140: =Assumptions!$H$111 -> 0.07 | BB140: =Assumptions!$H$111 -> 0.07 | BC140: =Assumptions!$H$111 -> 0.07 | BD140: =Assumptions!$H$111 -> 0.07 | BE140: =Assumptions!$H$111 -> 0.07 | BF140: =Assumptions!$H$111 -> 0.07 | BG140: =Assumptions!$H$111 -> 0.07 | BH140: =Assumptions!$H$111 -> 0.07 | BI140: =Assumptions!$H$111 -> 0.07
C141: Total annual rate | H141: =SUM(H139:H140) -> 0.081 | I141: =SUM(I139:I140) -> 0.081 | J141: 0.081 | K141: 0.081 | L141: 0.081 | M141: 0.081 | N141: 0.081 | O141: 0.081 | P141: 0.081 | Q141: 0.081 | R141: 0.081 | S141: 0.081 | T141: 0.081 | U141: 0.081 | V141: 0.081 | W141: 0.081 | X141: 0.081 | Y141: 0.081 | Z141: 0.081 | AA141: 0.081 | AB141: 0.081 | AC141: 0.081 | AD141: 0.081 | AE141: 0.081 | AF141: 0.081 | AG141: 0.081 | AH141: 0.081 | AI141: 0.081 | AJ141: 0.081 | AK141: 0.081 | AL141: 0.081 | AM141: 0.081 | AN141: 0.081 | AO141: 0.081 | AP141: 0.081 | AQ141: 0.081 | AR141: =SUM(AR139:AR140) -> 0.081 | AS141: 0.081 | AT141: 0.081 | AU141: 0.081 | AV141: 0.081 | AW141: 0.081 | AX141: 0.081 | AY141: 0.081 | AZ141: 0.081 | BA141: 0.081 | BB141: 0.081 | BC141: 0.081 | BD141: 0.081 | BE141: 0.081 | BF141: 0.081 | BG141: 0.081 | BH141: 0.081 | BI141: 0.081
C142: Periodic rate | H142: =H141*H9 -> 0.02025 | I142: 0.02025 | J142: 0.02025 | K142: 0.02025 | L142: 0.02025 | M142: 0.02025 | N142: 0.02025 | O142: 0.02025 | P142: 0.02025 | Q142: 0.02025 | R142: 0.02025 | S142: 0.02025 | T142: 0.02025 | U142: 0.02025 | V142: 0.02025 | W142: 0.02025 | X142: 0.02025 | Y142: 0.02025 | Z142: 0.02025 | AA142: 0.02025 | AB142: 0.02025 | AC142: 0.02025 | AD142: 0.02025 | AE142: 0.02025 | AF142: 0.02025 | AG142: 0.02025 | AH142: 0.02025 | AI142: 0.02025 | AJ142: 0.02025 | AK142: 0.02025 | AL142: 0.02025 | AM142: 0.02025 | AN142: =AN141*AN9 -> 0.02025 | AO142: 0.02025 | AP142: 0.02025 | AQ142: 0.02025 | AR142: 0.02025 | AS142: 0.02025 | AT142: 0.02025 | AU142: 0.02025 | AV142: 0.02025 | AW142: 0.02025 | AX142: 0.02025 | AY142: 0.02025 | AZ142: 0.02025 | BA142: 0.02025 | BB142: 0.02025 | BC142: 0.02025 | BD142: 0.02025 | BE142: 0.02025 | BF142: 0.02025 | BG142: 0.02025 | BH142: 0.02025 | BI142: 0.02025
C143: Intererest Expense | H143: =H142*H132 -> 0.81 | I143: 0.8264025 | J143: 0.8431371506 | K143: 0.8602106779 | L143: 0.8776299442 | M143: 0.8954019505 | N143: 0.91353384 | O143: 0.9320329003 | P143: 0.9509065665 | Q143: 0.9701624245 | R143: 0.9898082136 | S143: 1.00985183 | T143: 1.030301329 | U143: 1.051164931 | V143: 1.072451021 | W143: 1.094168154 | X143: 1.11632506 | Y143: 1.138930642 | Z143: 1.161993988 | AA143: 1.185524366 | AB143: 1.209531234 | AC143: 0.8231591055 | AD143: 0.3959659008 | AE143: 0 | AF143: 0 | AG143: 0 | AH143: 0 | AI143: 0 | AJ143: 0 | AK143: 0 | AL143: 0 | AM143: 0 | AN143: =AN142*AN132 -> 0 | AO143: 0 | AP143: 0 | AQ143: 0 | AR143: 0 | AS143: 0 | AT143: 0 | AU143: 0 | AV143: 0 | AW143: 0 | AX143: 0 | AY143: 0 | AZ143: 0 | BA143: 0 | BB143: 0 | BC143: 0 | BD143: 0 | BE143: 0 | BF143: 0 | BG143: 0 | BH143: 0 | BI143: 0
B145: Revolving debt
C146: Total debt commitment | H146: =Assumptions!$E$128 -> 44 | I146: =Assumptions!$E$128 -> 44 | J146: =Assumptions!$E$128 -> 44 | K146: =Assumptions!$E$128 -> 44 | L146: =Assumptions!$E$128 -> 44 | M146: =Assumptions!$E$128 -> 44 | N146: =Assumptions!$E$128 -> 44 | O146: =Assumptions!$E$128 -> 44 | P146: =Assumptions!$E$128 -> 44 | Q146: =Assumptions!$E$128 -> 44 | R146: =Assumptions!$E$128 -> 44 | S146: =Assumptions!$E$128 -> 44 | T146: =Assumptions!$E$128 -> 44 | U146: =Assumptions!$E$128 -> 44 | V146: =Assumptions!$E$128 -> 44 | W146: =Assumptions!$E$128 -> 44 | X146: =Assumptions!$E$128 -> 44 | Y146: =Assumptions!$E$128 -> 44 | Z146: =Assumptions!$E$128 -> 44 | AA146: =Assumptions!$E$128 -> 44 | AB146: =Assumptions!$E$128 -> 44 | AC146: =Assumptions!$E$128 -> 44 | AD146: =Assumptions!$E$128 -> 44 | AE146: =Assumptions!$E$128 -> 44 | AF146: =Assumptions!$E$128 -> 44 | AG146: =Assumptions!$E$128 -> 44 | AH146: =Assumptions!$E$128 -> 44 | AI146: =Assumptions!$E$128 -> 44 | AJ146: =Assumptions!$E$128 -> 44 | AK146: =Assumptions!$E$128 -> 44 | AL146: =Assumptions!$E$128 -> 44 | AM146: =Assumptions!$E$128 -> 44 | AN146: =Assumptions!$E$128 -> 44 | AO146: =Assumptions!$E$128 -> 44 | AP146: =Assumptions!$E$128 -> 44 | AQ146: =Assumptions!$E$128 -> 44 | AR146: =Assumptions!$E$128 -> 44 | AS146: =Assumptions!$E$128 -> 44 | AT146: =Assumptions!$E$128 -> 44 | AU146: =Assumptions!$E$128 -> 44 | AV146: =Assumptions!$E$128 -> 44 | AW146: =Assumptions!$E$128 -> 44 | AX146: =Assumptions!$E$128 -> 44 | AY146: =Assumptions!$E$128 -> 44 | AZ146: =Assumptions!$E$128 -> 44 | BA146: =Assumptions!$E$128 -> 44 | BB146: =Assumptions!$E$128 -> 44 | BC146: =Assumptions!$E$128 -> 44 | BD146: =Assumptions!$E$128 -> 44 | BE146: =Assumptions!$E$128 -> 44 | BF146: =Assumptions!$E$128 -> 44 | BG146: =Assumptions!$E$128 -> 44 | BH146: =Assumptions!$E$128 -> 44 | BI146: =Assumptions!$E$128 -> 44
C147: less: amount borrowed | H147: =H152 -> 0 | I147: 0 | J147: 0.1321432951 | K147: 0.08942290352 | L147: 0 | M147: 0.2546569091 | N147: 0 | O147: 0 | P147: 0 | Q147: 0 | R147: 0 | S147: 0 | T147: 0 | U147: 0 | V147: 0 | W147: 0 | X147: 0 | Y147: 0 | Z147: 0 | AA147: 0 | AB147: 0 | AC147: 0 | AD147: 0 | AE147: 0 | AF147: 0 | AG147: 0 | AH147: 0 | AI147: 0 | AJ147: 0 | AK147: 0 | AL147: 0 | AM147: 0 | AN147: =AN152 -> 0 | AO147: 0 | AP147: 0 | AQ147: 0 | AR147: 0 | AS147: 0 | AT147: 0 | AU147: 0 | AV147: 0 | AW147: 0 | AX147: 0 | AY147: 0 | AZ147: 0 | BA147: 0 | BB147: 0 | BC147: 0 | BD147: 0 | BE147: 0 | BF147: 0 | BG147: 0 | BH147: 0 | BI147: 0
C148: remaining amount to borrow | H148: =H146-H147 -> 44 | I148: 44 | J148: 43.8678567 | K148: 43.9105771 | L148: 44 | M148: 43.74534309 | N148: 44 | O148: 44 | P148: 44 | Q148: 44 | R148: 44 | S148: 44 | T148: 44 | U148: 44 | V148: 44 | W148: 44 | X148: 44 | Y148: 44 | Z148: 44 | AA148: 44 | AB148: 44 | AC148: 44 | AD148: 44 | AE148: 44 | AF148: 44 | AG148: 44 | AH148: 44 | AI148: 44 | AJ148: 44 | AK148: 44 | AL148: 44 | AM148: 44 | AN148: =AN146-AN147 -> 44 | AO148: 44 | AP148: 44 | AQ148: 44 | AR148: 44 | AS148: 44 | AT148: 44 | AU148: 44 | AV148: 44 | AW148: 44 | AX148: 44 | AY148: 44 | AZ148: 44 | BA148: 44 | BB148: 44 | BC148: 44 | BD148: 44 | BE148: 44 | BF148: 44 | BG148: 44 | BH148: 44 | BI148: 44
C150: Periodic Commitment Fee | F150: =Assumptions!E129 -> 0.02 | G150: =F150/G10 -> 0.005 | H150: =$G$150*H146*H5 -> 0.22 | I150: 0.22 | J150: 0.22 | K150: 0.22 | L150: 0.22 | M150: 0.22 | N150: 0.22 | O150: 0.22 | P150: 0.22 | Q150: 0.22 | R150: 0.22 | S150: 0.22 | T150: 0.22 | U150: 0.22 | V150: 0.22 | W150: 0.22 | X150: 0.22 | Y150: 0.22 | Z150: 0.22 | AA150: 0.22 | AB150: 0.22 | AC150: 0.22 | AD150: 0.22 | AE150: 0.22 | AF150: 0.22 | AG150: 0.22 | AH150: 0.22 | AI150: 0.22 | AJ150: 0.22 | AK150: 0.22 | AL150: 0.22 | AM150: 0.22 | AN150: =$G$150*AN146*AN5 -> 0 | AO150: 0 | AP150: 0 | AQ150: 0 | AR150: 0 | AS150: 0 | AT150: 0 | AU150: 0 | AV150: 0 | AW150: 0 | AX150: 0 | AY150: 0 | AZ150: 0 | BA150: 0 | BB150: 0 | BC150: 0 | BD150: 0 | BE150: 0 | BF150: 0 | BG150: 0 | BH150: 0 | BI150: 0
C152: opening balance | H152: =G155 -> 0 | I152: 0 | J152: 0.1321432951 | K152: 0.08942290352 | L152: 0 | M152: 0.2546569091 | N152: 0 | O152: 0 | P152: 0 | Q152: 0 | R152: 0 | S152: 0 | T152: 0 | U152: 0 | V152: 0 | W152: 0 | X152: 0 | Y152: 0 | Z152: 0 | AA152: 0 | AB152: 0 | AC152: 0 | AD152: 0 | AE152: 0 | AF152: 0 | AG152: 0 | AH152: 0 | AI152: 0 | AJ152: 0 | AK152: 0 | AL152: 0 | AM152: 0 | AN152: =AM155 -> 0 | AO152: 0 | AP152: 0 | AQ152: 0 | AR152: 0 | AS152: 0 | AT152: 0 | AU152: 0 | AV152: 0 | AW152: 0 | AX152: 0 | AY152: 0 | AZ152: 0 | BA152: 0 | BB152: 0 | BC152: 0 | BD152: 0 | BE152: 0 | BF152: 0 | BG152: 0 | BH152: 0 | BI152: 0
C153: add: drawings | H153: =H212 -> 0 | I153: 0.1321432951 | J153: 0 | K153: 0 | L153: 0.2546569091 | M153: 0 | N153: 0 | O153: 0 | P153: 0 | Q153: 0 | R153: 0 | S153: 0 | T153: 0 | U153: 0 | V153: 0 | W153: 0 | X153: 0 | Y153: 0 | Z153: 0 | AA153: 0 | AB153: 0 | AC153: 0 | AD153: 0 | AE153: 0 | AF153: 0 | AG153: 0 | AH153: 0 | AI153: 0 | AJ153: 0 | AK153: 0 | AL153: 0 | AM153: 0 | AN153: =AN212 -> 0 | AO153: 0 | AP153: 0 | AQ153: 0 | AR153: 0 | AS153: 0 | AT153: 0 | AU153: 0 | AV153: 0 | AW153: 0 | AX153: 0 | AY153: 0 | AZ153: 0 | BA153: 0 | BB153: 0 | BC153: 0 | BD153: 0 | BE153: 0 | BF153: 0 | BG153: 0 | BH153: 0 | BI153: 0
C154: less: repayments | H154: =H213 -> 0 | I154: 0 | J154: 0.0427203916 | K154: 0.08942290352 | L154: 0 | M154: 0.2546569091 | N154: 0 | O154: 0 | P154: 0 | Q154: 0 | R154: 0 | S154: 0 | T154: 0 | U154: 0 | V154: 0 | W154: 0 | X154: 0 | Y154: 0 | Z154: 0 | AA154: 0 | AB154: 0 | AC154: 0 | AD154: 0 | AE154: 0 | AF154: 0 | AG154: 0 | AH154: 0 | AI154: 0 | AJ154: 0 | AK154: 0 | AL154: 0 | AM154: 0 | AN154: =AN213 -> 0 | AO154: 0 | AP154: 0 | AQ154: 0 | AR154: 0 | AS154: 0 | AT154: 0 | AU154: 0 | AV154: 0 | AW154: 0 | AX154: 0 | AY154: 0 | AZ154: 0 | BA154: 0 | BB154: 0 | BC154: 0 | BD154: 0 | BE154: 0 | BF154: 0 | BG154: 0 | BH154: 0 | BI154: 0
C155: closing balance | H155: =H152+H153-H154 -> 0 | I155: 0.1321432951 | J155: 0.08942290352 | K155: 0 | L155: 0.2546569091 | M155: 0 | N155: 0 | O155: 0 | P155: 0 | Q155: 0 | R155: 0 | S155: 0 | T155: 0 | U155: 0 | V155: 0 | W155: 0 | X155: 0 | Y155: 0 | Z155: 0 | AA155: 0 | AB155: 0 | AC155: 0 | AD155: 0 | AE155: 0 | AF155: 0 | AG155: 0 | AH155: 0 | AI155: 0 | AJ155: 0 | AK155: 0 | AL155: 0 | AM155: 0 | AN155: =AN152+AN153-AN154 -> 0 | AO155: 0 | AP155: 0 | AQ155: 0 | AR155: 0 | AS155: 0 | AT155: 0 | AU155: 0 | AV155: 0 | AW155: 0 | AX155: 0 | AY155: 0 | AZ155: 0 | BA155: 0 | BB155: 0 | BC155: 0 | BD155: 0 | BE155: 0 | BF155: 0 | BG155: 0 | BH155: 0 | BI155: 0
C156: Revolver Test | G156: =SUMIF($6:$6,TRUE,155:155)=0 -> TRUE
C158: Eibor | H158: =H125 -> 0.011 | I158: =I125 -> 0.011 | J158: 0.011 | K158: 0.011 | L158: 0.011 | M158: 0.011 | N158: 0.011 | O158: 0.011 | P158: 0.011 | Q158: 0.011 | R158: 0.011 | S158: 0.011 | T158: 0.011 | U158: 0.011 | V158: 0.011 | W158: 0.011 | X158: 0.011 | Y158: 0.011 | Z158: 0.011 | AA158: 0.011 | AB158: 0.011 | AC158: 0.011 | AD158: 0.011 | AE158: 0.011 | AF158: 0.011 | AG158: 0.011 | AH158: 0.011 | AI158: 0.011 | AJ158: 0.011 | AK158: 0.011 | AL158: 0.011 | AM158: 0.011 | AN158: 0.011 | AO158: 0.011 | AP158: 0.011 | AQ158: 0.011 | AR158: =AR125 -> 0.011 | AS158: 0.011 | AT158: 0.011 | AU158: 0.011 | AV158: 0.011 | AW158: 0.011 | AX158: 0.011 | AY158: 0.011 | AZ158: 0.011 | BA158: 0.011 | BB158: 0.011 | BC158: 0.011 | BD158: 0.011 | BE158: 0.011 | BF158: 0.011 | BG158: 0.011 | BH158: 0.011 | BI158: 0.011
C159: Credit spread | H159: =H126 -> 0.025 | I159: =I126 -> 0.025 | J159: 0.025 | K159: 0.025 | L159: 0.025 | M159: 0.015 | N159: 0.015 | O159: 0.015 | P159: 0.015 | Q159: 0.015 | R159: 0.015 | S159: 0.015 | T159: 0.01 | U159: 0.01 | V159: 0.01 | W159: 0.01 | X159: 0.01 | Y159: 0.01 | Z159: 0.01 | AA159: 0.01 | AB159: 0.01 | AC159: 0.01 | AD159: 0.01 | AE159: 0.01 | AF159: 0.01 | AG159: 0.01 | AH159: 0.01 | AI159: 0.01 | AJ159: 0.01 | AK159: 0.01 | AL159: 0.01 | AM159: 0.01 | AN159: 0.01 | AO159: 0.01 | AP159: 0.01 | AQ159: 0.01 | AR159: =AR126 -> 0.01 | AS159: 0.01 | AT159: 0.01 | AU159: 0.01 | AV159: 0.01 | AW159: 0.01 | AX159: 0.01 | AY159: 0.01 | AZ159: 0.01 | BA159: 0.01 | BB159: 0.01 | BC159: 0.01 | BD159: 0.01 | BE159: 0.01 | BF159: 0.01 | BG159: 0.01 | BH159: 0.01 | BI159: 0.01
C160: Total annual rate | H160: =H127 -> 0.036 | I160: =I127 -> 0.036 | J160: 0.036 | K160: 0.036 | L160: 0.036 | M160: 0.026 | N160: 0.026 | O160: 0.026 | P160: 0.026 | Q160: 0.026 | R160: 0.026 | S160: 0.026 | T160: 0.021 | U160: 0.021 | V160: 0.021 | W160: 0.021 | X160: 0.021 | Y160: 0.021 | Z160: 0.021 | AA160: 0.021 | AB160: 0.021 | AC160: 0.021 | AD160: 0.021 | AE160: 0.021 | AF160: 0.021 | AG160: 0.021 | AH160: 0.021 | AI160: 0.021 | AJ160: 0.021 | AK160: 0.021 | AL160: 0.021 | AM160: 0.021 | AN160: 0.021 | AO160: 0.021 | AP160: 0.021 | AQ160: 0.021 | AR160: =AR127 -> 0.021 | AS160: 0.021 | AT160: 0.021 | AU160: 0.021 | AV160: 0.021 | AW160: 0.021 | AX160: 0.021 | AY160: 0.021 | AZ160: 0.021 | BA160: 0.021 | BB160: 0.021 | BC160: 0.021 | BD160: 0.021 | BE160: 0.021 | BF160: 0.021 | BG160: 0.021 | BH160: 0.021 | BI160: 0.021
C161: Periodic rate | H161: =H128 -> 0.009 | I161: =I128 -> 0.009 | J161: 0.009 | K161: 0.009 | L161: 0.009 | M161: 0.0065 | N161: 0.0065 | O161: 0.0065 | P161: 0.0065 | Q161: 0.0065 | R161: 0.0065 | S161: 0.0065 | T161: 0.00525 | U161: 0.00525 | V161: 0.00525 | W161: 0.00525 | X161: 0.00525 | Y161: 0.00525 | Z161: 0.00525 | AA161: 0.00525 | AB161: 0.00525 | AC161: 0.00525 | AD161: 0.00525 | AE161: 0.00525 | AF161: 0.00525 | AG161: 0.00525 | AH161: 0.00525 | AI161: 0.00525 | AJ161: 0.00525 | AK161: 0.00525 | AL161: 0.00525 | AM161: 0.00525 | AN161: 0.00525 | AO161: 0.00525 | AP161: 0.00525 | AQ161: 0.00525 | AR161: =AR128 -> 0.00525 | AS161: 0.00525 | AT161: 0.00525 | AU161: 0.00525 | AV161: 0.00525 | AW161: 0.00525 | AX161: 0.00525 | AY161: 0.00525 | AZ161: 0.00525 | BA161: 0.00525 | BB161: 0.00525 | BC161: 0.00525 | BD161: 0.00525 | BE161: 0.00525 | BF161: 0.00525 | BG161: 0.00525 | BH161: 0.00525 | BI161: 0.00525
C162: Interest Expense | H162: =H161*H152 -> 0 | I162: 0 | J162: 0.001189289656 | K162: 0.0008048061317 | L162: 0 | M162: 0.001655269909 | N162: 0 | O162: 0 | P162: 0 | Q162: 0 | R162: 0 | S162: 0 | T162: 0 | U162: 0 | V162: 0 | W162: 0 | X162: 0 | Y162: 0 | Z162: 0 | AA162: 0 | AB162: 0 | AC162: 0 | AD162: 0 | AE162: 0 | AF162: 0 | AG162: 0 | AH162: 0 | AI162: 0 | AJ162: 0 | AK162: 0 | AL162: 0 | AM162: 0 | AN162: =AN161*AN152 -> 0 | AO162: 0 | AP162: 0 | AQ162: 0 | AR162: 0 | AS162: 0 | AT162: 0 | AU162: 0 | AV162: 0 | AW162: 0 | AX162: 0 | AY162: 0 | AZ162: 0 | BA162: 0 | BB162: 0 | BC162: 0 | BD162: 0 | BE162: 0 | BF162: 0 | BG162: 0 | BH162: 0 | BI162: 0
B164: Defaulted debt
C165: opening balance | H165: =G168 -> 0 | I165: 0 | J165: 0 | K165: 0 | L165: 0 | M165: 0 | N165: 0 | O165: 0 | P165: 0 | Q165: 0 | R165: 0 | S165: 0 | T165: 0 | U165: 0 | V165: 0 | W165: 0 | X165: 0 | Y165: 0 | Z165: 0 | AA165: 0 | AB165: 0 | AC165: 0 | AD165: 0 | AE165: 0 | AF165: 0 | AG165: 0 | AH165: 0 | AI165: 0 | AJ165: 0 | AK165: 0 | AL165: 0 | AM165: 0 | AN165: =AM168 -> 0 | AO165: 0 | AP165: 0 | AQ165: 0 | AR165: 0 | AS165: 0 | AT165: 0 | AU165: 0 | AV165: 0 | AW165: 0 | AX165: 0 | AY165: 0 | AZ165: 0 | BA165: 0 | BB165: 0 | BC165: 0 | BD165: 0 | BE165: 0 | BF165: 0 | BG165: 0 | BH165: 0 | BI165: 0
C166: add: defaults | H166: =H219 -> 0 | I166: 0 | J166: 0 | K166: 0 | L166: 0 | M166: 0 | N166: 0 | O166: 0 | P166: 0 | Q166: 0 | R166: 0 | S166: 0 | T166: 0 | U166: 0 | V166: 0 | W166: 0 | X166: 0 | Y166: 0 | Z166: 0 | AA166: 0 | AB166: 0 | AC166: 0 | AD166: 0 | AE166: 0 | AF166: 0 | AG166: 0 | AH166: 0 | AI166: 0 | AJ166: 0 | AK166: 0 | AL166: 0 | AM166: 0 | AN166: =AN219 -> 0 | AO166: 0 | AP166: 0 | AQ166: 0 | AR166: 0 | AS166: 0 | AT166: 0 | AU166: 0 | AV166: 0 | AW166: 0 | AX166: 0 | AY166: 0 | AZ166: 0 | BA166: 0 | BB166: 0 | BC166: 0 | BD166: 0 | BE166: 0 | BF166: 0 | BG166: 0 | BH166: 0 | BI166: 0
C167: less: repayments of default | H167: =H215 -> 0 | I167: 0 | J167: 0 | K167: 0 | L167: 0 | M167: 0 | N167: 0 | O167: 0 | P167: 0 | Q167: 0 | R167: 0 | S167: 0 | T167: 0 | U167: 0 | V167: 0 | W167: 0 | X167: 0 | Y167: 0 | Z167: 0 | AA167: 0 | AB167: 0 | AC167: 0 | AD167: 0 | AE167: 0 | AF167: 0 | AG167: 0 | AH167: 0 | AI167: 0 | AJ167: 0 | AK167: 0 | AL167: 0 | AM167: 0 | AN167: =AN215 -> 0 | AO167: 0 | AP167: 0 | AQ167: 0 | AR167: 0 | AS167: 0 | AT167: 0 | AU167: 0 | AV167: 0 | AW167: 0 | AX167: 0 | AY167: 0 | AZ167: 0 | BA167: 0 | BB167: 0 | BC167: 0 | BD167: 0 | BE167: 0 | BF167: 0 | BG167: 0 | BH167: 0 | BI167: 0
C168: closing balance | H168: =H165+H166-H167 -> 0 | I168: 0 | J168: 0 | K168: 0 | L168: 0 | M168: 0 | N168: 0 | O168: 0 | P168: 0 | Q168: 0 | R168: 0 | S168: 0 | T168: 0 | U168: 0 | V168: 0 | W168: 0 | X168: 0 | Y168: 0 | Z168: 0 | AA168: 0 | AB168: 0 | AC168: 0 | AD168: 0 | AE168: 0 | AF168: 0 | AG168: 0 | AH168: 0 | AI168: 0 | AJ168: 0 | AK168: 0 | AL168: 0 | AM168: 0 | AN168: =AN165+AN166-AN167 -> 0 | AO168: 0 | AP168: 0 | AQ168: 0 | AR168: 0 | AS168: 0 | AT168: 0 | AU168: 0 | AV168: 0 | AW168: 0 | AX168: 0 | AY168: 0 | AZ168: 0 | BA168: 0 | BB168: 0 | BC168: 0 | BD168: 0 | BE168: 0 | BF168: 0 | BG168: 0 | BH168: 0 | BI168: 0
C170: Eibor | H170: =H158 -> 0.011 | I170: =I158 -> 0.011 | J170: 0.011 | K170: 0.011 | L170: 0.011 | M170: 0.011 | N170: 0.011 | O170: 0.011 | P170: 0.011 | Q170: 0.011 | R170: 0.011 | S170: 0.011 | T170: 0.011 | U170: 0.011 | V170: 0.011 | W170: 0.011 | X170: 0.011 | Y170: 0.011 | Z170: 0.011 | AA170: 0.011 | AB170: 0.011 | AC170: 0.011 | AD170: 0.011 | AE170: 0.011 | AF170: 0.011 | AG170: 0.011 | AH170: 0.011 | AI170: 0.011 | AJ170: 0.011 | AK170: 0.011 | AL170: 0.011 | AM170: 0.011 | AN170: 0.011 | AO170: 0.011 | AP170: 0.011 | AQ170: 0.011 | AR170: =AR158 -> 0.011 | AS170: 0.011 | AT170: 0.011 | AU170: 0.011 | AV170: 0.011 | AW170: 0.011 | AX170: 0.011 | AY170: 0.011 | AZ170: 0.011 | BA170: 0.011 | BB170: 0.011 | BC170: 0.011 | BD170: 0.011 | BE170: 0.011 | BF170: 0.011 | BG170: 0.011 | BH170: 0.011 | BI170: 0.011
C171: Credit spread | H171: =H159 -> 0.025 | I171: =I159 -> 0.025 | J171: 0.025 | K171: 0.025 | L171: 0.025 | M171: 0.015 | N171: 0.015 | O171: 0.015 | P171: 0.015 | Q171: 0.015 | R171: 0.015 | S171: 0.015 | T171: 0.01 | U171: 0.01 | V171: 0.01 | W171: 0.01 | X171: 0.01 | Y171: 0.01 | Z171: 0.01 | AA171: 0.01 | AB171: 0.01 | AC171: 0.01 | AD171: 0.01 | AE171: 0.01 | AF171: 0.01 | AG171: 0.01 | AH171: 0.01 | AI171: 0.01 | AJ171: 0.01 | AK171: 0.01 | AL171: 0.01 | AM171: 0.01 | AN171: 0.01 | AO171: 0.01 | AP171: 0.01 | AQ171: 0.01 | AR171: =AR159 -> 0.01 | AS171: 0.01 | AT171: 0.01 | AU171: 0.01 | AV171: 0.01 | AW171: 0.01 | AX171: 0.01 | AY171: 0.01 | AZ171: 0.01 | BA171: 0.01 | BB171: 0.01 | BC171: 0.01 | BD171: 0.01 | BE171: 0.01 | BF171: 0.01 | BG171: 0.01 | BH171: 0.01 | BI171: 0.01
C172: Total annual rate | H172: =H160 -> 0.036 | I172: =I160 -> 0.036 | J172: 0.036 | K172: 0.036 | L172: 0.036 | M172: 0.026 | N172: 0.026 | O172: 0.026 | P172: 0.026 | Q172: 0.026 | R172: 0.026 | S172: 0.026 | T172: 0.021 | U172: 0.021 | V172: 0.021 | W172: 0.021 | X172: 0.021 | Y172: 0.021 | Z172: 0.021 | AA172: 0.021 | AB172: 0.021 | AC172: 0.021 | AD172: 0.021 | AE172: 0.021 | AF172: 0.021 | AG172: 0.021 | AH172: 0.021 | AI172: 0.021 | AJ172: 0.021 | AK172: 0.021 | AL172: 0.021 | AM172: 0.021 | AN172: 0.021 | AO172: 0.021 | AP172: 0.021 | AQ172: 0.021 | AR172: =AR160 -> 0.021 | AS172: 0.021 | AT172: 0.021 | AU172: 0.021 | AV172: 0.021 | AW172: 0.021 | AX172: 0.021 | AY172: 0.021 | AZ172: 0.021 | BA172: 0.021 | BB172: 0.021 | BC172: 0.021 | BD172: 0.021 | BE172: 0.021 | BF172: 0.021 | BG172: 0.021 | BH172: 0.021 | BI172: 0.021
C173: Periodic rate | H173: =H161 -> 0.009 | I173: =I161 -> 0.009 | J173: 0.009 | K173: 0.009 | L173: 0.009 | M173: 0.0065 | N173: 0.0065 | O173: 0.0065 | P173: 0.0065 | Q173: 0.0065 | R173: 0.0065 | S173: 0.0065 | T173: 0.00525 | U173: 0.00525 | V173: 0.00525 | W173: 0.00525 | X173: 0.00525 | Y173: 0.00525 | Z173: 0.00525 | AA173: 0.00525 | AB173: 0.00525 | AC173: 0.00525 | AD173: 0.00525 | AE173: 0.00525 | AF173: 0.00525 | AG173: 0.00525 | AH173: 0.00525 | AI173: 0.00525 | AJ173: 0.00525 | AK173: 0.00525 | AL173: 0.00525 | AM173: 0.00525 | AN173: 0.00525 | AO173: 0.00525 | AP173: 0.00525 | AQ173: 0.00525 | AR173: =AR161 -> 0.00525 | AS173: 0.00525 | AT173: 0.00525 | AU173: 0.00525 | AV173: 0.00525 | AW173: 0.00525 | AX173: 0.00525 | AY173: 0.00525 | AZ173: 0.00525 | BA173: 0.00525 | BB173: 0.00525 | BC173: 0.00525 | BD173: 0.00525 | BE173: 0.00525 | BF173: 0.00525 | BG173: 0.00525 | BH173: 0.00525 | BI173: 0.00525
C175: Interest Expense | H175: =H173*H165 -> 0 | I175: 0 | J175: 0 | K175: 0 | L175: 0 | M175: 0 | N175: 0 | O175: 0 | P175: 0 | Q175: 0 | R175: 0 | S175: 0 | T175: 0 | U175: 0 | V175: 0 | W175: 0 | X175: 0 | Y175: 0 | Z175: 0 | AA175: 0 | AB175: 0 | AC175: 0 | AD175: 0 | AE175: 0 | AF175: 0 | AG175: 0 | AH175: 0 | AI175: 0 | AJ175: 0 | AK175: 0 | AL175: 0 | AM175: 0 | AN175: =AN173*AN165 -> 0 | AO175: 0 | AP175: 0 | AQ175: 0 | AR175: 0 | AS175: 0 | AT175: 0 | AU175: 0 | AV175: 0 | AW175: 0 | AX175: 0 | AY175: 0 | AZ175: 0 | BA175: 0 | BB175: 0 | BC175: 0 | BD175: 0 | BE175: 0 | BF175: 0 | BG175: 0 | BH175: 0 | BI175: 0
C177: Total Interest Expense | H177: =H129+H116+H104+H175+H162 -> 2.61 | I177: 2.510947633 | J177: 2.442708351 | K177: 2.372895296 | L177: 2.30148517 | M177: 1.613696147 | N177: 1.559897534 | O177: 1.500665472 | P177: 1.437795721 | Q177: 1.350648693 | R177: 1.259874504 | S177: 1.162371159 | T177: 0.8563355285 | U177: 0.7675634921 | V177: 0.6765371563 | W177: 0.580014184 | X177: 0.4799929459 | Y177: 0.3748171186 | Z177: 0.2667491914 | AA177: 0.1546221385 | AB177: 0.03828695942 | AC177: 0.02625 | AD177: 0.0225 | AE177: 0.01875 | AF177: 0.015 | AG177: 0.01125 | AH177: 0.0075 | AI177: 0.00375 | AJ177: 1.049160758e-17 | AK177: 0 | AL177: 0 | AM177: 0 | AN177: =AN129+AN116+AN104+AN175+AN162 -> 0 | AO177: 0 | AP177: 0 | AQ177: 0 | AR177: 0 | AS177: 0 | AT177: 0 | AU177: 0 | AV177: 0 | AW177: 0 | AX177: 0 | AY177: 0 | AZ177: 0 | BA177: 0 | BB177: 0 | BC177: 0 | BD177: 0 | BE177: 0 | BF177: 0 | BG177: 0 | BH177: 0 | BI177: 0
C178: Repayment | H178: =H120+H108+H96 -> 7.714285714 | I178: 7.714285714 | J178: 7.714285714 | K178: 7.714285714 | L178: 7.714285714 | M178: 7.714285714 | N178: 7.714285714 | O178: 7.714285714 | P178: 7.714285714 | Q178: 7.714285714 | R178: 7.714285714 | S178: 7.714285714 | T178: 7.714285714 | U178: 7.714285714 | V178: 7.714285714 | W178: 7.714285714 | X178: 7.714285714 | Y178: 7.714285714 | Z178: 7.714285714 | AA178: 7.714285714 | AB178: 0.7142857143 | AC178: 0.7142857143 | AD178: 0.7142857143 | AE178: 0.7142857143 | AF178: 0.7142857143 | AG178: 0.7142857143 | AH178: 0.7142857143 | AI178: 0.7142857143 | AJ178: 1.998401444e-15 | AK178: 0 | AL178: 0 | AM178: 0 | AN178: =AN120+AN108+AN96 -> 0 | AO178: 0 | AP178: 0 | AQ178: 0 | AR178: 0 | AS178: 0 | AT178: 0 | AU178: 0 | AV178: 0 | AW178: 0 | AX178: 0 | AY178: 0 | AZ178: 0 | BA178: 0 | BB178: 0 | BC178: 0 | BD178: 0 | BE178: 0 | BF178: 0 | BG178: 0 | BH178: 0 | BI178: 0
C179: Total Senior Debt Opening Balance | G179: =G95+G107+G119+G152+G165 -> 0 | H179: 290 | I179: 278.9941814 | J179: 271.412039 | K179: 263.6550329 | L179: 255.7205745 | M179: 248.2609456 | N179: 239.984236 | O179: 230.8716111 | P179: 221.1993417 | Q179: 207.7921066 | R179: 193.8268468 | S179: 178.8263322 | T179: 163.1115292 | U179: 146.2025699 | V179: 128.8642202 | W179: 110.4788922 | X179: 91.42722778 | Y179: 71.39373687 | Z179: 50.8093698 | AA179: 29.4518359 | AB179: 7.292754176 | AC179: 5 | AD179: 4.285714286 | AE179: 3.571428571 | AF179: 2.857142857 | AG179: 2.142857143 | AH179: 1.428571429 | AI179: 0.7142857143 | AJ179: 1.998401444e-15 | AK179: 0 | AL179: 0 | AM179: =AM95+AM107+AM119+AM152+AM165 -> 0 | AN179: 0 | AO179: 0 | AP179: 0 | AQ179: 0 | AR179: 0 | AS179: 0 | AT179: 0 | AU179: 0 | AV179: 0 | AW179: 0 | AX179: 0 | AY179: 0 | AZ179: 0 | BA179: 0 | BB179: 0 | BC179: 0 | BD179: 0 | BE179: 0 | BF179: 0 | BG179: 0 | BH179: 0 | BI179: 0
C180: Total Senior Debt Closing Balance | G180: =G97+G109+G122+G155+G168 -> 290 | H180: 278.9941814 | I180: 271.412039 | J180: 263.6550329 | K180: 255.7205745 | L180: 248.2609456 | M180: 239.984236 | N180: 230.8716111 | O180: 221.1993417 | P180: 207.7921066 | Q180: 193.8268468 | R180: 178.8263322 | S180: 163.1115292 | T180: 146.2025699 | U180: 128.8642202 | V180: 110.4788922 | W180: 91.42722778 | X180: 71.39373687 | Y180: 50.8093698 | Z180: 29.4518359 | AA180: 7.292754176 | AB180: 5 | AC180: 4.285714286 | AD180: 3.571428571 | AE180: 2.857142857 | AF180: 2.142857143 | AG180: 1.428571429 | AH180: 0.7142857143 | AI180: 1.998401444e-15 | AJ180: 0 | AK180: 0 | AL180: 0 | AM180: =AM97+AM109+AM122+AM155+AM168 -> 0 | AN180: 0 | AO180: 0 | AP180: 0 | AQ180: 0 | AR180: 0 | AS180: 0 | AT180: 0 | AU180: 0 | AV180: 0 | AW180: 0 | AX180: 0 | AY180: 0 | AZ180: 0 | BA180: 0 | BB180: 0 | BC180: 0 | BD180: 0 | BE180: 0 | BF180: 0 | BG180: 0 | BH180: 0 | BI180: 0
C181: Average Interest Rate | H181: =IFERROR(H177/H179*H10,0) -> 0.036 | I181: 0.036 | J181: 0.036 | K181: 0.036 | L181: 0.036 | M181: 0.026 | N181: 0.026 | O181: 0.026 | P181: 0.026 | Q181: 0.026 | R181: 0.026 | S181: 0.026 | T181: 0.021 | U181: 0.021 | V181: 0.021 | W181: 0.021 | X181: 0.021 | Y181: 0.021 | Z181: 0.021 | AA181: 0.021 | AB181: 0.021 | AC181: 0.021 | AD181: 0.021 | AE181: 0.021 | AF181: 0.021 | AG181: 0.021 | AH181: 0.021 | AI181: 0.021 | AJ181: 0.021 | AK181: 0 | AL181: 0 | AM181: 0 | AN181: =IFERROR(AN177/AN179*AN10,0) -> 0 | AO181: 0 | AP181: 0 | AQ181: 0 | AR181: 0 | AS181: 0 | AT181: 0 | AU181: 0 | AV181: 0 | AW181: 0 | AX181: 0 | AY181: 0 | AZ181: 0 | BA181: 0 | BB181: 0 | BC181: 0 | BD181: 0 | BE181: 0 | BF181: 0 | BG181: 0 | BH181: 0 | BI181: 0
A183: Profit and Loss
B184: Revenues
B185: Less: Operating Expenses
C186: EBITDA | H186: =H23 -> 15.07444397 | I186: =I23 -> 15.14925741 | J186: 15.22444214 | K186: 15.3 | L186: 15.05183664 | M186: 15.587051 | N186: 16.14129655 | O186: 16.71525 | P186: 18.22064435 | Q186: 18.86853542 | R186: 19.53946424 | S186: 20.23425 | T186: 21.33612183 | U186: 21.94926532 | V186: 22.58002892 | W186: 23.228919 | X186: 24.36927476 | Y186: 24.95690787 | Z186: 25.55871099 | AA186: 26.1750258 | AB186: 26.62153313 | AC186: 27.07565722 | AD186: 27.537528 | AE186: 28.00727761 | AF186: 28.35098948 | AG186: 28.69891947 | AH186: 29.05111934 | AI186: 29.40764149 | AJ186: 29.76853896 | AK186: 30.13386545 | AL186: 30.50367531 | AM186: 30.87802356 | AN186: 0 | AO186: 0 | AP186: 0 | AQ186: 0 | AR186: 0 | AS186: 0 | AT186: 0 | AU186: 0 | AV186: 0 | AW186: 0 | AX186: 0 | AY186: 0 | AZ186: 0 | BA186: 0 | BB186: 0 | BC186: 0 | BD186: 0 | BE186: 0 | BF186: 0 | BG186: 0 | BH186: 0 | BI186: 0
B187: Less: Depreciation | H187: =H57 -> 7.5 | I187: =I57 -> 7.500920418 | J187: 7.502758742 | K187: 7.505512639 | L187: 7.509179949 | M187: 7.513758689 | N187: 7.519247046 | O187: 7.525643382 | P187: 7.532946231 | Q187: 7.503654298 | R187: 7.475828958 | S187: 7.449460818 | T187: 7.42454078 | U187: 7.401060042 | V187: 7.379010089 | W187: 7.358382697 | X187: 7.339169925 | Y187: 7.321364118 | Z187: 7.304957902 | AA187: 7.28994418 | AB187: 7.276316134 | AC187: 7.264067222 | AD187: 7.253191171 | AE187: 7.243681982 | AF187: 7.235533926 | AG187: 7.228741537 | AH187: 7.22329962 | AI187: 7.219203238 | AJ187: 7.216447722 | AK187: 7.215028657 | AL187: 7.214941893 | AM187: 7.216183534 | AN187: 0 | AO187: 0 | AP187: 0 | AQ187: 0 | AR187: 0 | AS187: 0 | AT187: 0 | AU187: 0 | AV187: 0 | AW187: 0 | AX187: 0 | AY187: 0 | AZ187: 0 | BA187: 0 | BB187: 0 | BC187: 0 | BD187: 0 | BE187: 0 | BF187: 0 | BG187: 0 | BH187: 0 | BI187: 0
B188: Less: Amortisation of Intangibles | H188: =H65 -> 0.625 | I188: =I65 -> 0.625 | J188: 0.625 | K188: 0.625 | L188: 0.625 | M188: 0.625 | N188: 0.625 | O188: 0.625 | P188: 0.625 | Q188: 0.625 | R188: 0.625 | S188: 0.625 | T188: 0.625 | U188: 0.625 | V188: 0.625 | W188: 0.625 | X188: 0.625 | Y188: 0.625 | Z188: 0.625 | AA188: 0.625 | AB188: 0.625 | AC188: 0.625 | AD188: 0.625 | AE188: 0.625 | AF188: 0.625 | AG188: 0.625 | AH188: 0.625 | AI188: 0.625 | AJ188: 0.625 | AK188: 0.625 | AL188: 0.625 | AM188: 0.625 | AN188: 0 | AO188: 0 | AP188: 0 | AQ188: 0 | AR188: 0 | AS188: 0 | AT188: 0 | AU188: 0 | AV188: 0 | AW188: 0 | AX188: 0 | AY188: 0 | AZ188: 0 | BA188: 0 | BB188: 0 | BC188: 0 | BD188: 0 | BE188: 0 | BF188: 0 | BG188: 0 | BH188: 0 | BI188: 0
B189: Less: Amortisation of Debt Fees | H189: =H79 -> 0.2325 | I189: =I79 -> 0.2325 | J189: 0.2325 | K189: 0.2325 | L189: 0.2325 | M189: 0.2325 | N189: 0.2325 | O189: 0.2325 | P189: 0.2325 | Q189: 0.2325 | R189: 0.2325 | S189: 0.2325 | T189: 0.2325 | U189: 0.2325 | V189: 0.2325 | W189: 0.2325 | X189: 0.2325 | Y189: 0.2325 | Z189: 0.2325 | AA189: 0.2325 | AB189: 7.21644966e-16 | AC189: 0 | AD189: 0 | AE189: 0 | AF189: 0 | AG189: 0 | AH189: 0 | AI189: 0 | AJ189: 0 | AK189: 0 | AL189: 0 | AM189: 0 | AN189: 0 | AO189: 0 | AP189: 0 | AQ189: 0 | AR189: 0 | AS189: 0 | AT189: 0 | AU189: 0 | AV189: 0 | AW189: 0 | AX189: 0 | AY189: 0 | AZ189: 0 | BA189: 0 | BB189: 0 | BC189: 0 | BD189: 0 | BE189: 0 | BF189: 0 | BG189: 0 | BH189: 0 | BI189: 0
C190: EBIT | H190: =H186-H187-H188-H189 -> 6.716943974 | I190: =I186-I187-I188-I189 -> 6.79083699 | J190: 6.864183393 | K190: 6.936987361 | L190: 6.68515669 | M190: 7.215792307 | N190: 7.7645495 | O190: 8.332106618 | P190: 9.830198122 | Q190: 10.50738112 | R190: 11.20613528 | S190: 11.92728918 | T190: 13.05408105 | U190: 13.69070528 | V190: 14.34351884 | W190: 15.0130363 | X190: 16.17260483 | Y190: 16.77804375 | Z190: 17.39625309 | AA190: 18.02758162 | AB190: 18.720217 | AC190: 19.18659 | AD190: 19.65933683 | AE190: 20.13859562 | AF190: 20.49045556 | AG190: 20.84517793 | AH190: 21.20281972 | AI190: 21.56343825 | AJ190: 21.92709124 | AK190: 22.29383679 | AL190: 22.66373341 | AM190: 23.03684003 | AN190: 0 | AO190: 0 | AP190: 0 | AQ190: 0 | AR190: 0 | AS190: 0 | AT190: 0 | AU190: 0 | AV190: 0 | AW190: 0 | AX190: 0 | AY190: 0 | AZ190: 0 | BA190: 0 | BB190: 0 | BC190: 0 | BD190: 0 | BE190: 0 | BF190: 0 | BG190: 0 | BH190: 0 | BI190: 0
B191: Add: Interest Income | H191: =H87 -> 2.925 | I191: =I87 -> 2.925 | J191: 2.925 | K191: 2.925 | L191: 2.925 | M191: 2.925 | N191: 2.925 | O191: 2.925 | P191: 2.925 | Q191: 2.925 | R191: 2.925 | S191: 2.925 | T191: 2.925 | U191: 2.925 | V191: 2.925 | W191: 2.925 | X191: 2.925 | Y191: 2.925 | Z191: 2.925 | AA191: 2.925 | AB191: 2.925 | AC191: 2.925 | AD191: 2.925 | AE191: 2.925 | AF191: 2.925 | AG191: 2.925 | AH191: 2.925 | AI191: 2.925 | AJ191: 2.925 | AK191: 2.925 | AL191: 2.925 | AM191: 2.925 | AN191: 0 | AO191: 0 | AP191: 0 | AQ191: 0 | AR191: 0 | AS191: 0 | AT191: 0 | AU191: 0 | AV191: 0 | AW191: 0 | AX191: 0 | AY191: 0 | AZ191: 0 | BA191: 0 | BB191: 0 | BC191: 0 | BD191: 0 | BE191: 0 | BF191: 0 | BG191: 0 | BH191: 0 | BI191: 0
B192: Less: Interest Expense on Senior Debt | H192: =H177 -> 2.61 | I192: =I177 -> 2.510947633 | J192: 2.442708351 | K192: 2.372895296 | L192: 2.30148517 | M192: 1.613696147 | N192: 1.559897534 | O192: 1.500665472 | P192: 1.437795721 | Q192: 1.350648693 | R192: 1.259874504 | S192: 1.162371159 | T192: 0.8563355285 | U192: 0.7675634921 | V192: 0.6765371563 | W192: 0.580014184 | X192: 0.4799929459 | Y192: 0.3748171186 | Z192: 0.2667491914 | AA192: 0.1546221385 | AB192: 0.03828695942 | AC192: 0.02625 | AD192: 0.0225 | AE192: 0.01875 | AF192: 0.015 | AG192: 0.01125 | AH192: 0.0075 | AI192: 0.00375 | AJ192: 1.049160758e-17 | AK192: 0 | AL192: 0 | AM192: 0 | AN192: 0 | AO192: 0 | AP192: 0 | AQ192: 0 | AR192: 0 | AS192: 0 | AT192: 0 | AU192: 0 | AV192: 0 | AW192: 0 | AX192: 0 | AY192: 0 | AZ192: 0 | BA192: 0 | BB192: 0 | BC192: 0 | BD192: 0 | BE192: 0 | BF192: 0 | BG192: 0 | BH192: 0 | BI192: 0
B193: Less: Interest Expense on Capitalising Debt | H193: =H143 -> 0.81 | I193: =I143 -> 0.8264025 | J193: 0.8431371506 | K193: 0.8602106779 | L193: 0.8776299442 | M193: 0.8954019505 | N193: 0.91353384 | O193: 0.9320329003 | P193: 0.9509065665 | Q193: 0.9701624245 | R193: 0.9898082136 | S193: 1.00985183 | T193: 1.030301329 | U193: 1.051164931 | V193: 1.072451021 | W193: 1.094168154 | X193: 1.11632506 | Y193: 1.138930642 | Z193: 1.161993988 | AA193: 1.185524366 | AB193: 1.209531234 | AC193: 0.8231591055 | AD193: 0.3959659008 | AE193: 0 | AF193: 0 | AG193: 0 | AH193: 0 | AI193: 0 | AJ193: 0 | AK193: 0 | AL193: 0 | AM193: 0 | AN193: 0 | AO193: 0 | AP193: 0 | AQ193: 0 | AR193: 0 | AS193: 0 | AT193: 0 | AU193: 0 | AV193: 0 | AW193: 0 | AX193: 0 | AY193: 0 | AZ193: 0 | BA193: 0 | BB193: 0 | BC193: 0 | BD193: 0 | BE193: 0 | BF193: 0 | BG193: 0 | BH193: 0 | BI193: 0
C194: EBT | H194: =H190+H191-H192-H193 -> 6.221943974 | I194: =I190+I191-I192-I193 -> 6.378486857 | J194: 6.503337892 | K194: 6.628881387 | L194: 6.431041576 | M194: 7.63169421 | N194: 8.216118126 | O194: 8.824408245 | P194: 10.36649583 | Q194: 11.11157 | R194: 11.88145256 | S194: 12.68006619 | T194: 14.09244419 | U194: 14.79697686 | V194: 15.51953066 | W194: 16.26385396 | X194: 17.50128683 | Y194: 18.18929599 | Z194: 18.89250991 | AA194: 19.61243512 | AB194: 20.3973988 | AC194: 21.26218089 | AD194: 22.16587092 | AE194: 23.04484562 | AF194: 23.40045556 | AG194: 23.75892793 | AH194: 24.12031972 | AI194: 24.48468825 | AJ194: 24.85209124 | AK194: 25.21883679 | AL194: 25.58873341 | AM194: 25.96184003 | AN194: 0 | AO194: 0 | AP194: 0 | AQ194: 0 | AR194: 0 | AS194: 0 | AT194: 0 | AU194: 0 | AV194: 0 | AW194: 0 | AX194: 0 | AY194: 0 | AZ194: 0 | BA194: 0 | BB194: 0 | BC194: 0 | BD194: 0 | BE194: 0 | BF194: 0 | BG194: 0 | BH194: 0 | BI194: 0
B195: Less: Taxes
C196: Earnings | H196: =H194-H195 -> 6.221943974 | I196: =I194-I195 -> 6.378486857 | J196: 6.503337892 | K196: 6.628881387 | L196: 6.431041576 | M196: 7.63169421 | N196: 8.216118126 | O196: 8.824408245 | P196: 10.36649583 | Q196: 11.11157 | R196: 11.88145256 | S196: 12.68006619 | T196: 14.09244419 | U196: 14.79697686 | V196: 15.51953066 | W196: 16.26385396 | X196: 17.50128683 | Y196: 18.18929599 | Z196: 18.89250991 | AA196: 19.61243512 | AB196: 20.3973988 | AC196: 21.26218089 | AD196: 22.16587092 | AE196: 23.04484562 | AF196: 23.40045556 | AG196: 23.75892793 | AH196: 24.12031972 | AI196: 24.48468825 | AJ196: 24.85209124 | AK196: 25.21883679 | AL196: 25.58873341 | AM196: 25.96184003 | AN196: 0 | AO196: 0 | AP196: 0 | AQ196: 0 | AR196: 0 | AS196: 0 | AT196: 0 | AU196: 0 | AV196: 0 | AW196: 0 | AX196: 0 | AY196: 0 | AZ196: 0 | BA196: 0 | BB196: 0 | BC196: 0 | BD196: 0 | BE196: 0 | BF196: 0 | BG196: 0 | BH196: 0 | BI196: 0
A198: Cashflow waterfall
B199: EBITDA | H199: =H23 -> 15.07444397 | I199: =I23 -> 15.14925741 | J199: 15.22444214 | K199: 15.3 | L199: 15.05183664 | M199: 15.587051 | N199: 16.14129655 | O199: 16.71525 | P199: 18.22064435 | Q199: 18.86853542 | R199: 19.53946424 | S199: 20.23425 | T199: 21.33612183 | U199: 21.94926532 | V199: 22.58002892 | W199: 23.228919 | X199: 24.36927476 | Y199: 24.95690787 | Z199: 25.55871099 | AA199: 26.1750258 | AB199: 26.62153313 | AC199: 27.07565722 | AD199: 27.537528 | AE199: 28.00727761 | AF199: 28.35098948 | AG199: 28.69891947 | AH199: 29.05111934 | AI199: 29.40764149 | AJ199: 29.76853896 | AK199: 30.13386545 | AL199: 30.50367531 | AM199: 30.87802356 | AN199: 0 | AO199: 0 | AP199: 0 | AQ199: 0 | AR199: =AR23 -> 0 | AS199: 0 | AT199: 0 | AU199: 0 | AV199: 0 | AW199: 0 | AX199: 0 | AY199: 0 | AZ199: 0 | BA199: 0 | BB199: 0 | BC199: 0 | BD199: 0 | BE199: 0 | BF199: 0 | BG199: 0 | BH199: 0 | BI199: 0
B200: less: Changes in WC | H200: =H37 -> -3.397735776 | I200: =I37 -> 0.1376919726 | J200: 0.04337580456 | K200: -0.05235374035 | L200: 0.1812934336 | M200: 0.5219960136 | N200: 0.2281047178 | O200: 0.2348150742 | P200: 0.5004628103 | Q200: 0.6089953491 | R200: 0.2661221707 | S200: 0.2739509199 | T200: 0.416668757 | U200: 0.6172889575 | V200: 0.2193131298 | W200: 0.2247091557 | X200: 0.408674758 | Y200: 0.4751073317 | Z200: 0.3353847826 | AA200: 0.1849141277 | AB200: 0.2461337001 | AC200: 0.5820045075 | AD200: 0.08974207166 | AE200: 0.09213430323 | AF200: 0.1894685034 | AG200: 0.5433505173 | AH200: 0.01857089409 | AI200: 0.02054980193 | AJ200: 0.1989419285 | AK200: 0.5705180431 | AL200: 0.01949943879 | AM200: 0.02157729202 | AN200: 0 | AO200: 0 | AP200: 0 | AQ200: 0 | AR200: =AR37 -> 0 | AS200: 0 | AT200: 0 | AU200: 0 | AV200: 0 | AW200: 0 | AX200: 0 | AY200: 0 | AZ200: 0 | BA200: 0 | BB200: 0 | BC200: 0 | BD200: 0 | BE200: 0 | BF200: 0 | BG200: 0 | BH200: 0 | BI200: 0
B201: less: Taxes
C202: Operating cash flow | H202: =H199-H200-H201 -> 18.47217975 | I202: =I199-I200-I201 -> 15.01156543 | J202: 15.18106633 | K202: 15.35235374 | L202: 14.87054321 | M202: 15.06505498 | N202: 15.91319183 | O202: 16.48043493 | P202: 17.72018154 | Q202: 18.25954007 | R202: 19.27334207 | S202: 19.96029908 | T202: 20.91945308 | U202: 21.33197636 | V202: 22.3607158 | W202: 23.00420984 | X202: 23.9606 | Y202: 24.48180054 | Z202: 25.22332621 | AA202: 25.99011167 | AB202: 26.37539943 | AC202: 26.49365271 | AD202: 27.44778592 | AE202: 27.9151433 | AF202: 28.16152098 | AG202: 28.15556895 | AH202: 29.03254845 | AI202: 29.38709168 | AJ202: 29.56959703 | AK202: 29.5633474 | AL202: 30.48417587 | AM202: 30.85644627 | AN202: 0 | AO202: 0 | AP202: 0 | AQ202: 0 | AR202: =AR199-AR200-AR201 -> 0 | AS202: 0 | AT202: 0 | AU202: 0 | AV202: 0 | AW202: 0 | AX202: 0 | AY202: 0 | AZ202: 0 | BA202: 0 | BB202: 0 | BC202: 0 | BD202: 0 | BE202: 0 | BF202: 0 | BG202: 0 | BH202: 0 | BI202: 0
B203: Less: CAPEX | H203: =H28 -> 7.561361172 | I203: =I28 -> 7.623475383 | J203: 7.686351874 | K203: 7.75 | L203: 7.814429231 | M203: 7.879649152 | N203: 7.945669468 | O203: 8.0125 | P203: 5.580150692 | Q203: 5.64863161 | R203: 5.717952941 | S203: 5.788125 | T203: 5.859158227 | U203: 5.93106319 | V203: 6.003850588 | W203: 6.07753125 | X203: 6.152116138 | Y203: 6.22761635 | Z203: 6.304043118 | AA203: 6.381407813 | AB203: 6.459721945 | AC203: 6.538997167 | AD203: 6.619245273 | AE203: 6.700478203 | AF203: 6.782708042 | AG203: 6.865947026 | AH203: 6.950207537 | AI203: 7.035502113 | AJ203: 7.121843445 | AK203: 7.209244377 | AL203: 7.297717914 | AM203: 7.387277219 | AN203: 0 | AO203: 0 | AP203: 0 | AQ203: 0 | AR203: =AR28 -> 0 | AS203: 0 | AT203: 0 | AU203: 0 | AV203: 0 | AW203: 0 | AX203: 0 | AY203: 0 | AZ203: 0 | BA203: 0 | BB203: 0 | BC203: 0 | BD203: 0 | BE203: 0 | BF203: 0 | BG203: 0 | BH203: 0 | BI203: 0
B204: Add: exit proceeds | H204: =H40 -> 0 | I204: 0 | J204: 0 | K204: 0 | L204: 0 | M204: 0 | N204: 0 | O204: 0 | P204: 0 | Q204: 0 | R204: 0 | S204: 0 | T204: 0 | U204: 0 | V204: 0 | W204: 0 | X204: 0 | Y204: 0 | Z204: 0 | AA204: 0 | AB204: 0 | AC204: 0 | AD204: 0 | AE204: 0 | AF204: 0 | AG204: 0 | AH204: 0 | AI204: 0 | AJ204: 0 | AK204: 0 | AL204: 0 | AM204: 606.4205163 | AN204: =AN40 -> 0 | AO204: 0 | AP204: 0 | AQ204: 0 | AR204: 0 | AS204: 0 | AT204: 0 | AU204: 0 | AV204: 0 | AW204: 0 | AX204: 0 | AY204: 0 | AZ204: 0 | BA204: 0 | BB204: 0 | BC204: 0 | BD204: 0 | BE204: 0 | BF204: 0 | BG204: 0 | BH204: 0 | BI204: 0
B205: Add: Notes Receivable | H205: =H83+H87 -> 2.925 | I205: =I83+I87 -> 2.925 | J205: 2.925 | K205: 2.925 | L205: 2.925 | M205: 2.925 | N205: 2.925 | O205: 2.925 | P205: 2.925 | Q205: 2.925 | R205: 2.925 | S205: 2.925 | T205: 2.925 | U205: 2.925 | V205: 2.925 | W205: 2.925 | X205: 2.925 | Y205: 2.925 | Z205: 2.925 | AA205: 2.925 | AB205: 2.925 | AC205: 2.925 | AD205: 2.925 | AE205: 2.925 | AF205: 2.925 | AG205: 2.925 | AH205: 2.925 | AI205: 2.925 | AJ205: 2.925 | AK205: 2.925 | AL205: 2.925 | AM205: 132.925 | AN205: 0 | AO205: 0 | AP205: 0 | AQ205: 0 | AR205: 0 | AS205: 0 | AT205: 0 | AU205: 0 | AV205: 0 | AW205: 0 | AX205: 0 | AY205: 0 | AZ205: 0 | BA205: 0 | BB205: 0 | BC205: 0 | BD205: 0 | BE205: 0 | BF205: 0 | BG205: 0 | BH205: 0 | BI205: 0
B206: Less: Pensions | H206: =H90*H6 -> 0 | I206: 0 | J206: 0 | K206: 0 | L206: 0 | M206: 0 | N206: 0 | O206: 0 | P206: 0 | Q206: 0 | R206: 0 | S206: 0 | T206: 0 | U206: 0 | V206: 0 | W206: 0 | X206: 0 | Y206: 0 | Z206: 0 | AA206: 0 | AB206: 0 | AC206: 0 | AD206: 0 | AE206: 0 | AF206: 0 | AG206: 0 | AH206: 0 | AI206: 0 | AJ206: 0 | AK206: 0 | AL206: 0 | AM206: 60 | AN206: =AN90*AN6 -> 0 | AO206: 0 | AP206: 0 | AQ206: 0 | AR206: 0 | AS206: 0 | AT206: 0 | AU206: 0 | AV206: 0 | AW206: 0 | AX206: 0 | AY206: 0 | AZ206: 0 | BA206: 0 | BB206: 0 | BC206: 0 | BD206: 0 | BE206: 0 | BF206: 0 | BG206: 0 | BH206: 0 | BI206: 0
B207: Less: Commitment Fee | H207: =H150 -> 0.22 | I207: =I150 -> 0.22 | J207: 0.22 | K207: 0.22 | L207: 0.22 | M207: 0.22 | N207: 0.22 | O207: 0.22 | P207: 0.22 | Q207: 0.22 | R207: 0.22 | S207: 0.22 | T207: 0.22 | U207: 0.22 | V207: 0.22 | W207: 0.22 | X207: 0.22 | Y207: 0.22 | Z207: 0.22 | AA207: 0.22 | AB207: 0.22 | AC207: 0.22 | AD207: 0.22 | AE207: 0.22 | AF207: 0.22 | AG207: 0.22 | AH207: 0.22 | AI207: 0.22 | AJ207: 0.22 | AK207: 0.22 | AL207: 0.22 | AM207: 0.22 | AN207: 0 | AO207: 0 | AP207: 0 | AQ207: 0 | AR207: 0 | AS207: 0 | AT207: 0 | AU207: 0 | AV207: 0 | AW207: 0 | AX207: 0 | AY207: 0 | AZ207: 0 | BA207: 0 | BB207: 0 | BC207: 0 | BD207: 0 | BE207: 0 | BF207: 0 | BG207: 0 | BH207: 0 | BI207: 0
C208: Cashflow before financing | F208: =show_formulaL(H208) -> =H202-H203+H204+H205-H206-H207----> | H208: =H202-H203+H204+H205-H206-H207 -> 13.61581858 | I208: =I202-I203+I204+I205-I206-I207 -> 10.09309005 | J208: 10.19971446 | K208: 10.30735374 | L208: 9.761113975 | M208: 9.89040583 | N208: 10.67252236 | O208: 11.17293493 | P208: 14.84503085 | Q208: 15.31590846 | R208: 16.26038913 | S208: 16.87717408 | T208: 17.76529485 | U208: 18.10591317 | V208: 19.06186521 | W208: 19.63167859 | X208: 20.51348386 | Y208: 20.95918419 | Z208: 21.62428309 | AA208: 22.31370386 | AB208: 22.62067749 | AC208: 22.65965555 | AD208: 23.53354065 | AE208: 23.9196651 | AF208: 24.08381294 | AG208: 23.99462193 | AH208: 24.78734091 | AI208: 25.05658957 | AJ208: 25.15275358 | AK208: 25.05910303 | AL208: 25.89145795 | AM208: 702.5946854 | AN208: 0 | AO208: 0 | AP208: 0 | AQ208: 0 | AR208: 0 | AS208: 0 | AT208: 0 | AU208: 0 | AV208: 0 | AW208: 0 | AX208: 0 | AY208: 0 | AZ208: 0 | BA208: 0 | BB208: 0 | BC208: 0 | BD208: 0 | BE208: 0 | BF208: 0 | BG208: 0 | BH208: 0 | BI208: 0
B209: less: senior repayments | H209: =H178 -> 7.714285714 | I209: 7.714285714 | J209: 7.714285714 | K209: 7.714285714 | L209: 7.714285714 | M209: 7.714285714 | N209: 7.714285714 | O209: 7.714285714 | P209: 7.714285714 | Q209: 7.714285714 | R209: 7.714285714 | S209: 7.714285714 | T209: 7.714285714 | U209: 7.714285714 | V209: 7.714285714 | W209: 7.714285714 | X209: 7.714285714 | Y209: 7.714285714 | Z209: 7.714285714 | AA209: 7.714285714 | AB209: 0.7142857143 | AC209: 0.7142857143 | AD209: 0.7142857143 | AE209: 0.7142857143 | AF209: 0.7142857143 | AG209: 0.7142857143 | AH209: 0.7142857143 | AI209: 0.7142857143 | AJ209: 1.998401444e-15 | AK209: 0 | AL209: 0 | AM209: 0 | AN209: =AN178 -> 0 | AO209: 0 | AP209: 0 | AQ209: 0 | AR209: 0 | AS209: 0 | AT209: 0 | AU209: 0 | AV209: 0 | AW209: 0 | AX209: 0 | AY209: 0 | AZ209: 0 | BA209: 0 | BB209: 0 | BC209: 0 | BD209: 0 | BE209: 0 | BF209: 0 | BG209: 0 | BH209: 0 | BI209: 0
B210: less: senior interest | H210: =H177 -> 2.61 | I210: 2.510947633 | J210: 2.442708351 | K210: 2.372895296 | L210: 2.30148517 | M210: 1.613696147 | N210: 1.559897534 | O210: 1.500665472 | P210: 1.437795721 | Q210: 1.350648693 | R210: 1.259874504 | S210: 1.162371159 | T210: 0.8563355285 | U210: 0.7675634921 | V210: 0.6765371563 | W210: 0.580014184 | X210: 0.4799929459 | Y210: 0.3748171186 | Z210: 0.2667491914 | AA210: 0.1546221385 | AB210: 0.03828695942 | AC210: 0.02625 | AD210: 0.0225 | AE210: 0.01875 | AF210: 0.015 | AG210: 0.01125 | AH210: 0.0075 | AI210: 0.00375 | AJ210: 1.049160758e-17 | AK210: 0 | AL210: 0 | AM210: 0 | AN210: =AN177 -> 0 | AO210: 0 | AP210: 0 | AQ210: 0 | AR210: 0 | AS210: 0 | AT210: 0 | AU210: 0 | AV210: 0 | AW210: 0 | AX210: 0 | AY210: 0 | AZ210: 0 | BA210: 0 | BB210: 0 | BC210: 0 | BD210: 0 | BE210: 0 | BF210: 0 | BG210: 0 | BH210: 0 | BI210: 0
C211: Cashflow after senior debt service | F211: =show_formulaL(H211) -> =H208-H209-H210----> | H211: =H208-H209-H210 -> 3.291532863 | I211: -0.1321432951 | J211: 0.0427203916 | K211: 0.22017273 | L211: -0.2546569091 | M211: 0.5624239693 | N211: 1.398339112 | O211: 1.957983739 | P211: 5.692949415 | Q211: 6.25097405 | R211: 7.286228909 | S211: 8.000517207 | T211: 9.194673606 | U211: 9.624063967 | V211: 10.67104234 | W211: 11.3373787 | X211: 12.3192052 | Y211: 12.87008136 | Z211: 13.64324818 | AA211: 14.44479601 | AB211: 21.86810481 | AC211: 21.91911983 | AD211: 22.79675494 | AE211: 23.18662939 | AF211: 23.35452722 | AG211: 23.26908621 | AH211: 24.06555519 | AI211: 24.33855386 | AJ211: 25.15275358 | AK211: 25.05910303 | AL211: 25.89145795 | AM211: 702.5946854 | AN211: =AN208-AN209-AN210 -> 0 | AO211: 0 | AP211: 0 | AQ211: 0 | AR211: 0 | AS211: 0 | AT211: 0 | AU211: 0 | AV211: 0 | AW211: 0 | AX211: 0 | AY211: 0 | AZ211: 0 | BA211: 0 | BB211: 0 | BC211: 0 | BD211: 0 | BE211: 0 | BF211: 0 | BG211: 0 | BH211: 0 | BI211: 0
B212: add: draws on revolver | F212: =MIN(MAX(-H211,0),H148)----> | H212: =MIN(MAX(-H211,0),H148) -> 0 | I212: 0.1321432951 | J212: 0 | K212: 0 | L212: 0.2546569091 | M212: 0 | N212: 0 | O212: 0 | P212: 0 | Q212: 0 | R212: 0 | S212: 0 | T212: 0 | U212: 0 | V212: 0 | W212: 0 | X212: 0 | Y212: 0 | Z212: 0 | AA212: 0 | AB212: 0 | AC212: 0 | AD212: 0 | AE212: 0 | AF212: 0 | AG212: 0 | AH212: 0 | AI212: 0 | AJ212: 0 | AK212: 0 | AL212: 0 | AM212: 0 | AN212: =MIN(MAX(-AN211,0),AN148) -> 0 | AO212: 0 | AP212: 0 | AQ212: 0 | AR212: 0 | AS212: 0 | AT212: 0 | AU212: 0 | AV212: 0 | AW212: 0 | AX212: 0 | AY212: 0 | AZ212: 0 | BA212: 0 | BB212: 0 | BC212: 0 | BD212: 0 | BE212: 0 | BF212: 0 | BG212: 0 | BH212: 0 | BI212: 0
B213: less: repayments of revolver | F213: =MIN(MAX(H211,0),H152)----> | H213: =MIN(MAX(H211,0),H152) -> 0 | I213: 0 | J213: 0.0427203916 | K213: 0.08942290352 | L213: 0 | M213: 0.2546569091 | N213: 0 | O213: 0 | P213: 0 | Q213: 0 | R213: 0 | S213: 0 | T213: 0 | U213: 0 | V213: 0 | W213: 0 | X213: 0 | Y213: 0 | Z213: 0 | AA213: 0 | AB213: 0 | AC213: 0 | AD213: 0 | AE213: 0 | AF213: 0 | AG213: 0 | AH213: 0 | AI213: 0 | AJ213: 0 | AK213: 0 | AL213: 0 | AM213: 0 | AN213: =MIN(MAX(AN211,0),AN152) -> 0 | AO213: 0 | AP213: 0 | AQ213: 0 | AR213: 0 | AS213: 0 | AT213: 0 | AU213: 0 | AV213: 0 | AW213: 0 | AX213: 0 | AY213: 0 | AZ213: 0 | BA213: 0 | BB213: 0 | BC213: 0 | BD213: 0 | BE213: 0 | BF213: 0 | BG213: 0 | BH213: 0 | BI213: 0
C214: Cashflow after revolver | F214: =H211+H212-H213----> | H214: =H211+H212-H213 -> 3.291532863 | I214: 0 | J214: 0 | K214: 0.1307498265 | L214: 0 | M214: 0.3077670601 | N214: 1.398339112 | O214: 1.957983739 | P214: 5.692949415 | Q214: 6.25097405 | R214: 7.286228909 | S214: 8.000517207 | T214: 9.194673606 | U214: 9.624063967 | V214: 10.67104234 | W214: 11.3373787 | X214: 12.3192052 | Y214: 12.87008136 | Z214: 13.64324818 | AA214: 14.44479601 | AB214: 21.86810481 | AC214: 21.91911983 | AD214: 22.79675494 | AE214: 23.18662939 | AF214: 23.35452722 | AG214: 23.26908621 | AH214: 24.06555519 | AI214: 24.33855386 | AJ214: 25.15275358 | AK214: 25.05910303 | AL214: 25.89145795 | AM214: 702.5946854 | AN214: =AN211+AN212-AN213 -> 0 | AO214: 0 | AP214: 0 | AQ214: 0 | AR214: 0 | AS214: 0 | AT214: 0 | AU214: 0 | AV214: 0 | AW214: 0 | AX214: 0 | AY214: 0 | AZ214: 0 | BA214: 0 | BB214: 0 | BC214: 0 | BD214: 0 | BE214: 0 | BF214: 0 | BG214: 0 | BH214: 0 | BI214: 0
B215: less: repayment of default | F215: =MIN(MAX(H214,0),H165)----> | H215: =MIN(MAX(H214,0),H165) -> 0 | I215: 0 | J215: 0 | K215: 0 | L215: 0 | M215: 0 | N215: 0 | O215: 0 | P215: 0 | Q215: 0 | R215: 0 | S215: 0 | T215: 0 | U215: 0 | V215: 0 | W215: 0 | X215: 0 | Y215: 0 | Z215: 0 | AA215: 0 | AB215: 0 | AC215: 0 | AD215: 0 | AE215: 0 | AF215: 0 | AG215: 0 | AH215: 0 | AI215: 0 | AJ215: 0 | AK215: 0 | AL215: 0 | AM215: 0 | AN215: =MIN(MAX(AN214,0),AN165) -> 0 | AO215: 0 | AP215: 0 | AQ215: 0 | AR215: 0 | AS215: 0 | AT215: 0 | AU215: 0 | AV215: 0 | AW215: 0 | AX215: 0 | AY215: 0 | AZ215: 0 | BA215: 0 | BB215: 0 | BC215: 0 | BD215: 0 | BE215: 0 | BF215: 0 | BG215: 0 | BH215: 0 | BI215: 0
C216: Cashflow after repayment of default | F216: =H214-H215----> | H216: =H214-H215 -> 3.291532863 | I216: 0 | J216: 0 | K216: 0.1307498265 | L216: 0 | M216: 0.3077670601 | N216: 1.398339112 | O216: 1.957983739 | P216: 5.692949415 | Q216: 6.25097405 | R216: 7.286228909 | S216: 8.000517207 | T216: 9.194673606 | U216: 9.624063967 | V216: 10.67104234 | W216: 11.3373787 | X216: 12.3192052 | Y216: 12.87008136 | Z216: 13.64324818 | AA216: 14.44479601 | AB216: 21.86810481 | AC216: 21.91911983 | AD216: 22.79675494 | AE216: 23.18662939 | AF216: 23.35452722 | AG216: 23.26908621 | AH216: 24.06555519 | AI216: 24.33855386 | AJ216: 25.15275358 | AK216: 25.05910303 | AL216: 25.89145795 | AM216: 702.5946854 | AN216: =AN214-AN215 -> 0 | AO216: 0 | AP216: 0 | AQ216: 0 | AR216: 0 | AS216: 0 | AT216: 0 | AU216: 0 | AV216: 0 | AW216: 0 | AX216: 0 | AY216: 0 | AZ216: 0 | BA216: 0 | BB216: 0 | BC216: 0 | BD216: 0 | BE216: 0 | BF216: 0 | BG216: 0 | BH216: 0 | BI216: 0
B217: less: cashflow sweeps | F217: =MIN(MAX(H216,0),H119-H120)----> | H217: =MIN(MAX(H216,0),H119-H120) -> 3.291532863 | I217: 0 | J217: 0 | K217: 0.1307498265 | L217: 0 | M217: 0.3077670601 | N217: 1.398339112 | O217: 1.957983739 | P217: 5.692949415 | Q217: 6.25097405 | R217: 7.286228909 | S217: 8.000517207 | T217: 9.194673606 | U217: 9.624063967 | V217: 10.67104234 | W217: 11.3373787 | X217: 12.3192052 | Y217: 12.87008136 | Z217: 13.64324818 | AA217: 14.44479601 | AB217: 1.578468461 | AC217: 0 | AD217: 0 | AE217: 0 | AF217: 0 | AG217: 0 | AH217: 0 | AI217: 0 | AJ217: 0 | AK217: 0 | AL217: 0 | AM217: 0 | AN217: =MIN(MAX(AN216,0),AN119-AN120) -> 0 | AO217: 0 | AP217: 0 | AQ217: 0 | AR217: 0 | AS217: 0 | AT217: 0 | AU217: 0 | AV217: 0 | AW217: 0 | AX217: 0 | AY217: 0 | AZ217: 0 | BA217: 0 | BB217: 0 | BC217: 0 | BD217: 0 | BE217: 0 | BF217: 0 | BG217: 0 | BH217: 0 | BI217: 0
C218: Cashflow after sweep | F218: =H216-H217----> | H218: =H216-H217 -> 0 | I218: 0 | J218: 0 | K218: 0 | L218: 0 | M218: 0 | N218: 0 | O218: 0 | P218: 0 | Q218: 0 | R218: 0 | S218: 0 | T218: 0 | U218: 0 | V218: 0 | W218: 0 | X218: 0 | Y218: 0 | Z218: 0 | AA218: 0 | AB218: 20.28963635 | AC218: 21.91911983 | AD218: 22.79675494 | AE218: 23.18662939 | AF218: 23.35452722 | AG218: 23.26908621 | AH218: 24.06555519 | AI218: 24.33855386 | AJ218: 25.15275358 | AK218: 25.05910303 | AL218: 25.89145795 | AM218: 702.5946854 | AN218: =AN216-AN217 -> 0 | AO218: 0 | AP218: 0 | AQ218: 0 | AR218: 0 | AS218: 0 | AT218: 0 | AU218: 0 | AV218: 0 | AW218: 0 | AX218: 0 | AY218: 0 | AZ218: 0 | BA218: 0 | BB218: 0 | BC218: 0 | BD218: 0 | BE218: 0 | BF218: 0 | BG218: 0 | BH218: 0 | BI218: 0
B219: add: default on senior debt | F219: =MAX(-H218,0)----> | H219: =MAX(-H218,0) -> 0 | I219: 0 | J219: 0 | K219: 0 | L219: 0 | M219: 0 | N219: 0 | O219: 0 | P219: 0 | Q219: 0 | R219: 0 | S219: 0 | T219: 0 | U219: 0 | V219: 0 | W219: 0 | X219: 0 | Y219: 0 | Z219: 0 | AA219: 0 | AB219: 0 | AC219: 0 | AD219: 0 | AE219: 0 | AF219: 0 | AG219: 0 | AH219: 0 | AI219: 0 | AJ219: 0 | AK219: 0 | AL219: 0 | AM219: 0 | AN219: =MAX(-AN218,0) -> 0 | AO219: 0 | AP219: 0 | AQ219: 0 | AR219: 0 | AS219: 0 | AT219: 0 | AU219: 0 | AV219: 0 | AW219: 0 | AX219: 0 | AY219: 0 | AZ219: 0 | BA219: 0 | BB219: 0 | BC219: 0 | BD219: 0 | BE219: 0 | BF219: 0 | BG219: 0 | BH219: 0 | BI219: 0
C220: cashflow after senior debt | F220: =H218+H219----> | H220: =H218+H219 -> 0 | I220: 0 | J220: 0 | K220: 0 | L220: 0 | M220: 0 | N220: 0 | O220: 0 | P220: 0 | Q220: 0 | R220: 0 | S220: 0 | T220: 0 | U220: 0 | V220: 0 | W220: 0 | X220: 0 | Y220: 0 | Z220: 0 | AA220: 0 | AB220: 20.28963635 | AC220: 21.91911983 | AD220: 22.79675494 | AE220: 23.18662939 | AF220: 23.35452722 | AG220: 23.26908621 | AH220: 24.06555519 | AI220: 24.33855386 | AJ220: 25.15275358 | AK220: 25.05910303 | AL220: 25.89145795 | AM220: 702.5946854 | AN220: =AN218+AN219 -> 0 | AO220: 0 | AP220: 0 | AQ220: 0 | AR220: 0 | AS220: 0 | AT220: 0 | AU220: 0 | AV220: 0 | AW220: 0 | AX220: 0 | AY220: 0 | AZ220: 0 | BA220: 0 | BB220: 0 | BC220: 0 | BD220: 0 | BE220: 0 | BF220: 0 | BG220: 0 | BH220: 0 | BI220: 0
B221: less: repayments of the sub-debt | F221: =MIN(MAX(H220,0),H132+H133)----> | H221: =MIN(MAX(H220,0),H132+H133) -> 0 | I221: 0 | J221: 0 | K221: 0 | L221: 0 | M221: 0 | N221: 0 | O221: 0 | P221: 0 | Q221: 0 | R221: 0 | S221: 0 | T221: 0 | U221: 0 | V221: 0 | W221: 0 | X221: 0 | Y221: 0 | Z221: 0 | AA221: 0 | AB221: 20.28963635 | AC221: 21.91911983 | AD221: 19.94983755 | AE221: 0 | AF221: 0 | AG221: 0 | AH221: 0 | AI221: 0 | AJ221: 0 | AK221: 0 | AL221: 0 | AM221: 0 | AN221: =MIN(MAX(AN220,0),AN132+AN133) -> 0 | AO221: 0 | AP221: 0 | AQ221: 0 | AR221: 0 | AS221: 0 | AT221: 0 | AU221: 0 | AV221: 0 | AW221: 0 | AX221: 0 | AY221: 0 | AZ221: 0 | BA221: 0 | BB221: 0 | BC221: 0 | BD221: 0 | BE221: 0 | BF221: 0 | BG221: 0 | BH221: 0 | BI221: 0
C222: Cashflow to equity | F222: =H220-H221----> | H222: =H220-H221 -> 0 | I222: 0 | J222: 0 | K222: 0 | L222: 0 | M222: 0 | N222: 0 | O222: 0 | P222: 0 | Q222: 0 | R222: 0 | S222: 0 | T222: 0 | U222: 0 | V222: 0 | W222: 0 | X222: 0 | Y222: 0 | Z222: 0 | AA222: 0 | AB222: 0 | AC222: 0 | AD222: 2.84691739 | AE222: 23.18662939 | AF222: 23.35452722 | AG222: 23.26908621 | AH222: 24.06555519 | AI222: 24.33855386 | AJ222: 25.15275358 | AK222: 25.05910303 | AL222: 25.89145795 | AM222: 702.5946854 | AN222: =AN220-AN221 -> 0 | AO222: 0 | AP222: 0 | AQ222: 0 | AR222: 0 | AS222: 0 | AT222: 0 | AU222: 0 | AV222: 0 | AW222: 0 | AX222: 0 | AY222: 0 | AZ222: 0 | BA222: 0 | BB222: 0 | BC222: 0 | BD222: 0 | BE222: 0 | BF222: 0 | BG222: 0 | BH222: 0 | BI222: 0
B223: less: incentives paid to management
C224: Dividends to equity
B226: Equity cashflow | G226: =-'S&U and Pro-Forma'!E18 -> -227.38 | H226: =H222 -> 0 | I226: 0 | J226: 0 | K226: 0 | L226: 0 | M226: 0 | N226: 0 | O226: 0 | P226: 0 | Q226: 0 | R226: 0 | S226: 0 | T226: 0 | U226: 0 | V226: 0 | W226: 0 | X226: 0 | Y226: 0 | Z226: 0 | AA226: 0 | AB226: 0 | AC226: 0 | AD226: 2.84691739 | AE226: 23.18662939 | AF226: 23.35452722 | AG226: 23.26908621 | AH226: 24.06555519 | AI226: 24.33855386 | AJ226: 25.15275358 | AK226: 25.05910303 | AL226: 25.89145795 | AM226: 702.5946854 | AN226: =AN222 -> 0 | AO226: 0 | AP226: 0 | AQ226: 0 | AR226: 0 | AS226: 0 | AT226: 0 | AU226: 0 | AV226: 0 | AW226: 0 | AX226: 0 | AY226: 0 | AZ226: 0 | BA226: 0 | BB226: 0 | BC226: 0 | BD226: 0 | BE226: 0 | BF226: 0 | BG226: 0 | BH226: 0 | BI226: 0
B227: Equity IRR | G227: =(1+IRR(G226:BI226,0.01))^4-1 -> 0.1948427648
B229: Senior Debt Cash Flow
C230: Total Repayments | H230: =H209+H213+H215+H217 -> 11.00581858 | I230: =I209+I213+I215+I217 -> 7.714285714 | J230: 7.757006106 | K230: 7.934458444 | L230: 7.714285714 | M230: 8.276709684 | N230: 9.112624826 | O230: 9.672269453 | P230: 13.40723513 | Q230: 13.96525976 | R230: 15.00051462 | S230: 15.71480292 | T230: 16.90895932 | U230: 17.33834968 | V230: 18.38532805 | W230: 19.05166441 | X230: 20.03349092 | Y230: 20.58436707 | Z230: 21.3575339 | AA230: 22.15908172 | AB230: 2.292754176 | AC230: 0.7142857143 | AD230: 0.7142857143 | AE230: 0.7142857143 | AF230: 0.7142857143 | AG230: 0.7142857143 | AH230: 0.7142857143 | AI230: 0.7142857143 | AJ230: 1.998401444e-15 | AK230: 0 | AL230: 0 | AM230: 0 | AN230: 0 | AO230: 0 | AP230: 0 | AQ230: 0 | AR230: 0 | AS230: 0 | AT230: 0 | AU230: 0 | AV230: 0 | AW230: 0 | AX230: 0 | AY230: 0 | AZ230: 0 | BA230: 0 | BB230: 0 | BC230: 0 | BD230: 0 | BE230: 0 | BF230: 0 | BG230: 0 | BH230: 0 | BI230: 0
C231: New Debt | H231: =H212+H219 -> 0 | I231: =I212+I219 -> 0.1321432951 | J231: 0 | K231: 0 | L231: 0.2546569091 | M231: 0 | N231: 0 | O231: 0 | P231: 0 | Q231: 0 | R231: 0 | S231: 0 | T231: 0 | U231: 0 | V231: 0 | W231: 0 | X231: 0 | Y231: 0 | Z231: 0 | AA231: 0 | AB231: 0 | AC231: 0 | AD231: 0 | AE231: 0 | AF231: 0 | AG231: 0 | AH231: 0 | AI231: 0 | AJ231: 0 | AK231: 0 | AL231: 0 | AM231: 0 | AN231: 0 | AO231: 0 | AP231: 0 | AQ231: 0 | AR231: 0 | AS231: 0 | AT231: 0 | AU231: 0 | AV231: 0 | AW231: 0 | AX231: 0 | AY231: 0 | AZ231: 0 | BA231: 0 | BB231: 0 | BC231: 0 | BD231: 0 | BE231: 0 | BF231: 0 | BG231: 0 | BH231: 0 | BI231: 0
C232: Interest Expense | H232: =H210 -> 2.61 | I232: =I210 -> 2.510947633 | J232: 2.442708351 | K232: 2.372895296 | L232: 2.30148517 | M232: 1.613696147 | N232: 1.559897534 | O232: 1.500665472 | P232: 1.437795721 | Q232: 1.350648693 | R232: 1.259874504 | S232: 1.162371159 | T232: 0.8563355285 | U232: 0.7675634921 | V232: 0.6765371563 | W232: 0.580014184 | X232: 0.4799929459 | Y232: 0.3748171186 | Z232: 0.2667491914 | AA232: 0.1546221385 | AB232: 0.03828695942 | AC232: 0.02625 | AD232: 0.0225 | AE232: 0.01875 | AF232: 0.015 | AG232: 0.01125 | AH232: 0.0075 | AI232: 0.00375 | AJ232: 1.049160758e-17 | AK232: 0 | AL232: 0 | AM232: 0 | AN232: 0 | AO232: 0 | AP232: 0 | AQ232: 0 | AR232: 0 | AS232: 0 | AT232: 0 | AU232: 0 | AV232: 0 | AW232: 0 | AX232: 0 | AY232: 0 | AZ232: 0 | BA232: 0 | BB232: 0 | BC232: 0 | BD232: 0 | BE232: 0 | BF232: 0 | BG232: 0 | BH232: 0 | BI232: 0
C233: Fees | G233: ='S&U and Pro-Forma'!E5 -> 4.65 | H233: =H207 -> 0.22 | I233: =I207 -> 0.22 | J233: 0.22 | K233: 0.22 | L233: 0.22 | M233: 0.22 | N233: 0.22 | O233: 0.22 | P233: 0.22 | Q233: 0.22 | R233: 0.22 | S233: 0.22 | T233: 0.22 | U233: 0.22 | V233: 0.22 | W233: 0.22 | X233: 0.22 | Y233: 0.22 | Z233: 0.22 | AA233: 0.22 | AB233: 0.22 | AC233: 0.22 | AD233: 0.22 | AE233: 0.22 | AF233: 0.22 | AG233: 0.22 | AH233: 0.22 | AI233: 0.22 | AJ233: 0.22 | AK233: 0.22 | AL233: 0.22 | AM233: 0.22 | AN233: 0 | AO233: 0 | AP233: 0 | AQ233: 0 | AR233: 0 | AS233: 0 | AT233: 0 | AU233: 0 | AV233: 0 | AW233: 0 | AX233: 0 | AY233: 0 | AZ233: 0 | BA233: 0 | BB233: 0 | BC233: 0 | BD233: 0 | BE233: 0 | BF233: 0 | BG233: 0 | BH233: 0 | BI233: 0
C234: Less: Debt Issued | G234: =G180 -> 290
D235: Total Debt Cash Flow | G235: =G230-G231+G232-G234+G233 -> -285.35 | H235: =H230-H231+H232-H234+H233 -> 13.83581858 | I235: 10.31309005 | J235: 10.41971446 | K235: 10.52735374 | L235: 9.981113975 | M235: 10.11040583 | N235: 10.89252236 | O235: 11.39293493 | P235: 15.06503085 | Q235: 15.53590846 | R235: 16.48038913 | S235: 17.09717408 | T235: 17.98529485 | U235: 18.32591317 | V235: 19.28186521 | W235: 19.85167859 | X235: 20.73348386 | Y235: 21.17918419 | Z235: 21.84428309 | AA235: 22.53370386 | AB235: 2.551041135 | AC235: 0.9605357143 | AD235: 0.9567857143 | AE235: 0.9530357143 | AF235: 0.9492857143 | AG235: 0.9455357143 | AH235: 0.9417857143 | AI235: 0.9380357143 | AJ235: 0.22 | AK235: 0.22 | AL235: 0.22 | AM235: 0.22 | AN235: 0 | AO235: 0 | AP235: 0 | AQ235: 0 | AR235: 0 | AS235: 0 | AT235: 0 | AU235: 0 | AV235: 0 | AW235: 0 | AX235: 0 | AY235: 0 | AZ235: 0 | BA235: 0 | BB235: 0 | BC235: 0 | BD235: 0 | BE235: 0 | BF235: 0 | BG235: 0 | BH235: 0 | BI235: 0
B237: Senior IRR | G237: =XIRR(G235:BI235,G3:BI3) -> 0.0419246763
B239: Sub Debt Cash Flow
C240: Total Repayments | H240: =H221 -> 0 | I240: =I221 -> 0 | J240: 0 | K240: 0 | L240: 0 | M240: 0 | N240: 0 | O240: 0 | P240: 0 | Q240: 0 | R240: 0 | S240: 0 | T240: 0 | U240: 0 | V240: 0 | W240: 0 | X240: 0 | Y240: 0 | Z240: 0 | AA240: 0 | AB240: 20.28963635 | AC240: 21.91911983 | AD240: 19.94983755 | AE240: 0 | AF240: 0 | AG240: 0 | AH240: 0 | AI240: 0 | AJ240: 0 | AK240: 0 | AL240: 0 | AM240: 0 | AN240: 0 | AO240: 0 | AP240: 0 | AQ240: 0 | AR240: 0 | AS240: 0 | AT240: 0 | AU240: 0 | AV240: 0 | AW240: 0 | AX240: 0 | AY240: 0 | AZ240: 0 | BA240: 0 | BB240: 0 | BC240: 0 | BD240: 0 | BE240: 0 | BF240: 0 | BG240: 0 | BH240: 0 | BI240: 0
... 31 more rows

Sheet 1.05 - Implied COC in LBO
P2: Table Number | R2: 3
O4: =show_formulaL(Row_Start) -> =INDEX(U4:X4,$R$2)----> | R4: =INDEX(U4:X4,$R$2) -> 47 | S4: Row Start | U4: =ROW(E20) -> 20 | V4: =ROW(D32) -> 32 | W4: =ROW(E47) -> 47 | X4: =ROW(D66) -> 66 | Y4: =show_formulaR(X4) -> < ---- =ROW(D66)
A5: Equity IRR | C5: =Assumptions!I5 -> 0.1948427648 | O5: =show_formulaL(Row_Start) -> =INDEX(U4:X4,$R$2)----> | R5: =INDEX(U5:X5,$R$2) -> 56 | S5: Row End | U5: =ROW(C26) -> 26 | V5: =ROW(D38) -> 38 | W5: =ROW(E56) -> 56 | X5: =ROW(D75) -> 75 | Y5: =show_formulaR(X5) -> < ---- =ROW(D75)
A6: Target IRR | C6: =Assumptions!E6 -> 0.2 | O6: =show_formulaL(Row_Start) -> =INDEX(U4:X4,$R$2)----> | R6: 5 | S6: Column Start | U6: =COLUMN(D22) -> 4 | V6: =COLUMN(E19) -> 5 | W6: =COLUMN(E47) -> 5 | X6: =COLUMN(E66) -> 5 | Y6: < ---- =COLUMN(E66)
A7: Difference | C7: =C5-C6 -> -0.00515723521 | O7: =show_formulaL(Row_Start) -> =INDEX(U4:X4,$R$2)----> | R7: 9 | S7: Column End | U7: =COLUMN(Y2) -> 25 | V7: =COLUMN(L22) -> 12 | W7: =COLUMN(I47) -> 9 | X7: =COLUMN(J70) -> 10 | Y7: < ---- =COLUMN(J70)
R8: Eq_IRR | S8: Output Variable | U8: EV_EBITDA | V8: EV_EBITDA | W8: Eq_IRR | X8: Ung_IRR
R9: Exit_Mult | S9: Row Input | U9: Targ_IRR | V9: Ung_IRR | W9: Exit_Mult | X9: Exit_Mult
R10: Holding_Per | S10: Col Input | U10: Debt_EBITDA | V10: Debt_EBITDA | W10: Holding_Per | X10: Holding_Per
A16: Required Entry Multiple
E18: Required Equity IRR
E19: 0.23 | F19: =E19+0.01 -> 0.24 | G19: =F19+0.01 -> 0.25 | H19: 0.26 | I19: 0.27 | J19: 0.28 | K19: 0.29 | L19: 0.3
C20: Senior Debt Capacity | D20: 1 | E20: 6.756986496 | F20: 6.549189389 | G20: 6.350821995 | H20: 6.161312028 | I20: 5.980192497 | J20: 5.807024671 | K20: 5.641396102 | L20: 5.482918848
D21: =D20+0.5 -> 1.5 | E21: 6.888592037 | F21: 6.687182265 | G21: 6.494740363 | H21: 6.311011393 | I21: 6.135533305 | J21: 5.967871825 | K21: 5.807618778 | L21: 5.654390334
D22: 2 | E22: 7.068759669 | F22: 6.874842087 | G22: 6.68983637 | H22: 6.513309565 | I22: 6.344808588 | J22: 6.183907886 | K22: 6.030207605 | L22: 5.883331854
D23: 2.5 | E23: 7.265373126 | F23: 7.079548089 | G23: 6.902356895 | H23: 6.733374009 | I23: 6.572157861 | J23: 6.418293838 | K23: 6.27139248 | L23: 6.131087775
D24: 3.5 | E24: 7.733177457 | F24: 7.56524946 | G24: 7.405218589 | H24: 7.25268817 | I24: 7.107251291 | J24: 6.968526046 | K24: 6.836153851 | L24: 6.709797847
D25: 4.5 | E25: 8.257837886 | F25: 8.108758695 | G25: 7.966697883 | H25: 7.831295314 | I25: 7.702189756 | J25: 7.57904219 | K25: 7.461534293 | L25: 7.349367035
D26: 5.5 | E26: 8.782500523 | F26: 8.652269954 | G26: 8.528179272 | H26: 8.409904621 | I26: 8.297130456 | J26: 8.189560639 | K26: 8.086917115 | L26: 7.988938678
A28: Required Overall IRR (Implied WACC)
E30: Required Equity IRR
E31: 0.23 | F31: =E31+0.01 -> 0.24 | G31: =F31+0.01 -> 0.25 | H31: 0.26 | I31: 0.27 | J31: 0.28 | K31: 0.29 | L31: 0.3
C32: Senior Debt Capacity | D32: 1 | E32: 0.2223083493 | F32: 0.231571728 | G32: 0.2407996054 | H32: 0.2499884097 | I32: 0.2591370589 | J32: 0.2682444751 | K32: 0.2773095831 | L32: 0.2863313114
D33: =D32+0.5 -> 1.5 | E33: 0.2166289927 | F33: 0.2253728002 | G33: 0.2340665447 | H33: 0.2426987466 | I33: 0.2512680391 | J33: 0.2597730908 | K33: 0.2682125972 | L33: 0.276585283
D34: 2 | E34: 0.209094751 | F34: 0.2172148879 | G34: 0.2252552719 | H34: 0.2332125409 | I34: 0.2410854337 | J34: 0.2488727504 | K34: 0.2565733523 | L34: 0.2641861637
D35: 2.5 | E35: 0.2011624214 | F35: 0.2086518265 | G35: 0.2160440408 | H35: 0.2233363044 | I35: 0.2305277292 | J35: 0.2376175181 | K35: 0.2446049641 | L35: 0.2514894504
D36: 3.5 | E36: 0.1833960268 | F36: 0.189603775 | G36: 0.1956939494 | H36: 0.2016654413 | I36: 0.2075186079 | J36: 0.213253917 | K36: 0.2188719422 | L36: 0.2243733592
D37: 4.5 | E37: 0.1651070232 | F37: 0.1701425107 | G37: 0.1750572407 | H37: 0.179851847 | I37: 0.1845278806 | J37: 0.1890869703 | K37: 0.1935308152 | L37: 0.1978611785
D38: 5.5 | E38: 0.1483047379 | F38: 0.1523484917 | G38: 0.1562775754 | H38: 0.1600939456 | I38: 0.1637999762 | J38: 0.1673980662 | K38: 0.1708906326 | L38: 0.174280104
C43: Optimal Holding Period Table (sensitivity calculation) Equity IRR
B44: 0.2999998271
B45: 7 | E45: Exit Multiple
B46: 5 | E46: 6 | F46: =E46+1 -> 7 | G46: =F46+1 -> 8 | H46: =G46+1 -> 9 | I46: =H46+1 -> 10
C47: Holding Period | D47: 3 | E47: 0.10759229 | F47: 0.1906713146 | G47: 0.2635380608 | H47: 0.3288493867 | I47: 0.388303609
D48: =D47+1 -> 4 | E48: 0.1835191932 | F48: 0.237297233 | G48: 0.2848565622 | H48: 0.3276536569 | I48: 0.3666715403
D49: =D48+1 -> 5 | E49: 0.2115362976 | F49: 0.2492953905 | G49: 0.2829744608 | H49: 0.3134486492 | I49: 0.3413318957
D50: 6 | E50: 0.2144012287 | F50: 0.2422846518 | G50: 0.267350124 | H50: 0.2901570789 | I50: 0.3111099322
D51: 7 | E51: 0.2120316849 | F51: 0.2334089165 | G51: 0.2527504626 | H51: 0.2704359645 | I51: 0.2867458261
D52: 8 | E52: 0.2095395424 | F52: 0.2264154388 | G52: 0.2417666866 | H52: 0.2558633477 | I52: 0.2689081266
D53: 9 | E53: 0.2077617372 | F53: 0.2213815965 | G53: 0.2338310458 | H53: 0.245307876 | I53: 0.2559625974
D54: 10 | E54: 0.2064411331 | F54: 0.2176137057 | G54: 0.2278729165 | H54: 0.2373661897 | I54: 0.2462071397
D55: 11 | E55: 0.2054317615 | F55: 0.2147108111 | G55: 0.2232689752 | H55: 0.2312173355 | I55: 0.238642546
D56: 12 | E56: 0.2046427568 | F56: 0.2124235129 | G56: 0.2196307534 | H56: 0.2263487363 | I56: 0.2326439754
D58: Maximum | E58: =MAX(E47:E56) -> 0.2144012287 | F58: =MAX(F47:F56) -> 0.2492953905 | G58: =MAX(G47:G56) -> 0.2848565622 | H58: =MAX(H47:H56) -> 0.3288493867 | I58: =MAX(I47:I56) -> 0.388303609
D59: Holding Period | E59: =MATCH(E58,E47:E56,0) -> 4 | F59: =MATCH(F58,F47:F56,0) -> 3 | G59: =MATCH(G58,G47:G56,0) -> 2 | H59: =MATCH(H58,H47:H56,0) -> 1 | I59: =MATCH(I58,I47:I56,0) -> 1
E64: Exit Multiple
E65: 5 | F65: 6 | G65: 7 | H65: 8 | I65: 9 | J65: 10
C66: Holding Period | D66: 2 | E66: -0.1300348368 | F66: -0.05394202769 | G66: 0.0162201792 | H66: 0.08165267408 | I66: 0.1431986392 | J66: 0.201477021
D67: =D66+1 -> 3 | E67: 0.005559536815 | F67: 0.05962813795 | G67: 0.1084269822 | H67: 0.1530832112 | I67: 0.194380945 | J67: 0.2328903735
D68: 4 | E68: 0.07050870359 | F68: 0.1106562793 | G68: 0.1466172993 | H68: 0.1792949975 | I68: 0.2093185961 | J68: 0.2371457756
D69: 5 | E69: 0.1074165761 | F69: 0.13833763 | G69: 0.1659813344 | H69: 0.1910470307 | I69: 0.2140251935 | J69: 0.2352742493
D70: 6 | E70: 0.1253902733 | F70: 0.1496719062 | G70: 0.1714061797 | H70: 0.1911241233 | I70: 0.2092019022 | J70: 0.2259165466
D71: 7 | E71: 0.1355548561 | F71: 0.1549896419 | G71: 0.1724348962 | H71: 0.1882929146 | I71: 0.2028520525 | J71: 0.2163265884
D72: 8 | E72: 0.1423559129 | F72: 0.158185941 | G72: 0.1724476039 | H72: 0.1854471862 | I72: 0.1974070251 | J72: 0.2084939539
D73: 9 | E73: 0.1475002587 | F73: 0.1605850995 | G73: 0.1724215806 | H73: 0.1832445323 | I73: 0.1932265818 | J73: 0.2024986207
D74: 10 | E74: 0.1515388787 | F74: 0.1624858677 | G74: 0.1724312723 | H74: 0.1815560997 | I74: 0.1899951518 | J74: 0.1978516877
D75: 11 | E75: 0.1547586858 | F75: 0.164003104 | G75: 0.172439009 | H75: 0.1802064717 | I75: 0.1874111593 | J75: 0.1941348612
D77: Max | E77: =MAX(E66:E75) -> 0.1547586858 | F77: 0.164003104 | G77: 0.1724476039 | H77: 0.1911241233 | I77: 0.2140251935 | J77: 0.2371457756
E79: =MATCH(E77,E66:E75,0) -> 10 | F79: 10 | G79: 7 | H79: 5 | I79: 4 | J79: 3
E83: Equity | F83: Senior | G83: sub
E84: =Summary!J18 -> 0.1948427648 | F84: =Summary!J19 -> 0.0419246763 | G84: =Summary!J20 -> 0.08341424167
D85: 1
D86: =D85-5% -> 0.95
D87: 0.9
D88: 0.85
D89: 0.8
D90: 0.75
D91: 0.7
D92: 0.65
D93: 0.6
D94: 0.55
D95: 0.5
D96: 0.45
D97: 0.4
D98: 0.35
D99: 0.3
D100: 0.25
D101: 0.2
D102: 0.15
D103: 0.1
D104: 0.05
D105: -3.191891196e-16
D106: -0.05
D107: -0.1
D108: -0.15

Sheet Annual Model
D2: Year | E2: =YEAR(Assumptions!E8) -> 2015 | F2: =E2+1 -> 2016 | G2: =F2+1 -> 2017 | H2: 2018 | I2: 2019 | J2: 2020 | K2: 2021 | L2: 2022 | M2: 2023 | N2: 2024 | O2: 2025 | P2: 2026 | Q2: 2027 | R2: 2028
D4: EBITDA | E4: =SUMIF('LBO Model'!$7:$7,'Annual Model'!E$2,'LBO Model'!23:23) -> 0 | F4: =SUMIF('LBO Model'!$7:$7,'Annual Model'!F$2,'LBO Model'!23:23) -> 60.74814352 | G4: =SUMIF('LBO Model'!$7:$7,'Annual Model'!G$2,'LBO Model'!23:23) -> 63.49543418 | H4: =SUMIF('LBO Model'!$7:$7,'Annual Model'!H$2,'LBO Model'!23:23) -> 76.86289401 | I4: =SUMIF('LBO Model'!$7:$7,'Annual Model'!I$2,'LBO Model'!23:23) -> 89.09433508 | J4: =SUMIF('LBO Model'!$7:$7,'Annual Model'!J$2,'LBO Model'!23:23) -> 101.0599194 | K4: =SUMIF('LBO Model'!$7:$7,'Annual Model'!K$2,'LBO Model'!23:23) -> 109.241996 | L4: =SUMIF('LBO Model'!$7:$7,'Annual Model'!L$2,'LBO Model'!23:23) -> 115.5086698 | M4: =SUMIF('LBO Model'!$7:$7,'Annual Model'!M$2,'LBO Model'!23:23) -> 121.2841033 | N4: =SUMIF('LBO Model'!$7:$7,'Annual Model'!N$2,'LBO Model'!23:23) -> 0 | O4: =SUMIF('LBO Model'!$7:$7,'Annual Model'!O$2,'LBO Model'!23:23) -> 0 | P4: =SUMIF('LBO Model'!$7:$7,'Annual Model'!P$2,'LBO Model'!23:23) -> 0 | Q4: =SUMIF('LBO Model'!$7:$7,'Annual Model'!Q$2,'LBO Model'!23:23) -> 0 | R4: =SUMIF('LBO Model'!$7:$7,'Annual Model'!R$2,'LBO Model'!23:23) -> 0
D5: CAPEX | E5: =SUMIF('LBO Model'!$7:$7,'Annual Model'!E$2,'LBO Model'!28:28) -> 0 | F5: =SUMIF('LBO Model'!$7:$7,'Annual Model'!F$2,'LBO Model'!28:28) -> 30.62118843 | G5: =SUMIF('LBO Model'!$7:$7,'Annual Model'!G$2,'LBO Model'!28:28) -> 31.65224785 | H5: =SUMIF('LBO Model'!$7:$7,'Annual Model'!H$2,'LBO Model'!28:28) -> 22.73486024 | I5: =SUMIF('LBO Model'!$7:$7,'Annual Model'!I$2,'LBO Model'!28:28) -> 23.87160326 | J5: =SUMIF('LBO Model'!$7:$7,'Annual Model'!J$2,'LBO Model'!28:28) -> 25.06518342 | K5: =SUMIF('LBO Model'!$7:$7,'Annual Model'!K$2,'LBO Model'!28:28) -> 26.31844259 | L5: =SUMIF('LBO Model'!$7:$7,'Annual Model'!L$2,'LBO Model'!28:28) -> 27.63436472 | M5: =SUMIF('LBO Model'!$7:$7,'Annual Model'!M$2,'LBO Model'!28:28) -> 29.01608295 | N5: =SUMIF('LBO Model'!$7:$7,'Annual Model'!N$2,'LBO Model'!28:28) -> 0 | O5: =SUMIF('LBO Model'!$7:$7,'Annual Model'!O$2,'LBO Model'!28:28) -> 0 | P5: =SUMIF('LBO Model'!$7:$7,'Annual Model'!P$2,'LBO Model'!28:28) -> 0 | Q5: =SUMIF('LBO Model'!$7:$7,'Annual Model'!Q$2,'LBO Model'!28:28) -> 0 | R5: =SUMIF('LBO Model'!$7:$7,'Annual Model'!R$2,'LBO Model'!28:28) -> 0
D6: Working Capital changes | E6: =SUMIF('LBO Model'!$7:$7,'Annual Model'!E$2,'LBO Model'!37:37) -> 0 | F6: =SUMIF('LBO Model'!$7:$7,'Annual Model'!F$2,'LBO Model'!37:37) -> -3.269021739 | G6: =SUMIF('LBO Model'!$7:$7,'Annual Model'!G$2,'LBO Model'!37:37) -> 1.166209239 | H6: =SUMIF('LBO Model'!$7:$7,'Annual Model'!H$2,'LBO Model'!37:37) -> 1.64953125 | I6: =SUMIF('LBO Model'!$7:$7,'Annual Model'!I$2,'LBO Model'!37:37) -> 1.47798 | J6: =SUMIF('LBO Model'!$7:$7,'Annual Model'!J$2,'LBO Model'!37:37) -> 1.404081 | K6: =SUMIF('LBO Model'!$7:$7,'Annual Model'!K$2,'LBO Model'!37:37) -> 1.010014583 | L6: =SUMIF('LBO Model'!$7:$7,'Annual Model'!L$2,'LBO Model'!37:37) -> 0.7719397166 | M6: =SUMIF('LBO Model'!$7:$7,'Annual Model'!M$2,'LBO Model'!37:37) -> 0.8105367025 | N6: =SUMIF('LBO Model'!$7:$7,'Annual Model'!N$2,'LBO Model'!37:37) -> 0 | O6: =SUMIF('LBO Model'!$7:$7,'Annual Model'!O$2,'LBO Model'!37:37) -> 0 | P6: =SUMIF('LBO Model'!$7:$7,'Annual Model'!P$2,'LBO Model'!37:37) -> 0 | Q6: =SUMIF('LBO Model'!$7:$7,'Annual Model'!Q$2,'LBO Model'!37:37) -> 0 | R6: =SUMIF('LBO Model'!$7:$7,'Annual Model'!R$2,'LBO Model'!37:37) -> 0
D7: Terminal Proceeds | E7: =SUMIF('LBO Model'!$7:$7,'Annual Model'!E$2,'LBO Model'!40:40) -> 0 | F7: =SUMIF('LBO Model'!$7:$7,'Annual Model'!F$2,'LBO Model'!40:40) -> 0 | G7: =SUMIF('LBO Model'!$7:$7,'Annual Model'!G$2,'LBO Model'!40:40) -> 0 | H7: =SUMIF('LBO Model'!$7:$7,'Annual Model'!H$2,'LBO Model'!40:40) -> 0 | I7: =SUMIF('LBO Model'!$7:$7,'Annual Model'!I$2,'LBO Model'!40:40) -> 0 | J7: =SUMIF('LBO Model'!$7:$7,'Annual Model'!J$2,'LBO Model'!40:40) -> 0 | K7: =SUMIF('LBO Model'!$7:$7,'Annual Model'!K$2,'LBO Model'!40:40) -> 0 | L7: =SUMIF('LBO Model'!$7:$7,'Annual Model'!L$2,'LBO Model'!40:40) -> 0 | M7: =SUMIF('LBO Model'!$7:$7,'Annual Model'!M$2,'LBO Model'!40:40) -> 606.4205163 | N7: =SUMIF('LBO Model'!$7:$7,'Annual Model'!N$2,'LBO Model'!40:40) -> 0 | O7: =SUMIF('LBO Model'!$7:$7,'Annual Model'!O$2,'LBO Model'!40:40) -> 0 | P7: =SUMIF('LBO Model'!$7:$7,'Annual Model'!P$2,'LBO Model'!40:40) -> 0 | Q7: =SUMIF('LBO Model'!$7:$7,'Annual Model'!Q$2,'LBO Model'!40:40) -> 0 | R7: =SUMIF('LBO Model'!$7:$7,'Annual Model'!R$2,'LBO Model'!40:40) -> 0
D8: Pre-tax cash flow | E8: =-Assumptions!E58 -> -487.38 | F8: =F4-F5-F6+F7 -> 33.39597683 | G8: 30.67697709 | H8: 52.47850252 | I8: 63.74475182 | J8: 74.590655 | K8: 81.91353878 | L8: =L4-L5-L6+L7 -> 87.10236534 | M8: 697.878 | N8: 0 | O8: 0 | P8: 0 | Q8: 0 | R8: 0
D9: ='LBO Model'!B199 -> EBITDA | E9: =SUMIF('LBO Model'!$7:$7,'Annual Model'!E$2,'LBO Model'!199:199) -> 0 | F9: =SUMIF('LBO Model'!$7:$7,'Annual Model'!F$2,'LBO Model'!199:199) -> 60.74814352 | G9: =SUMIF('LBO Model'!$7:$7,'Annual Model'!G$2,'LBO Model'!199:199) -> 63.49543418 | H9: =SUMIF('LBO Model'!$7:$7,'Annual Model'!H$2,'LBO Model'!199:199) -> 76.86289401 | I9: =SUMIF('LBO Model'!$7:$7,'Annual Model'!I$2,'LBO Model'!199:199) -> 89.09433508 | J9: =SUMIF('LBO Model'!$7:$7,'Annual Model'!J$2,'LBO Model'!199:199) -> 101.0599194 | K9: =SUMIF('LBO Model'!$7:$7,'Annual Model'!K$2,'LBO Model'!199:199) -> 109.241996 | L9: =SUMIF('LBO Model'!$7:$7,'Annual Model'!L$2,'LBO Model'!199:199) -> 115.5086698 | M9: =SUMIF('LBO Model'!$7:$7,'Annual Model'!M$2,'LBO Model'!199:199) -> 121.2841033 | N9: =SUMIF('LBO Model'!$7:$7,'Annual Model'!N$2,'LBO Model'!199:199) -> 0 | O9: =SUMIF('LBO Model'!$7:$7,'Annual Model'!O$2,'LBO Model'!199:199) -> 0 | P9: =SUMIF('LBO Model'!$7:$7,'Annual Model'!P$2,'LBO Model'!199:199) -> 0 | Q9: =SUMIF('LBO Model'!$7:$7,'Annual Model'!Q$2,'LBO Model'!199:199) -> 0 | R9: =SUMIF('LBO Model'!$7:$7,'Annual Model'!R$2,'LBO Model'!199:199) -> 0
D10: ='LBO Model'!B200 -> less: Changes in WC | E10: =SUMIF('LBO Model'!$7:$7,'Annual Model'!E$2,'LBO Model'!200:200) -> 0 | F10: =SUMIF('LBO Model'!$7:$7,'Annual Model'!F$2,'LBO Model'!200:200) -> -3.269021739 | G10: =SUMIF('LBO Model'!$7:$7,'Annual Model'!G$2,'LBO Model'!200:200) -> 1.166209239 | H10: =SUMIF('LBO Model'!$7:$7,'Annual Model'!H$2,'LBO Model'!200:200) -> 1.64953125 | I10: =SUMIF('LBO Model'!$7:$7,'Annual Model'!I$2,'LBO Model'!200:200) -> 1.47798 | J10: =SUMIF('LBO Model'!$7:$7,'Annual Model'!J$2,'LBO Model'!200:200) -> 1.404081 | K10: =SUMIF('LBO Model'!$7:$7,'Annual Model'!K$2,'LBO Model'!200:200) -> 1.010014583 | L10: =SUMIF('LBO Model'!$7:$7,'Annual Model'!L$2,'LBO Model'!200:200) -> 0.7719397166 | M10: =SUMIF('LBO Model'!$7:$7,'Annual Model'!M$2,'LBO Model'!200:200) -> 0.8105367025 | N10: =SUMIF('LBO Model'!$7:$7,'Annual Model'!N$2,'LBO Model'!200:200) -> 0 | O10: =SUMIF('LBO Model'!$7:$7,'Annual Model'!O$2,'LBO Model'!200:200) -> 0 | P10: =SUMIF('LBO Model'!$7:$7,'Annual Model'!P$2,'LBO Model'!200:200) -> 0 | Q10: =SUMIF('LBO Model'!$7:$7,'Annual Model'!Q$2,'LBO Model'!200:200) -> 0 | R10: =SUMIF('LBO Model'!$7:$7,'Annual Model'!R$2,'LBO Model'!200:200) -> 0
D11: ='LBO Model'!B201 -> less: Taxes | E11: =SUMIF('LBO Model'!$7:$7,'Annual Model'!E$2,'LBO Model'!201:201) -> 0 | F11: =SUMIF('LBO Model'!$7:$7,'Annual Model'!F$2,'LBO Model'!201:201) -> 0 | G11: =SUMIF('LBO Model'!$7:$7,'Annual Model'!G$2,'LBO Model'!201:201) -> 0 | H11: =SUMIF('LBO Model'!$7:$7,'Annual Model'!H$2,'LBO Model'!201:201) -> 0 | I11: =SUMIF('LBO Model'!$7:$7,'Annual Model'!I$2,'LBO Model'!201:201) -> 0 | J11: =SUMIF('LBO Model'!$7:$7,'Annual Model'!J$2,'LBO Model'!201:201) -> 0 | K11: =SUMIF('LBO Model'!$7:$7,'Annual Model'!K$2,'LBO Model'!201:201) -> 0 | L11: =SUMIF('LBO Model'!$7:$7,'Annual Model'!L$2,'LBO Model'!201:201) -> 0 | M11: =SUMIF('LBO Model'!$7:$7,'Annual Model'!M$2,'LBO Model'!201:201) -> 0 | N11: =SUMIF('LBO Model'!$7:$7,'Annual Model'!N$2,'LBO Model'!201:201) -> 0 | O11: =SUMIF('LBO Model'!$7:$7,'Annual Model'!O$2,'LBO Model'!201:201) -> 0 | P11: =SUMIF('LBO Model'!$7:$7,'Annual Model'!P$2,'LBO Model'!201:201) -> 0 | Q11: =SUMIF('LBO Model'!$7:$7,'Annual Model'!Q$2,'LBO Model'!201:201) -> 0 | R11: =SUMIF('LBO Model'!$7:$7,'Annual Model'!R$2,'LBO Model'!201:201) -> 0
D12: ='LBO Model'!B203 -> Less: CAPEX | E12: =SUMIF('LBO Model'!$7:$7,'Annual Model'!E$2,'LBO Model'!203:203) -> 0 | F12: =SUMIF('LBO Model'!$7:$7,'Annual Model'!F$2,'LBO Model'!203:203) -> 30.62118843 | G12: =SUMIF('LBO Model'!$7:$7,'Annual Model'!G$2,'LBO Model'!203:203) -> 31.65224785 | H12: =SUMIF('LBO Model'!$7:$7,'Annual Model'!H$2,'LBO Model'!203:203) -> 22.73486024 | I12: =SUMIF('LBO Model'!$7:$7,'Annual Model'!I$2,'LBO Model'!203:203) -> 23.87160326 | J12: =SUMIF('LBO Model'!$7:$7,'Annual Model'!J$2,'LBO Model'!203:203) -> 25.06518342 | K12: =SUMIF('LBO Model'!$7:$7,'Annual Model'!K$2,'LBO Model'!203:203) -> 26.31844259 | L12: =SUMIF('LBO Model'!$7:$7,'Annual Model'!L$2,'LBO Model'!203:203) -> 27.63436472 | M12: =SUMIF('LBO Model'!$7:$7,'Annual Model'!M$2,'LBO Model'!203:203) -> 29.01608295 | N12: =SUMIF('LBO Model'!$7:$7,'Annual Model'!N$2,'LBO Model'!203:203) -> 0 | O12: =SUMIF('LBO Model'!$7:$7,'Annual Model'!O$2,'LBO Model'!203:203) -> 0 | P12: =SUMIF('LBO Model'!$7:$7,'Annual Model'!P$2,'LBO Model'!203:203) -> 0 | Q12: =SUMIF('LBO Model'!$7:$7,'Annual Model'!Q$2,'LBO Model'!203:203) -> 0 | R12: =SUMIF('LBO Model'!$7:$7,'Annual Model'!R$2,'LBO Model'!203:203) -> 0
D13: ='LBO Model'!B204 -> Add: exit proceeds | E13: =SUMIF('LBO Model'!$7:$7,'Annual Model'!E$2,'LBO Model'!204:204) -> 0 | F13: =SUMIF('LBO Model'!$7:$7,'Annual Model'!F$2,'LBO Model'!204:204) -> 0 | G13: =SUMIF('LBO Model'!$7:$7,'Annual Model'!G$2,'LBO Model'!204:204) -> 0 | H13: =SUMIF('LBO Model'!$7:$7,'Annual Model'!H$2,'LBO Model'!204:204) -> 0 | I13: =SUMIF('LBO Model'!$7:$7,'Annual Model'!I$2,'LBO Model'!204:204) -> 0 | J13: =SUMIF('LBO Model'!$7:$7,'Annual Model'!J$2,'LBO Model'!204:204) -> 0 | K13: =SUMIF('LBO Model'!$7:$7,'Annual Model'!K$2,'LBO Model'!204:204) -> 0 | L13: =SUMIF('LBO Model'!$7:$7,'Annual Model'!L$2,'LBO Model'!204:204) -> 0 | M13: =SUMIF('LBO Model'!$7:$7,'Annual Model'!M$2,'LBO Model'!204:204) -> 606.4205163 | N13: =SUMIF('LBO Model'!$7:$7,'Annual Model'!N$2,'LBO Model'!204:204) -> 0 | O13: =SUMIF('LBO Model'!$7:$7,'Annual Model'!O$2,'LBO Model'!204:204) -> 0 | P13: =SUMIF('LBO Model'!$7:$7,'Annual Model'!P$2,'LBO Model'!204:204) -> 0 | Q13: =SUMIF('LBO Model'!$7:$7,'Annual Model'!Q$2,'LBO Model'!204:204) -> 0 | R13: =SUMIF('LBO Model'!$7:$7,'Annual Model'!R$2,'LBO Model'!204:204) -> 0
D14: ='LBO Model'!B205 -> Add: Notes Receivable | E14: =SUMIF('LBO Model'!$7:$7,'Annual Model'!E$2,'LBO Model'!205:205) -> 0 | F14: =SUMIF('LBO Model'!$7:$7,'Annual Model'!F$2,'LBO Model'!205:205) -> 11.7 | G14: =SUMIF('LBO Model'!$7:$7,'Annual Model'!G$2,'LBO Model'!205:205) -> 11.7 | H14: =SUMIF('LBO Model'!$7:$7,'Annual Model'!H$2,'LBO Model'!205:205) -> 11.7 | I14: =SUMIF('LBO Model'!$7:$7,'Annual Model'!I$2,'LBO Model'!205:205) -> 11.7 | J14: =SUMIF('LBO Model'!$7:$7,'Annual Model'!J$2,'LBO Model'!205:205) -> 11.7 | K14: =SUMIF('LBO Model'!$7:$7,'Annual Model'!K$2,'LBO Model'!205:205) -> 11.7 | L14: =SUMIF('LBO Model'!$7:$7,'Annual Model'!L$2,'LBO Model'!205:205) -> 11.7 | M14: =SUMIF('LBO Model'!$7:$7,'Annual Model'!M$2,'LBO Model'!205:205) -> 141.7 | N14: =SUMIF('LBO Model'!$7:$7,'Annual Model'!N$2,'LBO Model'!205:205) -> 0 | O14: =SUMIF('LBO Model'!$7:$7,'Annual Model'!O$2,'LBO Model'!205:205) -> 0 | P14: =SUMIF('LBO Model'!$7:$7,'Annual Model'!P$2,'LBO Model'!205:205) -> 0 | Q14: =SUMIF('LBO Model'!$7:$7,'Annual Model'!Q$2,'LBO Model'!205:205) -> 0 | R14: =SUMIF('LBO Model'!$7:$7,'Annual Model'!R$2,'LBO Model'!205:205) -> 0
D15: ='LBO Model'!B206 -> Less: Pensions | E15: =SUMIF('LBO Model'!$7:$7,'Annual Model'!E$2,'LBO Model'!206:206) -> 0 | F15: =SUMIF('LBO Model'!$7:$7,'Annual Model'!F$2,'LBO Model'!206:206) -> 0 | G15: =SUMIF('LBO Model'!$7:$7,'Annual Model'!G$2,'LBO Model'!206:206) -> 0 | H15: =SUMIF('LBO Model'!$7:$7,'Annual Model'!H$2,'LBO Model'!206:206) -> 0 | I15: =SUMIF('LBO Model'!$7:$7,'Annual Model'!I$2,'LBO Model'!206:206) -> 0 | J15: =SUMIF('LBO Model'!$7:$7,'Annual Model'!J$2,'LBO Model'!206:206) -> 0 | K15: =SUMIF('LBO Model'!$7:$7,'Annual Model'!K$2,'LBO Model'!206:206) -> 0 | L15: =SUMIF('LBO Model'!$7:$7,'Annual Model'!L$2,'LBO Model'!206:206) -> 0 | M15: =SUMIF('LBO Model'!$7:$7,'Annual Model'!M$2,'LBO Model'!206:206) -> 60 | N15: =SUMIF('LBO Model'!$7:$7,'Annual Model'!N$2,'LBO Model'!206:206) -> 0 | O15: =SUMIF('LBO Model'!$7:$7,'Annual Model'!O$2,'LBO Model'!206:206) -> 0 | P15: =SUMIF('LBO Model'!$7:$7,'Annual Model'!P$2,'LBO Model'!206:206) -> 0 | Q15: =SUMIF('LBO Model'!$7:$7,'Annual Model'!Q$2,'LBO Model'!206:206) -> 0 | R15: =SUMIF('LBO Model'!$7:$7,'Annual Model'!R$2,'LBO Model'!206:206) -> 0
D16: ='LBO Model'!B209 -> less: senior repayments | E16: =SUMIF('LBO Model'!$7:$7,'Annual Model'!E$2,'LBO Model'!209:209) -> 0 | F16: =SUMIF('LBO Model'!$7:$7,'Annual Model'!F$2,'LBO Model'!209:209) -> 30.85714286 | G16: =SUMIF('LBO Model'!$7:$7,'Annual Model'!G$2,'LBO Model'!209:209) -> 30.85714286 | H16: =SUMIF('LBO Model'!$7:$7,'Annual Model'!H$2,'LBO Model'!209:209) -> 30.85714286 | I16: =SUMIF('LBO Model'!$7:$7,'Annual Model'!I$2,'LBO Model'!209:209) -> 30.85714286 | J16: =SUMIF('LBO Model'!$7:$7,'Annual Model'!J$2,'LBO Model'!209:209) -> 30.85714286 | K16: =SUMIF('LBO Model'!$7:$7,'Annual Model'!K$2,'LBO Model'!209:209) -> 2.857142857 | L16: =SUMIF('LBO Model'!$7:$7,'Annual Model'!L$2,'LBO Model'!209:209) -> 2.857142857 | M16: =SUMIF('LBO Model'!$7:$7,'Annual Model'!M$2,'LBO Model'!209:209) -> 1.998401444e-15 | N16: =SUMIF('LBO Model'!$7:$7,'Annual Model'!N$2,'LBO Model'!209:209) -> 0 | O16: =SUMIF('LBO Model'!$7:$7,'Annual Model'!O$2,'LBO Model'!209:209) -> 0 | P16: =SUMIF('LBO Model'!$7:$7,'Annual Model'!P$2,'LBO Model'!209:209) -> 0 | Q16: =SUMIF('LBO Model'!$7:$7,'Annual Model'!Q$2,'LBO Model'!209:209) -> 0 | R16: =SUMIF('LBO Model'!$7:$7,'Annual Model'!R$2,'LBO Model'!209:209) -> 0
D17: ='LBO Model'!B210 -> less: senior interest | E17: =SUMIF('LBO Model'!$7:$7,'Annual Model'!E$2,'LBO Model'!210:210) -> 0 | F17: =SUMIF('LBO Model'!$7:$7,'Annual Model'!F$2,'LBO Model'!210:210) -> 9.93655128 | G17: =SUMIF('LBO Model'!$7:$7,'Annual Model'!G$2,'LBO Model'!210:210) -> 6.975744323 | H17: =SUMIF('LBO Model'!$7:$7,'Annual Model'!H$2,'LBO Model'!210:210) -> 5.210690077 | I17: =SUMIF('LBO Model'!$7:$7,'Annual Model'!I$2,'LBO Model'!210:210) -> 2.880450361 | J17: =SUMIF('LBO Model'!$7:$7,'Annual Model'!J$2,'LBO Model'!210:210) -> 1.276181394 | K17: =SUMIF('LBO Model'!$7:$7,'Annual Model'!K$2,'LBO Model'!210:210) -> 0.1057869594 | L17: =SUMIF('LBO Model'!$7:$7,'Annual Model'!L$2,'LBO Model'!210:210) -> 0.0375 | M17: =SUMIF('LBO Model'!$7:$7,'Annual Model'!M$2,'LBO Model'!210:210) -> 1.049160758e-17 | N17: =SUMIF('LBO Model'!$7:$7,'Annual Model'!N$2,'LBO Model'!210:210) -> 0 | O17: =SUMIF('LBO Model'!$7:$7,'Annual Model'!O$2,'LBO Model'!210:210) -> 0 | P17: =SUMIF('LBO Model'!$7:$7,'Annual Model'!P$2,'LBO Model'!210:210) -> 0 | Q17: =SUMIF('LBO Model'!$7:$7,'Annual Model'!Q$2,'LBO Model'!210:210) -> 0 | R17: =SUMIF('LBO Model'!$7:$7,'Annual Model'!R$2,'LBO Model'!210:210) -> 0
D18: ='LBO Model'!B212 -> add: draws on revolver | E18: =SUMIF('LBO Model'!$7:$7,'Annual Model'!E$2,'LBO Model'!212:212) -> 0 | F18: =SUMIF('LBO Model'!$7:$7,'Annual Model'!F$2,'LBO Model'!212:212) -> 0.1321432951 | G18: =SUMIF('LBO Model'!$7:$7,'Annual Model'!G$2,'LBO Model'!212:212) -> 0.2546569091 | H18: =SUMIF('LBO Model'!$7:$7,'Annual Model'!H$2,'LBO Model'!212:212) -> 0 | I18: =SUMIF('LBO Model'!$7:$7,'Annual Model'!I$2,'LBO Model'!212:212) -> 0 | J18: =SUMIF('LBO Model'!$7:$7,'Annual Model'!J$2,'LBO Model'!212:212) -> 0 | K18: =SUMIF('LBO Model'!$7:$7,'Annual Model'!K$2,'LBO Model'!212:212) -> 0 | L18: =SUMIF('LBO Model'!$7:$7,'Annual Model'!L$2,'LBO Model'!212:212) -> 0 | M18: =SUMIF('LBO Model'!$7:$7,'Annual Model'!M$2,'LBO Model'!212:212) -> 0 | N18: =SUMIF('LBO Model'!$7:$7,'Annual Model'!N$2,'LBO Model'!212:212) -> 0 | O18: =SUMIF('LBO Model'!$7:$7,'Annual Model'!O$2,'LBO Model'!212:212) -> 0 | P18: =SUMIF('LBO Model'!$7:$7,'Annual Model'!P$2,'LBO Model'!212:212) -> 0 | Q18: =SUMIF('LBO Model'!$7:$7,'Annual Model'!Q$2,'LBO Model'!212:212) -> 0 | R18: =SUMIF('LBO Model'!$7:$7,'Annual Model'!R$2,'LBO Model'!212:212) -> 0
D19: ='LBO Model'!B213 -> less: repayments of revolver | E19: =SUMIF('LBO Model'!$7:$7,'Annual Model'!E$2,'LBO Model'!213:213) -> 0 | F19: =SUMIF('LBO Model'!$7:$7,'Annual Model'!F$2,'LBO Model'!213:213) -> 0.1321432951 | G19: =SUMIF('LBO Model'!$7:$7,'Annual Model'!G$2,'LBO Model'!213:213) -> 0.2546569091 | H19: =SUMIF('LBO Model'!$7:$7,'Annual Model'!H$2,'LBO Model'!213:213) -> 0 | I19: =SUMIF('LBO Model'!$7:$7,'Annual Model'!I$2,'LBO Model'!213:213) -> 0 | J19: =SUMIF('LBO Model'!$7:$7,'Annual Model'!J$2,'LBO Model'!213:213) -> 0 | K19: =SUMIF('LBO Model'!$7:$7,'Annual Model'!K$2,'LBO Model'!213:213) -> 0 | L19: =SUMIF('LBO Model'!$7:$7,'Annual Model'!L$2,'LBO Model'!213:213) -> 0 | M19: =SUMIF('LBO Model'!$7:$7,'Annual Model'!M$2,'LBO Model'!213:213) -> 0 | N19: =SUMIF('LBO Model'!$7:$7,'Annual Model'!N$2,'LBO Model'!213:213) -> 0 | O19: =SUMIF('LBO Model'!$7:$7,'Annual Model'!O$2,'LBO Model'!213:213) -> 0 | P19: =SUMIF('LBO Model'!$7:$7,'Annual Model'!P$2,'LBO Model'!213:213) -> 0 | Q19: =SUMIF('LBO Model'!$7:$7,'Annual Model'!Q$2,'LBO Model'!213:213) -> 0 | R19: =SUMIF('LBO Model'!$7:$7,'Annual Model'!R$2,'LBO Model'!213:213) -> 0
D20: ='LBO Model'!B215 -> less: repayment of default | E20: =SUMIF('LBO Model'!$7:$7,'Annual Model'!E$2,'LBO Model'!215:215) -> 0 | F20: =SUMIF('LBO Model'!$7:$7,'Annual Model'!F$2,'LBO Model'!215:215) -> 0 | G20: =SUMIF('LBO Model'!$7:$7,'Annual Model'!G$2,'LBO Model'!215:215) -> 0 | H20: =SUMIF('LBO Model'!$7:$7,'Annual Model'!H$2,'LBO Model'!215:215) -> 0 | I20: =SUMIF('LBO Model'!$7:$7,'Annual Model'!I$2,'LBO Model'!215:215) -> 0 | J20: =SUMIF('LBO Model'!$7:$7,'Annual Model'!J$2,'LBO Model'!215:215) -> 0 | K20: =SUMIF('LBO Model'!$7:$7,'Annual Model'!K$2,'LBO Model'!215:215) -> 0 | L20: =SUMIF('LBO Model'!$7:$7,'Annual Model'!L$2,'LBO Model'!215:215) -> 0 | M20: =SUMIF('LBO Model'!$7:$7,'Annual Model'!M$2,'LBO Model'!215:215) -> 0 | N20: =SUMIF('LBO Model'!$7:$7,'Annual Model'!N$2,'LBO Model'!215:215) -> 0 | O20: =SUMIF('LBO Model'!$7:$7,'Annual Model'!O$2,'LBO Model'!215:215) -> 0 | P20: =SUMIF('LBO Model'!$7:$7,'Annual Model'!P$2,'LBO Model'!215:215) -> 0 | Q20: =SUMIF('LBO Model'!$7:$7,'Annual Model'!Q$2,'LBO Model'!215:215) -> 0 | R20: =SUMIF('LBO Model'!$7:$7,'Annual Model'!R$2,'LBO Model'!215:215) -> 0
D21: ='LBO Model'!B217 -> less: cashflow sweeps | E21: =SUMIF('LBO Model'!$7:$7,'Annual Model'!E$2,'LBO Model'!217:217) -> 0 | F21: =SUMIF('LBO Model'!$7:$7,'Annual Model'!F$2,'LBO Model'!217:217) -> 3.42228269 | G21: =SUMIF('LBO Model'!$7:$7,'Annual Model'!G$2,'LBO Model'!217:217) -> 3.664089911 | H21: =SUMIF('LBO Model'!$7:$7,'Annual Model'!H$2,'LBO Model'!217:217) -> 27.23066958 | I21: =SUMIF('LBO Model'!$7:$7,'Annual Model'!I$2,'LBO Model'!217:217) -> 40.82715861 | J21: =SUMIF('LBO Model'!$7:$7,'Annual Model'!J$2,'LBO Model'!217:217) -> 53.27733075 | K21: =SUMIF('LBO Model'!$7:$7,'Annual Model'!K$2,'LBO Model'!217:217) -> 1.578468461 | L21: =SUMIF('LBO Model'!$7:$7,'Annual Model'!L$2,'LBO Model'!217:217) -> 0 | M21: =SUMIF('LBO Model'!$7:$7,'Annual Model'!M$2,'LBO Model'!217:217) -> 0 | N21: =SUMIF('LBO Model'!$7:$7,'Annual Model'!N$2,'LBO Model'!217:217) -> 0 | O21: =SUMIF('LBO Model'!$7:$7,'Annual Model'!O$2,'LBO Model'!217:217) -> 0 | P21: =SUMIF('LBO Model'!$7:$7,'Annual Model'!P$2,'LBO Model'!217:217) -> 0 | Q21: =SUMIF('LBO Model'!$7:$7,'Annual Model'!Q$2,'LBO Model'!217:217) -> 0 | R21: =SUMIF('LBO Model'!$7:$7,'Annual Model'!R$2,'LBO Model'!217:217) -> 0
D22: ='LBO Model'!B219 -> add: default on senior debt | E22: =SUMIF('LBO Model'!$7:$7,'Annual Model'!E$2,'LBO Model'!219:219) -> 0 | F22: =SUMIF('LBO Model'!$7:$7,'Annual Model'!F$2,'LBO Model'!219:219) -> 0 | G22: =SUMIF('LBO Model'!$7:$7,'Annual Model'!G$2,'LBO Model'!219:219) -> 0 | H22: =SUMIF('LBO Model'!$7:$7,'Annual Model'!H$2,'LBO Model'!219:219) -> 0 | I22: =SUMIF('LBO Model'!$7:$7,'Annual Model'!I$2,'LBO Model'!219:219) -> 0 | J22: =SUMIF('LBO Model'!$7:$7,'Annual Model'!J$2,'LBO Model'!219:219) -> 0 | K22: =SUMIF('LBO Model'!$7:$7,'Annual Model'!K$2,'LBO Model'!219:219) -> 0 | L22: =SUMIF('LBO Model'!$7:$7,'Annual Model'!L$2,'LBO Model'!219:219) -> 0 | M22: =SUMIF('LBO Model'!$7:$7,'Annual Model'!M$2,'LBO Model'!219:219) -> 0 | N22: =SUMIF('LBO Model'!$7:$7,'Annual Model'!N$2,'LBO Model'!219:219) -> 0 | O22: =SUMIF('LBO Model'!$7:$7,'Annual Model'!O$2,'LBO Model'!219:219) -> 0 | P22: =SUMIF('LBO Model'!$7:$7,'Annual Model'!P$2,'LBO Model'!219:219) -> 0 | Q22: =SUMIF('LBO Model'!$7:$7,'Annual Model'!Q$2,'LBO Model'!219:219) -> 0 | R22: =SUMIF('LBO Model'!$7:$7,'Annual Model'!R$2,'LBO Model'!219:219) -> 0
D23: ='LBO Model'!B221 -> less: repayments of the sub-debt | E23: =SUMIF('LBO Model'!$7:$7,'Annual Model'!E$2,'LBO Model'!221:221) -> 0 | F23: =SUMIF('LBO Model'!$7:$7,'Annual Model'!F$2,'LBO Model'!221:221) -> 0 | G23: =SUMIF('LBO Model'!$7:$7,'Annual Model'!G$2,'LBO Model'!221:221) -> 0 | H23: =SUMIF('LBO Model'!$7:$7,'Annual Model'!H$2,'LBO Model'!221:221) -> 0 | I23: =SUMIF('LBO Model'!$7:$7,'Annual Model'!I$2,'LBO Model'!221:221) -> 0 | J23: =SUMIF('LBO Model'!$7:$7,'Annual Model'!J$2,'LBO Model'!221:221) -> 0 | K23: =SUMIF('LBO Model'!$7:$7,'Annual Model'!K$2,'LBO Model'!221:221) -> 62.15859373 | L23: =SUMIF('LBO Model'!$7:$7,'Annual Model'!L$2,'LBO Model'!221:221) -> 0 | M23: =SUMIF('LBO Model'!$7:$7,'Annual Model'!M$2,'LBO Model'!221:221) -> 0 | N23: =SUMIF('LBO Model'!$7:$7,'Annual Model'!N$2,'LBO Model'!221:221) -> 0 | O23: =SUMIF('LBO Model'!$7:$7,'Annual Model'!O$2,'LBO Model'!221:221) -> 0 | P23: =SUMIF('LBO Model'!$7:$7,'Annual Model'!P$2,'LBO Model'!221:221) -> 0 | Q23: =SUMIF('LBO Model'!$7:$7,'Annual Model'!Q$2,'LBO Model'!221:221) -> 0 | R23: =SUMIF('LBO Model'!$7:$7,'Annual Model'!R$2,'LBO Model'!221:221) -> 0
D24: ='LBO Model'!B223 -> less: incentives paid to management | E24: =SUMIF('LBO Model'!$7:$7,'Annual Model'!E$2,'LBO Model'!223:223) -> 0 | F24: =SUMIF('LBO Model'!$7:$7,'Annual Model'!F$2,'LBO Model'!223:223) -> 0 | G24: =SUMIF('LBO Model'!$7:$7,'Annual Model'!G$2,'LBO Model'!223:223) -> 0 | H24: =SUMIF('LBO Model'!$7:$7,'Annual Model'!H$2,'LBO Model'!223:223) -> 0 | I24: =SUMIF('LBO Model'!$7:$7,'Annual Model'!I$2,'LBO Model'!223:223) -> 0 | J24: =SUMIF('LBO Model'!$7:$7,'Annual Model'!J$2,'LBO Model'!223:223) -> 0 | K24: =SUMIF('LBO Model'!$7:$7,'Annual Model'!K$2,'LBO Model'!223:223) -> 0 | L24: =SUMIF('LBO Model'!$7:$7,'Annual Model'!L$2,'LBO Model'!223:223) -> 0 | M24: =SUMIF('LBO Model'!$7:$7,'Annual Model'!M$2,'LBO Model'!223:223) -> 0 | N24: =SUMIF('LBO Model'!$7:$7,'Annual Model'!N$2,'LBO Model'!223:223) -> 0 | O24: =SUMIF('LBO Model'!$7:$7,'Annual Model'!O$2,'LBO Model'!223:223) -> 0 | P24: =SUMIF('LBO Model'!$7:$7,'Annual Model'!P$2,'LBO Model'!223:223) -> 0 | Q24: =SUMIF('LBO Model'!$7:$7,'Annual Model'!Q$2,'LBO Model'!223:223) -> 0 | R24: =SUMIF('LBO Model'!$7:$7,'Annual Model'!R$2,'LBO Model'!223:223) -> 0
D25: ='LBO Model'!B226 -> Equity cashflow | E25: =SUMIF('LBO Model'!$7:$7,'Annual Model'!E$2,'LBO Model'!226:226) -> -227.38 | F25: =SUMIF('LBO Model'!$7:$7,'Annual Model'!F$2,'LBO Model'!226:226) -> 0 | G25: =SUMIF('LBO Model'!$7:$7,'Annual Model'!G$2,'LBO Model'!226:226) -> 0 | H25: =SUMIF('LBO Model'!$7:$7,'Annual Model'!H$2,'LBO Model'!226:226) -> 0 | I25: =SUMIF('LBO Model'!$7:$7,'Annual Model'!I$2,'LBO Model'!226:226) -> 0 | J25: =SUMIF('LBO Model'!$7:$7,'Annual Model'!J$2,'LBO Model'!226:226) -> 0 | K25: =SUMIF('LBO Model'!$7:$7,'Annual Model'!K$2,'LBO Model'!226:226) -> 26.03354678 | L25: =SUMIF('LBO Model'!$7:$7,'Annual Model'!L$2,'LBO Model'!226:226) -> 95.02772249 | M25: =SUMIF('LBO Model'!$7:$7,'Annual Model'!M$2,'LBO Model'!226:226) -> 778.698 | N25: =SUMIF('LBO Model'!$7:$7,'Annual Model'!N$2,'LBO Model'!226:226) -> 0 | O25: =SUMIF('LBO Model'!$7:$7,'Annual Model'!O$2,'LBO Model'!226:226) -> 0 | P25: =SUMIF('LBO Model'!$7:$7,'Annual Model'!P$2,'LBO Model'!226:226) -> 0 | Q25: =SUMIF('LBO Model'!$7:$7,'Annual Model'!Q$2,'LBO Model'!226:226) -> 0 | R25: =SUMIF('LBO Model'!$7:$7,'Annual Model'!R$2,'LBO Model'!226:226) -> 0
D26: Revenues | E26: =SUMIF('LBO Model'!$7:$7,'Annual Model'!E$2,'LBO Model'!19:19) -> 37.5 | F26: =SUMIF('LBO Model'!$7:$7,'Annual Model'!F$2,'LBO Model'!19:19) -> 151.8703588 | G26: =SUMIF('LBO Model'!$7:$7,'Annual Model'!G$2,'LBO Model'!19:19) -> 167.0932478 | H26: =SUMIF('LBO Model'!$7:$7,'Annual Model'!H$2,'LBO Model'!19:19) -> 192.157235 | I26: =SUMIF('LBO Model'!$7:$7,'Annual Model'!I$2,'LBO Model'!19:19) -> 217.3032563 | J26: =SUMIF('LBO Model'!$7:$7,'Annual Model'!J$2,'LBO Model'!19:19) -> 240.6188558 | K26: =SUMIF('LBO Model'!$7:$7,'Annual Model'!K$2,'LBO Model'!19:19) -> 260.0999904 | L26: =SUMIF('LBO Model'!$7:$7,'Annual Model'!L$2,'LBO Model'!19:19) -> 275.0206423 | M26: =SUMIF('LBO Model'!$7:$7,'Annual Model'!M$2,'LBO Model'!19:19) -> 288.7716744 | N26: =SUMIF('LBO Model'!$7:$7,'Annual Model'!N$2,'LBO Model'!19:19) -> 303.2102582 | O26: =SUMIF('LBO Model'!$7:$7,'Annual Model'!O$2,'LBO Model'!19:19) -> 318.3707711 | P26: =SUMIF('LBO Model'!$7:$7,'Annual Model'!P$2,'LBO Model'!19:19) -> 334.2893096 | Q26: =SUMIF('LBO Model'!$7:$7,'Annual Model'!Q$2,'LBO Model'!19:19) -> 351.0037751 | R26: =SUMIF('LBO Model'!$7:$7,'Annual Model'!R$2,'LBO Model'!19:19) -> 368.5539639
D27: Operating Expense | E27: =SUMIF('LBO Model'!$7:$7,'Annual Model'!E$2,'LBO Model'!21:21) -> 0 | F27: =SUMIF('LBO Model'!$7:$7,'Annual Model'!F$2,'LBO Model'!21:21) -> 91.12221527 | G27: =SUMIF('LBO Model'!$7:$7,'Annual Model'!G$2,'LBO Model'!21:21) -> 103.5978137 | H27: =SUMIF('LBO Model'!$7:$7,'Annual Model'!H$2,'LBO Model'!21:21) -> 115.294341 | I27: =SUMIF('LBO Model'!$7:$7,'Annual Model'!I$2,'LBO Model'!21:21) -> 128.2089212 | J27: =SUMIF('LBO Model'!$7:$7,'Annual Model'!J$2,'LBO Model'!21:21) -> 139.5589363 | K27: =SUMIF('LBO Model'!$7:$7,'Annual Model'!K$2,'LBO Model'!21:21) -> 150.8579944 | L27: =SUMIF('LBO Model'!$7:$7,'Annual Model'!L$2,'LBO Model'!21:21) -> 159.5119726 | M27: =SUMIF('LBO Model'!$7:$7,'Annual Model'!M$2,'LBO Model'!21:21) -> 167.4875712 | N27: =SUMIF('LBO Model'!$7:$7,'Annual Model'!N$2,'LBO Model'!21:21) -> 175.8619497 | O27: =SUMIF('LBO Model'!$7:$7,'Annual Model'!O$2,'LBO Model'!21:21) -> 184.6550472 | P27: =SUMIF('LBO Model'!$7:$7,'Annual Model'!P$2,'LBO Model'!21:21) -> 193.8877996 | Q27: =SUMIF('LBO Model'!$7:$7,'Annual Model'!Q$2,'LBO Model'!21:21) -> 203.5821896 | R27: =SUMIF('LBO Model'!$7:$7,'Annual Model'!R$2,'LBO Model'!21:21) -> 213.761299
D28: Maintenance Cap Exp | E28: =SUMIF('LBO Model'!$7:$7,'Annual Model'!E$2,'LBO Model'!26:26) -> 5 | F28: =SUMIF('LBO Model'!$7:$7,'Annual Model'!F$2,'LBO Model'!26:26) -> 20.62118843 | G28: =SUMIF('LBO Model'!$7:$7,'Annual Model'!G$2,'LBO Model'!26:26) -> 21.65224785 | H28: =SUMIF('LBO Model'!$7:$7,'Annual Model'!H$2,'LBO Model'!26:26) -> 22.73486024 | I28: =SUMIF('LBO Model'!$7:$7,'Annual Model'!I$2,'LBO Model'!26:26) -> 23.87160326 | J28: =SUMIF('LBO Model'!$7:$7,'Annual Model'!J$2,'LBO Model'!26:26) -> 25.06518342 | K28: =SUMIF('LBO Model'!$7:$7,'Annual Model'!K$2,'LBO Model'!26:26) -> 26.31844259 | L28: =SUMIF('LBO Model'!$7:$7,'Annual Model'!L$2,'LBO Model'!26:26) -> 27.63436472 | M28: =SUMIF('LBO Model'!$7:$7,'Annual Model'!M$2,'LBO Model'!26:26) -> 29.01608295 | N28: =SUMIF('LBO Model'!$7:$7,'Annual Model'!N$2,'LBO Model'!26:26) -> 30.4668871 | O28: =SUMIF('LBO Model'!$7:$7,'Annual Model'!O$2,'LBO Model'!26:26) -> 31.99023146 | P28: =SUMIF('LBO Model'!$7:$7,'Annual Model'!P$2,'LBO Model'!26:26) -> 33.58974303 | Q28: =SUMIF('LBO Model'!$7:$7,'Annual Model'!Q$2,'LBO Model'!26:26) -> 35.26923018 | R28: =SUMIF('LBO Model'!$7:$7,'Annual Model'!R$2,'LBO Model'!26:26) -> 37.03269169
D29: Growth Cap Exp | E29: =SUMIF('LBO Model'!$7:$7,'Annual Model'!E$2,'LBO Model'!27:27) -> 0 | F29: =SUMIF('LBO Model'!$7:$7,'Annual Model'!F$2,'LBO Model'!27:27) -> 10 | G29: =SUMIF('LBO Model'!$7:$7,'Annual Model'!G$2,'LBO Model'!27:27) -> 10 | H29: =SUMIF('LBO Model'!$7:$7,'Annual Model'!H$2,'LBO Model'!27:27) -> 0 | I29: =SUMIF('LBO Model'!$7:$7,'Annual Model'!I$2,'LBO Model'!27:27) -> 0 | J29: =SUMIF('LBO Model'!$7:$7,'Annual Model'!J$2,'LBO Model'!27:27) -> 0 | K29: =SUMIF('LBO Model'!$7:$7,'Annual Model'!K$2,'LBO Model'!27:27) -> 0 | L29: =SUMIF('LBO Model'!$7:$7,'Annual Model'!L$2,'LBO Model'!27:27) -> 0 | M29: =SUMIF('LBO Model'!$7:$7,'Annual Model'!M$2,'LBO Model'!27:27) -> 0 | N29: =SUMIF('LBO Model'!$7:$7,'Annual Model'!N$2,'LBO Model'!27:27) -> 0 | O29: =SUMIF('LBO Model'!$7:$7,'Annual Model'!O$2,'LBO Model'!27:27) -> 0 | P29: =SUMIF('LBO Model'!$7:$7,'Annual Model'!P$2,'LBO Model'!27:27) -> 0 | Q29: =SUMIF('LBO Model'!$7:$7,'Annual Model'!Q$2,'LBO Model'!27:27) -> 0 | R29: =SUMIF('LBO Model'!$7:$7,'Annual Model'!R$2,'LBO Model'!27:27) -> 0
D30: EBITDA Margin | F30: =F4/F26 -> 0.4 | G30: =G4/G26 -> 0.38 | H30: 0.4 | I30: 0.41 | J30: 0.42 | K30: 0.42 | L30: 0.42 | M30: 0.42 | N30: 0 | O30: 0 | P30: 0 | Q30: 0 | R30: 0
D31: Revenue Growth | G31: =G26/F26-1 -> 0.1002360775 | H31: =H26/G26-1 -> 0.15 | I31: 0.1308616939 | J31: 0.1072952144 | K31: 0.08096262674 | L31: 0.05736506158 | M31: 0.05 | N31: 0.05 | O31: 0.05 | P31: 0.05 | Q31: 0.05 | R31: 0.05
D33: Code number | E33: 9
E34: =E2 -> 2015 | F34: =F2 -> 2016 | G34: 2017 | H34: 2018 | I34: 2019 | J34: 2020 | K34: 2021 | L34: 2022 | M34: 2023 | N34: 2024 | O34: 2025 | P34: 2026 | Q34: 2027 | R34: 2028
D35: =INDEX(D4:D31,$E$33) -> Less: CAPEX | E35: =INDEX(E4:E31,$E$33) -> 0 | F35: =INDEX(F4:F31,$E$33) -> 30.62118843 | G35: 31.65224785 | H35: 22.73486024 | I35: 23.87160326 | J35: 25.06518342 | K35: 26.31844259 | L35: 27.63436472 | M35: 29.01608295 | N35: 0 | O35: 0 | P35: 0 | Q35: 0 | R35: 0
D37: Equity IRR | E37: =IRR(E25:R25) -> 0.1923644197
D38: Ungeared IRR | E38: =IRR(E8:R8) -> 0.1377772992
D41: Row start | E41: 0
D42: Column start | E42: 1
D43: Height | E43: 1
D44: Width | E44: =COUNTIF(E35:R35,">0") -> 8

Sheet Audit sheet
B2: Existing balance sheet | E2: =Assumptions!E37 -> TRUE | F2: =IF(E2,"",B2) -> 
B3: Proforma adjustments | E3: ='S&U and Pro-Forma'!E76 -> TRUE | F3: =IF(E3,"",B3) -> 
B4: Proforma balance sheet | E4: ='S&U and Pro-Forma'!N76 -> TRUE
B5: Existing Debt Test | F5: Existing Debt Test
B6: Amortising debt | F6: Amortising debt
B7: Bullet Debt | E7: ='LBO Model'!G123 -> TRUE
B8: Capitalising | E8: ='LBO Model'!G137 -> TRUE
B9: Revolver | E9: ='LBO Model'!G156 -> TRUE
B10: Positive dividends | E10: FALSE | F10: Positive dividends
B11: New balance sheet | E11: FALSE | F11: New balance sheet
E13: =AND(E2:E11) -> FALSE | F13: =addtext(F2:F11) -> Existing Debt Test Amortising debt Positive dividends New balance sheet

Sheet PE Scenario
C1: Scenario number | E1: 3
K2: PE Ratio | L2: M/B ratio
D3: ST ROE | E3: LT ROE | F3: STGR | G3: COE | H3: LTGR | I3: Length | K3: ='PE Ratio'!E2 -> 54.7513788 | L3: ='PE Ratio'!E3 -> 13.6878447
C4: Base case | D4: 0.3 | E4: 0.15 | F4: 0.2 | G4: 0.12 | H4: 0.05 | I4: 7 | J4: 1 | K4: 9.340408483 | L4: 2.802122545
C5: Low case | D5: 0.35 | E5: 0.1 | F5: 0.15 | G5: 0.14 | H5: 0.03 | I5: 4 | J5: 2 | K5: 3.383438485 | L5: 1.18420347
C6: High case | D6: 0.25 | E6: 0.2 | F6: 0.25 | G6: 0.1 | H6: 0.07 | I6: 10 | J6: 3 | K6: 54.7513788 | L6: 13.6878447
C7: =TRANSPOSE(D3:I3)&"lowcase" -> ST ROElowcase | D7: =D5 -> 0.35 | E7: =E$4 -> 0.15 | F7: 0.2 | G7: 0.12 | H7: 0.05 | I7: 7 | J7: 4 | K7: 8.921765167 | L7: 3.122617809
C8: LT ROElowcase | D8: =D$4 -> 0.3 | E8: =E5 -> 0.1 | F8: 0.2 | G8: 0.12 | H8: 0.05 | I8: 7 | J8: 5 | K8: 5.738521787 | L8: 1.721556536
C9: STGRlowcase | D9: 0.3 | E9: 0.15 | F9: =F5 -> 0.15 | G9: 0.12 | H9: 0.05 | I9: 7 | J9: 6 | K9: 8.444802636 | L9: 2.533440791
C10: COElowcase | D10: 0.3 | E10: 0.15 | F10: 0.2 | G10: =G5 -> 0.14 | H10: 0.05 | I10: 7 | J10: 7 | K10: 7.040501315 | L10: 2.112150394
C11: LTGR lowcase | D11: 0.3 | E11: 0.15 | F11: 0.2 | G11: 0.12 | H11: =H5 -> 0.03 | I11: 7 | J11: 8 | K11: 8.860156965 | L11: 2.658047089
C12: Lengthlowcase | D12: 0.3 | E12: 0.15 | F12: 0.2 | G12: 0.12 | H12: 0.05 | I12: =I5 -> 4 | J12: 9 | K12: 6.815085699 | L12: 2.04452571
C13: =TRANSPOSE(D3:I3)&" highcase" -> ST ROE highcase | D13: =D6 -> 0.25 | E13: 0.15 | F13: 0.2 | G13: 0.12 | H13: 0.05 | I13: 7 | J13: 10 | K13: 9.926509126 | L13: 2.481627281
C14: LT ROE highcase | D14: 0.3 | E14: =E6 -> 0.2 | F14: 0.2 | G14: 0.12 | H14: 0.05 | I14: 7 | J14: 11 | K14: 12.94229518 | L14: 3.882688554
C15: STGR highcase | D15: 0.3 | E15: 0.15 | F15: =F6 -> 0.25 | G15: 0.12 | H15: 0.05 | I15: 7 | J15: 12 | K15: 10.39876618 | L15: 3.119629853
C16: COE highcase | D16: 0.3 | E16: 0.15 | F16: 0.2 | G16: =G6 -> 0.1 | H16: 0.05 | I16: 7 | J16: 13 | K16: 13.52175438 | L16: 4.056526314
C17: LTGR highcase | D17: 0.3 | E17: 0.15 | F17: 0.2 | G17: 0.12 | H17: =H6 -> 0.07 | I17: 7 | J17: 14 | K17: 10.20484888 | L17: 3.061454665
C18: Length highcase | D18: 0.3 | E18: 0.15 | F18: 0.2 | G18: 0.12 | H18: 0.05 | I18: =I6 -> 10 | J18: 15 | K18: 12.44644507 | L18: 3.73393352
C19: Base case | D19: 0.3 | E19: 0.15 | F19: 0.2 | G19: 0.12 | H19: 0.05 | I19: 7 | J19: 16 | K19: 9.340408483 | L19: 2.802122545
C21: =INDEX(C4:C19,$E$1) -> High case | D21: =INDEX(D4:D19,$E$1) -> 0.25 | E21: =INDEX(E4:E19,$E$1) -> 0.2 | F21: =INDEX(F4:F19,$E$1) -> 0.25 | G21: 0.1 | H21: 0.07 | I21: 10
D23: Base Vs Low | E23: Base Vs High
C24: =TRANSPOSE(D3:I3) -> ST ROE | D24: =K7-$K$4 -> -0.4186433159 | E24: =K13-$K$4 -> 0.5861006423
C25: LT ROE | D25: =K8-$K$4 -> -3.601886696 | E25: =K14-$K$4 -> 3.601886696
C26: STGR | D26: -0.8956058476 | E26: 1.058357694
C27: COE | D27: -2.299907169 | E27: 4.181345897
C28: LTGR | D28: -0.4802515184 | E28: 0.8644404016
C29: Length | D29: -2.525322785 | E29: 3.106036584

Sheet PE Ratio
B1: short run | C1: long run
A2: ROE | B2: ='PE Scenario'!D21 -> 0.25 | C2: ='PE Scenario'!E21 -> 0.2 | D2: PE Ratio | E2: =E6/C17 -> 54.7513788
A3: COE | B3: ='PE Scenario'!G21 -> 0.1 | C3: ='PE Scenario'!G21 -> 0.1 | D3: PB Ratio | E3: =E6/B6 -> 13.6878447
A4: Growth rate | B4: ='PE Scenario'!F21 -> 0.25 | C4: ='PE Scenario'!H21 -> 0.07
A5: Dividend Payout | B5: =1-B4/B2 -> 0 | D5: Value per share
A6: BV/share | B6: 11.95 | D6: NPV of dividends | E6: =NPV(B3,C18:KO18) -> 163.5697442
A7: Short run | B7: ='PE Scenario'!I21 -> 10
A9: Year | B9: 1 | C9: =B9+1 -> 2 | D9: =C9+1 -> 3 | E9: 4 | F9: 5 | G9: 6 | H9: 7 | I9: 8 | J9: 9 | K9: 10 | L9: 11 | M9: 12 | N9: 13 | O9: 14 | P9: 15 | Q9: 16 | R9: 17 | S9: 18 | T9: 19 | U9: 20 | V9: 21 | W9: 22 | X9: 23 | Y9: 24 | Z9: 25 | AA9: 26 | AB9: 27 | AC9: 28 | AD9: 29 | AE9: 30 | AF9: 31 | AG9: 32 | AH9: 33 | AI9: 34 | AJ9: 35 | AK9: 36 | AL9: 37 | AM9: 38 | AN9: 39 | AO9: 40 | AP9: 41 | AQ9: 42 | AR9: 43 | AS9: 44 | AT9: 45 | AU9: 46 | AV9: 47 | AW9: 48 | AX9: 49 | AY9: 50 | AZ9: 51 | BA9: 52 | BB9: 53 | BC9: 54 | BD9: 55 | BE9: 56 | BF9: 57 | BG9: 58 | BH9: 59 | BI9: 60 | BJ9: 61 | BK9: 62 | BL9: 63 | BM9: 64 | BN9: 65 | BO9: 66 | BP9: =BO9+1 -> 67 | BQ9: 68 | BR9: 69 | BS9: 70 | BT9: 71 | BU9: 72 | BV9: 73 | BW9: 74 | BX9: 75 | BY9: 76 | BZ9: 77 | CA9: 78 | CB9: 79 | CC9: 80 | CD9: 81 | CE9: 82 | CF9: 83 | CG9: 84 | CH9: 85 | CI9: 86 | CJ9: 87 | CK9: 88 | CL9: 89 | CM9: 90 | CN9: 91 | CO9: 92 | CP9: 93 | CQ9: 94 | CR9: 95 | CS9: 96 | CT9: 97 | CU9: 98 | CV9: 99 | CW9: 100 | CX9: 101 | CY9: 102 | CZ9: 103 | DA9: 104 | DB9: 105 | DC9: 106 | DD9: 107 | DE9: 108 | DF9: 109 | DG9: 110 | DH9: 111 | DI9: 112 | DJ9: 113 | DK9: 114 | DL9: 115 | DM9: 116 | DN9: 117 | DO9: 118 | DP9: 119 | DQ9: 120 | DR9: 121 | DS9: 122 | DT9: 123 | DU9: 124 | DV9: 125 | DW9: 126 | DX9: 127 | DY9: 128 | DZ9: 129 | EA9: 130 | EB9: =EA9+1 -> 131 | EC9: 132 | ED9: 133 | EE9: 134 | EF9: 135 | EG9: 136 | EH9: 137 | EI9: 138 | EJ9: 139 | EK9: 140 | EL9: 141 | EM9: 142 | EN9: 143 | EO9: 144 | EP9: 145 | EQ9: 146 | ER9: 147 | ES9: 148 | ET9: 149 | EU9: 150 | EV9: 151 | EW9: 152 | EX9: 153 | EY9: 154 | EZ9: 155 | FA9: 156 | FB9: 157 | FC9: 158 | FD9: 159 | FE9: 160 | FF9: 161 | FG9: 162 | FH9: 163 | FI9: 164 | FJ9: 165 | FK9: 166 | FL9: 167 | FM9: 168 | FN9: 169 | FO9: 170 | FP9: 171 | FQ9: 172 | FR9: 173 | FS9: 174 | FT9: 175 | FU9: 176 | FV9: 177 | FW9: 178 | FX9: 179 | FY9: 180 | FZ9: 181 | GA9: 182 | GB9: 183 | GC9: 184 | GD9: 185 | GE9: 186 | GF9: 187 | GG9: 188 | GH9: 189 | GI9: 190 | GJ9: 191 | GK9: 192 | GL9: 193 | GM9: 194 | GN9: =GM9+1 -> 195 | GO9: 196 | GP9: 197 | GQ9: 198 | GR9: 199 | GS9: 200 | GT9: 201 | GU9: 202 | GV9: 203 | GW9: 204 | GX9: 205 | GY9: 206 | GZ9: 207 | HA9: 208 | HB9: 209 | HC9: 210 | HD9: 211 | HE9: 212 | HF9: 213 | HG9: 214 | HH9: 215 | HI9: 216 | HJ9: 217 | HK9: 218 | HL9: 219 | HM9: 220 | HN9: 221 | HO9: 222 | HP9: 223 | HQ9: 224 | HR9: 225 | HS9: 226 | HT9: 227 | HU9: 228 | HV9: 229 | HW9: 230 | HX9: 231 | HY9: 232 | HZ9: 233 | IA9: 234 | IB9: 235 | IC9: 236 | ID9: 237 | IE9: 238 | IF9: 239 | IG9: 240 | IH9: 241 | II9: 242 | IJ9: 243 | IK9: 244 | IL9: 245 | IM9: 246 | IN9: 247 | IO9: 248 | IP9: 249 | IQ9: 250 | IR9: 251 | IS9: 252 | IT9: 253 | IU9: 254 | IV9: 255 | IW9: 256 | IX9: 257 | IY9: 258 | IZ9: =IY9+1 -> 259 | JA9: 260 | JB9: 261 | JC9: 262 | JD9: 263 | JE9: 264 | JF9: 265 | JG9: 266 | JH9: 267 | JI9: 268 | JJ9: 269 | JK9: 270 | JL9: 271 | JM9: 272 | JN9: 273 | JO9: 274 | JP9: 275 | JQ9: 276 | JR9: 277 | JS9: 278 | JT9: 279 | JU9: 280 | JV9: 281 | JW9: 282 | JX9: 283 | JY9: 284 | JZ9: 285 | KA9: 286 | KB9: 287 | KC9: 288 | KD9: 289 | KE9: 290 | KF9: 291 | KG9: 292 | KH9: 293 | KI9: 294 | KJ9: 295 | KK9: 296 | KL9: 297 | KM9: 298 | KN9: 299 | KO9: 300
A10: Short term switch | B10: =B9<=$B$7 -> TRUE | C10: =C9<=$B$7 -> TRUE | D10: TRUE | E10: TRUE | F10: TRUE | G10: TRUE | H10: TRUE | I10: TRUE | J10: TRUE | K10: TRUE | L10: FALSE | M10: FALSE | N10: FALSE | O10: FALSE | P10: FALSE | Q10: FALSE | R10: FALSE | S10: FALSE | T10: FALSE | U10: FALSE | V10: FALSE | W10: FALSE | X10: FALSE | Y10: FALSE | Z10: FALSE | AA10: FALSE | AB10: FALSE | AC10: FALSE | AD10: FALSE | AE10: FALSE | AF10: FALSE | AG10: FALSE | AH10: FALSE | AI10: FALSE | AJ10: FALSE | AK10: FALSE | AL10: FALSE | AM10: FALSE | AN10: FALSE | AO10: FALSE | AP10: FALSE | AQ10: FALSE | AR10: FALSE | AS10: FALSE | AT10: FALSE | AU10: FALSE | AV10: FALSE | AW10: FALSE | AX10: FALSE | AY10: FALSE | AZ10: FALSE | BA10: FALSE | BB10: FALSE | BC10: FALSE | BD10: FALSE | BE10: FALSE | BF10: FALSE | BG10: FALSE | BH10: FALSE | BI10: FALSE | BJ10: FALSE | BK10: FALSE | BL10: FALSE | BM10: FALSE | BN10: FALSE | BO10: =BO9<=$B$7 -> FALSE | BP10: FALSE | BQ10: FALSE | BR10: FALSE | BS10: FALSE | BT10: FALSE | BU10: FALSE | BV10: FALSE | BW10: FALSE | BX10: FALSE | BY10: FALSE | BZ10: FALSE | CA10: FALSE | CB10: FALSE | CC10: FALSE | CD10: FALSE | CE10: FALSE | CF10: FALSE | CG10: FALSE | CH10: FALSE | CI10: FALSE | CJ10: FALSE | CK10: FALSE | CL10: FALSE | CM10: FALSE | CN10: FALSE | CO10: FALSE | CP10: FALSE | CQ10: FALSE | CR10: FALSE | CS10: FALSE | CT10: FALSE | CU10: FALSE | CV10: FALSE | CW10: FALSE | CX10: FALSE | CY10: FALSE | CZ10: FALSE | DA10: FALSE | DB10: FALSE | DC10: FALSE | DD10: FALSE | DE10: FALSE | DF10: FALSE | DG10: FALSE | DH10: FALSE | DI10: FALSE | DJ10: FALSE | DK10: FALSE | DL10: FALSE | DM10: FALSE | DN10: FALSE | DO10: FALSE | DP10: FALSE | DQ10: FALSE | DR10: FALSE | DS10: FALSE | DT10: FALSE | DU10: FALSE | DV10: FALSE | DW10: FALSE | DX10: FALSE | DY10: FALSE | DZ10: FALSE | EA10: =EA9<=$B$7 -> FALSE | EB10: FALSE | EC10: FALSE | ED10: FALSE | EE10: FALSE | EF10: FALSE | EG10: FALSE | EH10: FALSE | EI10: FALSE | EJ10: FALSE | EK10: FALSE | EL10: FALSE | EM10: FALSE | EN10: FALSE | EO10: FALSE | EP10: FALSE | EQ10: FALSE | ER10: FALSE | ES10: FALSE | ET10: FALSE | EU10: FALSE | EV10: FALSE | EW10: FALSE | EX10: FALSE | EY10: FALSE | EZ10: FALSE | FA10: FALSE | FB10: FALSE | FC10: FALSE | FD10: FALSE | FE10: FALSE | FF10: FALSE | FG10: FALSE | FH10: FALSE | FI10: FALSE | FJ10: FALSE | FK10: FALSE | FL10: FALSE | FM10: FALSE | FN10: FALSE | FO10: FALSE | FP10: FALSE | FQ10: FALSE | FR10: FALSE | FS10: FALSE | FT10: FALSE | FU10: FALSE | FV10: FALSE | FW10: FALSE | FX10: FALSE | FY10: FALSE | FZ10: FALSE | GA10: FALSE | GB10: FALSE | GC10: FALSE | GD10: FALSE | GE10: FALSE | GF10: FALSE | GG10: FALSE | GH10: FALSE | GI10: FALSE | GJ10: FALSE | GK10: FALSE | GL10: FALSE | GM10: =GM9<=$B$7 -> FALSE | GN10: FALSE | GO10: FALSE | GP10: FALSE | GQ10: FALSE | GR10: FALSE | GS10: FALSE | GT10: FALSE | GU10: FALSE | GV10: FALSE | GW10: FALSE | GX10: FALSE | GY10: FALSE | GZ10: FALSE | HA10: FALSE | HB10: FALSE | HC10: FALSE | HD10: FALSE | HE10: FALSE | HF10: FALSE | HG10: FALSE | HH10: FALSE | HI10: FALSE | HJ10: FALSE | HK10: FALSE | HL10: FALSE | HM10: FALSE | HN10: FALSE | HO10: FALSE | HP10: FALSE | HQ10: FALSE | HR10: FALSE | HS10: FALSE | HT10: FALSE | HU10: FALSE | HV10: FALSE | HW10: FALSE | HX10: FALSE | HY10: FALSE | HZ10: FALSE | IA10: FALSE | IB10: FALSE | IC10: FALSE | ID10: FALSE | IE10: FALSE | IF10: FALSE | IG10: FALSE | IH10: FALSE | II10: FALSE | IJ10: FALSE | IK10: FALSE | IL10: FALSE | IM10: FALSE | IN10: FALSE | IO10: FALSE | IP10: FALSE | IQ10: FALSE | IR10: FALSE | IS10: FALSE | IT10: FALSE | IU10: FALSE | IV10: FALSE | IW10: FALSE | IX10: FALSE | IY10: =IY9<=$B$7 -> FALSE | IZ10: FALSE | JA10: FALSE | JB10: FALSE | JC10: FALSE | JD10: FALSE | JE10: FALSE | JF10: FALSE | JG10: FALSE | JH10: FALSE | JI10: FALSE | JJ10: FALSE | JK10: FALSE | JL10: FALSE | JM10: FALSE | JN10: FALSE | JO10: FALSE | JP10: FALSE | JQ10: FALSE | JR10: FALSE | JS10: FALSE | JT10: FALSE | JU10: FALSE | JV10: FALSE | JW10: FALSE | JX10: FALSE | JY10: FALSE | JZ10: FALSE | KA10: FALSE | KB10: FALSE | KC10: FALSE | KD10: FALSE | KE10: FALSE | KF10: FALSE | KG10: FALSE | KH10: FALSE | KI10: FALSE | KJ10: FALSE | KK10: FALSE | KL10: FALSE | KM10: FALSE | KN10: FALSE | KO10: FALSE
A11: Long term switch | B11: =NOT(B10) -> FALSE | C11: =NOT(C10) -> FALSE | D11: FALSE | E11: FALSE | F11: FALSE | G11: FALSE | H11: FALSE | I11: FALSE | J11: FALSE | K11: FALSE | L11: TRUE | M11: TRUE | N11: TRUE | O11: TRUE | P11: TRUE | Q11: TRUE | R11: TRUE | S11: TRUE | T11: TRUE | U11: TRUE | V11: TRUE | W11: TRUE | X11: TRUE | Y11: TRUE | Z11: TRUE | AA11: TRUE | AB11: TRUE | AC11: TRUE | AD11: TRUE | AE11: TRUE | AF11: TRUE | AG11: TRUE | AH11: TRUE | AI11: TRUE | AJ11: TRUE | AK11: TRUE | AL11: TRUE | AM11: TRUE | AN11: TRUE | AO11: TRUE | AP11: TRUE | AQ11: TRUE | AR11: TRUE | AS11: TRUE | AT11: TRUE | AU11: TRUE | AV11: TRUE | AW11: TRUE | AX11: TRUE | AY11: TRUE | AZ11: TRUE | BA11: TRUE | BB11: TRUE | BC11: TRUE | BD11: TRUE | BE11: TRUE | BF11: TRUE | BG11: TRUE | BH11: TRUE | BI11: TRUE | BJ11: TRUE | BK11: TRUE | BL11: TRUE | BM11: TRUE | BN11: TRUE | BO11: =NOT(BO10) -> TRUE | BP11: TRUE | BQ11: TRUE | BR11: TRUE | BS11: TRUE | BT11: TRUE | BU11: TRUE | BV11: TRUE | BW11: TRUE | BX11: TRUE | BY11: TRUE | BZ11: TRUE | CA11: TRUE | CB11: TRUE | CC11: TRUE | CD11: TRUE | CE11: TRUE | CF11: TRUE | CG11: TRUE | CH11: TRUE | CI11: TRUE | CJ11: TRUE | CK11: TRUE | CL11: TRUE | CM11: TRUE | CN11: TRUE | CO11: TRUE | CP11: TRUE | CQ11: TRUE | CR11: TRUE | CS11: TRUE | CT11: TRUE | CU11: TRUE | CV11: TRUE | CW11: TRUE | CX11: TRUE | CY11: TRUE | CZ11: TRUE | DA11: TRUE | DB11: TRUE | DC11: TRUE | DD11: TRUE | DE11: TRUE | DF11: TRUE | DG11: TRUE | DH11: TRUE | DI11: TRUE | DJ11: TRUE | DK11: TRUE | DL11: TRUE | DM11: TRUE | DN11: TRUE | DO11: TRUE | DP11: TRUE | DQ11: TRUE | DR11: TRUE | DS11: TRUE | DT11: TRUE | DU11: TRUE | DV11: TRUE | DW11: TRUE | DX11: TRUE | DY11: TRUE | DZ11: TRUE | EA11: =NOT(EA10) -> TRUE | EB11: TRUE | EC11: TRUE | ED11: TRUE | EE11: TRUE | EF11: TRUE | EG11: TRUE | EH11: TRUE | EI11: TRUE | EJ11: TRUE | EK11: TRUE | EL11: TRUE | EM11: TRUE | EN11: TRUE | EO11: TRUE | EP11: TRUE | EQ11: TRUE | ER11: TRUE | ES11: TRUE | ET11: TRUE | EU11: TRUE | EV11: TRUE | EW11: TRUE | EX11: TRUE | EY11: TRUE | EZ11: TRUE | FA11: TRUE | FB11: TRUE | FC11: TRUE | FD11: TRUE | FE11: TRUE | FF11: TRUE | FG11: TRUE | FH11: TRUE | FI11: TRUE | FJ11: TRUE | FK11: TRUE | FL11: TRUE | FM11: TRUE | FN11: TRUE | FO11: TRUE | FP11: TRUE | FQ11: TRUE | FR11: TRUE | FS11: TRUE | FT11: TRUE | FU11: TRUE | FV11: TRUE | FW11: TRUE | FX11: TRUE | FY11: TRUE | FZ11: TRUE | GA11: TRUE | GB11: TRUE | GC11: TRUE | GD11: TRUE | GE11: TRUE | GF11: TRUE | GG11: TRUE | GH11: TRUE | GI11: TRUE | GJ11: TRUE | GK11: TRUE | GL11: TRUE | GM11: =NOT(GM10) -> TRUE | GN11: TRUE | GO11: TRUE | GP11: TRUE | GQ11: TRUE | GR11: TRUE | GS11: TRUE | GT11: TRUE | GU11: TRUE | GV11: TRUE | GW11: TRUE | GX11: TRUE | GY11: TRUE | GZ11: TRUE | HA11: TRUE | HB11: TRUE | HC11: TRUE | HD11: TRUE | HE11: TRUE | HF11: TRUE | HG11: TRUE | HH11: TRUE | HI11: TRUE | HJ11: TRUE | HK11: TRUE | HL11: TRUE | HM11: TRUE | HN11: TRUE | HO11: TRUE | HP11: TRUE | HQ11: TRUE | HR11: TRUE | HS11: TRUE | HT11: TRUE | HU11: TRUE | HV11: TRUE | HW11: TRUE | HX11: TRUE | HY11: TRUE | HZ11: TRUE | IA11: TRUE | IB11: TRUE | IC11: TRUE | ID11: TRUE | IE11: TRUE | IF11: TRUE | IG11: TRUE | IH11: TRUE | II11: TRUE | IJ11: TRUE | IK11: TRUE | IL11: TRUE | IM11: TRUE | IN11: TRUE | IO11: TRUE | IP11: TRUE | IQ11: TRUE | IR11: TRUE | IS11: TRUE | IT11: TRUE | IU11: TRUE | IV11: TRUE | IW11: TRUE | IX11: TRUE | IY11: =NOT(IY10) -> TRUE | IZ11: TRUE | JA11: TRUE | JB11: TRUE | JC11: TRUE | JD11: TRUE | JE11: TRUE | JF11: TRUE | JG11: TRUE | JH11: TRUE | JI11: TRUE | JJ11: TRUE | JK11: TRUE | JL11: TRUE | JM11: TRUE | JN11: TRUE | JO11: TRUE | JP11: TRUE | JQ11: TRUE | JR11: TRUE | JS11: TRUE | JT11: TRUE | JU11: TRUE | JV11: TRUE | JW11: TRUE | JX11: TRUE | JY11: TRUE | JZ11: TRUE | KA11: TRUE | KB11: TRUE | KC11: TRUE | KD11: TRUE | KE11: TRUE | KF11: TRUE | KG11: TRUE | KH11: TRUE | KI11: TRUE | KJ11: TRUE | KK11: TRUE | KL11: TRUE | KM11: TRUE | KN11: TRUE | KO11: TRUE
A12: ROE | B12: =B10*$B$2+B11*$C$2 -> 0.25 | C12: =C10*$B$2+C11*$C$2 -> 0.25 | D12: 0.25 | E12: 0.25 | F12: 0.25 | G12: 0.25 | H12: 0.25 | I12: 0.25 | J12: 0.25 | K12: 0.25 | L12: 0.2 | M12: 0.2 | N12: 0.2 | O12: 0.2 | P12: 0.2 | Q12: 0.2 | R12: 0.2 | S12: 0.2 | T12: 0.2 | U12: 0.2 | V12: 0.2 | W12: 0.2 | X12: 0.2 | Y12: 0.2 | Z12: 0.2 | AA12: 0.2 | AB12: 0.2 | AC12: 0.2 | AD12: 0.2 | AE12: 0.2 | AF12: 0.2 | AG12: 0.2 | AH12: 0.2 | AI12: 0.2 | AJ12: 0.2 | AK12: 0.2 | AL12: 0.2 | AM12: 0.2 | AN12: 0.2 | AO12: 0.2 | AP12: 0.2 | AQ12: 0.2 | AR12: 0.2 | AS12: 0.2 | AT12: 0.2 | AU12: 0.2 | AV12: 0.2 | AW12: 0.2 | AX12: 0.2 | AY12: 0.2 | AZ12: 0.2 | BA12: 0.2 | BB12: 0.2 | BC12: 0.2 | BD12: 0.2 | BE12: 0.2 | BF12: 0.2 | BG12: 0.2 | BH12: 0.2 | BI12: 0.2 | BJ12: 0.2 | BK12: 0.2 | BL12: 0.2 | BM12: 0.2 | BN12: 0.2 | BO12: =BO10*$B$2+BO11*$C$2 -> 0.2 | BP12: 0.2 | BQ12: 0.2 | BR12: 0.2 | BS12: 0.2 | BT12: 0.2 | BU12: 0.2 | BV12: 0.2 | BW12: 0.2 | BX12: 0.2 | BY12: 0.2 | BZ12: 0.2 | CA12: 0.2 | CB12: 0.2 | CC12: 0.2 | CD12: 0.2 | CE12: 0.2 | CF12: 0.2 | CG12: 0.2 | CH12: 0.2 | CI12: 0.2 | CJ12: 0.2 | CK12: 0.2 | CL12: 0.2 | CM12: 0.2 | CN12: 0.2 | CO12: 0.2 | CP12: 0.2 | CQ12: 0.2 | CR12: 0.2 | CS12: 0.2 | CT12: 0.2 | CU12: 0.2 | CV12: 0.2 | CW12: 0.2 | CX12: 0.2 | CY12: 0.2 | CZ12: 0.2 | DA12: 0.2 | DB12: 0.2 | DC12: 0.2 | DD12: 0.2 | DE12: 0.2 | DF12: 0.2 | DG12: 0.2 | DH12: 0.2 | DI12: 0.2 | DJ12: 0.2 | DK12: 0.2 | DL12: 0.2 | DM12: 0.2 | DN12: 0.2 | DO12: 0.2 | DP12: 0.2 | DQ12: 0.2 | DR12: 0.2 | DS12: 0.2 | DT12: 0.2 | DU12: 0.2 | DV12: 0.2 | DW12: 0.2 | DX12: 0.2 | DY12: 0.2 | DZ12: 0.2 | EA12: =EA10*$B$2+EA11*$C$2 -> 0.2 | EB12: 0.2 | EC12: 0.2 | ED12: 0.2 | EE12: 0.2 | EF12: 0.2 | EG12: 0.2 | EH12: 0.2 | EI12: 0.2 | EJ12: 0.2 | EK12: 0.2 | EL12: 0.2 | EM12: 0.2 | EN12: 0.2 | EO12: 0.2 | EP12: 0.2 | EQ12: 0.2 | ER12: 0.2 | ES12: 0.2 | ET12: 0.2 | EU12: 0.2 | EV12: 0.2 | EW12: 0.2 | EX12: 0.2 | EY12: 0.2 | EZ12: 0.2 | FA12: 0.2 | FB12: 0.2 | FC12: 0.2 | FD12: 0.2 | FE12: 0.2 | FF12: 0.2 | FG12: 0.2 | FH12: 0.2 | FI12: 0.2 | FJ12: 0.2 | FK12: 0.2 | FL12: 0.2 | FM12: 0.2 | FN12: 0.2 | FO12: 0.2 | FP12: 0.2 | FQ12: 0.2 | FR12: 0.2 | FS12: 0.2 | FT12: 0.2 | FU12: 0.2 | FV12: 0.2 | FW12: 0.2 | FX12: 0.2 | FY12: 0.2 | FZ12: 0.2 | GA12: 0.2 | GB12: 0.2 | GC12: 0.2 | GD12: 0.2 | GE12: 0.2 | GF12: 0.2 | GG12: 0.2 | GH12: 0.2 | GI12: 0.2 | GJ12: 0.2 | GK12: 0.2 | GL12: 0.2 | GM12: =GM10*$B$2+GM11*$C$2 -> 0.2 | GN12: 0.2 | GO12: 0.2 | GP12: 0.2 | GQ12: 0.2 | GR12: 0.2 | GS12: 0.2 | GT12: 0.2 | GU12: 0.2 | GV12: 0.2 | GW12: 0.2 | GX12: 0.2 | GY12: 0.2 | GZ12: 0.2 | HA12: 0.2 | HB12: 0.2 | HC12: 0.2 | HD12: 0.2 | HE12: 0.2 | HF12: 0.2 | HG12: 0.2 | HH12: 0.2 | HI12: 0.2 | HJ12: 0.2 | HK12: 0.2 | HL12: 0.2 | HM12: 0.2 | HN12: 0.2 | HO12: 0.2 | HP12: 0.2 | HQ12: 0.2 | HR12: 0.2 | HS12: 0.2 | HT12: 0.2 | HU12: 0.2 | HV12: 0.2 | HW12: 0.2 | HX12: 0.2 | HY12: 0.2 | HZ12: 0.2 | IA12: 0.2 | IB12: 0.2 | IC12: 0.2 | ID12: 0.2 | IE12: 0.2 | IF12: 0.2 | IG12: 0.2 | IH12: 0.2 | II12: 0.2 | IJ12: 0.2 | IK12: 0.2 | IL12: 0.2 | IM12: 0.2 | IN12: 0.2 | IO12: 0.2 | IP12: 0.2 | IQ12: 0.2 | IR12: 0.2 | IS12: 0.2 | IT12: 0.2 | IU12: 0.2 | IV12: 0.2 | IW12: 0.2 | IX12: 0.2 | IY12: =IY10*$B$2+IY11*$C$2 -> 0.2 | IZ12: 0.2 | JA12: 0.2 | JB12: 0.2 | JC12: 0.2 | JD12: 0.2 | JE12: 0.2 | JF12: 0.2 | JG12: 0.2 | JH12: 0.2 | JI12: 0.2 | JJ12: 0.2 | JK12: 0.2 | JL12: 0.2 | JM12: 0.2 | JN12: 0.2 | JO12: 0.2 | JP12: 0.2 | JQ12: 0.2 | JR12: 0.2 | JS12: 0.2 | JT12: 0.2 | JU12: 0.2 | JV12: 0.2 | JW12: 0.2 | JX12: 0.2 | JY12: 0.2 | JZ12: 0.2 | KA12: 0.2 | KB12: 0.2 | KC12: 0.2 | KD12: 0.2 | KE12: 0.2 | KF12: 0.2 | KG12: 0.2 | KH12: 0.2 | KI12: 0.2 | KJ12: 0.2 | KK12: 0.2 | KL12: 0.2 | KM12: 0.2 | KN12: 0.2 | KO12: 0.2
A13: Growth rate | B13: =B10*$B$4+B11*$C$4 -> 0.25 | C13: =C10*$B$4+C11*$C$4 -> 0.25 | D13: 0.25 | E13: 0.25 | F13: 0.25 | G13: 0.25 | H13: 0.25 | I13: 0.25 | J13: 0.25 | K13: 0.25 | L13: 0.07 | M13: 0.07 | N13: 0.07 | O13: 0.07 | P13: 0.07 | Q13: 0.07 | R13: 0.07 | S13: 0.07 | T13: 0.07 | U13: 0.07 | V13: 0.07 | W13: 0.07 | X13: 0.07 | Y13: 0.07 | Z13: 0.07 | AA13: 0.07 | AB13: 0.07 | AC13: 0.07 | AD13: 0.07 | AE13: 0.07 | AF13: 0.07 | AG13: 0.07 | AH13: 0.07 | AI13: 0.07 | AJ13: 0.07 | AK13: 0.07 | AL13: 0.07 | AM13: 0.07 | AN13: 0.07 | AO13: 0.07 | AP13: 0.07 | AQ13: 0.07 | AR13: 0.07 | AS13: 0.07 | AT13: 0.07 | AU13: 0.07 | AV13: 0.07 | AW13: 0.07 | AX13: 0.07 | AY13: 0.07 | AZ13: 0.07 | BA13: 0.07 | BB13: 0.07 | BC13: 0.07 | BD13: 0.07 | BE13: 0.07 | BF13: 0.07 | BG13: 0.07 | BH13: 0.07 | BI13: 0.07 | BJ13: 0.07 | BK13: 0.07 | BL13: 0.07 | BM13: 0.07 | BN13: 0.07 | BO13: =BO10*$B$4+BO11*$C$4 -> 0.07 | BP13: 0.07 | BQ13: 0.07 | BR13: 0.07 | BS13: 0.07 | BT13: 0.07 | BU13: 0.07 | BV13: 0.07 | BW13: 0.07 | BX13: 0.07 | BY13: 0.07 | BZ13: 0.07 | CA13: 0.07 | CB13: 0.07 | CC13: 0.07 | CD13: 0.07 | CE13: 0.07 | CF13: 0.07 | CG13: 0.07 | CH13: 0.07 | CI13: 0.07 | CJ13: 0.07 | CK13: 0.07 | CL13: 0.07 | CM13: 0.07 | CN13: 0.07 | CO13: 0.07 | CP13: 0.07 | CQ13: 0.07 | CR13: 0.07 | CS13: 0.07 | CT13: 0.07 | CU13: 0.07 | CV13: 0.07 | CW13: 0.07 | CX13: 0.07 | CY13: 0.07 | CZ13: 0.07 | DA13: 0.07 | DB13: 0.07 | DC13: 0.07 | DD13: 0.07 | DE13: 0.07 | DF13: 0.07 | DG13: 0.07 | DH13: 0.07 | DI13: 0.07 | DJ13: 0.07 | DK13: 0.07 | DL13: 0.07 | DM13: 0.07 | DN13: 0.07 | DO13: 0.07 | DP13: 0.07 | DQ13: 0.07 | DR13: 0.07 | DS13: 0.07 | DT13: 0.07 | DU13: 0.07 | DV13: 0.07 | DW13: 0.07 | DX13: 0.07 | DY13: 0.07 | DZ13: 0.07 | EA13: =EA10*$B$4+EA11*$C$4 -> 0.07 | EB13: 0.07 | EC13: 0.07 | ED13: 0.07 | EE13: 0.07 | EF13: 0.07 | EG13: 0.07 | EH13: 0.07 | EI13: 0.07 | EJ13: 0.07 | EK13: 0.07 | EL13: 0.07 | EM13: 0.07 | EN13: 0.07 | EO13: 0.07 | EP13: 0.07 | EQ13: 0.07 | ER13: 0.07 | ES13: 0.07 | ET13: 0.07 | EU13: 0.07 | EV13: 0.07 | EW13: 0.07 | EX13: 0.07 | EY13: 0.07 | EZ13: 0.07 | FA13: 0.07 | FB13: 0.07 | FC13: 0.07 | FD13: 0.07 | FE13: 0.07 | FF13: 0.07 | FG13: 0.07 | FH13: 0.07 | FI13: 0.07 | FJ13: 0.07 | FK13: 0.07 | FL13: 0.07 | FM13: 0.07 | FN13: 0.07 | FO13: 0.07 | FP13: 0.07 | FQ13: 0.07 | FR13: 0.07 | FS13: 0.07 | FT13: 0.07 | FU13: 0.07 | FV13: 0.07 | FW13: 0.07 | FX13: 0.07 | FY13: 0.07 | FZ13: 0.07 | GA13: 0.07 | GB13: 0.07 | GC13: 0.07 | GD13: 0.07 | GE13: 0.07 | GF13: 0.07 | GG13: 0.07 | GH13: 0.07 | GI13: 0.07 | GJ13: 0.07 | GK13: 0.07 | GL13: 0.07 | GM13: =GM10*$B$4+GM11*$C$4 -> 0.07 | GN13: 0.07 | GO13: 0.07 | GP13: 0.07 | GQ13: 0.07 | GR13: 0.07 | GS13: 0.07 | GT13: 0.07 | GU13: 0.07 | GV13: 0.07 | GW13: 0.07 | GX13: 0.07 | GY13: 0.07 | GZ13: 0.07 | HA13: 0.07 | HB13: 0.07 | HC13: 0.07 | HD13: 0.07 | HE13: 0.07 | HF13: 0.07 | HG13: 0.07 | HH13: 0.07 | HI13: 0.07 | HJ13: 0.07 | HK13: 0.07 | HL13: 0.07 | HM13: 0.07 | HN13: 0.07 | HO13: 0.07 | HP13: 0.07 | HQ13: 0.07 | HR13: 0.07 | HS13: 0.07 | HT13: 0.07 | HU13: 0.07 | HV13: 0.07 | HW13: 0.07 | HX13: 0.07 | HY13: 0.07 | HZ13: 0.07 | IA13: 0.07 | IB13: 0.07 | IC13: 0.07 | ID13: 0.07 | IE13: 0.07 | IF13: 0.07 | IG13: 0.07 | IH13: 0.07 | II13: 0.07 | IJ13: 0.07 | IK13: 0.07 | IL13: 0.07 | IM13: 0.07 | IN13: 0.07 | IO13: 0.07 | IP13: 0.07 | IQ13: 0.07 | IR13: 0.07 | IS13: 0.07 | IT13: 0.07 | IU13: 0.07 | IV13: 0.07 | IW13: 0.07 | IX13: 0.07 | IY13: =IY10*$B$4+IY11*$C$4 -> 0.07 | IZ13: 0.07 | JA13: 0.07 | JB13: 0.07 | JC13: 0.07 | JD13: 0.07 | JE13: 0.07 | JF13: 0.07 | JG13: 0.07 | JH13: 0.07 | JI13: 0.07 | JJ13: 0.07 | JK13: 0.07 | JL13: 0.07 | JM13: 0.07 | JN13: 0.07 | JO13: 0.07 | JP13: 0.07 | JQ13: 0.07 | JR13: 0.07 | JS13: 0.07 | JT13: 0.07 | JU13: 0.07 | JV13: 0.07 | JW13: 0.07 | JX13: 0.07 | JY13: 0.07 | JZ13: 0.07 | KA13: 0.07 | KB13: 0.07 | KC13: 0.07 | KD13: 0.07 | KE13: 0.07 | KF13: 0.07 | KG13: 0.07 | KH13: 0.07 | KI13: 0.07 | KJ13: 0.07 | KK13: 0.07 | KL13: 0.07 | KM13: 0.07 | KN13: 0.07 | KO13: 0.07
A14: Dividend payout ratio | B14: =(1-B13/B12) -> 0 | C14: =(1-C13/C12) -> 0 | D14: 0 | E14: 0 | F14: 0 | G14: 0 | H14: 0 | I14: 0 | J14: 0 | K14: 0 | L14: 0.65 | M14: 0.65 | N14: 0.65 | O14: 0.65 | P14: 0.65 | Q14: 0.65 | R14: 0.65 | S14: 0.65 | T14: 0.65 | U14: 0.65 | V14: 0.65 | W14: 0.65 | X14: 0.65 | Y14: 0.65 | Z14: 0.65 | AA14: 0.65 | AB14: 0.65 | AC14: 0.65 | AD14: 0.65 | AE14: 0.65 | AF14: 0.65 | AG14: 0.65 | AH14: 0.65 | AI14: 0.65 | AJ14: 0.65 | AK14: 0.65 | AL14: 0.65 | AM14: 0.65 | AN14: 0.65 | AO14: 0.65 | AP14: 0.65 | AQ14: 0.65 | AR14: 0.65 | AS14: 0.65 | AT14: 0.65 | AU14: 0.65 | AV14: 0.65 | AW14: 0.65 | AX14: 0.65 | AY14: 0.65 | AZ14: 0.65 | BA14: 0.65 | BB14: 0.65 | BC14: 0.65 | BD14: 0.65 | BE14: 0.65 | BF14: 0.65 | BG14: 0.65 | BH14: 0.65 | BI14: 0.65 | BJ14: 0.65 | BK14: 0.65 | BL14: 0.65 | BM14: 0.65 | BN14: 0.65 | BO14: =(1-BO13/BO12) -> 0.65 | BP14: 0.65 | BQ14: 0.65 | BR14: 0.65 | BS14: 0.65 | BT14: 0.65 | BU14: 0.65 | BV14: 0.65 | BW14: 0.65 | BX14: 0.65 | BY14: 0.65 | BZ14: 0.65 | CA14: 0.65 | CB14: 0.65 | CC14: 0.65 | CD14: 0.65 | CE14: 0.65 | CF14: 0.65 | CG14: 0.65 | CH14: 0.65 | CI14: 0.65 | CJ14: 0.65 | CK14: 0.65 | CL14: 0.65 | CM14: 0.65 | CN14: 0.65 | CO14: 0.65 | CP14: 0.65 | CQ14: 0.65 | CR14: 0.65 | CS14: 0.65 | CT14: 0.65 | CU14: 0.65 | CV14: 0.65 | CW14: 0.65 | CX14: 0.65 | CY14: 0.65 | CZ14: 0.65 | DA14: 0.65 | DB14: 0.65 | DC14: 0.65 | DD14: 0.65 | DE14: 0.65 | DF14: 0.65 | DG14: 0.65 | DH14: 0.65 | DI14: 0.65 | DJ14: 0.65 | DK14: 0.65 | DL14: 0.65 | DM14: 0.65 | DN14: 0.65 | DO14: 0.65 | DP14: 0.65 | DQ14: 0.65 | DR14: 0.65 | DS14: 0.65 | DT14: 0.65 | DU14: 0.65 | DV14: 0.65 | DW14: 0.65 | DX14: 0.65 | DY14: 0.65 | DZ14: 0.65 | EA14: =(1-EA13/EA12) -> 0.65 | EB14: 0.65 | EC14: 0.65 | ED14: 0.65 | EE14: 0.65 | EF14: 0.65 | EG14: 0.65 | EH14: 0.65 | EI14: 0.65 | EJ14: 0.65 | EK14: 0.65 | EL14: 0.65 | EM14: 0.65 | EN14: 0.65 | EO14: 0.65 | EP14: 0.65 | EQ14: 0.65 | ER14: 0.65 | ES14: 0.65 | ET14: 0.65 | EU14: 0.65 | EV14: 0.65 | EW14: 0.65 | EX14: 0.65 | EY14: 0.65 | EZ14: 0.65 | FA14: 0.65 | FB14: 0.65 | FC14: 0.65 | FD14: 0.65 | FE14: 0.65 | FF14: 0.65 | FG14: 0.65 | FH14: 0.65 | FI14: 0.65 | FJ14: 0.65 | FK14: 0.65 | FL14: 0.65 | FM14: 0.65 | FN14: 0.65 | FO14: 0.65 | FP14: 0.65 | FQ14: 0.65 | FR14: 0.65 | FS14: 0.65 | FT14: 0.65 | FU14: 0.65 | FV14: 0.65 | FW14: 0.65 | FX14: 0.65 | FY14: 0.65 | FZ14: 0.65 | GA14: 0.65 | GB14: 0.65 | GC14: 0.65 | GD14: 0.65 | GE14: 0.65 | GF14: 0.65 | GG14: 0.65 | GH14: 0.65 | GI14: 0.65 | GJ14: 0.65 | GK14: 0.65 | GL14: 0.65 | GM14: =(1-GM13/GM12) -> 0.65 | GN14: 0.65 | GO14: 0.65 | GP14: 0.65 | GQ14: 0.65 | GR14: 0.65 | GS14: 0.65 | GT14: 0.65 | GU14: 0.65 | GV14: 0.65 | GW14: 0.65 | GX14: 0.65 | GY14: 0.65 | GZ14: 0.65 | HA14: 0.65 | HB14: 0.65 | HC14: 0.65 | HD14: 0.65 | HE14: 0.65 | HF14: 0.65 | HG14: 0.65 | HH14: 0.65 | HI14: 0.65 | HJ14: 0.65 | HK14: 0.65 | HL14: 0.65 | HM14: 0.65 | HN14: 0.65 | HO14: 0.65 | HP14: 0.65 | HQ14: 0.65 | HR14: 0.65 | HS14: 0.65 | HT14: 0.65 | HU14: 0.65 | HV14: 0.65 | HW14: 0.65 | HX14: 0.65 | HY14: 0.65 | HZ14: 0.65 | IA14: 0.65 | IB14: 0.65 | IC14: 0.65 | ID14: 0.65 | IE14: 0.65 | IF14: 0.65 | IG14: 0.65 | IH14: 0.65 | II14: 0.65 | IJ14: 0.65 | IK14: 0.65 | IL14: 0.65 | IM14: 0.65 | IN14: 0.65 | IO14: 0.65 | IP14: 0.65 | IQ14: 0.65 | IR14: 0.65 | IS14: 0.65 | IT14: 0.65 | IU14: 0.65 | IV14: 0.65 | IW14: 0.65 | IX14: 0.65 | IY14: =(1-IY13/IY12) -> 0.65 | IZ14: 0.65 | JA14: 0.65 | JB14: 0.65 | JC14: 0.65 | JD14: 0.65 | JE14: 0.65 | JF14: 0.65 | JG14: 0.65 | JH14: 0.65 | JI14: 0.65 | JJ14: 0.65 | JK14: 0.65 | JL14: 0.65 | JM14: 0.65 | JN14: 0.65 | JO14: 0.65 | JP14: 0.65 | JQ14: 0.65 | JR14: 0.65 | JS14: 0.65 | JT14: 0.65 | JU14: 0.65 | JV14: 0.65 | JW14: 0.65 | JX14: 0.65 | JY14: 0.65 | JZ14: 0.65 | KA14: 0.65 | KB14: 0.65 | KC14: 0.65 | KD14: 0.65 | KE14: 0.65 | KF14: 0.65 | KG14: 0.65 | KH14: 0.65 | KI14: 0.65 | KJ14: 0.65 | KK14: 0.65 | KL14: 0.65 | KM14: 0.65 | KN14: 0.65 | KO14: 0.65
A16: Opening balance | C16: =B19 -> 11.95 | D16: =C19 -> 14.9375 | E16: 18.671875 | F16: 23.33984375 | G16: 29.17480469 | H16: 36.46850586 | I16: 45.58563232 | J16: 56.98204041 | K16: 71.22755051 | L16: 89.03443813 | M16: 95.2668488 | N16: 101.9355282 | O16: 109.0710152 | P16: 116.7059863 | Q16: 124.8754053 | R16: 133.6166837 | S16: 142.9698515 | T16: 152.9777411 | U16: 163.686183 | V16: 175.1442158 | W16: 187.4043109 | X16: 200.5226127 | Y16: 214.5591956 | Z16: 229.5783393 | AA16: 245.648823 | AB16: 262.8442406 | AC16: 281.2433375 | AD16: 300.9303711 | AE16: 321.9954971 | AF16: 344.5351819 | AG16: 368.6526446 | AH16: 394.4583297 | AI16: 422.0704128 | AJ16: 451.6153417 | AK16: 483.2284156 | AL16: 517.0544047 | AM16: 553.248213 | AN16: 591.975588 | AO16: 633.4138791 | AP16: 677.7528507 | AQ16: 725.1955502 | AR16: 775.9592387 | AS16: 830.2763854 | AT16: 888.3957324 | AU16: 950.5834337 | AV16: 1017.124274 | AW16: 1088.322973 | AX16: 1164.505581 | AY16: 1246.020972 | AZ16: 1333.24244 | BA16: 1426.569411 | BB16: 1526.42927 | BC16: 1633.279319 | BD16: 1747.608871 | BE16: 1869.941492 | BF16: 2000.837396 | BG16: 2140.896014 | BH16: 2290.758735 | BI16: 2451.111846 | BJ16: 2622.689676 | BK16: 2806.277953 | BL16: 3002.71741 | BM16: 3212.907628 | BN16: 3437.811162 | BO16: 3678.457944 | BP16: =BO19 -> 3935.95 | BQ16: 4211.4665 | BR16: 4506.269155 | BS16: 4821.707995 | BT16: 5159.227555 | BU16: 5520.373484 | BV16: 5906.799628 | BW16: 6320.275602 | BX16: 6762.694894 | BY16: 7236.083536 | BZ16: 7742.609384 | CA16: 8284.592041 | CB16: 8864.513484 | CC16: 9485.029428 | CD16: 10148.98149 | CE16: 10859.41019 | CF16: 11619.5689 | CG16: 12432.93873 | CH16: 13303.24444 | CI16: 14234.47155 | CJ16: 15230.88456 | CK16: 16297.04648 | CL16: 17437.83973 | CM16: 18658.48851 | CN16: 19964.58271 | CO16: 21362.1035 | CP16: 22857.45074 | CQ16: 24457.47229 | CR16: 26169.49536 | CS16: 28001.36003 | CT16: 29961.45523 | CU16: 32058.7571 | CV16: 34302.8701 | CW16: 36704.071 | CX16: 39273.35597 | CY16: 42022.49089 | CZ16: 44964.06525 | DA16: 48111.54982 | DB16: 51479.35831 | DC16: 55082.91339 | DD16: 58938.71733 | DE16: 63064.42754 | DF16: 67478.93747 | DG16: 72202.46309 | DH16: 77256.63551 | DI16: 82664.59999 | DJ16: 88451.12199 | DK16: 94642.70053 | DL16: 101267.6896 | DM16: 108356.4278 | DN16: 115941.3778 | DO16: 124057.2742 | DP16: 132741.2834 | DQ16: 142033.1733 | DR16: 151975.4954 | DS16: 162613.7801 | DT16: 173996.7447 | DU16: 186176.5168 | DV16: 199208.873 | DW16: 213153.4941 | DX16: 228074.2387 | DY16: 244039.4354 | DZ16: 261122.1959 | EA16: 279400.7496 | EB16: =EA19 -> 298958.802 | EC16: 319885.9182 | ED16: 342277.9325 | EE16: 366237.3877 | EF16: 391874.0049 | EG16: 419305.1852 | EH16: 448656.5482 | EI16: 480062.5065 | EJ16: 513666.882 | EK16: 549623.5637 | EL16: 588097.2132 | EM16: 629264.0181 | EN16: 673312.4994 | EO16: 720444.3744 | EP16: 770875.4806 | EQ16: 824836.7642 | ER16: 882575.3377 | ES16: 944355.6113 | ET16: 1010460.504 | EU16: 1081192.739 | EV16: 1156876.231 | EW16: 1237857.567 | EX16: 1324507.597 | EY16: 1417223.129 | EZ16: 1516428.748 | FA16: 1622578.76 | FB16: 1736159.273 | FC16: 1857690.423 | FD16: 1987728.752 | FE16: 2126869.765 | FF16: 2275750.648 | FG16: 2435053.194 | FH16: 2605506.917 | FI16: 2787892.402 | FJ16: 2983044.87 | FK16: 3191858.011 | FL16: 3415288.071 | FM16: 3654358.236 | FN16: 3910163.313 | FO16: 4183874.745 | FP16: 4476745.977 | FQ16: 4790118.195 | FR16: 5125426.469 | FS16: 5484206.322 | FT16: 5868100.764 | FU16: 6278867.818 | FV16: 6718388.565 | FW16: 7188675.764 | FX16: 7691883.068 | FY16: 8230314.883 | FZ16: 8806436.925 | GA16: 9422887.509 | GB16: 10082489.63 | GC16: 10788263.91 | GD16: 11543442.38 | GE16: 12351483.35 | GF16: 13216087.18 | GG16: 14141213.29 | GH16: 15131098.22 | GI16: 16190275.09 | GJ16: 17323594.35 | GK16: 18536245.95 | GL16: 19833783.17 | GM16: 21222147.99 | GN16: =GM19 -> 22707698.35 | GO16: 24297237.24 | GP16: 25998043.84 | GQ16: 27817906.91 | GR16: 29765160.4 | GS16: 31848721.62 | GT16: 34078132.14 | GU16: 36463601.39 | GV16: 39016053.48 | GW16: 41747177.23 | GX16: 44669479.63 | GY16: 47796343.21 | GZ16: 51142087.23 | HA16: 54722033.34 | HB16: 58552575.67 | HC16: 62651255.97 | HD16: 67036843.89 | HE16: 71729422.96 | HF16: 76750482.57 | HG16: 82123016.35 | HH16: 87871627.49 | HI16: 94022641.41 | HJ16: 100604226.3 | HK16: 107646522.2 | HL16: 115181778.7 | HM16: 123244503.2 | HN16: 131871618.4 | HO16: 141102631.7 | HP16: 150979816 | HQ16: 161548403.1 | HR16: 172856791.3 | HS16: 184956766.7 | HT16: 197903740.3 | HU16: 211757002.2 | HV16: 226579992.3 | HW16: 242440591.8 | HX16: 259411433.2 | HY16: 277570233.5 | HZ16: 297000149.9 | IA16: 317790160.4 | IB16: 340035471.6 | IC16: 363837954.6 | ID16: 389306611.4 | IE16: 416558074.2 | IF16: 445717139.4 | IG16: 476917339.2 | IH16: 510301552.9 | II16: 546022661.6 | IJ16: 584244247.9 | IK16: 625141345.3 | IL16: 668901239.5 | IM16: 715724326.2 | IN16: 765825029.1 | IO16: 819432781.1 | IP16: 876793075.8 | IQ16: 938168591.1 | IR16: 1003840392 | IS16: 1074109220 | IT16: 1149296865 | IU16: 1229747646 | IV16: 1315829981 | IW16: 1407938080 | IX16: 1506493745 | IY16: 1611948308 | IZ16: =IY19 -> 1724784689 | JA16: 1845519617 | JB16: 1974705991 | JC16: 2112935410 | JD16: 2260840889 | JE16: 2419099751 | JF16: 2588436733 | JG16: 2769627305 | JH16: 2963501216 | JI16: 3170946301 | JJ16: 3392912542 | JK16: 3630416420 | JL16: 3884545570 | JM16: 4156463759 | JN16: 4447416223 | JO16: 4758735358 | JP16: 5091846833 | JQ16: 5448276111 | JR16: 5829655439 | JS16: 6237731320 | JT16: 6674372512 | JU16: 7141578588 | JV16: 7641489089 | JW16: 8176393326 | JX16: 8748740859 | JY16: 9361152719 | JZ16: 1.001643341e+10 | KA16: 1.071758375e+10 | KB16: 1.146781461e+10 | KC16: 1.227056163e+10 | KD16: 1.312950095e+10 | KE16: 1.404856601e+10 | KF16: 1.503196563e+10 | KG16: 1.608420323e+10 | KH16: 1.721009745e+10 | KI16: 1.841480428e+10 | KJ16: 1.970384058e+10 | KK16: 2.108310942e+10 | KL16: 2.255892708e+10 | KM16: 2.413805197e+10 | KN16: 2.582771561e+10 | KO16: 2.76356557e+10
A17: Add: EPS | C17: =C16*C12 -> 2.9875 | D17: =D16*D12 -> 3.734375 | E17: 4.66796875 | F17: 5.834960938 | G17: 7.293701172 | H17: 9.117126465 | I17: 11.39640808 | J17: 14.2455101 | K17: 17.80688763 | L17: 17.80688763 | M17: 19.05336976 | N17: 20.38710564 | O17: 21.81420304 | P17: 23.34119725 | Q17: 24.97508106 | R17: 26.72333673 | S17: 28.5939703 | T17: 30.59554823 | U17: 32.7372366 | V17: 35.02884316 | W17: 37.48086219 | X17: 40.10452254 | Y17: 42.91183912 | Z17: 45.91566785 | AA17: 49.1297646 | AB17: 52.56884813 | AC17: 56.24866749 | AD17: 60.18607422 | AE17: 64.39909942 | AF17: 68.90703637 | AG17: 73.73052892 | AH17: 78.89166594 | AI17: 84.41408256 | AJ17: 90.32306834 | AK17: 96.64568312 | AL17: 103.4108809 | AM17: 110.6496426 | AN17: 118.3951176 | AO17: 126.6827758 | AP17: 135.5505701 | AQ17: 145.03911 | AR17: 155.1918477 | AS17: 166.0552771 | AT17: 177.6791465 | AU17: 190.1166867 | AV17: 203.4248548 | AW17: 217.6645946 | AX17: 232.9011163 | AY17: 249.2041944 | AZ17: 266.648488 | BA17: 285.3138822 | BB17: 305.2858539 | BC17: 326.6558637 | BD17: 349.5217742 | BE17: 373.9882984 | BF17: 400.1674792 | BG17: 428.1792028 | BH17: 458.151747 | BI17: 490.2223693 | BJ17: 524.5379351 | BK17: 561.2555906 | BL17: 600.5434819 | BM17: 642.5815256 | BN17: 687.5622324 | BO17: 735.6915887 | BP17: =BP16*BP12 -> 787.1899999 | BQ17: 842.2932999 | BR17: 901.2538309 | BS17: 964.3415991 | BT17: 1031.845511 | BU17: 1104.074697 | BV17: 1181.359926 | BW17: 1264.05512 | BX17: 1352.538979 | BY17: 1447.216707 | BZ17: 1548.521877 | CA17: 1656.918408 | CB17: 1772.902697 | CC17: 1897.005886 | CD17: 2029.796297 | CE17: 2171.882038 | CF17: 2323.913781 | CG17: 2486.587746 | CH17: 2660.648888 | CI17: 2846.89431 | CJ17: 3046.176912 | CK17: 3259.409296 | CL17: 3487.567946 | CM17: 3731.697702 | CN17: 3992.916542 | CO17: 4272.4207 | CP17: 4571.490149 | CQ17: 4891.494459 | CR17: 5233.899071 | CS17: 5600.272006 | CT17: 5992.291046 | CU17: 6411.75142 | CV17: 6860.574019 | CW17: 7340.8142 | CX17: 7854.671194 | CY17: 8404.498178 | CZ17: 8992.81305 | DA17: 9622.309964 | DB17: 10295.87166 | DC17: 11016.58268 | DD17: 11787.74347 | DE17: 12612.88551 | DF17: 13495.78749 | DG17: 14440.49262 | DH17: 15451.3271 | DI17: 16532.92 | DJ17: 17690.2244 | DK17: 18928.54011 | DL17: 20253.53791 | DM17: 21671.28557 | DN17: 23188.27556 | DO17: 24811.45485 | DP17: 26548.25669 | DQ17: 28406.63465 | DR17: 30395.09908 | DS17: 32522.75601 | DT17: 34799.34894 | DU17: 37235.30336 | DV17: 39841.7746 | DW17: 42630.69882 | DX17: 45614.84774 | DY17: 48807.88708 | DZ17: 52224.43917 | EA17: 55880.14991 | EB17: =EB16*EB12 -> 59791.76041 | EC17: 63977.18364 | ED17: 68455.58649 | EE17: 73247.47755 | EF17: 78374.80097 | EG17: 83861.03704 | EH17: 89731.30964 | EI17: 96012.50131 | EJ17: 102733.3764 | EK17: 109924.7127 | EL17: 117619.4426 | EM17: 125852.8036 | EN17: 134662.4999 | EO17: 144088.8749 | EP17: 154175.0961 | EQ17: 164967.3528 | ER17: 176515.0675 | ES17: 188871.1223 | ET17: 202092.1008 | EU17: 216238.5479 | EV17: 231375.2462 | EW17: 247571.5135 | EX17: 264901.5194 | EY17: 283444.6258 | EZ17: 303285.7496 | FA17: 324515.752 | FB17: 347231.8547 | FC17: 371538.0845 | FD17: 397545.7504 | FE17: 425373.953 | FF17: 455150.1297 | FG17: 487010.6388 | FH17: 521101.3835 | FI17: 557578.4803 | FJ17: 596608.9739 | FK17: 638371.6021 | FL17: 683057.6143 | FM17: 730871.6473 | FN17: 782032.6626 | FO17: 836774.9489 | FP17: 895349.1954 | FQ17: 958023.639 | FR17: 1025085.294 | FS17: 1096841.264 | FT17: 1173620.153 | FU17: 1255773.564 | FV17: 1343677.713 | FW17: 1437735.153 | FX17: 1538376.614 | FY17: 1646062.977 | FZ17: 1761287.385 | GA17: 1884577.502 | GB17: 2016497.927 | GC17: 2157652.782 | GD17: 2308688.477 | GE17: 2470296.67 | GF17: 2643217.437 | GG17: 2828242.657 | GH17: 3026219.643 | GI17: 3238055.019 | GJ17: 3464718.87 | GK17: 3707249.191 | GL17: 3966756.634 | GM17: 4244429.598 | GN17: =GN16*GN12 -> 4541539.67 | GO17: 4859447.447 | GP17: 5199608.769 | GQ17: 5563581.382 | GR17: 5953032.079 | GS17: 6369744.325 | GT17: 6815626.427 | GU17: 7292720.277 | GV17: 7803210.697 | GW17: 8349435.445 | GX17: 8933895.927 | GY17: 9559268.641 | GZ17: 10228417.45 | HA17: 10944406.67 | HB17: 11710515.13 | HC17: 12530251.19 | HD17: 13407368.78 | HE17: 14345884.59 | HF17: 15350096.51 | HG17: 16424603.27 | HH17: 17574325.5 | HI17: 18804528.28 | HJ17: 20120845.26 | HK17: 21529304.43 | HL17: 23036355.74 | HM17: 24648900.64 | HN17: 26374323.69 | HO17: 28220526.35 | HP17: 30195963.19 | HQ17: 32309680.61 | HR17: 34571358.26 | HS17: 36991353.33 | HT17: 39580748.07 | HU17: 42351400.43 | HV17: 45315998.46 | HW17: 48488118.36 | HX17: 51882286.64 | HY17: 55514046.71 | HZ17: 59400029.97 | IA17: 63558032.07 | IB17: 68007094.32 | IC17: 72767590.92 | ID17: 77861322.28 | IE17: 83311614.84 | IF17: 89143427.88 | IG17: 95383467.84 | IH17: 102060310.6 | II17: 109204532.3 | IJ17: 116848849.6 | IK17: 125028269.1 | IL17: 133780247.9 | IM17: 143144865.2 | IN17: 153165005.8 | IO17: 163886556.2 | IP17: 175358615.2 | IQ17: 187633718.2 | IR17: 200768078.5 | IS17: 214821844 | IT17: 229859373.1 | IU17: 245949529.2 | IV17: 263165996.2 | IW17: 281587616 | IX17: 301298749.1 | IY17: 322389661.5 | IZ17: =IZ16*IZ12 -> 344956937.8 | JA17: 369103923.5 | JB17: 394941198.1 | JC17: 422587082 | JD17: 452168177.7 | JE17: 483819950.1 | JF17: 517687346.7 | JG17: 553925460.9 | JH17: 592700243.2 | JI17: 634189260.2 | JJ17: 678582508.4 | JK17: 726083284 | JL17: 776909113.9 | JM17: 831292751.9 | JN17: 889483244.5 | JO17: 951747071.6 | JP17: 1018369367 | JQ17: 1089655222 | JR17: 1165931088 | JS17: 1247546264 | JT17: 1334874502 | JU17: 1428315718 | JV17: 1528297818 | JW17: 1635278665 | JX17: 1749748172 | JY17: 1872230544 | JZ17: 2003286682 | KA17: 2143516750 | KB17: 2293562922 | KC17: 2454112327 | KD17: 2625900189 | KE17: 2809713203 | KF17: 3006393127 | KG17: 3216840646 | KH17: 3442019491 | KI17: 3682960855 | KJ17: 3940768115 | KK17: 4216621883 | KL17: 4511785415 | KM17: 4827610394 | KN17: 5165543122 | KO17: 5527131140
A18: Less: DPS | C18: =C17*C14 -> 0 | D18: =D17*D14 -> 0 | E18: 0 | F18: 0 | G18: 0 | H18: 0 | I18: 0 | J18: 0 | K18: 0 | L18: 11.57447696 | M18: 12.38469034 | N18: 13.25161867 | O18: 14.17923198 | P18: 15.17177821 | Q18: 16.23380269 | R18: 17.37016888 | S18: 18.5860807 | T18: 19.88710635 | U18: 21.27920379 | V18: 22.76874806 | W18: 24.36256042 | X18: 26.06793965 | Y18: 27.89269543 | Z18: 29.84518411 | AA18: 31.93434699 | AB18: 34.16975128 | AC18: 36.56163387 | AD18: 39.12094824 | AE18: 41.85941462 | AF18: 44.78957364 | AG18: 47.9248438 | AH18: 51.27958286 | AI18: 54.86915366 | AJ18: 58.70999442 | AK18: 62.81969403 | AL18: 67.21707261 | AM18: 71.9222677 | AN18: 76.95682643 | AO18: 82.34380428 | AP18: 88.10787058 | AQ18: 94.27542153 | AR18: 100.874701 | AS18: 107.9359301 | AT18: 115.4914452 | AU18: 123.5758464 | AV18: 132.2261556 | AW18: 141.4819865 | AX18: 151.3857256 | AY18: 161.9827264 | AZ18: 173.3215172 | BA18: 185.4540234 | BB18: 198.4358051 | BC18: 212.3263114 | BD18: 227.1891532 | BE18: 243.0923939 | BF18: 260.1088615 | BG18: 278.3164818 | BH18: 297.7986355 | BI18: 318.64454 | BJ18: 340.9496578 | BK18: 364.8161339 | BL18: 390.3532632 | BM18: 417.6779917 | BN18: 446.9154511 | BO18: 478.1995327 | BP18: =BP17*BP14 -> 511.6734999 | BQ18: 547.4906449 | BR18: 585.8149901 | BS18: 626.8220394 | BT18: 670.6995822 | BU18: 717.6485529 | BV18: 767.8839516 | BW18: 821.6358282 | BX18: 879.1503362 | BY18: 940.6908597 | BZ18: 1006.53922 | CA18: 1076.996965 | CB18: 1152.386753 | CC18: 1233.053826 | CD18: 1319.367593 | CE18: 1411.723325 | CF18: 1510.543958 | CG18: 1616.282035 | CH18: 1729.421777 | CI18: 1850.481302 | CJ18: 1980.014993 | CK18: 2118.616042 | CL18: 2266.919165 | CM18: 2425.603507 | CN18: 2595.395752 | CO18: 2777.073455 | CP18: 2971.468597 | CQ18: 3179.471398 | CR18: 3402.034396 | CS18: 3640.176804 | CT18: 3894.98918 | CU18: 4167.638423 | CV18: 4459.373112 | CW18: 4771.52923 | CX18: 5105.536276 | CY18: 5462.923816 | CZ18: 5845.328483 | DA18: 6254.501477 | DB18: 6692.31658 | DC18: 7160.778741 | DD18: 7662.033252 | DE18: 8198.37558 | DF18: 8772.261871 | DG18: 9386.320202 | DH18: 10043.36262 | DI18: 10746.398 | DJ18: 11498.64586 | DK18: 12303.55107 | DL18: 13164.79964 | DM18: 14086.33562 | DN18: 15072.37911 | DO18: 16127.44565 | DP18: 17256.36685 | DQ18: 18464.31252 | DR18: 19756.8144 | DS18: 21139.79141 | DT18: 22619.57681 | DU18: 24202.94718 | DV18: 25897.15349 | DW18: 27709.95423 | DX18: 29649.65103 | DY18: 31725.1266 | DZ18: 33945.88546 | EA18: 36322.09744 | EB18: =EB17*EB14 -> 38864.64427 | EC18: 41585.16936 | ED18: 44496.13122 | EE18: 47610.8604 | EF18: 50943.62063 | EG18: 54509.67408 | EH18: 58325.35126 | EI18: 62408.12585 | EJ18: 66776.69466 | EK18: 71451.06329 | EL18: 76452.63772 | EM18: 81804.32236 | EN18: 87530.62492 | EO18: 93657.76867 | EP18: 100213.8125 | EQ18: 107228.7793 | ER18: 114734.7939 | ES18: 122766.2295 | ET18: 131359.8655 | EU18: 140555.0561 | EV18: 150393.9101 | EW18: 160921.4838 | EX18: 172185.9876 | EY18: 184239.0068 | EZ18: 197135.7372 | FA18: 210935.2388 | FB18: 225700.7056 | FC18: 241499.7549 | FD18: 258404.7378 | FE18: 276493.0694 | FF18: 295847.5843 | FG18: 316556.9152 | FH18: 338715.8993 | FI18: 362426.0122 | FJ18: 387795.8331 | FK18: 414941.5414 | FL18: 443987.4493 | FM18: 475066.5707 | FN18: 508321.2307 | FO18: 543903.7168 | FP18: 581976.977 | FQ18: 622715.3654 | FR18: 666305.441 | FS18: 712946.8218 | FT18: 762853.0993 | FU18: 816252.8163 | FV18: 873390.5134 | FW18: 934527.8494 | FX18: 999944.7988 | FY18: 1069940.935 | FZ18: 1144836.8 | GA18: 1224975.376 | GB18: 1310723.653 | GC18: 1402474.308 | GD18: 1500647.51 | GE18: 1605692.835 | GF18: 1718091.334 | GG18: 1838357.727 | GH18: 1967042.768 | GI18: 2104735.762 | GJ18: 2252067.265 | GK18: 2409711.974 | GL18: 2578391.812 | GM18: 2758879.239 | GN18: =GN17*GN14 -> 2952000.786 | GO18: 3158640.841 | GP18: 3379745.7 | GQ18: 3616327.899 | GR18: 3869470.851 | GS18: 4140333.811 | GT18: 4430157.178 | GU18: 4740268.18 | GV18: 5072086.953 | GW18: 5427133.04 | GX18: 5807032.352 | GY18: 6213524.617 | GZ18: 6648471.34 | HA18: 7113864.334 | HB18: 7611834.837 | HC18: 8144663.276 | HD18: 8714789.705 | HE18: 9324824.985 | HF18: 9977562.734 | HG18: 10675992.12 | HH18: 11423311.57 | HI18: 12222943.38 | HJ18: 13078549.42 | HK18: 13994047.88 | HL18: 14973631.23 | HM18: 16021785.42 | HN18: 17143310.4 | HO18: 18343342.13 | HP18: 19627376.07 | HQ18: 21001292.4 | HR18: 22471382.87 | HS18: 24044379.67 | HT18: 25727486.24 | HU18: 27528410.28 | HV18: 29455399 | HW18: 31517276.93 | HX18: 33723486.32 | HY18: 36084130.36 | HZ18: 38610019.48 | IA18: 41312720.85 | IB18: 44204611.31 | IC18: 47298934.1 | ID18: 50609859.49 | IE18: 54152549.65 | IF18: 57943228.12 | IG18: 61999254.09 | IH18: 66339201.88 | II18: 70982946.01 | IJ18: 75951752.23 | IK18: 81268374.89 | IL18: 86957161.13 | IM18: 93044162.41 | IN18: 99557253.78 | IO18: 106526261.5 | IP18: 113983099.9 | IQ18: 121961916.8 | IR18: 130499251 | IS18: 139634198.6 | IT18: 149408592.5 | IU18: 159867194 | IV18: 171057897.5 | IW18: 183031950.4 | IX18: 195844186.9 | IY18: 209553280 | IZ18: =IZ17*IZ14 -> 224222009.6 | JA18: 239917550.3 | JB18: 256711778.8 | JC18: 274681603.3 | JD18: 293909315.5 | JE18: 314482967.6 | JF18: 336496775.3 | JG18: 360051549.6 | JH18: 385255158.1 | JI18: 412223019.1 | JJ18: 441078630.5 | JK18: 471954134.6 | JL18: 504990924 | JM18: 540340288.7 | JN18: 578164108.9 | JO18: 618635596.6 | JP18: 661940088.3 | JQ18: 708275894.5 | JR18: 757855207.1 | JS18: 810905071.6 | JT18: 867668426.6 | JU18: 928405216.5 | JV18: 993393581.6 | JW18: 1062931132 | JX18: 1137336312 | JY18: 1216949853 | JZ18: 1302136343 | KA18: 1393285887 | KB18: 1490815899 | KC18: 1595173012 | KD18: 1706835123 | KE18: 1826313582 | KF18: 1954155532 | KG18: 2090946420 | KH18: 2237312669 | KI18: 2393924556 | KJ18: 2561499275 | KK18: 2740804224 | KL18: 2932660520 | KM18: 3137946756 | KN18: 3357603029 | KO18: 3592635241
A19: Closing balance | B19: =B6 -> 11.95 | C19: =C16+C17-C18 -> 14.9375 | D19: =D16+D17-D18 -> 18.671875 | E19: 23.33984375 | F19: 29.17480469 | G19: 36.46850586 | H19: 45.58563232 | I19: 56.98204041 | J19: 71.22755051 | K19: 89.03443813 | L19: 95.2668488 | M19: 101.9355282 | N19: 109.0710152 | O19: 116.7059863 | P19: 124.8754053 | Q19: 133.6166837 | R19: 142.9698515 | S19: 152.9777411 | T19: 163.686183 | U19: 175.1442158 | V19: 187.4043109 | W19: 200.5226127 | X19: 214.5591956 | Y19: 229.5783393 | Z19: 245.648823 | AA19: 262.8442406 | AB19: 281.2433375 | AC19: 300.9303711 | AD19: 321.9954971 | AE19: 344.5351819 | AF19: 368.6526446 | AG19: 394.4583297 | AH19: 422.0704128 | AI19: 451.6153417 | AJ19: 483.2284156 | AK19: 517.0544047 | AL19: 553.248213 | AM19: 591.975588 | AN19: 633.4138791 | AO19: 677.7528507 | AP19: 725.1955502 | AQ19: 775.9592387 | AR19: 830.2763854 | AS19: 888.3957324 | AT19: 950.5834337 | AU19: 1017.124274 | AV19: 1088.322973 | AW19: 1164.505581 | AX19: 1246.020972 | AY19: 1333.24244 | AZ19: 1426.569411 | BA19: 1526.42927 | BB19: 1633.279319 | BC19: 1747.608871 | BD19: 1869.941492 | BE19: 2000.837396 | BF19: 2140.896014 | BG19: 2290.758735 | BH19: 2451.111846 | BI19: 2622.689676 | BJ19: 2806.277953 | BK19: 3002.71741 | BL19: 3212.907628 | BM19: 3437.811162 | BN19: 3678.457944 | BO19: 3935.95 | BP19: =BP16+BP17-BP18 -> 4211.4665 | BQ19: 4506.269155 | BR19: 4821.707995 | BS19: 5159.227555 | BT19: 5520.373484 | BU19: 5906.799628 | BV19: 6320.275602 | BW19: 6762.694894 | BX19: 7236.083536 | BY19: 7742.609384 | BZ19: 8284.592041 | CA19: 8864.513484 | CB19: 9485.029428 | CC19: 10148.98149 | CD19: 10859.41019 | CE19: 11619.5689 | CF19: 12432.93873 | CG19: 13303.24444 | CH19: 14234.47155 | CI19: 15230.88456 | CJ19: 16297.04648 | CK19: 17437.83973 | CL19: 18658.48851 | CM19: 19964.58271 | CN19: 21362.1035 | CO19: 22857.45074 | CP19: 24457.47229 | CQ19: 26169.49536 | CR19: 28001.36003 | CS19: 29961.45523 | CT19: 32058.7571 | CU19: 34302.8701 | CV19: 36704.071 | CW19: 39273.35597 | CX19: 42022.49089 | CY19: 44964.06525 | CZ19: 48111.54982 | DA19: 51479.35831 | DB19: 55082.91339 | DC19: 58938.71733 | DD19: 63064.42754 | DE19: 67478.93747 | DF19: 72202.46309 | DG19: 77256.63551 | DH19: 82664.59999 | DI19: 88451.12199 | DJ19: 94642.70053 | DK19: 101267.6896 | DL19: 108356.4278 | DM19: 115941.3778 | DN19: 124057.2742 | DO19: 132741.2834 | DP19: 142033.1733 | DQ19: 151975.4954 | DR19: 162613.7801 | DS19: 173996.7447 | DT19: 186176.5168 | DU19: 199208.873 | DV19: 213153.4941 | DW19: 228074.2387 | DX19: 244039.4354 | DY19: 261122.1959 | DZ19: 279400.7496 | EA19: 298958.802 | EB19: =EB16+EB17-EB18 -> 319885.9182 | EC19: 342277.9325 | ED19: 366237.3877 | EE19: 391874.0049 | EF19: 419305.1852 | EG19: 448656.5482 | EH19: 480062.5065 | EI19: 513666.882 | EJ19: 549623.5637 | EK19: 588097.2132 | EL19: 629264.0181 | EM19: 673312.4994 | EN19: 720444.3744 | EO19: 770875.4806 | EP19: 824836.7642 | EQ19: 882575.3377 | ER19: 944355.6113 | ES19: 1010460.504 | ET19: 1081192.739 | EU19: 1156876.231 | EV19: 1237857.567 | EW19: 1324507.597 | EX19: 1417223.129 | EY19: 1516428.748 | EZ19: 1622578.76 | FA19: 1736159.273 | FB19: 1857690.423 | FC19: 1987728.752 | FD19: 2126869.765 | FE19: 2275750.648 | FF19: 2435053.194 | FG19: 2605506.917 | FH19: 2787892.402 | FI19: 2983044.87 | FJ19: 3191858.011 | FK19: 3415288.071 | FL19: 3654358.236 | FM19: 3910163.313 | FN19: 4183874.745 | FO19: 4476745.977 | FP19: 4790118.195 | FQ19: 5125426.469 | FR19: 5484206.322 | FS19: 5868100.764 | FT19: 6278867.818 | FU19: 6718388.565 | FV19: 7188675.764 | FW19: 7691883.068 | FX19: 8230314.883 | FY19: 8806436.925 | FZ19: 9422887.509 | GA19: 10082489.63 | GB19: 10788263.91 | GC19: 11543442.38 | GD19: 12351483.35 | GE19: 13216087.18 | GF19: 14141213.29 | GG19: 15131098.22 | GH19: 16190275.09 | GI19: 17323594.35 | GJ19: 18536245.95 | GK19: 19833783.17 | GL19: 21222147.99 | GM19: 22707698.35 | GN19: =GN16+GN17-GN18 -> 24297237.24 | GO19: 25998043.84 | GP19: 27817906.91 | GQ19: 29765160.4 | GR19: 31848721.62 | GS19: 34078132.14 | GT19: 36463601.39 | GU19: 39016053.48 | GV19: 41747177.23 | GW19: 44669479.63 | GX19: 47796343.21 | GY19: 51142087.23 | GZ19: 54722033.34 | HA19: 58552575.67 | HB19: 62651255.97 | HC19: 67036843.89 | HD19: 71729422.96 | HE19: 76750482.57 | HF19: 82123016.35 | HG19: 87871627.49 | HH19: 94022641.41 | HI19: 100604226.3 | HJ19: 107646522.2 | HK19: 115181778.7 | HL19: 123244503.2 | HM19: 131871618.4 | HN19: 141102631.7 | HO19: 150979816 | HP19: 161548403.1 | HQ19: 172856791.3 | HR19: 184956766.7 | HS19: 197903740.3 | HT19: 211757002.2 | HU19: 226579992.3 | HV19: 242440591.8 | HW19: 259411433.2 | HX19: 277570233.5 | HY19: 297000149.9 | HZ19: 317790160.4 | IA19: 340035471.6 | IB19: 363837954.6 | IC19: 389306611.4 | ID19: 416558074.2 | IE19: 445717139.4 | IF19: 476917339.2 | IG19: 510301552.9 | IH19: 546022661.6 | II19: 584244247.9 | IJ19: 625141345.3 | IK19: 668901239.5 | IL19: 715724326.2 | IM19: 765825029.1 | IN19: 819432781.1 | IO19: 876793075.8 | IP19: 938168591.1 | IQ19: 1003840392 | IR19: 1074109220 | IS19: 1149296865 | IT19: 1229747646 | IU19: 1315829981 | IV19: 1407938080 | IW19: 1506493745 | IX19: 1611948308 | IY19: 1724784689 | IZ19: =IZ16+IZ17-IZ18 -> 1845519617 | JA19: 1974705991 | JB19: 2112935410 | JC19: 2260840889 | JD19: 2419099751 | JE19: 2588436733 | JF19: 2769627305 | JG19: 2963501216 | JH19: 3170946301 | JI19: 3392912542 | JJ19: 3630416420 | JK19: 3884545570 | JL19: 4156463759 | JM19: 4447416223 | JN19: 4758735358 | JO19: 5091846833 | JP19: 5448276111 | JQ19: 5829655439 | JR19: 6237731320 | JS19: 6674372512 | JT19: 7141578588 | JU19: 7641489089 | JV19: 8176393326 | JW19: 8748740859 | JX19: 9361152719 | JY19: 1.001643341e+10 | JZ19: 1.071758375e+10 | KA19: 1.146781461e+10 | KB19: 1.227056163e+10 | KC19: 1.312950095e+10 | KD19: 1.404856601e+10 | KE19: 1.503196563e+10 | KF19: 1.608420323e+10 | KG19: 1.721009745e+10 | KH19: 1.841480428e+10 | KI19: 1.970384058e+10 | KJ19: 2.108310942e+10 | KK19: 2.255892708e+10 | KL19: 2.413805197e+10 | KM19: 2.582771561e+10 | KN19: 2.76356557e+10 | KO19: 2.95701516e+10
A21: Value of Gordon method | B21: =C18/(B3-B4) -> 0
A22: Value from driver method | B22: =(1-B4/B2)*C17/(B3-B4) -> 0
A23: PE Ratio from formula | B23: =(1-B4/B2)/(B3-B4) -> 0
A26: Overall economic growth | B26: 0.02
A27: Size of economy | B27: 100 | C27: =B27*(1+$B$26) -> 102 | D27: =C27*(1+$B$26) -> 104.04 | E27: 106.1208 | F27: 108.243216 | G27: 110.4080803 | H27: 112.6162419 | I27: 114.8685668 | J27: 117.1659381 | K27: 119.5092569 | L27: 121.899442 | M27: 124.3374308 | N27: 126.8241795 | O27: 129.360663 | P27: 131.9478763 | Q27: 134.5868338 | R27: 137.2785705 | S27: 140.0241419 | T27: 142.8246248 | U27: 145.6811173 | V27: 148.5947396 | W27: 151.5666344 | X27: 154.5979671 | Y27: 157.6899264 | Z27: 160.8437249 | AA27: 164.0605994 | AB27: 167.3418114 | AC27: 170.6886477 | AD27: 174.1024206 | AE27: 177.584469 | AF27: 181.1361584 | AG27: 184.7588816 | AH27: 188.4540592 | AI27: 192.2231404 | AJ27: 196.0676032 | AK27: 199.9889553 | AL27: 203.9887344 | AM27: 208.0685091 | AN27: 212.2298792 | AO27: 216.4744768 | AP27: 220.8039664 | AQ27: 225.2200457 | AR27: 229.7244466 | AS27: 234.3189355 | AT27: 239.0053142 | AU27: 243.7854205 | AV27: 248.6611289 | AW27: 253.6343515 | AX27: 258.7070385 | AY27: 263.8811793 | AZ27: 269.1588029 | BA27: 274.541979 | BB27: 280.0328185 | BC27: 285.6334749 | BD27: 291.3461444 | BE27: 297.1730673 | BF27: 303.1165286 | BG27: 309.1788592 | BH27: 315.3624364 | BI27: 321.6696851 | BJ27: 328.1030788 | BK27: 334.6651404 | BL27: 341.3584432 | BM27: 348.1856121 | BN27: 355.1493243 | BO27: 362.2523108 | BP27: =BO27*(1+$B$26) -> 369.497357 | BQ27: 376.8873042 | BR27: 384.4250503 | BS27: 392.1135513 | BT27: 399.9558223 | BU27: 407.9549387 | BV27: 416.1140375 | BW27: 424.4363183 | BX27: 432.9250446 | BY27: 441.5835455 | BZ27: 450.4152164 | CA27: 459.4235208 | CB27: 468.6119912 | CC27: 477.984231 | CD27: 487.5439156 | CE27: 497.2947939 | CF27: 507.2406898 | CG27: 517.3855036 | CH27: 527.7332137 | CI27: 538.2878779 | CJ27: 549.0536355 | CK27: 560.0347082 | CL27: 571.2354024 | CM27: 582.6601104 | CN27: 594.3133126 | CO27: 606.1995789 | CP27: 618.3235705 | CQ27: 630.6900419 | CR27: 643.3038427 | CS27: 656.1699196 | CT27: 669.293318 | CU27: 682.6791843 | CV27: 696.332768 | CW27: 710.2594234 | CX27: 724.4646118 | CY27: 738.9539041 | CZ27: 753.7329821 | DA27: 768.8076418 | DB27: 784.1837946 | DC27: 799.8674705 | DD27: 815.8648199 | DE27: 832.1821163 | DF27: 848.8257586 | DG27: 865.8022738 | DH27: 883.1183193 | DI27: 900.7806857 | DJ27: 918.7962994 | DK27: 937.1722254 | DL27: 955.9156699 | DM27: 975.0339833 | DN27: 994.534663 | DO27: 1014.425356 | DP27: 1034.713863 | DQ27: 1055.408141 | DR27: 1076.516303 | DS27: 1098.046629 | DT27: 1120.007562 | DU27: 1142.407713 | DV27: 1165.255868 | DW27: 1188.560985 | DX27: 1212.332205 | DY27: 1236.578849 | DZ27: 1261.310426 | EA27: 1286.536634 | EB27: =EA27*(1+$B$26) -> 1312.267367 | EC27: 1338.512714 | ED27: 1365.282969 | EE27: 1392.588628 | EF27: 1420.4404 | EG27: 1448.849208 | EH27: 1477.826193 | EI27: 1507.382716 | EJ27: 1537.530371 | EK27: 1568.280978 | EL27: 1599.646598 | EM27: 1631.63953 | EN27: 1664.27232 | EO27: 1697.557767 | EP27: 1731.508922 | EQ27: 1766.139101 | ER27: 1801.461883 | ES27: 1837.49112 | ET27: 1874.240943 | EU27: 1911.725761 | EV27: 1949.960277 | EW27: 1988.959482 | EX27: 2028.738672 | EY27: 2069.313445 | EZ27: 2110.699714 | FA27: 2152.913708 | FB27: 2195.971983 | FC27: 2239.891422 | FD27: 2284.689251 | FE27: 2330.383036 | FF27: 2376.990696 | FG27: 2424.53051 | FH27: 2473.021121 | FI27: 2522.481543 | FJ27: 2572.931174 | FK27: 2624.389797 | FL27: 2676.877593 | FM27: 2730.415145 | FN27: 2785.023448 | FO27: 2840.723917 | FP27: 2897.538395 | FQ27: 2955.489163 | FR27: 3014.598947 | FS27: 3074.890925 | FT27: 3136.388744 | FU27: 3199.116519 | FV27: 3263.098849 | FW27: 3328.360826 | FX27: 3394.928043 | FY27: 3462.826604 | FZ27: 3532.083136 | GA27: 3602.724798 | GB27: 3674.779294 | GC27: 3748.27488 | GD27: 3823.240378 | GE27: 3899.705185 | GF27: 3977.699289 | GG27: 4057.253275 | GH27: 4138.39834 | GI27: 4221.166307 | GJ27: 4305.589633 | GK27: 4391.701426 | GL27: 4479.535455 | GM27: 4569.126164 | GN27: =GM27*(1+$B$26) -> 4660.508687 | GO27: 4753.718861 | GP27: 4848.793238 | GQ27: 4945.769103 | GR27: 5044.684485 | GS27: 5145.578174 | GT27: 5248.489738 | GU27: 5353.459533 | GV27: 5460.528723 | GW27: 5569.739298 | GX27: 5681.134084 | GY27: 5794.756765 | GZ27: 5910.651901 | HA27: 6028.864939 | HB27: 6149.442237 | HC27: 6272.431082 | HD27: 6397.879704 | HE27: 6525.837298 | HF27: 6656.354044 | HG27: 6789.481125 | HH27: 6925.270747 | HI27: 7063.776162 | HJ27: 7205.051685 | HK27: 7349.152719 | HL27: 7496.135774 | HM27: 7646.058489 | HN27: 7798.979659 | HO27: 7954.959252 | HP27: 8114.058437 | HQ27: 8276.339606 | HR27: 8441.866398 | HS27: 8610.703726 | HT27: 8782.9178 | HU27: 8958.576156 | HV27: 9137.747679 | HW27: 9320.502633 | HX27: 9506.912686 | HY27: 9697.050939 | HZ27: 9890.991958 | IA27: 10088.8118 | IB27: 10290.58803 | IC27: 10496.39979 | ID27: 10706.32779 | IE27: 10920.45435 | IF27: 11138.86343 | IG27: 11361.6407 | IH27: 11588.87352 | II27: 11820.65099 | IJ27: 12057.06401 | IK27: 12298.20529 | IL27: 12544.16939 | IM27: 12795.05278 | IN27: 13050.95383 | IO27: 13311.97291 | IP27: 13578.21237 | IQ27: 13849.77662 | IR27: 14126.77215 | IS27: 14409.30759 | IT27: 14697.49374 | IU27: 14991.44362 | IV27: 15291.27249 | IW27: 15597.09794 | IX27: 15909.0399 | IY27: 16227.2207 | IZ27: =IY27*(1+$B$26) -> 16551.76511 | JA27: 16882.80041 | JB27: 17220.45642 | JC27: 17564.86555 | JD27: 17916.16286 | JE27: 18274.48612 | JF27: 18639.97584 | JG27: 19012.77536 | JH27: 19393.03087 | JI27: 19780.89148 | JJ27: 20176.50931 | JK27: 20580.0395 | JL27: 20991.64029 | JM27: 21411.47309 | JN27: 21839.70256 | JO27: 22276.49661 | JP27: 22722.02654 | JQ27: 23176.46707 | JR27: 23639.99641 | JS27: 24112.79634 | JT27: 24595.05227 | JU27: 25086.95331 | JV27: 25588.69238 | JW27: 26100.46623 | JX27: 26622.47555 | JY27: 27154.92506 | JZ27: 27698.02356 | KA27: 28251.98403 | KB27: 28817.02371 | KC27: 29393.36419 | KD27: 29981.23147 | KE27: 30580.8561 | KF27: 31192.47322 | KG27: 31816.32269 | KH27: 32452.64914 | KI27: 33101.70213 | KJ27: 33763.73617 | KK27: 34439.01089 | KL27: 35127.79111 | KM27: 35830.34693 | KN27: 36546.95387 | KO27: 37277.89295
A28: Apple as a % of economy | B28: 0.02 | C28: =C29/C27 -> 0.02450980392 | D28: =D29/D27 -> 0.03003652441 | E28: =E29/E27 -> 0.03680946619 | F28: 0.04510963994 | G28: 0.0552814215 | H28: 0.06774684007 | I28: 0.08302308832 | J28: 0.1017439808 | K28: 0.124686251 | L28: 0.1528017781 | M28: 0.1872570811 | N28: 0.229481717 | O28: 0.2812275943 | P28: 0.3446416597 | Q28: 0.4223549752 | R28: 0.5175918813 | S28: 0.6343037761 | T28: 0.777333059 | U28: 0.9526140429 | V28: 1.16741917 | W28: 1.430660748 | X28: 1.75326072 | Y28: 2.148603824 | Z28: 2.633092922 | AA28: 3.226829561 | AB28: 3.954447991 | AC28: 4.846137244 | AD28: 5.938893681 | AE28: 7.278055982 | AF28: 8.919186252 | AG28: 10.93037531 | AH28: 13.39506778 | AI28: 16.41552424 | AJ28: 20.11706402 | AK28: 24.65326473 | AL28: 30.21233423 | AM28: 37.0249194 | AN28: 45.37367574 | AO28: 55.60499477 | AP28: 68.14337595 | AQ28: 83.50903915 | AR28: 102.3395088 | AS28: 125.4160647 | AT28: 153.6961577 | AU28: 188.3531344 | AV28: 230.8249196 | AW28: 282.873676 | AX28: 346.6589167 | AY28: 424.8271038 | AZ28: 520.6214507 | BA28: 638.0164837 | BB28: 781.8829457 | BC28: 958.1898844 | BD28: 1174.252309 | BE28: 1439.034693 | BF28: 1763.522908 | BG28: 2161.180034 | BH28: 2648.504944 | BI28: 3245.716843 | BJ28: 3977.59417 | BK28: 4874.50266 | BL28: 5973.65522 | BM28: 7320.655907 | BN28: 8971.392043 | BO28: 10994.35299 | BP28: 13473.47181 | BQ28: =BQ29/BQ27 -> 16511.60761 | BR28: 20234.81324 | BS28: 24797.56525 | BT28: 30389.1731 | BU28: 37241.6337 | BV28: 45639.25698 | BW28: 55930.46199 | BX28: 68542.23283 | BY28: 83997.83435 | BZ28: 102938.5225 | CA28: 126150.1501 | CB28: 154595.7722 | CC28: 189455.6032 | CD28: 232175.9843 | CE28: 284529.3925 | CF28: 348687.981 | CG28: 427313.7022 | CH28: 523668.7527 | CI28: 641750.9224 | CJ28: 786459.4638 | CK28: 963798.3625 | CL28: 1181125.444 | CM28: 1447457.652 | CN28: 1773845.162 | CO28: 2173829.855 | CP28: 2664007.176 | CQ28: 3264714.676 | CR28: 4000875.829 | CS28: 4903034.104 | CT28: 6008620.225 | CU28: 7363505.178 | CV28: 9023903.404 | CW28: 11058705.15 | CX28: 13552334.75 | CY28: 16608253.36 | CZ28: 20353251.67 | DA28: 24942710.38 | DB28: 30567047.04 | DC28: 37459616.47 | DD28: 45906392.73 | DE28: 56257834.23 | DF28: 68943424.3 | DG28: 84489490.56 | DH28: 103541042.4 | DI28: 126888532.3 | DJ28: 155500652.3 | DK28: 190564524.9 | DL28: 233534957 | DM28: 286194800.2 | DN28: 350728921.9 | DO28: 429814855.2 | DP28: 526733891.2 | DQ28: 645507219.6 | DR28: 791062769.1 | DS28: 969439668.1 | DT28: 1188038809 | DU28: 1455929913 | DV28: 1784227834 | DW28: 2186553719 | DX28: 2679600145 | DY28: 3283823708 | DZ28: 4024293759 | EA28: 4931732548 | EB28: 6043789887 | EC28: =EC29/EC27 -> 7406605254 | ED28: 9076722125 | EE28: 1.112343398e+10 | EF28: 1.363165929e+10 | EG28: 1.670546481e+10 | EH28: 2.047238335e+10 | EI28: 2.508870508e+10 | EJ28: 3.074596211e+10 | EK28: 3.767887513e+10 | EL28: 4.617509208e+10 | EM28: 5.658712264e+10 | EN28: 6.934696402e+10 | EO28: 8.498402454e+10 | EP28: 1.041470889e+11 | EQ28: 1.276312364e+11 | ER28: 1.564108289e+11 | ES28: 1.916799374e+11 | ET28: 2.349018841e+11 | EU28: 2.878699559e+11 | EV28: 3.527818088e+11 | EW28: 4.32330648e+11 | EX28: 5.298169706e+11 | EY28: 6.492855032e+11 | EZ28: 7.956930186e+11 | FA28: 9.751139934e+11 | FB28: 1.194992639e+12 | FC28: 1.464451763e+12 | FD28: 1.794671279e+12 | FE28: 2.199352057e+12 | FF28: 2.695284384e+12 | FG28: 3.303044588e+12 | FH28: 4.04784876e+12 | FI28: 4.96059897e+12 | FJ28: 6.079165405e+12 | FK28: 7.449957604e+12 | FL28: 9.129850005e+12 | FM28: 1.118854167e+13 | FN28: 1.371144813e+13 | FO28: 1.680324525e+13 | FP28: 2.059221232e+13 | FQ28: 2.523555432e+13 | FR28: 3.092592441e+13 | FS28: 3.789941717e+13 | FT28: 4.644536417e+13 | FU28: 5.691833845e+13 | FV28: 6.975286575e+13 | FW28: 8.548145312e+13 | FX28: 1.047566827e+14 | FY28: 1.283782877e+14 | FZ28: 1.573263329e+14 | GA28: 1.928018786e+14 | GB28: 2.36276812e+14 | GC28: 2.895549167e+14 | GD28: 3.548467116e+14 | GE28: 4.348611662e+14 | GF28: 5.329180958e+14 | GG28: 6.530859018e+14 | GH28: 8.003503698e+14 | GI28: 9.808215316e+14 | GJ28: 1.201987171e+15 | GK28: 1.473023494e+15 | GL28: 1.80517585e+15 | GM28: 2.212225307e+15 | GN28: 2.711060425e+15 | GO28: =GO29/GO27 -> 3.322377972e+15 | GP28: 4071541632399682 | GQ28: 4989634353430983 | GR28: 6114747982145813 | GS28: 7493563703610065 | GT28: 9183288852463314 | GU28: 1.125403046e+16 | GV28: 1.379170399e+16 | GW28: 1.690159803e+16 | GX28: 2.071274268e+16 | GY28: 2.538326309e+16 | GZ28: 3.110694006e+16 | HA28: 3.812125007e+16 | HB28: 4.671721823e+16 | HC28: 5.725149293e+16 | HD28: 7.016114329e+16 | HE28: 8.598179325e+16 | HF28: 1.053698447e+17 | HG28: 1.291297116e+17 | HH28: 1.582471956e+17 | HI28: 1.939303868e+17 | HJ28: 2.376597877e+17 | HK28: 2.912497398e+17 | HL28: 3.569237008e+17 | HM28: 4.37406496e+17 | HN28: 5.360373726e+17 | HO28: 6.569085448e+17 | HP28: 8.050349814e+17 | HQ28: 9.865624772e+17 | HR28: 1.209022644e+18 | HS28: 1.481645397e+18 | HT28: 1.815741908e+18 | HU28: 2.225173906e+18 | HV28: 2.726928807e+18 | HW28: 3.341824518e+18 | HX28: 4.095373184e+18 | HY28: 5.018839687e+18 | HZ28: 6.150538832e+18 | IA28: 7.537425039e+18 | IB28: 9.237040489e+18 | IC28: 1.131990256e+19 | ID28: 1.387242961e+19 | IE28: 1.700052648e+19 | IF28: 2.083397853e+19 | IG28: 2.553183643e+19 | IH28: 3.128901524e+19 | II28: 3.834438142e+19 | IJ28: 4.69906635e+19 | IK28: 5.758659743e+19 | IL28: 7.057181057e+19 | IM28: 8.648506198e+19 | IN28: 1.059865956e+20 | IO28: 1.298855338e+20 | IP28: 1.591734482e+20 | IQ28: 1.950655003e+20 | IR28: 2.390508582e+20 | IS28: 2.929544831e+20 | IT28: 3.590128469e+20 | IU28: 4.399667242e+20 | IV28: 5.391749071e+20 | IW28: 6.607535626e+20 | IX28: 8.09747013e+20 | IY28: 9.923370258e+20 | IZ28: 1.216099296e+21 | JA28: =JA29/JA27 -> 1.490317765e+21 | JB28: 1.82636981e+21 | JC28: 2.238198297e+21 | JD28: 2.74289007e+21 | JE28: 3.361384889e+21 | JF28: 4.119344227e+21 | JG28: 5.048215964e+21 | JH28: 6.186539172e+21 | JI28: 7.581543103e+21 | JJ28: 9.291106744e+21 | JK28: 1.138616023e+22 | JL28: 1.395362773e+22 | JM28: 1.710003398e+22 | JN28: 2.095592399e+22 | JO28: 2.56812794e+22 | JP28: 3.147215613e+22 | JQ28: 3.856881879e+22 | JR28: 4.72657093e+22 | JS28: 5.792366336e+22 | JT28: 7.098488157e+22 | JU28: 8.699127643e+22 | JV28: 1.066069564e+23 | JW28: 1.306457799e+23 | JX28: 1.601051224e+23 | JY28: 1.962072579e+23 | JZ28: 2.40450071e+23 | KA28: 2.946692046e+23 | KB28: 3.611142213e+23 | KC28: 4.425419379e+23 | KD28: 5.423308062e+23 | KE28: 6.646210861e+23 | KF28: 8.144866251e+23 | KG28: 9.981453739e+23 | KH28: 1.22321737e+24 | KI28: 1.499040895e+24 | KJ28: 1.83705992e+24 | KK28: 2.251298921e+24 | KL28: 2.758944757e+24 | KM28: 3.381059751e+24 | KN28: 4.143455577e+24 | KO28: 5.077764187e+24
A29: Size of apple | B29: =B27*B28 -> 2 | C29: =B29*(1+$B$30) -> 2.5 | D29: =C29*(1+$B$30) -> 3.125 | E29: 3.90625 | F29: 4.8828125 | G29: 6.103515625 | H29: 7.629394531 | I29: 9.536743164 | J29: 11.92092896 | K29: 14.90116119 | L29: 18.62645149 | M29: 23.28306437 | N29: 29.10383046 | O29: 36.37978807 | P29: 45.47473509 | Q29: 56.84341886 | R29: 71.05427358 | S29: 88.81784197 | T29: 111.0223025 | U29: 138.7778781 | V29: 173.4723476 | W29: 216.8404345 | X29: 271.0505431 | Y29: 338.8131789 | Z29: 423.5164736 | AA29: 529.395592 | AB29: 661.74449 | AC29: 827.1806126 | AD29: 1033.975766 | AE29: 1292.469707 | AF29: 1615.587134 | AG29: 2019.483917 | AH29: 2524.354897 | AI29: 3155.443621 | AJ29: 3944.304526 | AK29: 4930.380658 | AL29: 6162.975822 | AM29: 7703.719778 | AN29: 9629.649722 | AO29: 12037.06215 | AP29: 15046.32769 | AQ29: 18807.90961 | AR29: 23509.88702 | AS29: 29387.35877 | AT29: 36734.19846 | AU29: 45917.74808 | AV29: 57397.1851 | AW29: 71746.48137 | AX29: 89683.10172 | AY29: 112103.8771 | AZ29: 140129.8464 | BA29: 175162.308 | BB29: 218952.8851 | BC29: 273691.1063 | BD29: 342113.8829 | BE29: 427642.3536 | BF29: 534552.942 | BG29: 668191.1775 | BH29: 835238.9719 | BI29: 1044048.715 | BJ29: 1305060.894 | BK29: 1631326.117 | BL29: 2039157.646 | BM29: 2548947.058 | BN29: 3186183.822 | BO29: 3982729.778 | BP29: =BO29*(1+$B$30) -> 4978412.222 | BQ29: 6223015.278 | BR29: 7778769.097 | BS29: 9723461.372 | BT29: 12154326.71 | BU29: 15192908.39 | BV29: 18991135.49 | BW29: 23738919.36 | BX29: 29673649.21 | BY29: 37092061.51 | BZ29: 46365076.88 | CA29: 57956346.1 | CB29: 72445432.63 | CC29: 90556790.79 | CD29: 113195988.5 | CE29: 141494985.6 | CF29: 176868732 | CG29: 221085915 | CH29: 276357393.8 | CI29: 345446742.2 | CJ29: 431808427.8 | CK29: 539760534.7 | CL29: 674700668.4 | CM29: 843375835.5 | CN29: 1054219794 | CO29: 1317774743 | CP29: 1647218429 | CQ29: 2059023036 | CR29: 2573778795 | CS29: 3217223493 | CT29: 4021529367 | CU29: 5026911708 | CV29: 6283639636 | CW29: 7854549544 | CX29: 9818186931 | CY29: 1.227273366e+10 | CZ29: 1.534091708e+10 | DA29: 1.917614635e+10 | DB29: 2.397018294e+10 | DC29: 2.996272867e+10 | DD29: 3.745341084e+10 | DE29: 4.681676355e+10 | DF29: 5.852095443e+10 | DG29: 7.315119304e+10 | DH29: 9.14389913e+10 | DI29: 1.142987391e+11 | DJ29: 1.428734239e+11 | DK29: 1.785917799e+11 | DL29: 2.232397249e+11 | DM29: 2.790496561e+11 | DN29: 3.488120701e+11 | DO29: 4.360150876e+11 | DP29: 5.450188595e+11 | DQ29: 6.812735744e+11 | DR29: 8.51591968e+11 | DS29: 1.06448996e+12 | DT29: 1.33061245e+12 | DU29: 1.663265563e+12 | DV29: 2.079081953e+12 | DW29: 2.598852441e+12 | DX29: 3.248565552e+12 | DY29: 4.06070694e+12 | DZ29: 5.075883675e+12 | EA29: 6.344854593e+12 | EB29: =EA29*(1+$B$30) -> 7.931068242e+12 | EC29: 9.913835302e+12 | ED29: 1.239229413e+13 | EE29: 1.549036766e+13 | EF29: 1.936295957e+13 | EG29: 2.420369947e+13 | EH29: 3.025462433e+13 | EI29: 3.781828042e+13 | EJ29: 4.727285052e+13 | EK29: 5.909106315e+13 | EL29: 7.386382894e+13 | EM29: 9.232978618e+13 | EN29: 1.154122327e+14 | EO29: 1.442652909e+14 | EP29: 1.803316136e+14 | EQ29: 2.25414517e+14 | ER29: 2.817681463e+14 | ES29: 3.522101829e+14 | ET29: 440262728585517 | EU29: 5.503284107e+14 | EV29: 6.879105134e+14 | EW29: 8.598881418e+14 | EX29: 1.074860177e+15 | EY29: 1.343575222e+15 | EZ29: 1679469026891773 | FA29: 2.099336284e+15 | FB29: 2.624170355e+15 | FC29: 3.280212943e+15 | FD29: 4100266178934993 | FE29: 5125332723668741 | FF29: 6406665904585926 | FG29: 8008332380732408 | FH29: 1.001041548e+16 | FI29: 1.251301934e+16 | FJ29: 1.564127418e+16 | FK29: 1.955159273e+16 | FL29: 2.443949091e+16 | FM29: 3.054936363e+16 | FN29: 3.818670454e+16 | FO29: 4.773338068e+16 | FP29: 5.966672585e+16 | FQ29: 7.458340731e+16 | FR29: 9.322925914e+16 | FS29: 1.165365739e+17 | FT29: 1.456707174e+17 | FU29: 1.820883968e+17 | FV29: 2.276104959e+17 | FW29: 2.845131199e+17 | FX29: 3.556413999e+17 | FY29: 4.445517499e+17 | FZ29: 5.556896874e+17 | GA29: 6.946121092e+17 | GB29: 8.682651365e+17 | GC29: 1.085331421e+18 | GD29: 1.356664276e+18 | GE29: 1.695830345e+18 | GF29: 2.119787931e+18 | GG29: 2.649734914e+18 | GH29: 3.312168642e+18 | GI29: 4.140210803e+18 | GJ29: 5.175263503e+18 | GK29: 6.469079379e+18 | GL29: 8.086349224e+18 | GM29: 1.010793653e+19 | GN29: =GM29*(1+$B$30) -> 1.263492066e+19 | GO29: 1.579365083e+19 | GP29: 1.974206353e+19 | GQ29: 2.467757942e+19 | GR29: 3.084697427e+19 | GS29: 3.855871784e+19 | GT29: 4.81983973e+19 | GU29: 6.024799663e+19 | GV29: 7.530999578e+19 | GW29: 9.413749473e+19 | GX29: 1.176718684e+20 | GY29: 1.470898355e+20 | GZ29: 1.838622944e+20 | HA29: 2.29827868e+20 | HB29: 2.87284835e+20 | HC29: 3.591060437e+20 | HD29: 4.488825547e+20 | HE29: 5.611031933e+20 | HF29: 7.013789917e+20 | HG29: 8.767237396e+20 | HH29: 1.095904675e+21 | HI29: 1.369880843e+21 | HJ29: 1.712351054e+21 | HK29: 2.140438817e+21 | HL29: 2.675548522e+21 | HM29: 3.344435652e+21 | HN29: 4.180544565e+21 | HO29: 5.225680707e+21 | HP29: 6.532100883e+21 | HQ29: 8.165126104e+21 | HR29: 1.020640763e+22 | HS29: 1.275800954e+22 | HT29: 1.594751192e+22 | HU29: 1.99343899e+22 | HV29: 2.491798738e+22 | HW29: 3.114748422e+22 | HX29: 3.893435528e+22 | HY29: 4.86679441e+22 | HZ29: 6.083493012e+22 | IA29: 7.604366265e+22 | IB29: 9.505457831e+22 | IC29: 1.188182229e+23 | ID29: 1.485227786e+23 | IE29: 1.856534733e+23 | IF29: 2.320668416e+23 | IG29: 2.90083552e+23 | IH29: 3.6260444e+23 | II29: 4.5325555e+23 | IJ29: 5.665694375e+23 | IK29: 7.082117968e+23 | IL29: 8.852647461e+23 | IM29: 1.106580933e+24 | IN29: 1.383226166e+24 | IO29: 1.729032707e+24 | IP29: 2.161290884e+24 | IQ29: 2.701613605e+24 | IR29: 3.377017006e+24 | IS29: 4.221271258e+24 | IT29: 5.276589072e+24 | IU29: 6.59573634e+24 | IV29: 8.244670425e+24 | IW29: 1.030583803e+25 | IX29: 1.288229754e+25 | IY29: 1.610287192e+25 | IZ29: =IY29*(1+$B$30) -> 2.01285899e+25 | JA29: 2.516073738e+25 | JB29: 3.145092173e+25 | JC29: 3.931365216e+25 | JD29: 4.91420652e+25 | JE29: 6.14275815e+25 | JF29: 7.678447687e+25 | JG29: 9.598059609e+25 | JH29: 1.199757451e+26 | JI29: 1.499696814e+26 | JJ29: 1.874621017e+26 | JK29: 2.343276272e+26 | JL29: 2.92909534e+26 | JM29: 3.661369175e+26 | JN29: 4.576711468e+26 | JO29: 5.720889335e+26 | JP29: 7.151111669e+26 | JQ29: 8.938889586e+26 | JR29: 1.117361198e+27 | JS29: 1.396701498e+27 | JT29: 1.745876872e+27 | JU29: 2.18234609e+27 | JV29: 2.727932613e+27 | JW29: 3.409915766e+27 | JX29: 4.262394708e+27 | JY29: 5.327993385e+27 | JZ29: 6.659991731e+27 | KA29: 8.324989664e+27 | KB29: 1.040623708e+28 | KC29: 1.300779635e+28 | KD29: 1.625974544e+28 | KE29: 2.03246818e+28 | KF29: 2.540585225e+28 | KG29: 3.175731531e+28 | KH29: 3.969664413e+28 | KI29: 4.962080517e+28 | KJ29: 6.202600646e+28 | KK29: 7.753250807e+28 | KL29: 9.691563509e+28 | KM29: 1.211445439e+29 | KN29: 1.514306798e+29 | KO29: 1.892883498e+29
A30: Growth rate | B30: 0.25
A32: Years to | B32: 0.25 | C32: =MATCH(B32,$C$28:$KO$28) -> 12
B33: 0.5 | C33: =MATCH(B33,$C$28:$KO$28) -> 15
B34: 1 | C34: 19
A36: Revenue growth | B36: 0.05
A37: Revenue | B37: 100
A38: Employee expenses % of Revenue | B38: 0.5
A39: Accrued EOSB | B39: 0.15
A40: WACC | B40: 0.1 | J40: TRUE
B41: 1 | C41: =B41+1 -> 2 | D41: =C41+1 -> 3 | E41: 4 | F41: 5 | G41: TRUE | H41: TRUE | I41: TRUE | J41: TRUE | K41: 2 | L41: 3 | M41: 4 | N41: 5 | O41: 6 | P41: 7 | Q41: 8 | R41: 9 | S41: 10 | T41: 11 | U41: 12 | V41: 13 | W41: 14 | X41: 15 | Y41: 16 | Z41: 17 | AA41: 18 | AB41: 19 | AC41: 20 | AD41: 21 | AE41: 22 | AF41: 23 | AG41: 24 | AH41: 25 | AI41: 26 | AJ41: 27 | AK41: 28 | AL41: 29 | AM41: 30 | AN41: 31 | AO41: 32 | AP41: 33 | AQ41: 34 | AR41: 35 | AS41: 36 | AT41: 37 | AU41: 38 | AV41: 39 | AW41: 40 | AX41: 41 | AY41: 42 | AZ41: 43 | BA41: 44 | BB41: 45 | BC41: 46 | BD41: 47 | BE41: 48 | BF41: 49 | BG41: 50 | BH41: 51 | BI41: 52 | BJ41: 53 | BK41: 54 | BL41: 55 | BM41: 56 | BN41: 57 | BO41: 58 | BP41: =BO41+1 -> 59 | BQ41: 60 | BR41: 61 | BS41: 62 | BT41: 63 | BU41: 64 | BV41: 65 | BW41: 66 | BX41: 67 | BY41: 68 | BZ41: 69 | CA41: 70 | CB41: 71 | CC41: 72 | CD41: 73 | CE41: 74 | CF41: 75 | CG41: 76 | CH41: 77 | CI41: 78 | CJ41: 79 | CK41: 80 | CL41: 81 | CM41: 82 | CN41: 83 | CO41: 84 | CP41: 85 | CQ41: 86 | CR41: 87 | CS41: 88 | CT41: 89 | CU41: 90 | CV41: 91 | CW41: 92 | CX41: 93 | CY41: 94 | CZ41: 95 | DA41: 96 | DB41: 97 | DC41: 98 | DD41: 99 | DE41: 100 | DF41: 101 | DG41: 102 | DH41: 103 | DI41: 104 | DJ41: 105 | DK41: 106 | DL41: 107 | DM41: 108 | DN41: 109 | DO41: 110 | DP41: 111 | DQ41: 112 | DR41: 113 | DS41: 114 | DT41: 115 | DU41: 116 | DV41: 117 | DW41: 118 | DX41: 119 | DY41: 120 | DZ41: 121 | EA41: 122 | EB41: =EA41+1 -> 123 | EC41: 124 | ED41: 125 | EE41: 126 | EF41: 127 | EG41: 128 | EH41: 129 | EI41: 130 | EJ41: 131 | EK41: 132 | EL41: 133 | EM41: 134 | EN41: 135 | EO41: 136 | EP41: 137 | EQ41: 138 | ER41: 139 | ES41: 140 | ET41: 141 | EU41: 142 | EV41: 143 | EW41: 144 | EX41: 145 | EY41: 146 | EZ41: 147 | FA41: 148 | FB41: 149 | FC41: 150 | FD41: 151 | FE41: 152 | FF41: 153 | FG41: 154 | FH41: 155 | FI41: 156 | FJ41: 157 | FK41: 158 | FL41: 159 | FM41: 160 | FN41: 161 | FO41: 162 | FP41: 163 | FQ41: 164 | FR41: 165 | FS41: 166 | FT41: 167 | FU41: 168 | FV41: 169 | FW41: 170 | FX41: 171 | FY41: 172 | FZ41: 173 | GA41: 174 | GB41: 175 | GC41: 176 | GD41: 177 | GE41: 178 | GF41: 179 | GG41: 180 | GH41: 181 | GI41: 182 | GJ41: 183 | GK41: 184 | GL41: 185 | GM41: 186 | GN41: =GM41+1 -> 187 | GO41: 188 | GP41: 189 | GQ41: 190 | GR41: 191 | GS41: 192 | GT41: 193 | GU41: 194 | GV41: 195 | GW41: 196 | GX41: 197 | GY41: 198 | GZ41: 199 | HA41: 200 | HB41: 201 | HC41: 202 | HD41: 203 | HE41: 204 | HF41: 205 | HG41: 206 | HH41: 207 | HI41: 208 | HJ41: 209 | HK41: 210 | HL41: 211 | HM41: 212 | HN41: 213 | HO41: 214 | HP41: 215 | HQ41: 216 | HR41: 217 | HS41: 218 | HT41: 219 | HU41: 220 | HV41: 221 | HW41: 222 | HX41: 223 | HY41: 224 | HZ41: 225 | IA41: 226 | IB41: 227 | IC41: 228 | ID41: 229 | IE41: 230 | IF41: 231 | IG41: 232 | IH41: 233 | II41: 234 | IJ41: 235 | IK41: 236 | IL41: 237 | IM41: 238 | IN41: 239 | IO41: 240 | IP41: 241 | IQ41: 242 | IR41: 243 | IS41: 244 | IT41: 245 | IU41: 246 | IV41: 247 | IW41: 248 | IX41: 249 | IY41: 250 | IZ41: =IY41+1 -> 251 | JA41: 252 | JB41: 253 | JC41: 254 | JD41: 255 | JE41: 256 | JF41: 257 | JG41: 258 | JH41: 259 | JI41: 260 | JJ41: 261 | JK41: 262 | JL41: 263 | JM41: 264 | JN41: 265 | JO41: 266 | JP41: 267 | JQ41: 268 | JR41: 269 | JS41: 270 | JT41: 271 | JU41: 272 | JV41: 273 | JW41: 274 | JX41: 275 | JY41: 276 | JZ41: 277 | KA41: 278 | KB41: 279 | KC41: 280 | KD41: 281 | KE41: 282 | KF41: 283 | KG41: 284 | KH41: 285 | KI41: 286 | KJ41: 287 | KK41: 288 | KL41: 289 | KM41: 290 | KN41: 291 | KO41: 292
